Workbook

Sheet ACCUEIL
E3: LE CARNET DE CC

Sheet CARNET
C1: SEANCE 1 | R1: SEANCE 2 | AG1: SEANCE 3 | AV1: SEANCE 4 | BK1: SEANCE 5 | BZ1: SEANCE 6 | CO1: SEANCE 7 | DD1: SEANCE 8 | DS1: SEANCE 9 | EH1: SEANCE 10
B2: TAPR | Q2: =B2 -> TAPR | AF2: =Q2 -> TAPR | AU2: =AF2 -> TAPR | BJ2: =AU2 -> TAPR | BY2: =BJ2 -> TAPR | CN2: =BY2 -> TAPR | DC2: =CN2 -> TAPR | DR2: =DC2 -> TAPR | EG2: =DR2 -> TAPR
B3: Nom du groupe | D3: Alexandrine | F3: Chadia | H3: Asiya | J3: Asiya | L3: Behija | Q3: =B3 -> Nom du groupe | S3: =IF(D3="","",D3) -> Alexandrine | U3: =IF(F3="","",F3) -> Chadia | W3: =IF(H3="","",H3) -> Asiya | Y3: =IF(J3="","",J3) -> Asiya | AA3: =IF(L3="","",L3) -> Behija | AF3: =Q3 -> Nom du groupe | AH3: =IF(S3="","",S3) -> Alexandrine | AJ3: =IF(U3="","",U3) -> Chadia | AL3: =IF(W3="","",W3) -> Asiya | AN3: =IF(Y3="","",Y3) -> Asiya | AP3: =IF(AA3="","",AA3) -> Behija | AU3: =AF3 -> Nom du groupe | AW3: =IF(AH3="","",AH3) -> Alexandrine | AY3: =IF(AJ3="","",AJ3) -> Chadia | BA3: =IF(AL3="","",AL3) -> Asiya | BC3: =IF(AN3="","",AN3) -> Asiya | BE3: =IF(AP3="","",AP3) -> Behija | BJ3: =AU3 -> Nom du groupe | BL3: =IF(AW3="","",AW3) -> Alexandrine | BN3: =IF(AY3="","",AY3) -> Chadia | BP3: =IF(BA3="","",BA3) -> Asiya | BR3: =IF(BC3="","",BC3) -> Asiya | BT3: =IF(BE3="","",BE3) -> Behija | BY3: =BJ3 -> Nom du groupe | CA3: =IF(BL3="","",BL3) -> Alexandrine | CC3: =IF(BN3="","",BN3) -> Chadia | CE3: =IF(BP3="","",BP3) -> Asiya | CG3: =IF(BR3="","",BR3) -> Asiya | CI3: =IF(BT3="","",BT3) -> Behija | CN3: =BY3 -> Nom du groupe | CP3: =IF(CA3="","",CA3) -> Alexandrine | CR3: =IF(CC3="","",CC3) -> Chadia | CT3: =IF(CE3="","",CE3) -> Asiya | CV3: =IF(CG3="","",CG3) -> Asiya | CX3: =IF(CI3="","",CI3) -> Behija | DC3: =CN3 -> Nom du groupe | DE3: =IF(CP3="","",CP3) -> Alexandrine | DG3: =IF(CR3="","",CR3) -> Chadia | DI3: =IF(CT3="","",CT3) -> Asiya | DK3: =IF(CV3="","",CV3) -> Asiya | DM3: =IF(CX3="","",CX3) -> Behija | DR3: =DC3 -> Nom du groupe | DT3: =IF(DE3="","",DE3) -> Alexandrine | DV3: =IF(DG3="","",DG3) -> Chadia | DX3: =IF(DI3="","",DI3) -> Asiya | DZ3: =IF(DK3="","",DK3) -> Asiya | EB3: =IF(DM3="","",DM3) -> Behija | EG3: =DR3 -> Nom du groupe | EI3: =IF(DT3="","",DT3) -> Alexandrine | EK3: =IF(DV3="","",DV3) -> Chadia | EM3: =IF(DX3="","",DX3) -> Asiya | EO3: =IF(DZ3="","",DZ3) -> Asiya | EQ3: =IF(EB3="","",EB3) -> Behija
B4: FREQUENCE CARDIAQUE | Q4: FREQUENCE CARDIAQUE | AF4: FREQUENCE CARDIAQUE | AU4: FREQUENCE CARDIAQUE | BJ4: FREQUENCE CARDIAQUE | BY4: FREQUENCE CARDIAQUE | CN4: FREQUENCE CARDIAQUE | DC4: FREQUENCE CARDIAQUE | DR4: FREQUENCE CARDIAQUE | EG4: FREQUENCE CARDIAQUE
A5: FC AU REPOS | B5: 70 | C5: bpm | D5: =IF(D3="","",B$5) -> 70 | F5: =IF(F3="","",B$5) -> 70 | H5: =IF(H3="","",B$5) -> 70 | J5: =IF(J3="","",B$5) -> 70 | L5: =IF(L3="","",B$5) -> 70 | Q5: 70 | S5: =IF(S3="","",$Q$5) -> 70 | T5: bpm | U5: =IF(U3="","",$Q$5) -> 70 | V5: bpm | W5: =IF(W3="","",Q$5) -> 70 | Y5: =IF(Y3="","",Q$5) -> 70 | AA5: =IF(AA3="","",Q$5) -> 70 | AF5: 70 | AH5: =IF(AH3="","",AF$5) -> 70 | AI5: bpm | AJ5: =IF(AJ3="","",AF$5) -> 70 | AK5: bpm | AL5: =IF(AL3="","",AF$5) -> 70 | AN5: =IF(AN3="","",AF$5) -> 70 | AP5: =IF(AP3="","",AF$5) -> 70 | AU5: 70 | AW5: =IF(AW3="","",AU$5) -> 70 | AX5: bpm | AY5: =IF(AY3="","",AU$5) -> 70 | AZ5: bpm | BA5: =IF(BA3="","",AU$5) -> 70 | BC5: =IF(BC3="","",AU$5) -> 70 | BE5: =IF(BE3="","",AU$5) -> 70 | BJ5: 70 | BL5: =IF(BL3="","",BJ$5) -> 70 | BM5: bpm | BN5: =IF(BN3="","",BJ$5) -> 70 | BO5: bpm | BP5: =IF(BP3="","",BJ$5) -> 70 | BR5: =IF(BR3="","",BJ$5) -> 70 | BT5: =IF(BT3="","",BJ$5) -> 70 | BY5: 70 | CA5: =IF(CA3="","",BY$5) -> 70 | CB5: bpm | CC5: =IF(CC3="","",BY$5) -> 70 | CD5: bpm | CE5: =IF(CE3="","",BY$5) -> 70 | CG5: =IF(CG3="","",BY$5) -> 70 | CI5: =IF(CI3="","",BY$5) -> 70 | CN5: 70 | CP5: =IF(CP3="","",CN$5) -> 70 | CQ5: bpm | CR5: =IF(CR3="","",CN$5) -> 70 | CS5: bpm | CT5: =IF(CT3="","",CN$5) -> 70 | CV5: =IF(CV3="","",CN$5) -> 70 | CX5: =IF(CX3="","",CN$5) -> 70 | DC5: 70 | DE5: =IF(DE3="","",DC$5) -> 70 | DF5: bpm | DG5: =IF(DG3="","",DC$5) -> 70 | DH5: bpm | DI5: =IF(DI3="","",DC$5) -> 70 | DK5: =IF(DK3="","",DC$5) -> 70 | DM5: =IF(DM3="","",DC$5) -> 70 | DR5: 70 | DT5: =IF(DT3="","",DR$5) -> 70 | DU5: bpm | DV5: =IF(DV3="","",DR$5) -> 70 | DW5: bpm | DX5: =IF(DX3="","",DR$5) -> 70 | DZ5: =IF(DZ3="","",DR$5) -> 70 | EB5: =IF(EB3="","",DR$5) -> 70 | EG5: 60 | EI5: =IF(EI3="","",EG$5) -> 60 | EJ5: bpm | EK5: =IF(EK3="","",EG$5) -> 60 | EL5: bpm | EM5: =IF(EM3="","",EG$5) -> 60 | EO5: =IF(EO3="","",EG$5) -> 60 | EQ5: =IF(EQ3="","",EG$5) -> 60
A6: AGE | B6: 18 | C6: ans | D6: =IF(D3="","",B$6) -> 18 | F6: =IF(F3="","",B$6) -> 18 | H6: =IF(H3="","",B$6) -> 18 | J6: =IF(J3="","",B$6) -> 18 | L6: =IF(L3="","",B$6) -> 18 | Q6: =B6 -> 18 | S6: =D6 -> 18 | T6: ans | U6: =F6 -> 18 | V6: ans | W6: =H6 -> 18 | Y6: =J6 -> 18 | AA6: =L6 -> 18 | AF6: =Q6 -> 18 | AH6: =S6 -> 18 | AI6: ans | AJ6: =U6 -> 18 | AK6: ans | AL6: =W6 -> 18 | AN6: =Y6 -> 18 | AP6: =AA6 -> 18 | AU6: =AF6 -> 18 | AW6: =AH6 -> 18 | AX6: ans | AY6: =AJ6 -> 18 | AZ6: ans | BA6: =AL6 -> 18 | BC6: =AN6 -> 18 | BE6: =AP6 -> 18 | BJ6: =AU6 -> 18 | BL6: =AW6 -> 18 | BM6: ans | BN6: =AY6 -> 18 | BO6: ans | BP6: =BA6 -> 18 | BR6: =BC6 -> 18 | BT6: =BE6 -> 18 | BY6: =BJ6 -> 18 | CA6: =BL6 -> 18 | CB6: ans | CC6: =BN6 -> 18 | CD6: ans | CE6: =BP6 -> 18 | CG6: =BR6 -> 18 | CI6: =BT6 -> 18 | CN6: =BY6 -> 18 | CP6: =CA6 -> 18 | CQ6: ans | CR6: =CC6 -> 18 | CS6: ans | CT6: =CE6 -> 18 | CV6: =CG6 -> 18 | CX6: =CI6 -> 18 | DC6: =CN6 -> 18 | DE6: =CP6 -> 18 | DF6: ans | DG6: =CR6 -> 18 | DH6: ans | DI6: =CT6 -> 18 | DK6: =CV6 -> 18 | DM6: =CX6 -> 18 | DR6: =DC6 -> 18 | DT6: =DE6 -> 18 | DU6: ans | DV6: =DG6 -> 18 | DW6: ans | DX6: =DI6 -> 18 | DZ6: =DK6 -> 18 | EB6: =DM6 -> 18 | EG6: =DR6 -> 18 | EI6: =DT6 -> 18 | EJ6: ans | EK6: =DV6 -> 18 | EL6: ans | EM6: =DX6 -> 18 | EO6: =DZ6 -> 18 | EQ6: =EB6 -> 18
A7: FC max | B7: =220-B6 -> 202 | C7: bpm | D7: =IF(D3="","",220-D6) -> 202 | F7: =IF(F3="","",220-F6) -> 202 | H7: =IF(H3="","",220-H6) -> 202 | J7: =IF(J3="","",220-J6) -> 202 | L7: =IF(L3="","",220-L6) -> 202 | Q7: =220-Q6 -> 202 | S7: =IF(S3="","",220-S6) -> 202 | T7: bpm | U7: =IF(U3="","",220-U6) -> 202 | V7: bpm | W7: =IF(W3="","",220-W6) -> 202 | Y7: =IF(Y3="","",220-Y6) -> 202 | AA7: =IF(AA3="","",220-AA6) -> 202 | AF7: =220-AF6 -> 202 | AH7: =IF(AH3="","",220-AH6) -> 202 | AI7: bpm | AJ7: =IF(AJ3="","",220-AJ6) -> 202 | AK7: bpm | AL7: =IF(AL3="","",220-AL6) -> 202 | AN7: =IF(AN3="","",220-AN6) -> 202 | AP7: =IF(AP3="","",220-AP6) -> 202 | AU7: =220-AU6 -> 202 | AW7: =IF(AW3="","",220-AW6) -> 202 | AX7: bpm | AY7: =IF(AY3="","",220-AY6) -> 202 | AZ7: bpm | BA7: =IF(BA3="","",220-BA6) -> 202 | BC7: =IF(BC3="","",220-BC6) -> 202 | BE7: =IF(BE3="","",220-BE6) -> 202 | BJ7: =220-BJ6 -> 202 | BL7: =IF(BL3="","",220-BL6) -> 202 | BM7: bpm | BN7: =IF(BN3="","",220-BN6) -> 202 | BO7: bpm | BP7: =IF(BP3="","",220-BP6) -> 202 | BR7: =IF(BR3="","",220-BR6) -> 202 | BT7: =IF(BT3="","",220-BT6) -> 202 | BY7: =220-BY6 -> 202 | CA7: =IF(CA3="","",220-CA6) -> 202 | CB7: bpm | CC7: =IF(CC3="","",220-CC6) -> 202 | CD7: bpm | CE7: =IF(CE3="","",220-CE6) -> 202 | CG7: =IF(CG3="","",220-CG6) -> 202 | CI7: =IF(CI3="","",220-CI6) -> 202 | CN7: =220-CN6 -> 202 | CP7: =IF(CP3="","",220-CP6) -> 202 | CQ7: bpm | CR7: =IF(CR3="","",220-CR6) -> 202 | CS7: bpm | CT7: =IF(CT3="","",220-CT6) -> 202 | CV7: =IF(CV3="","",220-CV6) -> 202 | CX7: =IF(CX3="","",220-CX6) -> 202 | DC7: =220-DC6 -> 202 | DE7: =IF(DE3="","",220-DE6) -> 202 | DF7: bpm | DG7: =IF(DG3="","",220-DG6) -> 202 | DH7: bpm | DI7: =IF(DI3="","",220-DI6) -> 202 | DK7: =IF(DK3="","",220-DK6) -> 202 | DM7: =IF(DM3="","",220-DM6) -> 202 | DR7: =220-DR6 -> 202 | DT7: =IF(DT3="","",220-DT6) -> 202 | DU7: bpm | DV7: =IF(DV3="","",220-DV6) -> 202 | DW7: bpm | DX7: =IF(DX3="","",220-DX6) -> 202 | DZ7: =IF(DZ3="","",220-DZ6) -> 202 | EB7: =IF(EB3="","",220-EB6) -> 202 | EG7: =220-EG6 -> 202 | EI7: =IF(EI3="","",220-EI6) -> 202 | EJ7: bpm | EK7: =IF(EK3="","",220-EK6) -> 202 | EL7: bpm | EM7: =IF(EM3="","",220-EM6) -> 202 | EO7: =IF(EO3="","",220-EO6) -> 202 | EQ7: =IF(EQ3="","",220-EQ6) -> 202
A8: FC Réserve | B8: =B7-B5 -> 132 | C8: bpm | D8: =IF(D3="","",D7-D5) -> 132 | F8: =IF(F3="","",F7-F5) -> 132 | H8: =IF(H3="","",H7-H5) -> 132 | J8: =IF(J3="","",J7-J5) -> 132 | L8: =IF(L3="","",L7-L5) -> 132 | Q8: =Q7-Q5 -> 132 | S8: =IF(S3="","",S7-S5) -> 132 | T8: bpm | U8: =IF(U3="","",U7-U5) -> 132 | V8: bpm | W8: =IF(W3="","",W7-W5) -> 132 | Y8: =IF(Y3="","",Y7-Y5) -> 132 | AA8: =IF(AA3="","",AA7-AA5) -> 132 | AF8: =AF7-AF5 -> 132 | AH8: =IF(AH3="","",AH7-AH5) -> 132 | AI8: bpm | AJ8: =IF(AJ3="","",AJ7-AJ5) -> 132 | AK8: bpm | AL8: =IF(AL3="","",AL7-AL5) -> 132 | AN8: =IF(AN3="","",AN7-AN5) -> 132 | AP8: =IF(AP3="","",AP7-AP5) -> 132 | AU8: =AU7-AU5 -> 132 | AW8: =IF(AW3="","",AW7-AW5) -> 132 | AX8: bpm | AY8: =IF(AY3="","",AY7-AY5) -> 132 | AZ8: bpm | BA8: =IF(BA3="","",BA7-BA5) -> 132 | BC8: =IF(BC3="","",BC7-BC5) -> 132 | BE8: =IF(BE3="","",BE7-BE5) -> 132 | BJ8: =BJ7-BJ5 -> 132 | BL8: =IF(BL3="","",BL7-BL5) -> 132 | BM8: bpm | BN8: =IF(BN3="","",BN7-BN5) -> 132 | BO8: bpm | BP8: =IF(BP3="","",BP7-BP5) -> 132 | BR8: =IF(BR3="","",BR7-BR5) -> 132 | BT8: =IF(BT3="","",BT7-BT5) -> 132 | BY8: =BY7-BY5 -> 132 | CA8: =IF(CA3="","",CA7-CA5) -> 132 | CB8: bpm | CC8: =IF(CC3="","",CC7-CC5) -> 132 | CD8: bpm | CE8: =IF(CE3="","",CE7-CE5) -> 132 | CG8: =IF(CG3="","",CG7-CG5) -> 132 | CI8: =IF(CI3="","",CI7-CI5) -> 132 | CN8: =CN7-CN5 -> 132 | CP8: =IF(CP3="","",CP7-CP5) -> 132 | CQ8: bpm | CR8: =IF(CR3="","",CR7-CR5) -> 132 | CS8: bpm | CT8: =IF(CT3="","",CT7-CT5) -> 132 | CV8: =IF(CV3="","",CV7-CV5) -> 132 | CX8: =IF(CX3="","",CX7-CX5) -> 132 | DC8: =DC7-DC5 -> 132 | DE8: =IF(DE3="","",DE7-DE5) -> 132 | DF8: bpm | DG8: =IF(DG3="","",DG7-DG5) -> 132 | DH8: bpm | DI8: =IF(DI3="","",DI7-DI5) -> 132 | DK8: =IF(DK3="","",DK7-DK5) -> 132 | DM8: =IF(DM3="","",DM7-DM5) -> 132 | DR8: =DR7-DR5 -> 132 | DT8: =IF(DT3="","",DT7-DT5) -> 132 | DU8: bpm | DV8: =IF(DV3="","",DV7-DV5) -> 132 | DW8: bpm | DX8: =IF(DX3="","",DX7-DX5) -> 132 | DZ8: =IF(DZ3="","",DZ7-DZ5) -> 132 | EB8: =IF(EB3="","",EB7-EB5) -> 132 | EG8: =EG7-EG5 -> 142 | EI8: =IF(EI3="","",EI7-EI5) -> 142 | EJ8: bpm | EK8: =IF(EK3="","",EK7-EK5) -> 142 | EL8: bpm | EM8: =IF(EM3="","",EM7-EM5) -> 142 | EO8: =IF(EO3="","",EO7-EO5) -> 142 | EQ8: =IF(EQ3="","",EQ7-EQ5) -> 142
A9: % Intensité travail choisi | B9: 75 | C9: % | D9: =IF(D3="","",B$9) -> 75 | F9: =IF(F3="","",B$9) -> 75 | H9: =IF(H3="","",B$9) -> 75 | J9: =IF(J3="","",B$9) -> 75 | L9: =IF(L3="","",B$9) -> 75 | Q9: 85 | S9: =IF(S3="","",$Q$9) -> 85 | T9: % | U9: =IF(U3="","",$Q$9) -> 85 | V9: % | W9: =IF(W3="","",Q$9) -> 85 | Y9: =IF(Y3="","",Q$9) -> 85 | AA9: =IF(AA3="","",Q$9) -> 85 | AF9: 85 | AH9: =IF(AH3="","",AF$9) -> 85 | AI9: % | AJ9: =IF(AJ3="","",AF$9) -> 85 | AK9: % | AL9: =IF(AL3="","",AF$9) -> 85 | AN9: =IF(AN3="","",AF$9) -> 85 | AP9: =IF(AP3="","",AF$9) -> 85 | AU9: 85 | AW9: =IF(AW3="","",AU$9) -> 85 | AX9: % | AY9: =IF(AY3="","",AU$9) -> 85 | AZ9: % | BA9: =IF(BA3="","",AU$9) -> 85 | BC9: =IF(BC3="","",AU$9) -> 85 | BE9: =IF(BE3="","",AU$9) -> 85 | BJ9: 85 | BL9: =IF(BL3="","",BJ$9) -> 85 | BM9: % | BN9: =IF(BN3="","",BJ$9) -> 85 | BO9: % | BP9: =IF(BP3="","",BJ$9) -> 85 | BR9: =IF(BR3="","",BJ$9) -> 85 | BT9: =IF(BT3="","",BJ$9) -> 85 | BY9: 85 | CA9: =IF(CA3="","",BY$9) -> 85 | CB9: % | CC9: =IF(CC3="","",BY$9) -> 85 | CD9: % | CE9: =IF(CE3="","",BY$9) -> 85 | CG9: =IF(CG3="","",BY$9) -> 85 | CI9: =IF(CI3="","",BY$9) -> 85 | CN9: 85 | CP9: =IF(CP3="","",CN$9) -> 85 | CQ9: % | CR9: =IF(CR3="","",CN$9) -> 85 | CS9: % | CT9: =IF(CT3="","",CN$9) -> 85 | CV9: =IF(CV3="","",CN$9) -> 85 | CX9: =IF(CX3="","",CN$9) -> 85 | DC9: 85 | DE9: =IF(DE3="","",DC$9) -> 85 | DF9: % | DG9: =IF(DG3="","",DC$9) -> 85 | DH9: % | DI9: =IF(DI3="","",DC$9) -> 85 | DK9: =IF(DK3="","",DC$9) -> 85 | DM9: =IF(DM3="","",DC$9) -> 85 | DR9: 85 | DT9: =IF(DT3="","",DR$9) -> 85 | DU9: % | DV9: =IF(DV3="","",DR$9) -> 85 | DW9: % | DX9: =IF(DX3="","",DR$9) -> 85 | DZ9: =IF(DZ3="","",DR$9) -> 85 | EB9: =IF(EB3="","",DR$9) -> 85 | EG9: 60 | EI9: =IF(EI3="","",EG$9) -> 60 | EJ9: % | EK9: =IF(EK3="","",EG$9) -> 60 | EL9: % | EM9: =IF(EM3="","",EG$9) -> 60 | EO9: =IF(EO3="","",EG$9) -> 60 | EQ9: =IF(EQ3="","",EG$9) -> 60
A10: FC ENTRAINEMENT | B10: =B8*B9/100 +B5 -> 169 | C10: bpm | D10: =IF(D3="","",D8*D9/100 +D5) -> 169 | F10: =IF(F3="","",F8*F9/100 +F5) -> 169 | H10: =IF(H3="","",H8*H9/100 +H5) -> 169 | J10: =IF(J3="","",J8*J9/100 +J5) -> 169 | L10: =IF(L3="","",L8*L9/100 +L5) -> 169 | Q10: =Q8*Q9/100 +Q5 -> 182.2 | S10: =IF(S3="","",S8*S9/100 +S5) -> 182.2 | T10: bpm | U10: =IF(U3="","",U8*U9/100 +U5) -> 182.2 | V10: bpm | W10: =IF(W3="","",W8*W9/100 +W5) -> 182.2 | Y10: =IF(Y3="","",Y8*Y9/100 +Y5) -> 182.2 | AA10: =IF(AA3="","",AA8*AA9/100 +AA5) -> 182.2 | AF10: =AF8*AF9/100 +AF5 -> 182.2 | AH10: =IF(AH3="","",AH8*AH9/100 +AH5) -> 182.2 | AI10: bpm | AJ10: =IF(AJ3="","",AJ8*AJ9/100 +AJ5) -> 182.2 | AK10: bpm | AL10: =IF(AL3="","",AL8*AL9/100 +AL5) -> 182.2 | AN10: =IF(AN3="","",AN8*AN9/100 +AN5) -> 182.2 | AP10: =IF(AP3="","",AP8*AP9/100 +AP5) -> 182.2 | AU10: =AU8*AU9/100 +AU5 -> 182.2 | AW10: =IF(AW3="","",AW8*AW9/100 +AW5) -> 182.2 | AX10: bpm | AY10: =IF(AY3="","",AY8*AY9/100 +AY5) -> 182.2 | AZ10: bpm | BA10: =IF(BA3="","",BA8*BA9/100 +BA5) -> 182.2 | BC10: =IF(BC3="","",BC8*BC9/100 +BC5) -> 182.2 | BE10: =IF(BE3="","",BE8*BE9/100 +BE5) -> 182.2 | BJ10: =BJ8*BJ9/100 +BJ5 -> 182.2 | BL10: =IF(BL3="","",BL8*BL9/100 +BL5) -> 182.2 | BM10: bpm | BN10: =IF(BN3="","",BN8*BN9/100 +BN5) -> 182.2 | BO10: bpm | BP10: =IF(BP3="","",BP8*BP9/100 +BP5) -> 182.2 | BR10: =IF(BR3="","",BR8*BR9/100 +BR5) -> 182.2 | BT10: =IF(BT3="","",BT8*BT9/100 +BT5) -> 182.2 | BY10: =BY8*BY9/100 +BY5 -> 182.2 | CA10: =IF(CA3="","",CA8*CA9/100 +CA5) -> 182.2 | CB10: bpm | CC10: =IF(CC3="","",CC8*CC9/100 +CC5) -> 182.2 | CD10: bpm | CE10: =IF(CE3="","",CE8*CE9/100 +CE5) -> 182.2 | CG10: =IF(CG3="","",CG8*CG9/100 +CG5) -> 182.2 | CI10: =IF(CI3="","",CI8*CI9/100 +CI5) -> 182.2 | CN10: =CN8*CN9/100 +CN5 -> 182.2 | CP10: =IF(CP3="","",CP8*CP9/100 +CP5) -> 182.2 | CQ10: bpm | CR10: =IF(CR3="","",CR8*CR9/100 +CR5) -> 182.2 | CS10: bpm | CT10: =IF(CT3="","",CT8*CT9/100 +CT5) -> 182.2 | CV10: =IF(CV3="","",CV8*CV9/100 +CV5) -> 182.2 | CX10: =IF(CX3="","",CX8*CX9/100 +CX5) -> 182.2 | DC10: =DC8*DC9/100 +DC5 -> 182.2 | DE10: =IF(DE3="","",DE8*DE9/100 +DE5) -> 182.2 | DF10: bpm | DG10: =IF(DG3="","",DG8*DG9/100 +DG5) -> 182.2 | DH10: bpm | DI10: =IF(DI3="","",DI8*DI9/100 +DI5) -> 182.2 | DK10: =IF(DK3="","",DK8*DK9/100 +DK5) -> 182.2 | DM10: =IF(DM3="","",DM8*DM9/100 +DM5) -> 182.2 | DR10: =DR8*DR9/100 +DR5 -> 182.2 | DT10: =IF(DT3="","",DT8*DT9/100 +DT5) -> 182.2 | DU10: bpm | DV10: =IF(DV3="","",DV8*DV9/100 +DV5) -> 182.2 | DW10: bpm | DX10: =IF(DX3="","",DX8*DX9/100 +DX5) -> 182.2 | DZ10: =IF(DZ3="","",DZ8*DZ9/100 +DZ5) -> 182.2 | EB10: =IF(EB3="","",EB8*EB9/100 +EB5) -> 182.2 | EG10: =EG8*EG9/100 +EG5 -> 145.2 | EI10: =IF(EI3="","",EI8*EI9/100 +EI5) -> 145.2 | EJ10: bpm | EK10: =IF(EK3="","",EK8*EK9/100 +EK5) -> 145.2 | EL10: bpm | EM10: =IF(EM3="","",EM8*EM9/100 +EM5) -> 145.2 | EO10: =IF(EO3="","",EO8*EO9/100 +EO5) -> 145.2 | EQ10: =IF(EQ3="","",EQ8*EQ9/100 +EQ5) -> 145.2
B11: FC max = 226 - âge | E11: FC Réserve = FC max - FC repos | H11: FC Entrainement = FC Réserve x % intensité travail choisi + FC repos | Q11: FC max = 226 - âge | T11: FC Réserve = FC max - FC repos | W11: FC Entrainement = FC Réserve x % intensité travail choisi + FC repos | AF11: FC max = 226 - âge | AI11: FC Réserve = FC max - FC repos | AL11: FC Entrainement = FC Réserve x % intensité travail choisi + FC repos | AU11: FC max = 226 - âge | AX11: FC Réserve = FC max - FC repos | BA11: FC Entrainement = FC Réserve x % intensité travail choisi + FC repos | BJ11: FC max = 226 - âge | BM11: FC Réserve = FC max - FC repos | BP11: FC Entrainement = FC Réserve x % intensité travail choisi + FC repos | BY11: FC max = 226 - âge | CB11: FC Réserve = FC max - FC repos | CE11: FC Entrainement = FC Réserve x % intensité travail choisi + FC repos | CN11: FC max = 226 - âge | CQ11: FC Réserve = FC max - FC repos | CT11: FC Entrainement = FC Réserve x % intensité travail choisi + FC repos | DC11: FC max = 226 - âge | DF11: FC Réserve = FC max - FC repos | DI11: FC Entrainement = FC Réserve x % intensité travail choisi + FC repos | DR11: FC max = 226 - âge | DU11: FC Réserve = FC max - FC repos | DX11: FC Entrainement = FC Réserve x % intensité travail choisi + FC repos | EG11: FC max = 226 - âge | EJ11: FC Réserve = FC max - FC repos | EM11: FC Entrainement = FC Réserve x % intensité travail choisi + FC repos
B13: CHOIX DU MOBILE | Q13: CHOIX DU MOBILE | AF13: CHOIX DU MOBILE | AU13: CHOIX DU MOBILE | BJ13: CHOIX DU MOBILE | BY13: CHOIX DU MOBILE | CN13: CHOIX DU MOBILE | DC13: CHOIX DU MOBILE | DR13: CHOIX DU MOBILE | EG13: CHOIX DU MOBILE
A14: Choix du mobile | D14: Effort bref et intense | S14: Effort long et soutenu | AH14: Effort modéré et prolongé | AW14: Mobiles | BL14: Mobiles | CA14: Mobiles | CP14: Mobiles | DE14: Effort bref et intense | DT14: Mobiles | EI14: Mobiles
A15: Temps de travail | D15: =VLOOKUP(D14,DEBUTSTEP!$V$4:$X$25,2,FALSE) -> 12 à 18' | S15: =VLOOKUP(S14,DEBUTSTEP!$V$4:$X$25,2,FALSE) -> 16 à 22' | AH15: =VLOOKUP(AH14,DEBUTSTEP!$V$4:$X$25,2,FALSE) -> 20 à 26' | AW15: =VLOOKUP(AW14,DEBUTSTEP!$V$4:$X$25,2,FALSE) -> Temps de travail | BL15: =VLOOKUP(BL14,DEBUTSTEP!$V$4:$X$25,2,FALSE) -> Temps de travail | CA15: =VLOOKUP(CA14,DEBUTSTEP!$V$4:$X$25,2,FALSE) -> Temps de travail | CP15: =VLOOKUP(CP14,DEBUTSTEP!$V$4:$X$25,2,FALSE) -> Temps de travail | DE15: =VLOOKUP(DE14,DEBUTSTEP!$V$4:$X$25,2,FALSE) -> 12 à 18' | DT15: =VLOOKUP(DT14,DEBUTSTEP!$V$4:$X$25,2,FALSE) -> Temps de travail | EI15: =VLOOKUP(EI14,DEBUTSTEP!$V$4:$X$25,2,FALSE) -> Temps de travail
A17: Mobile | B17: Quel type d'effort ? | D17: 1 | G17: 2 | J17: 3 | Q17: Quel type d'effort ? | S17: 1 | V17: 2 | Y17: 3 | AF17: Quel type d'effort ? | AH17: 1 | AK17: 2 | AN17: 3 | AU17: Quel type d'effort ? | AW17: 1 | AZ17: 2 | BC17: 3 | BJ17: Quel type d'effort ? | BL17: 1 | BO17: 2 | BR17: 3 | BY17: Quel type d'effort ? | CA17: 1 | CD17: 2 | CG17: 3 | CN17: Quel type d'effort ? | CP17: 1 | CS17: 2 | CV17: 3 | DC17: Quel type d'effort ? | DE17: 1 | DH17: 2 | DK17: 3 | DR17: Quel type d'effort ? | DT17: 1 | DW17: 2 | DZ17: 3 | EG17: Quel type d'effort ? | EI17: 1 | EL17: 2 | EO17: 3
D18: Effort bref et intense | G18: Effort long et soutenu | J18: Effort modéré et prolongé | S18: Effort bref et intense | V18: Effort long et soutenu | Y18: Effort modéré et prolongé | AH18: Effort bref et intense | AK18: Effort long et soutenu | AN18: Effort modéré et prolongé | AW18: Effort bref et intense | AZ18: Effort long et soutenu | BC18: Effort modéré et prolongé | BL18: Effort bref et intense | BO18: Effort long et soutenu | BR18: Effort modéré et prolongé | CA18: Effort bref et intense | CD18: Effort long et soutenu | CG18: Effort modéré et prolongé | CP18: Effort bref et intense | CS18: Effort long et soutenu | CV18: Effort modéré et prolongé | DE18: Effort bref et intense | DH18: Effort long et soutenu | DK18: Effort modéré et prolongé | DT18: Effort bref et intense | DW18: Effort long et soutenu | DZ18: Effort modéré et prolongé | EI18: Effort bref et intense | EL18: Effort long et soutenu | EO18: Effort modéré et prolongé
A19: Filières énergétiques | B19: Quelles qualités développées ? | D19: =VLOOKUP(D$18,DEBUTSTEP!$V$4:$AG$22,7,FALSE) -> La puissance aérobie | G19: =VLOOKUP(G$18,DEBUTSTEP!$V$4:$AG$22,7,FALSE) -> La capacité aérobie | J19: =VLOOKUP(J$18,DEBUTSTEP!$V$4:$AG$22,7,FALSE) -> L’endurance fondamentale | Q19: Quelles qualités développées ? | S19: =VLOOKUP($D$18,DEBUTSTEP!$V$4:$AG$22,7,FALSE) -> La puissance aérobie | V19: =VLOOKUP($G$18,DEBUTSTEP!$V$4:$AG$22,7,FALSE) -> La capacité aérobie | Y19: =VLOOKUP($J$18,DEBUTSTEP!$V$4:$AG$22,7,FALSE) -> L’endurance fondamentale | AF19: Quelles qualités développées ? | AH19: =VLOOKUP($D$18,DEBUTSTEP!$V$4:$AG$22,7,FALSE) -> La puissance aérobie | AK19: =VLOOKUP($G$18,DEBUTSTEP!$V$4:$AG$22,7,FALSE) -> La capacité aérobie | AN19: =VLOOKUP($J$18,DEBUTSTEP!$V$4:$AG$22,7,FALSE) -> L’endurance fondamentale | AU19: Quelles qualités développées ? | AW19: =VLOOKUP($D$18,DEBUTSTEP!$V$4:$AG$22,7,FALSE) -> La puissance aérobie | AZ19: =VLOOKUP($G$18,DEBUTSTEP!$V$4:$AG$22,7,FALSE) -> La capacité aérobie | BC19: =VLOOKUP($J$18,DEBUTSTEP!$V$4:$AG$22,7,FALSE) -> L’endurance fondamentale | BJ19: Quelles qualités développées ? | BL19: =VLOOKUP($D$18,DEBUTSTEP!$V$4:$AG$22,7,FALSE) -> La puissance aérobie | BO19: =VLOOKUP($G$18,DEBUTSTEP!$V$4:$AG$22,7,FALSE) -> La capacité aérobie | BR19: =VLOOKUP($J$18,DEBUTSTEP!$V$4:$AG$22,7,FALSE) -> L’endurance fondamentale | BY19: Quelles qualités développées ? | CA19: =VLOOKUP($D$18,DEBUTSTEP!$V$4:$AG$22,7,FALSE) -> La puissance aérobie | CD19: =VLOOKUP($G$18,DEBUTSTEP!$V$4:$AG$22,7,FALSE) -> La capacité aérobie | CG19: =VLOOKUP($J$18,DEBUTSTEP!$V$4:$AG$22,7,FALSE) -> L’endurance fondamentale | CN19: Quelles qualités développées ? | CP19: =VLOOKUP($D$18,DEBUTSTEP!$V$4:$AG$22,7,FALSE) -> La puissance aérobie | CS19: =VLOOKUP($G$18,DEBUTSTEP!$V$4:$AG$22,7,FALSE) -> La capacité aérobie | CV19: =VLOOKUP($J$18,DEBUTSTEP!$V$4:$AG$22,7,FALSE) -> L’endurance fondamentale | DC19: Quelles qualités développées ? | DE19: =VLOOKUP($D$18,DEBUTSTEP!$V$4:$AG$22,7,FALSE) -> La puissance aérobie | DH19: =VLOOKUP($G$18,DEBUTSTEP!$V$4:$AG$22,7,FALSE) -> La capacité aérobie | DK19: =VLOOKUP($J$18,DEBUTSTEP!$V$4:$AG$22,7,FALSE) -> L’endurance fondamentale | DR19: Quelles qualités développées ? | DT19: =VLOOKUP($D$18,DEBUTSTEP!$V$4:$AG$22,7,FALSE) -> La puissance aérobie | DW19: =VLOOKUP($G$18,DEBUTSTEP!$V$4:$AG$22,7,FALSE) -> La capacité aérobie | DZ19: =VLOOKUP($J$18,DEBUTSTEP!$V$4:$AG$22,7,FALSE) -> L’endurance fondamentale | EG19: Quelles qualités développées ? | EI19: =VLOOKUP($D$18,DEBUTSTEP!$V$4:$AG$22,7,FALSE) -> La puissance aérobie | EL19: =VLOOKUP($G$18,DEBUTSTEP!$V$4:$AG$22,7,FALSE) -> La capacité aérobie | EO19: =VLOOKUP($J$18,DEBUTSTEP!$V$4:$AG$22,7,FALSE) -> L’endurance fondamentale
A20: FCE | D20: =VLOOKUP(D$18,DEBUTSTEP!$V$4:$AC$22,6,FALSE) -> >85% de FCR | G20: =VLOOKUP(G$18,DEBUTSTEP!$V$4:$AC$22,6,FALSE) -> 70 à 85% de FCR | J20: =VLOOKUP(J$18,DEBUTSTEP!$V$4:$AC$22,6,FALSE) -> 50 à 65% de FCR | S20: =VLOOKUP($D$18,DEBUTSTEP!$V$4:$AC$22,6,FALSE) -> >85% de FCR | V20: =VLOOKUP($G$18,DEBUTSTEP!$V$4:$AC$22,6,FALSE) -> 70 à 85% de FCR | Y20: =VLOOKUP($J$18,DEBUTSTEP!$V$4:$AC$22,6,FALSE) -> 50 à 65% de FCR | AH20: =VLOOKUP($D$18,DEBUTSTEP!$V$4:$AC$22,6,FALSE) -> >85% de FCR | AK20: =VLOOKUP($G$18,DEBUTSTEP!$V$4:$AC$22,6,FALSE) -> 70 à 85% de FCR | AN20: =VLOOKUP($J$18,DEBUTSTEP!$V$4:$AC$22,6,FALSE) -> 50 à 65% de FCR | AW20: =VLOOKUP($D$18,DEBUTSTEP!$V$4:$AC$22,6,FALSE) -> >85% de FCR | AZ20: =VLOOKUP($G$18,DEBUTSTEP!$V$4:$AC$22,6,FALSE) -> 70 à 85% de FCR | BC20: =VLOOKUP($J$18,DEBUTSTEP!$V$4:$AC$22,6,FALSE) -> 50 à 65% de FCR | BL20: =VLOOKUP($D$18,DEBUTSTEP!$V$4:$AC$22,6,FALSE) -> >85% de FCR | BO20: =VLOOKUP($G$18,DEBUTSTEP!$V$4:$AC$22,6,FALSE) -> 70 à 85% de FCR | BR20: =VLOOKUP($J$18,DEBUTSTEP!$V$4:$AC$22,6,FALSE) -> 50 à 65% de FCR | CA20: =VLOOKUP($D$18,DEBUTSTEP!$V$4:$AC$22,6,FALSE) -> >85% de FCR | CD20: =VLOOKUP($G$18,DEBUTSTEP!$V$4:$AC$22,6,FALSE) -> 70 à 85% de FCR | CG20: =VLOOKUP($J$18,DEBUTSTEP!$V$4:$AC$22,6,FALSE) -> 50 à 65% de FCR | CP20: =VLOOKUP($D$18,DEBUTSTEP!$V$4:$AC$22,6,FALSE) -> >85% de FCR | CS20: =VLOOKUP($G$18,DEBUTSTEP!$V$4:$AC$22,6,FALSE) -> 70 à 85% de FCR | CV20: =VLOOKUP($J$18,DEBUTSTEP!$V$4:$AC$22,6,FALSE) -> 50 à 65% de FCR | DE20: =VLOOKUP($D$18,DEBUTSTEP!$V$4:$AC$22,6,FALSE) -> >85% de FCR | DH20: =VLOOKUP($G$18,DEBUTSTEP!$V$4:$AC$22,6,FALSE) -> 70 à 85% de FCR | DK20: =VLOOKUP($J$18,DEBUTSTEP!$V$4:$AC$22,6,FALSE) -> 50 à 65% de FCR | DT20: =VLOOKUP($D$18,DEBUTSTEP!$V$4:$AC$22,6,FALSE) -> >85% de FCR | DW20: =VLOOKUP($G$18,DEBUTSTEP!$V$4:$AC$22,6,FALSE) -> 70 à 85% de FCR | DZ20: =VLOOKUP($J$18,DEBUTSTEP!$V$4:$AC$22,6,FALSE) -> 50 à 65% de FCR | EI20: =VLOOKUP($D$18,DEBUTSTEP!$V$4:$AC$22,6,FALSE) -> >85% de FCR | EL20: =VLOOKUP($G$18,DEBUTSTEP!$V$4:$AC$22,6,FALSE) -> 70 à 85% de FCR | EO20: =VLOOKUP($J$18,DEBUTSTEP!$V$4:$AC$22,6,FALSE) -> 50 à 65% de FCR
A21: Temps de travail | B21: Alterner temps de travail et récupération à une intenisté adaptée à l'objectif | D21: =VLOOKUP(D$18,DEBUTSTEP!$V$4:$AC$22,2,FALSE) -> 12 à 18' | G21: =VLOOKUP(G$18,DEBUTSTEP!$V$4:$AC$22,2,FALSE) -> 16 à 22' | J21: =VLOOKUP(J$18,DEBUTSTEP!$V$4:$AC$22,2,FALSE) -> 20 à 26' | Q21: Alterner temps de travail et récupération à une intenisté adaptée à l'objectif | S21: =VLOOKUP($D$18,DEBUTSTEP!$V$4:$AC$22,2,FALSE) -> 12 à 18' | V21: =VLOOKUP($G$18,DEBUTSTEP!$V$4:$AC$22,2,FALSE) -> 16 à 22' | Y21: =VLOOKUP($J$18,DEBUTSTEP!$V$4:$AC$22,2,FALSE) -> 20 à 26' | AF21: Alterner temps de travail et récupération à une intenisté adaptée à l'objectif | AH21: =VLOOKUP($D$18,DEBUTSTEP!$V$4:$AC$22,2,FALSE) -> 12 à 18' | AK21: =VLOOKUP($G$18,DEBUTSTEP!$V$4:$AC$22,2,FALSE) -> 16 à 22' | AN21: =VLOOKUP($J$18,DEBUTSTEP!$V$4:$AC$22,2,FALSE) -> 20 à 26' | AU21: Alterner temps de travail et récupération à une intenisté adaptée à l'objectif | AW21: =VLOOKUP($D$18,DEBUTSTEP!$V$4:$AC$22,2,FALSE) -> 12 à 18' | AZ21: =VLOOKUP($G$18,DEBUTSTEP!$V$4:$AC$22,2,FALSE) -> 16 à 22' | BC21: =VLOOKUP($J$18,DEBUTSTEP!$V$4:$AC$22,2,FALSE) -> 20 à 26' | BJ21: Alterner temps de travail et récupération à une intenisté adaptée à l'objectif | BL21: =VLOOKUP($D$18,DEBUTSTEP!$V$4:$AC$22,2,FALSE) -> 12 à 18' | BO21: =VLOOKUP($G$18,DEBUTSTEP!$V$4:$AC$22,2,FALSE) -> 16 à 22' | BR21: =VLOOKUP($J$18,DEBUTSTEP!$V$4:$AC$22,2,FALSE) -> 20 à 26' | BY21: Alterner temps de travail et récupération à une intenisté adaptée à l'objectif | CA21: =VLOOKUP($D$18,DEBUTSTEP!$V$4:$AC$22,2,FALSE) -> 12 à 18' | CD21: =VLOOKUP($G$18,DEBUTSTEP!$V$4:$AC$22,2,FALSE) -> 16 à 22' | CG21: =VLOOKUP($J$18,DEBUTSTEP!$V$4:$AC$22,2,FALSE) -> 20 à 26' | CN21: Alterner temps de travail et récupération à une intenisté adaptée à l'objectif | CP21: =VLOOKUP($D$18,DEBUTSTEP!$V$4:$AC$22,2,FALSE) -> 12 à 18' | CS21: =VLOOKUP($G$18,DEBUTSTEP!$V$4:$AC$22,2,FALSE) -> 16 à 22' | CV21: =VLOOKUP($J$18,DEBUTSTEP!$V$4:$AC$22,2,FALSE) -> 20 à 26' | DC21: Alterner temps de travail et récupération à une intenisté adaptée à l'objectif | DE21: =VLOOKUP($D$18,DEBUTSTEP!$V$4:$AC$22,2,FALSE) -> 12 à 18' | DH21: =VLOOKUP($G$18,DEBUTSTEP!$V$4:$AC$22,2,FALSE) -> 16 à 22' | DK21: =VLOOKUP($J$18,DEBUTSTEP!$V$4:$AC$22,2,FALSE) -> 20 à 26' | DR21: Alterner temps de travail et récupération à une intenisté adaptée à l'objectif | DT21: =VLOOKUP($D$18,DEBUTSTEP!$V$4:$AC$22,2,FALSE) -> 12 à 18' | DW21: =VLOOKUP($G$18,DEBUTSTEP!$V$4:$AC$22,2,FALSE) -> 16 à 22' | DZ21: =VLOOKUP($J$18,DEBUTSTEP!$V$4:$AC$22,2,FALSE) -> 20 à 26' | EG21: Alterner temps de travail et récupération à une intenisté adaptée à l'objectif | EI21: =VLOOKUP($D$18,DEBUTSTEP!$V$4:$AC$22,2,FALSE) -> 12 à 18' | EL21: =VLOOKUP($G$18,DEBUTSTEP!$V$4:$AC$22,2,FALSE) -> 16 à 22' | EO21: =VLOOKUP($J$18,DEBUTSTEP!$V$4:$AC$22,2,FALSE) -> 20 à 26'
A22: Séries | D22: =VLOOKUP(D$18,DEBUTSTEP!$V$4:$AC$22,3,FALSE) -> jusqu'à 4' | G22: =VLOOKUP(G$18,DEBUTSTEP!$V$4:$AC$22,3,FALSE) -> Au moins 3 séries | J22: =VLOOKUP(J$18,DEBUTSTEP!$V$4:$AC$22,3,FALSE) -> Au moins 3 séries | S22: =VLOOKUP($D$18,DEBUTSTEP!$V$4:$AC$22,3,FALSE) -> jusqu'à 4' | V22: =VLOOKUP($G$18,DEBUTSTEP!$V$4:$AC$22,3,FALSE) -> Au moins 3 séries | Y22: =VLOOKUP($J$18,DEBUTSTEP!$V$4:$AC$22,3,FALSE) -> Au moins 3 séries | AH22: =VLOOKUP($D$18,DEBUTSTEP!$V$4:$AC$22,3,FALSE) -> jusqu'à 4' | AK22: =VLOOKUP($G$18,DEBUTSTEP!$V$4:$AC$22,3,FALSE) -> Au moins 3 séries | AN22: =VLOOKUP($J$18,DEBUTSTEP!$V$4:$AC$22,3,FALSE) -> Au moins 3 séries | AW22: 2x2' | AZ22: 1x7' | BC22: 1x5' | BL22: 3x2' | BO22: 2x5' | BR22: 2x5' | CA22: 4x2' | CD22: 3x4' | CG22: 2x6' | CP22: 5x2' | CS22: 2x7' | CV22: 3x5' | DE22: 6x2' | DH22: 3x6' | DK22: 3x7' | DT22: =VLOOKUP($D$18,DEBUTSTEP!$V$4:$AC$22,3,FALSE) -> jusqu'à 4' | DW22: =VLOOKUP($G$18,DEBUTSTEP!$V$4:$AC$22,3,FALSE) -> Au moins 3 séries | DZ22: =VLOOKUP($J$18,DEBUTSTEP!$V$4:$AC$22,3,FALSE) -> Au moins 3 séries | EI22: =VLOOKUP($D$18,DEBUTSTEP!$V$4:$AC$22,3,FALSE) -> jusqu'à 4' | EL22: =VLOOKUP($G$18,DEBUTSTEP!$V$4:$AC$22,3,FALSE) -> Au moins 3 séries | EO22: =VLOOKUP($J$18,DEBUTSTEP!$V$4:$AC$22,3,FALSE) -> Au moins 3 séries
A23: Repos | D23: =VLOOKUP(D$18,DEBUTSTEP!$V$4:$AC$22,4,FALSE) -> jusqu'à 4' | G23: =VLOOKUP(G$18,DEBUTSTEP!$V$4:$AC$22,4,FALSE) -> jusqu'à 4' | J23: =VLOOKUP(J$18,DEBUTSTEP!$V$4:$AC$22,4,FALSE) -> jusqu'à 5' | S23: =VLOOKUP($D$18,DEBUTSTEP!$V$4:$AC$22,4,FALSE) -> jusqu'à 4' | V23: =VLOOKUP($G$18,DEBUTSTEP!$V$4:$AC$22,4,FALSE) -> jusqu'à 4' | Y23: =VLOOKUP($J$18,DEBUTSTEP!$V$4:$AC$22,4,FALSE) -> jusqu'à 5' | AH23: =VLOOKUP($D$18,DEBUTSTEP!$V$4:$AC$22,4,FALSE) -> jusqu'à 4' | AK23: =VLOOKUP($G$18,DEBUTSTEP!$V$4:$AC$22,4,FALSE) -> jusqu'à 4' | AN23: =VLOOKUP($J$18,DEBUTSTEP!$V$4:$AC$22,4,FALSE) -> jusqu'à 5' | AW23: =VLOOKUP($G$18,DEBUTSTEP!$V$4:$AC$22,4,FALSE) -> jusqu'à 4' | AZ23: =VLOOKUP($G$18,DEBUTSTEP!$V$4:$AC$22,4,FALSE) -> jusqu'à 4' | BC23: =VLOOKUP($J$18,DEBUTSTEP!$V$4:$AC$22,4,FALSE) -> jusqu'à 5' | BL23: =VLOOKUP($D$18,DEBUTSTEP!$V$4:$AC$22,4,FALSE) -> jusqu'à 4' | BO23: =VLOOKUP($G$18,DEBUTSTEP!$V$4:$AC$22,4,FALSE) -> jusqu'à 4' | BR23: =VLOOKUP($J$18,DEBUTSTEP!$V$4:$AC$22,4,FALSE) -> jusqu'à 5' | CA23: =VLOOKUP($D$18,DEBUTSTEP!$V$4:$AC$22,4,FALSE) -> jusqu'à 4' | CD23: 3' | CG23: 4' | CP23: 2' | CS23: =VLOOKUP($G$18,DEBUTSTEP!$V$4:$AC$22,4,FALSE) -> jusqu'à 4' | CV23: =VLOOKUP($J$18,DEBUTSTEP!$V$4:$AC$22,4,FALSE) -> jusqu'à 5' | DE23: 2' | DH23: =VLOOKUP($G$18,DEBUTSTEP!$V$4:$AC$22,4,FALSE) -> jusqu'à 4' | DK23: 4' | DT23: =VLOOKUP($D$18,DEBUTSTEP!$V$4:$AC$22,4,FALSE) -> jusqu'à 4' | DW23: =VLOOKUP($G$18,DEBUTSTEP!$V$4:$AC$22,4,FALSE) -> jusqu'à 4' | DZ23: =VLOOKUP($J$18,DEBUTSTEP!$V$4:$AC$22,4,FALSE) -> jusqu'à 5' | EI23: =VLOOKUP($D$18,DEBUTSTEP!$V$4:$AC$22,4,FALSE) -> jusqu'à 4' | EL23: =VLOOKUP($G$18,DEBUTSTEP!$V$4:$AC$22,4,FALSE) -> jusqu'à 4' | EO23: =VLOOKUP($J$18,DEBUTSTEP!$V$4:$AC$22,4,FALSE) -> jusqu'à 5'
A24: Indicateurs | B24: Repères sur mon activité | D24: =VLOOKUP(D18,DEBUTSTEP!$V$4:$AG$22,8,FALSE) -> FC s’approche progressivement du maximum - Ventilation fortement marquée et accélérée - Séries plutôt courtes - Motricité variée qui ne gêne pas l’engagement. - Paramètres, variateurs d’intensité, essentiellement d’ordre énergétique : sursauts, lests, hauteur du step, bras au-dessus des épaules. - Tempo > 135 bpm le plus souvent. | G24: =VLOOKUP(G18,DEBUTSTEP!$V$4:$AG$22,8,FALSE) -> FC élevée - Ventilation accentuée et rythmée sans gêne excessive - Séries à minima 3" - Coordination et dissociations présentes - Paramètres d’ordre énergétique : sursauts, bras au-dessus des épaules, lests, hauteur du step. - 130 bpm < tempo < 140 bpm. | J24: =VLOOKUP(J18,DEBUTSTEP!$V$4:$AG$22,8,FALSE) -> FC modérée - Aisance respiratoire - Séries longues et "à minima 3" - Temps de récupération minimisé - Motricité explorée de façon ambitieuse - Paramètres essentiellement d’ordre biomécanique : pas complexes, bras en dissociation, changement d'orientation, éléments réalisés à côté du step - Tempo le plus souvent proche de 130 bpm | Q24: Repères sur mon activité | S24: =VLOOKUP(S18,DEBUTSTEP!$V$4:$AG$22,8,FALSE) -> FC s’approche progressivement du maximum - Ventilation fortement marquée et accélérée - Séries plutôt courtes - Motricité variée qui ne gêne pas l’engagement. - Paramètres, variateurs d’intensité, essentiellement d’ordre énergétique : sursauts, lests, hauteur du step, bras au-dessus des épaules. - Tempo > 135 bpm le plus souvent. | V24: =VLOOKUP(V18,DEBUTSTEP!$V$4:$AG$22,8,FALSE) -> FC élevée - Ventilation accentuée et rythmée sans gêne excessive - Séries à minima 3" - Coordination et dissociations présentes - Paramètres d’ordre énergétique : sursauts, bras au-dessus des épaules, lests, hauteur du step. - 130 bpm < tempo < 140 bpm. | Y24: =VLOOKUP(Y18,DEBUTSTEP!$V$4:$AG$22,8,FALSE) -> FC modérée - Aisance respiratoire - Séries longues et "à minima 3" - Temps de récupération minimisé - Motricité explorée de façon ambitieuse - Paramètres essentiellement d’ordre biomécanique : pas complexes, bras en dissociation, changement d'orientation, éléments réalisés à côté du step - Tempo le plus souvent proche de 130 bpm | AF24: Repères sur mon activité | AH24: =VLOOKUP(AH18,DEBUTSTEP!$V$4:$AG$22,8,FALSE) -> FC s’approche progressivement du maximum - Ventilation fortement marquée et accélérée - Séries plutôt courtes - Motricité variée qui ne gêne pas l’engagement. - Paramètres, variateurs d’intensité, essentiellement d’ordre énergétique : sursauts, lests, hauteur du step, bras au-dessus des épaules. - Tempo > 135 bpm le plus souvent. | AK24: =VLOOKUP(AK18,DEBUTSTEP!$V$4:$AG$22,8,FALSE) -> FC élevée - Ventilation accentuée et rythmée sans gêne excessive - Séries à minima 3" - Coordination et dissociations présentes - Paramètres d’ordre énergétique : sursauts, bras au-dessus des épaules, lests, hauteur du step. - 130 bpm < tempo < 140 bpm. | AN24: =VLOOKUP(AN18,DEBUTSTEP!$V$4:$AG$22,8,FALSE) -> FC modérée - Aisance respiratoire - Séries longues et "à minima 3" - Temps de récupération minimisé - Motricité explorée de façon ambitieuse - Paramètres essentiellement d’ordre biomécanique : pas complexes, bras en dissociation, changement d'orientation, éléments réalisés à côté du step - Tempo le plus souvent proche de 130 bpm | AU24: Repères sur mon activité | AW24: =VLOOKUP(AW18,DEBUTSTEP!$V$4:$AG$22,8,FALSE) -> FC s’approche progressivement du maximum - Ventilation fortement marquée et accélérée - Séries plutôt courtes - Motricité variée qui ne gêne pas l’engagement. - Paramètres, variateurs d’intensité, essentiellement d’ordre énergétique : sursauts, lests, hauteur du step, bras au-dessus des épaules. - Tempo > 135 bpm le plus souvent. | AZ24: =VLOOKUP(AZ18,DEBUTSTEP!$V$4:$AG$22,8,FALSE) -> FC élevée - Ventilation accentuée et rythmée sans gêne excessive - Séries à minima 3" - Coordination et dissociations présentes - Paramètres d’ordre énergétique : sursauts, bras au-dessus des épaules, lests, hauteur du step. - 130 bpm < tempo < 140 bpm. | BC24: =VLOOKUP(BC18,DEBUTSTEP!$V$4:$AG$22,8,FALSE) -> FC modérée - Aisance respiratoire - Séries longues et "à minima 3" - Temps de récupération minimisé - Motricité explorée de façon ambitieuse - Paramètres essentiellement d’ordre biomécanique : pas complexes, bras en dissociation, changement d'orientation, éléments réalisés à côté du step - Tempo le plus souvent proche de 130 bpm | BJ24: Repères sur mon activité | BL24: =VLOOKUP(BL18,DEBUTSTEP!$V$4:$AG$22,8,FALSE) -> FC s’approche progressivement du maximum - Ventilation fortement marquée et accélérée - Séries plutôt courtes - Motricité variée qui ne gêne pas l’engagement. - Paramètres, variateurs d’intensité, essentiellement d’ordre énergétique : sursauts, lests, hauteur du step, bras au-dessus des épaules. - Tempo > 135 bpm le plus souvent. | BO24: =VLOOKUP(BO18,DEBUTSTEP!$V$4:$AG$22,8,FALSE) -> FC élevée - Ventilation accentuée et rythmée sans gêne excessive - Séries à minima 3" - Coordination et dissociations présentes - Paramètres d’ordre énergétique : sursauts, bras au-dessus des épaules, lests, hauteur du step. - 130 bpm < tempo < 140 bpm. | BR24: =VLOOKUP(BR18,DEBUTSTEP!$V$4:$AG$22,8,FALSE) -> FC modérée - Aisance respiratoire - Séries longues et "à minima 3" - Temps de récupération minimisé - Motricité explorée de façon ambitieuse - Paramètres essentiellement d’ordre biomécanique : pas complexes, bras en dissociation, changement d'orientation, éléments réalisés à côté du step - Tempo le plus souvent proche de 130 bpm | BY24: Repères sur mon activité | CA24: =VLOOKUP(CA18,DEBUTSTEP!$V$4:$AG$22,8,FALSE) -> FC s’approche progressivement du maximum - Ventilation fortement marquée et accélérée - Séries plutôt courtes - Motricité variée qui ne gêne pas l’engagement. - Paramètres, variateurs d’intensité, essentiellement d’ordre énergétique : sursauts, lests, hauteur du step, bras au-dessus des épaules. - Tempo > 135 bpm le plus souvent. | CD24: =VLOOKUP(CD18,DEBUTSTEP!$V$4:$AG$22,8,FALSE) -> FC élevée - Ventilation accentuée et rythmée sans gêne excessive - Séries à minima 3" - Coordination et dissociations présentes - Paramètres d’ordre énergétique : sursauts, bras au-dessus des épaules, lests, hauteur du step. - 130 bpm < tempo < 140 bpm. | CG24: =VLOOKUP(CG18,DEBUTSTEP!$V$4:$AG$22,8,FALSE) -> FC modérée - Aisance respiratoire - Séries longues et "à minima 3" - Temps de récupération minimisé - Motricité explorée de façon ambitieuse - Paramètres essentiellement d’ordre biomécanique : pas complexes, bras en dissociation, changement d'orientation, éléments réalisés à côté du step - Tempo le plus souvent proche de 130 bpm | CN24: Repères sur mon activité | CP24: =VLOOKUP(CP18,DEBUTSTEP!$V$4:$AG$22,8,FALSE) -> FC s’approche progressivement du maximum - Ventilation fortement marquée et accélérée - Séries plutôt courtes - Motricité variée qui ne gêne pas l’engagement. - Paramètres, variateurs d’intensité, essentiellement d’ordre énergétique : sursauts, lests, hauteur du step, bras au-dessus des épaules. - Tempo > 135 bpm le plus souvent. | CS24: =VLOOKUP(CS18,DEBUTSTEP!$V$4:$AG$22,8,FALSE) -> FC élevée - Ventilation accentuée et rythmée sans gêne excessive - Séries à minima 3" - Coordination et dissociations présentes - Paramètres d’ordre énergétique : sursauts, bras au-dessus des épaules, lests, hauteur du step. - 130 bpm < tempo < 140 bpm. | CV24: =VLOOKUP(CV18,DEBUTSTEP!$V$4:$AG$22,8,FALSE) -> FC modérée - Aisance respiratoire - Séries longues et "à minima 3" - Temps de récupération minimisé - Motricité explorée de façon ambitieuse - Paramètres essentiellement d’ordre biomécanique : pas complexes, bras en dissociation, changement d'orientation, éléments réalisés à côté du step - Tempo le plus souvent proche de 130 bpm | DC24: Repères sur mon activité | DE24: =VLOOKUP(DE18,DEBUTSTEP!$V$4:$AG$22,8,FALSE) -> FC s’approche progressivement du maximum - Ventilation fortement marquée et accélérée - Séries plutôt courtes - Motricité variée qui ne gêne pas l’engagement. - Paramètres, variateurs d’intensité, essentiellement d’ordre énergétique : sursauts, lests, hauteur du step, bras au-dessus des épaules. - Tempo > 135 bpm le plus souvent. | DH24: =VLOOKUP(DH18,DEBUTSTEP!$V$4:$AG$22,8,FALSE) -> FC élevée - Ventilation accentuée et rythmée sans gêne excessive - Séries à minima 3" - Coordination et dissociations présentes - Paramètres d’ordre énergétique : sursauts, bras au-dessus des épaules, lests, hauteur du step. - 130 bpm < tempo < 140 bpm. | DK24: =VLOOKUP(DK18,DEBUTSTEP!$V$4:$AG$22,8,FALSE) -> FC modérée - Aisance respiratoire - Séries longues et "à minima 3" - Temps de récupération minimisé - Motricité explorée de façon ambitieuse - Paramètres essentiellement d’ordre biomécanique : pas complexes, bras en dissociation, changement d'orientation, éléments réalisés à côté du step - Tempo le plus souvent proche de 130 bpm | DR24: Repères sur mon activité | DT24: =VLOOKUP(DT18,DEBUTSTEP!$V$4:$AG$22,8,FALSE) -> FC s’approche progressivement du maximum - Ventilation fortement marquée et accélérée - Séries plutôt courtes - Motricité variée qui ne gêne pas l’engagement. - Paramètres, variateurs d’intensité, essentiellement d’ordre énergétique : sursauts, lests, hauteur du step, bras au-dessus des épaules. - Tempo > 135 bpm le plus souvent. | DW24: =VLOOKUP(DW18,DEBUTSTEP!$V$4:$AG$22,8,FALSE) -> FC élevée - Ventilation accentuée et rythmée sans gêne excessive - Séries à minima 3" - Coordination et dissociations présentes - Paramètres d’ordre énergétique : sursauts, bras au-dessus des épaules, lests, hauteur du step. - 130 bpm < tempo < 140 bpm. | DZ24: =VLOOKUP(DZ18,DEBUTSTEP!$V$4:$AG$22,8,FALSE) -> FC modérée - Aisance respiratoire - Séries longues et "à minima 3" - Temps de récupération minimisé - Motricité explorée de façon ambitieuse - Paramètres essentiellement d’ordre biomécanique : pas complexes, bras en dissociation, changement d'orientation, éléments réalisés à côté du step - Tempo le plus souvent proche de 130 bpm | EG24: Repères sur mon activité | EI24: =VLOOKUP(EI18,DEBUTSTEP!$V$4:$AG$22,8,FALSE) -> FC s’approche progressivement du maximum - Ventilation fortement marquée et accélérée - Séries plutôt courtes - Motricité variée qui ne gêne pas l’engagement. - Paramètres, variateurs d’intensité, essentiellement d’ordre énergétique : sursauts, lests, hauteur du step, bras au-dessus des épaules. - Tempo > 135 bpm le plus souvent. | EL24: =VLOOKUP(EL18,DEBUTSTEP!$V$4:$AG$22,8,FALSE) -> FC élevée - Ventilation accentuée et rythmée sans gêne excessive - Séries à minima 3" - Coordination et dissociations présentes - Paramètres d’ordre énergétique : sursauts, bras au-dessus des épaules, lests, hauteur du step. - 130 bpm < tempo < 140 bpm. | EO24: =VLOOKUP(EO18,DEBUTSTEP!$V$4:$AG$22,8,FALSE) -> FC modérée - Aisance respiratoire - Séries longues et "à minima 3" - Temps de récupération minimisé - Motricité explorée de façon ambitieuse - Paramètres essentiellement d’ordre biomécanique : pas complexes, bras en dissociation, changement d'orientation, éléments réalisés à côté du step - Tempo le plus souvent proche de 130 bpm
A26: Pourquoi avoir choisi cet objectif ? (expression libre)
B28: CHOIX DES PARAMETRES POUR AUGMENTER LA FREQUENCE | Q28: CHOIX DES PARAMETRES POUR AUGMENTER LA FREQUENCE | AF28: CHOIX DES PARAMETRES POUR AUGMENTER LA FREQUENCE | AU28: CHOIX DES PARAMETRES POUR AUGMENTER LA FREQUENCE | BJ28: CHOIX DES PARAMETRES POUR AUGMENTER LA FREQUENCE | BY28: CHOIX DES PARAMETRES POUR AUGMENTER LA FREQUENCE | CN28: CHOIX DES PARAMETRES POUR AUGMENTER LA FREQUENCE | DC28: CHOIX DES PARAMETRES POUR AUGMENTER LA FREQUENCE | DR28: CHOIX DES PARAMETRES POUR AUGMENTER LA FREQUENCE | EG28: CHOIX DES PARAMETRES POUR AUGMENTER LA FREQUENCE
A29: Choix du type d'effort | B29: =D14 -> Effort bref et intense | D29: =IF(D3="","",B$29) -> Effort bref et intense | F29: =IF(F3="","",B$29) -> Effort bref et intense | H29: =IF(H3="","",B$29) -> Effort bref et intense | J29: =IF(J3="","",B$29) -> Effort bref et intense | L29: =IF(L3="","",B$29) -> Effort bref et intense | Q29: =S14 -> Effort long et soutenu | S29: =IF(S3="","",$Q$29) -> Effort long et soutenu | U29: =IF(U3="","",$Q$29) -> Effort long et soutenu | W29: =IF(W3="","",Q$29) -> Effort long et soutenu | Y29: =IF(Y3="","",Q$29) -> Effort long et soutenu | AA29: =IF(AA3="","",Q$29) -> Effort long et soutenu | AF29: =AH14 -> Effort modéré et prolongé | AH29: =IF(AH3="","",AF$29) -> Effort modéré et prolongé | AJ29: =IF(AJ3="","",AF$29) -> Effort modéré et prolongé | AL29: =IF(AL3="","",AF$29) -> Effort modéré et prolongé | AN29: =IF(AN3="","",AF$29) -> Effort modéré et prolongé | AP29: =IF(AP3="","",AF$29) -> Effort modéré et prolongé | AU29: =AW14 -> Mobiles | AW29: =IF(AW3="","",AU$29) -> Mobiles | AY29: =IF(AY3="","",AU$29) -> Mobiles | BA29: =IF(BA3="","",AU$29) -> Mobiles | BC29: =IF(BC3="","",AU$29) -> Mobiles | BE29: =IF(BE3="","",AU$29) -> Mobiles | BJ29: =BL14 -> Mobiles | BL29: =IF(BL3="","",BJ$29) -> Mobiles | BN29: =IF(BN3="","",BJ$29) -> Mobiles | BP29: =IF(BP3="","",BJ$29) -> Mobiles | BR29: =IF(BR3="","",BJ$29) -> Mobiles | BT29: =IF(BT3="","",BJ$29) -> Mobiles | BY29: =CA14 -> Mobiles | CA29: =IF(CA3="","",BY$29) -> Mobiles | CC29: =IF(CC3="","",BY$29) -> Mobiles | CE29: =IF(CE3="","",BY$29) -> Mobiles | CG29: =IF(CG3="","",BY$29) -> Mobiles | CI29: =IF(CI3="","",BY$29) -> Mobiles | CN29: =CP14 -> Mobiles | CP29: =IF(CP3="","",CN$29) -> Mobiles | CR29: =IF(CR3="","",CN$29) -> Mobiles | CT29: =IF(CT3="","",CN$29) -> Mobiles | CV29: =IF(CV3="","",CN$29) -> Mobiles | CX29: =IF(CX3="","",CN$29) -> Mobiles | DC29: =DE14 -> Effort bref et intense | DE29: =IF(DE3="","",DC$29) -> Effort bref et intense | DG29: =IF(DG3="","",DC$29) -> Effort bref et intense | DI29: =IF(DI3="","",DC$29) -> Effort bref et intense | DK29: =IF(DK3="","",DC$29) -> Effort bref et intense | DM29: =IF(DM3="","",DC$29) -> Effort bref et intense | DR29: =DT14 -> Mobiles | DT29: =IF(DT3="","",DR$29) -> Mobiles | DV29: =IF(DV3="","",DR$29) -> Mobiles | DX29: =IF(DX3="","",DR$29) -> Mobiles | DZ29: =IF(DZ3="","",DR$29) -> Mobiles | EB29: =IF(EB3="","",DR$29) -> Mobiles | EG29: =EI14 -> Mobiles | EI29: =IF(EI3="","",EG$29) -> Mobiles | EK29: =IF(EK3="","",EG$29) -> Mobiles | EM29: =IF(EM3="","",EG$29) -> Mobiles | EO29: =IF(EO3="","",EG$29) -> Mobiles | EQ29: =IF(EQ3="","",EG$29) -> Mobiles
A30: Tempo | B30: 135 | D30: =IF(D3="","",B$30) -> 135 | F30: =IF(F3="","",B$30) -> 135 | H30: =IF(H3="","",B$30) -> 135 | J30: =IF(J3="","",B$30) -> 135 | L30: =IF(L3="","",B$30) -> 135 | Q30: 140 | S30: =IF(S3="","",$Q$30) -> 140 | U30: =IF(U3="","",$Q$30) -> 140 | W30: =IF(W3="","",Q$30) -> 140 | Y30: =IF(Y3="","",Q$30) -> 140 | AA30: =IF(AA3="","",Q$30) -> 140 | AF30: 130 | AH30: =IF(AH3="","",AF$30) -> 130 | AJ30: =IF(AJ3="","",AF$30) -> 130 | AL30: =IF(AL3="","",AF$30) -> 130 | AN30: =IF(AN3="","",AF$30) -> 130 | AP30: =IF(AP3="","",AF$30) -> 130 | AU30: 130 | AW30: =IF(AW3="","",AU$30) -> 130 | AY30: =IF(AY3="","",AU$30) -> 130 | BA30: =IF(BA3="","",AU$30) -> 130 | BC30: =IF(BC3="","",AU$30) -> 130 | BE30: =IF(BE3="","",AU$30) -> 130 | BJ30: 130 | BL30: =IF(BL3="","",BJ$30) -> 130 | BN30: =IF(BN3="","",BJ$30) -> 130 | BP30: =IF(BP3="","",BJ$30) -> 130 | BR30: =IF(BR3="","",BJ$30) -> 130 | BT30: =IF(BT3="","",BJ$30) -> 130 | BY30: 130 | CA30: =IF(CA3="","",BY$30) -> 130 | CC30: =IF(CC3="","",BY$30) -> 130 | CE30: =IF(CE3="","",BY$30) -> 130 | CG30: =IF(CG3="","",BY$30) -> 130 | CI30: =IF(CI3="","",BY$30) -> 130 | CN30: 130 | CP30: =IF(CP3="","",CN$30) -> 130 | CR30: =IF(CR3="","",CN$30) -> 130 | CT30: =IF(CT3="","",CN$30) -> 130 | CV30: =IF(CV3="","",CN$30) -> 130 | CX30: =IF(CX3="","",CN$30) -> 130 | DC30: 130 | DE30: =IF(DE3="","",DC$30) -> 130 | DG30: =IF(DG3="","",DC$30) -> 130 | DI30: =IF(DI3="","",DC$30) -> 130 | DK30: =IF(DK3="","",DC$30) -> 130 | DM30: =IF(DM3="","",DC$30) -> 130 | DR30: 130 | DT30: =IF(DT3="","",DR$30) -> 130 | DV30: =IF(DV3="","",DR$30) -> 130 | DX30: =IF(DX3="","",DR$30) -> 130 | DZ30: =IF(DZ3="","",DR$30) -> 130 | EB30: =IF(EB3="","",DR$30) -> 130 | EG30: 130 | EI30: =IF(EI3="","",EG$30) -> 130 | EK30: =IF(EK3="","",EG$30) -> 130 | EM30: =IF(EM3="","",EG$30) -> 130 | EO30: =IF(EO3="","",EG$30) -> 130 | EQ30: =IF(EQ3="","",EG$30) -> 130
A31: Hauteur step | B31: HAUT | D31: =IF(D3="","",B$31) -> HAUT | F31: =IF(F3="","",B$31) -> HAUT | H31: =IF(H3="","",B$31) -> HAUT | J31: =IF(J3="","",B$31) -> HAUT | L31: =IF(L3="","",B$31) -> HAUT | S31: =IF(S3="","",$Q$31) -> 0 | U31: =IF(U3="","",$Q$31) -> 0 | W31: =IF(W3="","",Q$31) -> 0 | Y31: =IF(Y3="","",Q$31) -> 0 | AA31: =IF(AA3="","",Q$31) -> 0 | AH31: =IF(AH3="","",AF$31) -> 0 | AJ31: =IF(AJ3="","",AF$31) -> 0 | AL31: =IF(AL3="","",AF$31) -> 0 | AN31: =IF(AN3="","",AF$31) -> 0 | AP31: =IF(AP3="","",AF$31) -> 0 | AW31: =IF(AW3="","",AU$31) -> 0 | AY31: =IF(AY3="","",AU$31) -> 0 | BA31: =IF(BA3="","",AU$31) -> 0 | BC31: =IF(BC3="","",AU$31) -> 0 | BE31: =IF(BE3="","",AU$31) -> 0 | BL31: =IF(BL3="","",BJ$31) -> 0 | BN31: =IF(BN3="","",BJ$31) -> 0 | BP31: =IF(BP3="","",BJ$31) -> 0 | BR31: =IF(BR3="","",BJ$31) -> 0 | BT31: =IF(BT3="","",BJ$31) -> 0 | CA31: =IF(CA3="","",BY$31) -> 0 | CC31: =IF(CC3="","",BY$31) -> 0 | CE31: =IF(CE3="","",BY$31) -> 0 | CG31: =IF(CG3="","",BY$31) -> 0 | CI31: =IF(CI3="","",BY$31) -> 0 | CP31: =IF(CP3="","",CN$31) -> 0 | CR31: =IF(CR3="","",CN$31) -> 0 | CT31: =IF(CT3="","",CN$31) -> 0 | CV31: =IF(CV3="","",CN$31) -> 0 | CX31: =IF(CX3="","",CN$31) -> 0 | DE31: =IF(DE3="","",DC$31) -> 0 | DG31: =IF(DG3="","",DC$31) -> 0 | DI31: =IF(DI3="","",DC$31) -> 0 | DK31: =IF(DK3="","",DC$31) -> 0 | DM31: =IF(DM3="","",DC$31) -> 0 | DT31: =IF(DT3="","",DR$31) -> 0 | DV31: =IF(DV3="","",DR$31) -> 0 | DX31: =IF(DX3="","",DR$31) -> 0 | DZ31: =IF(DZ3="","",DR$31) -> 0 | EB31: =IF(EB3="","",DR$31) -> 0 | EI31: =IF(EI3="","",EG$31) -> 0 | EK31: =IF(EK3="","",EG$31) -> 0 | EM31: =IF(EM3="","",EG$31) -> 0 | EO31: =IF(EO3="","",EG$31) -> 0 | EQ31: =IF(EQ3="","",EG$31) -> 0
A32: Bras | B32: Toujours | D32: =IF(D3="","",B$32) -> Toujours | F32: =IF(F3="","",B$32) -> Toujours | H32: =IF(H3="","",B$32) -> Toujours | J32: =IF(J3="","",B$32) -> Toujours | L32: =IF(L3="","",B$32) -> Toujours | S32: =IF(S3="","",$Q$32) -> 0 | U32: =IF(U3="","",$Q$32) -> 0 | W32: =IF(W3="","",Q$32) -> 0 | Y32: =IF(Y3="","",Q$32) -> 0 | AA32: =IF(AA3="","",Q$32) -> 0 | AH32: =IF(AH3="","",AF$32) -> 0 | AJ32: =IF(AJ3="","",AF$32) -> 0 | AL32: =IF(AL3="","",AF$32) -> 0 | AN32: =IF(AN3="","",AF$32) -> 0 | AP32: =IF(AP3="","",AF$32) -> 0 | AW32: =IF(AW3="","",AU$32) -> 0 | AY32: =IF(AY3="","",AU$32) -> 0 | BA32: =IF(BA3="","",AU$32) -> 0 | BC32: =IF(BC3="","",AU$32) -> 0 | BE32: =IF(BE3="","",AU$32) -> 0 | BL32: =IF(BL3="","",BJ$32) -> 0 | BN32: =IF(BN3="","",BJ$32) -> 0 | BP32: =IF(BP3="","",BJ$32) -> 0 | BR32: =IF(BR3="","",BJ$32) -> 0 | BT32: =IF(BT3="","",BJ$32) -> 0 | CA32: =IF(CA3="","",BY$32) -> 0 | CC32: =IF(CC3="","",BY$32) -> 0 | CE32: =IF(CE3="","",BY$32) -> 0 | CG32: =IF(CG3="","",BY$32) -> 0 | CI32: =IF(CI3="","",BY$32) -> 0 | CP32: =IF(CP3="","",CN$32) -> 0 | CR32: =IF(CR3="","",CN$32) -> 0 | CT32: =IF(CT3="","",CN$32) -> 0 | CV32: =IF(CV3="","",CN$32) -> 0 | CX32: =IF(CX3="","",CN$32) -> 0 | DE32: =IF(DE3="","",DC$32) -> 0 | DG32: =IF(DG3="","",DC$32) -> 0 | DI32: =IF(DI3="","",DC$32) -> 0 | DK32: =IF(DK3="","",DC$32) -> 0 | DM32: =IF(DM3="","",DC$32) -> 0 | DT32: =IF(DT3="","",DR$32) -> 0 | DV32: =IF(DV3="","",DR$32) -> 0 | DX32: =IF(DX3="","",DR$32) -> 0 | DZ32: =IF(DZ3="","",DR$32) -> 0 | EB32: =IF(EB3="","",DR$32) -> 0 | EI32: =IF(EI3="","",EG$32) -> 0 | EK32: =IF(EK3="","",EG$32) -> 0 | EM32: =IF(EM3="","",EG$32) -> 0 | EO32: =IF(EO3="","",EG$32) -> 0 | EQ32: =IF(EQ3="","",EG$32) -> 0
A33: Impulsions | B33: Avec | D33: =IF(D3="","",B$33) -> Avec | F33: =IF(F3="","",B$33) -> Avec | H33: =IF(H3="","",B$33) -> Avec | J33: =IF(J3="","",B$33) -> Avec | L33: =IF(L3="","",B$33) -> Avec | S33: =IF(S3="","",$Q$33) -> 0 | U33: =IF(U3="","",$Q$33) -> 0 | W33: =IF(W3="","",Q$33) -> 0 | Y33: =IF(Y3="","",Q$33) -> 0 | AA33: =IF(AA3="","",Q$33) -> 0 | AH33: =IF(AH3="","",AF$33) -> 0 | AJ33: =IF(AJ3="","",AF$33) -> 0 | AL33: =IF(AL3="","",AF$33) -> 0 | AN33: =IF(AN3="","",AF$33) -> 0 | AP33: =IF(AP3="","",AF$33) -> 0 | AW33: =IF(AW3="","",AU$33) -> 0 | AY33: =IF(AY3="","",AU$33) -> 0 | BA33: =IF(BA3="","",AU$33) -> 0 | BC33: =IF(BC3="","",AU$33) -> 0 | BE33: =IF(BE3="","",AU$33) -> 0 | BL33: =IF(BL3="","",BJ$33) -> 0 | BN33: =IF(BN3="","",BJ$33) -> 0 | BP33: =IF(BP3="","",BJ$33) -> 0 | BR33: =IF(BR3="","",BJ$33) -> 0 | BT33: =IF(BT3="","",BJ$33) -> 0 | CA33: =IF(CA3="","",BY$33) -> 0 | CC33: =IF(CC3="","",BY$33) -> 0 | CE33: =IF(CE3="","",BY$33) -> 0 | CG33: =IF(CG3="","",BY$33) -> 0 | CI33: =IF(CI3="","",BY$33) -> 0 | CP33: =IF(CP3="","",CN$33) -> 0 | CR33: =IF(CR3="","",CN$33) -> 0 | CT33: =IF(CT3="","",CN$33) -> 0 | CV33: =IF(CV3="","",CN$33) -> 0 | CX33: =IF(CX3="","",CN$33) -> 0 | DE33: =IF(DE3="","",DC$33) -> 0 | DG33: =IF(DG3="","",DC$33) -> 0 | DI33: =IF(DI3="","",DC$33) -> 0 | DK33: =IF(DK3="","",DC$33) -> 0 | DM33: =IF(DM3="","",DC$33) -> 0 | DT33: =IF(DT3="","",DR$33) -> 0 | DV33: =IF(DV3="","",DR$33) -> 0 | DX33: =IF(DX3="","",DR$33) -> 0 | DZ33: =IF(DZ3="","",DR$33) -> 0 | EB33: =IF(EB3="","",DR$33) -> 0 | EI33: =IF(EI3="","",EG$33) -> 0 | EK33: =IF(EK3="","",EG$33) -> 0 | EM33: =IF(EM3="","",EG$33) -> 0 | EO33: =IF(EO3="","",EG$33) -> 0 | EQ33: =IF(EQ3="","",EG$33) -> 0
A34: Amplitude | B34: Moyenne | D34: =IF(D3="","",B$34) -> Moyenne | F34: =IF(F3="","",B$34) -> Moyenne | H34: =IF(H3="","",B$34) -> Moyenne | J34: =IF(J3="","",B$34) -> Moyenne | L34: =IF(L3="","",B$34) -> Moyenne | S34: =IF(S3="","",$Q$34) -> 0 | U34: =IF(U3="","",$Q$34) -> 0 | W34: =IF(W3="","",Q$34) -> 0 | Y34: =IF(Y3="","",Q$34) -> 0 | AA34: =IF(AA3="","",Q$34) -> 0 | AH34: =IF(AH3="","",AF$34) -> 0 | AJ34: =IF(AJ3="","",AF$34) -> 0 | AL34: =IF(AL3="","",AF$34) -> 0 | AN34: =IF(AN3="","",AF$34) -> 0 | AP34: =IF(AP3="","",AF$34) -> 0 | AW34: =IF(AW3="","",AU$34) -> 0 | AY34: =IF(AY3="","",AU$34) -> 0 | BA34: =IF(BA3="","",AU$34) -> 0 | BC34: =IF(BC3="","",AU$34) -> 0 | BE34: =IF(BE3="","",AU$34) -> 0 | BL34: =IF(BL3="","",BJ$34) -> 0 | BN34: =IF(BN3="","",BJ$34) -> 0 | BP34: =IF(BP3="","",BJ$34) -> 0 | BR34: =IF(BR3="","",BJ$34) -> 0 | BT34: =IF(BT3="","",BJ$34) -> 0 | CA34: =IF(CA3="","",BY$34) -> 0 | CC34: =IF(CC3="","",BY$34) -> 0 | CE34: =IF(CE3="","",BY$34) -> 0 | CG34: =IF(CG3="","",BY$34) -> 0 | CI34: =IF(CI3="","",BY$34) -> 0 | CP34: =IF(CP3="","",CN$34) -> 0 | CR34: =IF(CR3="","",CN$34) -> 0 | CT34: =IF(CT3="","",CN$34) -> 0 | CV34: =IF(CV3="","",CN$34) -> 0 | CX34: =IF(CX3="","",CN$34) -> 0 | DE34: =IF(DE3="","",DC$34) -> 0 | DG34: =IF(DG3="","",DC$34) -> 0 | DI34: =IF(DI3="","",DC$34) -> 0 | DK34: =IF(DK3="","",DC$34) -> 0 | DM34: =IF(DM3="","",DC$34) -> 0 | DT34: =IF(DT3="","",DR$34) -> 0 | DV34: =IF(DV3="","",DR$34) -> 0 | DX34: =IF(DX3="","",DR$34) -> 0 | DZ34: =IF(DZ3="","",DR$34) -> 0 | EB34: =IF(EB3="","",DR$34) -> 0 | EI34: =IF(EI3="","",EG$34) -> 0 | EK34: =IF(EK3="","",EG$34) -> 0 | EM34: =IF(EM3="","",EG$34) -> 0 | EO34: =IF(EO3="","",EG$34) -> 0 | EQ34: =IF(EQ3="","",EG$34) -> 0
A35: Lests | B35: 1 kg | D35: =IF(D3="","",B$35) -> 1 kg | F35: =IF(F3="","",B$35) -> 1 kg | H35: =IF(H3="","",B$35) -> 1 kg | J35: =IF(J3="","",B$35) -> 1 kg | L35: =IF(L3="","",B$35) -> 1 kg | S35: =IF(S3="","",$Q$35) -> 0 | U35: =IF(U3="","",$Q$35) -> 0 | W35: =IF(W3="","",Q$35) -> 0 | Y35: =IF(Y3="","",Q$35) -> 0 | AA35: =IF(AA3="","",Q$35) -> 0 | AH35: =IF(AH3="","",AF$35) -> 0 | AJ35: =IF(AJ3="","",AF$35) -> 0 | AL35: =IF(AL3="","",AF$35) -> 0 | AN35: =IF(AN3="","",AF$35) -> 0 | AP35: =IF(AP3="","",AF$35) -> 0 | AW35: =IF(AW3="","",AU$35) -> 0 | AY35: =IF(AY3="","",AU$35) -> 0 | BA35: =IF(BA3="","",AU$35) -> 0 | BC35: =IF(BC3="","",AU$35) -> 0 | BE35: =IF(BE3="","",AU$35) -> 0 | BL35: =IF(BL3="","",BJ$35) -> 0 | BN35: =IF(BN3="","",BJ$35) -> 0 | BP35: =IF(BP3="","",BJ$35) -> 0 | BR35: =IF(BR3="","",BJ$35) -> 0 | BT35: =IF(BT3="","",BJ$35) -> 0 | CA35: =IF(CA3="","",BY$35) -> 0 | CC35: =IF(CC3="","",BY$35) -> 0 | CE35: =IF(CE3="","",BY$35) -> 0 | CG35: =IF(CG3="","",BY$35) -> 0 | CI35: =IF(CI3="","",BY$35) -> 0 | CP35: =IF(CP3="","",CN$35) -> 0 | CR35: =IF(CR3="","",CN$35) -> 0 | CT35: =IF(CT3="","",CN$35) -> 0 | CV35: =IF(CV3="","",CN$35) -> 0 | CX35: =IF(CX3="","",CN$35) -> 0 | DE35: =IF(DE3="","",DC$35) -> 0 | DG35: =IF(DG3="","",DC$35) -> 0 | DI35: =IF(DI3="","",DC$35) -> 0 | DK35: =IF(DK3="","",DC$35) -> 0 | DM35: =IF(DM3="","",DC$35) -> 0 | DT35: =IF(DT3="","",DR$35) -> 0 | DV35: =IF(DV3="","",DR$35) -> 0 | DX35: =IF(DX3="","",DR$35) -> 0 | DZ35: =IF(DZ3="","",DR$35) -> 0 | EB35: =IF(EB3="","",DR$35) -> 0 | EI35: =IF(EI3="","",EG$35) -> 0 | EK35: =IF(EK3="","",EG$35) -> 0 | EM35: =IF(EM3="","",EG$35) -> 0 | EO35: =IF(EO3="","",EG$35) -> 0 | EQ35: =IF(EQ3="","",EG$35) -> 0
A37: Pourquoi avoir choisi ces paramètres ? (expression libre)
B39: ENTRAINEMENT PREVU | Q39: ENTRAINEMENT PREVU | AF39: ENTRAINEMENT PREVU | AU39: ENTRAINEMENT PREVU | BJ39: ENTRAINEMENT PREVU | BY39: ENTRAINEMENT PREVU | CN39: ENTRAINEMENT PREVU | DC39: ENTRAINEMENT PREVU | DR39: ENTRAINEMENT PREVU | EG39: ENTRAINEMENT PREVU
A40: FC de reprise 110-120 bpm | B40: 8 | C40: Séries | D40: FC | F40: FC | H40: FC | J40: FC | L40: FC | Q40: 3 | R40: Séries | S40: FC | U40: FC | W40: FC | Y40: FC | AA40: FC | AF40: 4 | AG40: Séries | AH40: FC | AJ40: FC | AL40: FC | AN40: FC | AP40: FC | AU40: 4 | AV40: Séries | AW40: FC | AY40: FC | BA40: FC | BC40: FC | BE40: FC | BJ40: 4 | BK40: Séries | BL40: FC | BN40: FC | BP40: FC | BR40: FC | BT40: FC | BY40: 4 | BZ40: Séries | CA40: FC | CC40: FC | CE40: FC | CG40: FC | CI40: FC | CN40: 4 | CO40: Séries | CP40: FC | CR40: FC | CT40: FC | CV40: FC | CX40: FC | DC40: 4 | DD40: Séries | DE40: FC | DG40: FC | DI40: FC | DK40: FC | DM40: FC | DR40: 4 | DS40: Séries | DT40: FC | DV40: FC | DX40: FC | DZ40: FC | EB40: FC | EG40: 4 | EH40: Séries | EI40: FC | EK40: FC | EM40: FC | EO40: FC | EQ40: FC
B41: 2' | C41: Effort | Q41: 7' | R41: Effort | AF41: 5' | AG41: Effort | AU41: 2' | AV41: Effort | BJ41: 2' | BK41: Effort | BY41: 2' | BZ41: Effort | CN41: 2' | CO41: Effort | DC41: 2' | DD41: Effort | DR41: 2' | DS41: Effort | EG41: 2' | EH41: Effort
B42: 2' | C42: Récup' | Q42: 4' | R42: Récup' | AF42: 4' | AG42: Récup' | AU42: 2' | AV42: Récup' | BJ42: 2' | BK42: Récup' | BY42: 2' | BZ42: Récup' | CN42: 2' | CO42: Récup' | DC42: 2' | DD42: Récup' | DR42: 2' | DS42: Récup' | EG42: 2' | EH42: Récup'
A43: Effort | B43: =IF(B$40>=1,B$41,"") -> 2' | C43: =IFERROR(VLOOKUP(B43,DEBUTSTEP!$D$5:$E$68,2,FALSE),0) -> 120 | D43: 180 | Q43: =IF(Q$40>=1,Q$41,"") -> 7' | R43: =IFERROR(VLOOKUP(Q43,DEBUTSTEP!$D$5:$E$68,2,FALSE),0) -> 420 | S43: 180 | AF43: =IF(AF$40>=1,AF$41,"") -> 5' | AG43: =IFERROR(VLOOKUP(AF43,DEBUTSTEP!$D$5:$E$68,2,FALSE),0) -> 300 | AH43: 180 | AU43: =IF(AU$40>=1,AU$41,"") -> 2' | AV43: =IFERROR(VLOOKUP(AU43,DEBUTSTEP!$D$5:$E$68,2,FALSE),0) -> 120 | AW43: 180 | BJ43: =IF(BJ$40>=1,BJ$41,"") -> 2' | BK43: =IFERROR(VLOOKUP(BJ43,DEBUTSTEP!$D$5:$E$68,2,FALSE),0) -> 120 | BL43: 180 | BY43: =IF(BY$40>=1,BY$41,"") -> 2' | BZ43: =IFERROR(VLOOKUP(BY43,DEBUTSTEP!$D$5:$E$68,2,FALSE),0) -> 120 | CA43: 180 | CN43: =IF(CN$40>=1,CN$41,"") -> 2' | CO43: =IFERROR(VLOOKUP(CN43,DEBUTSTEP!$D$5:$E$68,2,FALSE),0) -> 120 | CP43: 180 | DC43: =IF(DC$40>=1,DC$41,"") -> 2' | DD43: =IFERROR(VLOOKUP(DC43,DEBUTSTEP!$D$5:$E$68,2,FALSE),0) -> 120 | DE43: 180 | DR43: =IF(DR$40>=1,DR$41,"") -> 2' | DS43: =IFERROR(VLOOKUP(DR43,DEBUTSTEP!$D$5:$E$68,2,FALSE),0) -> 120 | DT43: 180 | EG43: =IF(EG$40>=1,EG$41,"") -> 2' | EH43: =IFERROR(VLOOKUP(EG43,DEBUTSTEP!$D$5:$E$68,2,FALSE),0) -> 120 | EI43: 180
A44: Récup' | B44: =IF(B$40>=1,B$42,"") -> 2' | C44: =IFERROR(VLOOKUP(B44,DEBUTSTEP!$D$5:$E$68,2,FALSE),0) -> 120 | Q44: =IF(Q$40>=1,Q$42,"") -> 4' | R44: =IFERROR(VLOOKUP(Q44,DEBUTSTEP!$D$5:$E$68,2,FALSE),0) -> 240 | AF44: =IF(AF$40>=1,AF$42,"") -> 4' | AG44: =IFERROR(VLOOKUP(AF44,DEBUTSTEP!$D$5:$E$68,2,FALSE),0) -> 240 | AU44: =IF(AU$40>=1,AU$42,"") -> 2' | AV44: =IFERROR(VLOOKUP(AU44,DEBUTSTEP!$D$5:$E$68,2,FALSE),0) -> 120 | BJ44: =IF(BJ$40>=1,BJ$42,"") -> 2' | BK44: =IFERROR(VLOOKUP(BJ44,DEBUTSTEP!$D$5:$E$68,2,FALSE),0) -> 120 | BY44: =IF(BY$40>=1,BY$42,"") -> 2' | BZ44: =IFERROR(VLOOKUP(BY44,DEBUTSTEP!$D$5:$E$68,2,FALSE),0) -> 120 | CN44: =IF(CN$40>=1,CN$42,"") -> 2' | CO44: =IFERROR(VLOOKUP(CN44,DEBUTSTEP!$D$5:$E$68,2,FALSE),0) -> 120 | DC44: =IF(DC$40>=1,DC$42,"") -> 2' | DD44: =IFERROR(VLOOKUP(DC44,DEBUTSTEP!$D$5:$E$68,2,FALSE),0) -> 120 | DR44: =IF(DR$40>=1,DR$42,"") -> 2' | DS44: =IFERROR(VLOOKUP(DR44,DEBUTSTEP!$D$5:$E$68,2,FALSE),0) -> 120 | EG44: =IF(EG$40>=1,EG$42,"") -> 2' | EH44: =IFERROR(VLOOKUP(EG44,DEBUTSTEP!$D$5:$E$68,2,FALSE),0) -> 120
A45: Effort | B45: =IF(B$40>=2,B$41,"") -> 2' | C45: =IFERROR(VLOOKUP(B45,DEBUTSTEP!$D$5:$E$68,2,FALSE),0) -> 120 | Q45: =IF(Q$40>=2,Q$41,"") -> 7' | R45: =IFERROR(VLOOKUP(Q45,DEBUTSTEP!$D$5:$E$68,2,FALSE),0) -> 420 | AF45: =IF(AF$40>=2,AF$41,"") -> 5' | AG45: =IFERROR(VLOOKUP(AF45,DEBUTSTEP!$D$5:$E$68,2,FALSE),0) -> 300 | AU45: =IF(AU$40>=2,AU$41,"") -> 2' | AV45: =IFERROR(VLOOKUP(AU45,DEBUTSTEP!$D$5:$E$68,2,FALSE),0) -> 120 | BJ45: =IF(BJ$40>=2,BJ$41,"") -> 2' | BK45: =IFERROR(VLOOKUP(BJ45,DEBUTSTEP!$D$5:$E$68,2,FALSE),0) -> 120 | BY45: =IF(BY$40>=2,BY$41,"") -> 2' | BZ45: =IFERROR(VLOOKUP(BY45,DEBUTSTEP!$D$5:$E$68,2,FALSE),0) -> 120 | CN45: =IF(CN$40>=2,CN$41,"") -> 2' | CO45: =IFERROR(VLOOKUP(CN45,DEBUTSTEP!$D$5:$E$68,2,FALSE),0) -> 120 | DC45: =IF(DC$40>=2,DC$41,"") -> 2' | DD45: =IFERROR(VLOOKUP(DC45,DEBUTSTEP!$D$5:$E$68,2,FALSE),0) -> 120 | DR45: =IF(DR$40>=2,DR$41,"") -> 2' | DS45: =IFERROR(VLOOKUP(DR45,DEBUTSTEP!$D$5:$E$68,2,FALSE),0) -> 120 | EG45: =IF(EG$40>=2,EG$41,"") -> 2' | EH45: =IFERROR(VLOOKUP(EG45,DEBUTSTEP!$D$5:$E$68,2,FALSE),0) -> 120
A46: Récup' | B46: =IF(B$40>=2,B$42,"") -> 2' | C46: =IFERROR(VLOOKUP(B46,DEBUTSTEP!$D$5:$E$68,2,FALSE),0) -> 120 | Q46: =IF(Q$40>=2,Q$42,"") -> 4' | R46: =IFERROR(VLOOKUP(Q46,DEBUTSTEP!$D$5:$E$68,2,FALSE),0) -> 240 | AF46: =IF(AF$40>=2,AF$42,"") -> 4' | AG46: =IFERROR(VLOOKUP(AF46,DEBUTSTEP!$D$5:$E$68,2,FALSE),0) -> 240 | AU46: =IF(AU$40>=2,AU$42,"") -> 2' | AV46: =IFERROR(VLOOKUP(AU46,DEBUTSTEP!$D$5:$E$68,2,FALSE),0) -> 120 | BJ46: =IF(BJ$40>=2,BJ$42,"") -> 2' | BK46: =IFERROR(VLOOKUP(BJ46,DEBUTSTEP!$D$5:$E$68,2,FALSE),0) -> 120 | BY46: =IF(BY$40>=2,BY$42,"") -> 2' | BZ46: =IFERROR(VLOOKUP(BY46,DEBUTSTEP!$D$5:$E$68,2,FALSE),0) -> 120 | CN46: =IF(CN$40>=2,CN$42,"") -> 2' | CO46: =IFERROR(VLOOKUP(CN46,DEBUTSTEP!$D$5:$E$68,2,FALSE),0) -> 120 | DC46: =IF(DC$40>=2,DC$42,"") -> 2' | DD46: =IFERROR(VLOOKUP(DC46,DEBUTSTEP!$D$5:$E$68,2,FALSE),0) -> 120 | DR46: =IF(DR$40>=2,DR$42,"") -> 2' | DS46: =IFERROR(VLOOKUP(DR46,DEBUTSTEP!$D$5:$E$68,2,FALSE),0) -> 120 | EG46: =IF(EG$40>=2,EG$42,"") -> 2' | EH46: =IFERROR(VLOOKUP(EG46,DEBUTSTEP!$D$5:$E$68,2,FALSE),0) -> 120
A47: Effort | B47: =IF(B$40>=3,B$41,"") -> 2' | C47: =IFERROR(VLOOKUP(B47,DEBUTSTEP!$D$5:$E$68,2,FALSE),0) -> 120 | Q47: =IF(Q$40>=3,Q$41,"") -> 7' | R47: =IFERROR(VLOOKUP(Q47,DEBUTSTEP!$D$5:$E$68,2,FALSE),0) -> 420 | AF47: =IF(AF$40>=3,AF$41,"") -> 5' | AG47: =IFERROR(VLOOKUP(AF47,DEBUTSTEP!$D$5:$E$68,2,FALSE),0) -> 300 | AU47: =IF(AU$40>=3,AU$41,"") -> 2' | AV47: =IFERROR(VLOOKUP(AU47,DEBUTSTEP!$D$5:$E$68,2,FALSE),0) -> 120 | BJ47: =IF(BJ$40>=3,BJ$41,"") -> 2' | BK47: =IFERROR(VLOOKUP(BJ47,DEBUTSTEP!$D$5:$E$68,2,FALSE),0) -> 120 | BY47: =IF(BY$40>=3,BY$41,"") -> 2' | BZ47: =IFERROR(VLOOKUP(BY47,DEBUTSTEP!$D$5:$E$68,2,FALSE),0) -> 120 | CN47: =IF(CN$40>=3,CN$41,"") -> 2' | CO47: =IFERROR(VLOOKUP(CN47,DEBUTSTEP!$D$5:$E$68,2,FALSE),0) -> 120 | DC47: =IF(DC$40>=3,DC$41,"") -> 2' | DD47: =IFERROR(VLOOKUP(DC47,DEBUTSTEP!$D$5:$E$68,2,FALSE),0) -> 120 | DR47: =IF(DR$40>=3,DR$41,"") -> 2' | DS47: =IFERROR(VLOOKUP(DR47,DEBUTSTEP!$D$5:$E$68,2,FALSE),0) -> 120 | EG47: =IF(EG$40>=3,EG$41,"") -> 2' | EH47: =IFERROR(VLOOKUP(EG47,DEBUTSTEP!$D$5:$E$68,2,FALSE),0) -> 120
A48: Récup' | B48: =IF(B$40>=3,B$42,"") -> 2' | C48: =IFERROR(VLOOKUP(B48,DEBUTSTEP!$D$5:$E$68,2,FALSE),0) -> 120 | Q48: =IF(Q$40>=3,Q$42,"") -> 4' | R48: =IFERROR(VLOOKUP(Q48,DEBUTSTEP!$D$5:$E$68,2,FALSE),0) -> 240 | AF48: =IF(AF$40>=3,AF$42,"") -> 4' | AG48: =IFERROR(VLOOKUP(AF48,DEBUTSTEP!$D$5:$E$68,2,FALSE),0) -> 240 | AU48: =IF(AU$40>=3,AU$42,"") -> 2' | AV48: =IFERROR(VLOOKUP(AU48,DEBUTSTEP!$D$5:$E$68,2,FALSE),0) -> 120 | BJ48: =IF(BJ$40>=3,BJ$42,"") -> 2' | BK48: =IFERROR(VLOOKUP(BJ48,DEBUTSTEP!$D$5:$E$68,2,FALSE),0) -> 120 | BY48: =IF(BY$40>=3,BY$42,"") -> 2' | BZ48: =IFERROR(VLOOKUP(BY48,DEBUTSTEP!$D$5:$E$68,2,FALSE),0) -> 120 | CN48: =IF(CN$40>=3,CN$42,"") -> 2' | CO48: =IFERROR(VLOOKUP(CN48,DEBUTSTEP!$D$5:$E$68,2,FALSE),0) -> 120 | DC48: =IF(DC$40>=3,DC$42,"") -> 2' | DD48: =IFERROR(VLOOKUP(DC48,DEBUTSTEP!$D$5:$E$68,2,FALSE),0) -> 120 | DR48: =IF(DR$40>=3,DR$42,"") -> 2' | DS48: =IFERROR(VLOOKUP(DR48,DEBUTSTEP!$D$5:$E$68,2,FALSE),0) -> 120 | EG48: =IF(EG$40>=3,EG$42,"") -> 2' | EH48: =IFERROR(VLOOKUP(EG48,DEBUTSTEP!$D$5:$E$68,2,FALSE),0) -> 120
A49: Effort | B49: =IF(B$40>=4,B$41,"") -> 2' | C49: =IFERROR(VLOOKUP(B49,DEBUTSTEP!$D$5:$E$68,2,FALSE),0) -> 120 | Q49: =IF(Q$40>=4,Q$41,"") ->  | R49: =IFERROR(VLOOKUP(Q49,DEBUTSTEP!$D$5:$E$68,2,FALSE),0) -> 0 | AF49: =IF(AF$40>=4,AF$41,"") -> 5' | AG49: =IFERROR(VLOOKUP(AF49,DEBUTSTEP!$D$5:$E$68,2,FALSE),0) -> 300 | AU49: =IF(AU$40>=4,AU$41,"") -> 2' | AV49: =IFERROR(VLOOKUP(AU49,DEBUTSTEP!$D$5:$E$68,2,FALSE),0) -> 120 | BJ49: =IF(BJ$40>=4,BJ$41,"") -> 2' | BK49: =IFERROR(VLOOKUP(BJ49,DEBUTSTEP!$D$5:$E$68,2,FALSE),0) -> 120 | BY49: =IF(BY$40>=4,BY$41,"") -> 2' | BZ49: =IFERROR(VLOOKUP(BY49,DEBUTSTEP!$D$5:$E$68,2,FALSE),0) -> 120 | CN49: =IF(CN$40>=4,CN$41,"") -> 2' | CO49: =IFERROR(VLOOKUP(CN49,DEBUTSTEP!$D$5:$E$68,2,FALSE),0) -> 120 | DC49: =IF(DC$40>=4,DC$41,"") -> 2' | DD49: =IFERROR(VLOOKUP(DC49,DEBUTSTEP!$D$5:$E$68,2,FALSE),0) -> 120 | DR49: =IF(DR$40>=4,DR$41,"") -> 2' | DS49: =IFERROR(VLOOKUP(DR49,DEBUTSTEP!$D$5:$E$68,2,FALSE),0) -> 120 | EG49: =IF(EG$40>=4,EG$41,"") -> 2' | EH49: =IFERROR(VLOOKUP(EG49,DEBUTSTEP!$D$5:$E$68,2,FALSE),0) -> 120
A50: Récup' | B50: =IF(B$40>=4,B$42,"") -> 2' | C50: =IFERROR(VLOOKUP(B50,DEBUTSTEP!$D$5:$E$68,2,FALSE),0) -> 120 | Q50: =IF(Q$40>=4,Q$42,"") ->  | R50: =IFERROR(VLOOKUP(Q50,DEBUTSTEP!$D$5:$E$68,2,FALSE),0) -> 0 | AF50: =IF(AF$40>=4,AF$42,"") -> 4' | AG50: =IFERROR(VLOOKUP(AF50,DEBUTSTEP!$D$5:$E$68,2,FALSE),0) -> 240 | AU50: =IF(AU$40>=4,AU$42,"") -> 2' | AV50: =IFERROR(VLOOKUP(AU50,DEBUTSTEP!$D$5:$E$68,2,FALSE),0) -> 120 | BJ50: =IF(BJ$40>=4,BJ$42,"") -> 2' | BK50: =IFERROR(VLOOKUP(BJ50,DEBUTSTEP!$D$5:$E$68,2,FALSE),0) -> 120 | BY50: =IF(BY$40>=4,BY$42,"") -> 2' | BZ50: =IFERROR(VLOOKUP(BY50,DEBUTSTEP!$D$5:$E$68,2,FALSE),0) -> 120 | CN50: =IF(CN$40>=4,CN$42,"") -> 2' | CO50: =IFERROR(VLOOKUP(CN50,DEBUTSTEP!$D$5:$E$68,2,FALSE),0) -> 120 | DC50: =IF(DC$40>=4,DC$42,"") -> 2' | DD50: =IFERROR(VLOOKUP(DC50,DEBUTSTEP!$D$5:$E$68,2,FALSE),0) -> 120 | DR50: =IF(DR$40>=4,DR$42,"") -> 2' | DS50: =IFERROR(VLOOKUP(DR50,DEBUTSTEP!$D$5:$E$68,2,FALSE),0) -> 120 | EG50: =IF(EG$40>=4,EG$42,"") -> 2' | EH50: =IFERROR(VLOOKUP(EG50,DEBUTSTEP!$D$5:$E$68,2,FALSE),0) -> 120
A51: Effort | B51: =IF(B$40>=5,B$41,"") -> 2' | C51: =IFERROR(VLOOKUP(B51,DEBUTSTEP!$D$5:$E$68,2,FALSE),0) -> 120 | Q51: =IF(Q$40>=5,Q$41,"") ->  | R51: =IFERROR(VLOOKUP(Q51,DEBUTSTEP!$D$5:$E$68,2,FALSE),0) -> 0 | AF51: =IF(AF$40>=5,AF$41,"") ->  | AG51: =IFERROR(VLOOKUP(AF51,DEBUTSTEP!$D$5:$E$68,2,FALSE),0) -> 0 | AU51: =IF(AU$40>=5,AU$41,"") ->  | AV51: =IFERROR(VLOOKUP(AU51,DEBUTSTEP!$D$5:$E$68,2,FALSE),0) -> 0 | BJ51: =IF(BJ$40>=5,BJ$41,"") ->  | BK51: =IFERROR(VLOOKUP(BJ51,DEBUTSTEP!$D$5:$E$68,2,FALSE),0) -> 0 | BY51: =IF(BY$40>=5,BY$41,"") ->  | BZ51: =IFERROR(VLOOKUP(BY51,DEBUTSTEP!$D$5:$E$68,2,FALSE),0) -> 0 | CN51: =IF(CN$40>=5,CN$41,"") ->  | CO51: =IFERROR(VLOOKUP(CN51,DEBUTSTEP!$D$5:$E$68,2,FALSE),0) -> 0 | DC51: =IF(DC$40>=5,DC$41,"") ->  | DD51: =IFERROR(VLOOKUP(DC51,DEBUTSTEP!$D$5:$E$68,2,FALSE),0) -> 0 | DR51: =IF(DR$40>=5,DR$41,"") ->  | DS51: =IFERROR(VLOOKUP(DR51,DEBUTSTEP!$D$5:$E$68,2,FALSE),0) -> 0 | EG51: =IF(EG$40>=5,EG$41,"") ->  | EH51: =IFERROR(VLOOKUP(EG51,DEBUTSTEP!$D$5:$E$68,2,FALSE),0) -> 0
A52: Récup' | B52: =IF(B$40>=5,B$42,"") -> 2' | C52: =IFERROR(VLOOKUP(B52,DEBUTSTEP!$D$5:$E$68,2,FALSE),0) -> 120 | Q52: =IF(Q$40>=5,Q$42,"") ->  | R52: =IFERROR(VLOOKUP(Q52,DEBUTSTEP!$D$5:$E$68,2,FALSE),0) -> 0 | AF52: =IF(AF$40>=5,AF$42,"") ->  | AG52: =IFERROR(VLOOKUP(AF52,DEBUTSTEP!$D$5:$E$68,2,FALSE),0) -> 0 | AU52: =IF(AU$40>=5,AU$42,"") ->  | AV52: =IFERROR(VLOOKUP(AU52,DEBUTSTEP!$D$5:$E$68,2,FALSE),0) -> 0 | BJ52: =IF(BJ$40>=5,BJ$42,"") ->  | BK52: =IFERROR(VLOOKUP(BJ52,DEBUTSTEP!$D$5:$E$68,2,FALSE),0) -> 0 | BY52: =IF(BY$40>=5,BY$42,"") ->  | BZ52: =IFERROR(VLOOKUP(BY52,DEBUTSTEP!$D$5:$E$68,2,FALSE),0) -> 0 | CN52: =IF(CN$40>=5,CN$42,"") ->  | CO52: =IFERROR(VLOOKUP(CN52,DEBUTSTEP!$D$5:$E$68,2,FALSE),0) -> 0 | DC52: =IF(DC$40>=5,DC$42,"") ->  | DD52: =IFERROR(VLOOKUP(DC52,DEBUTSTEP!$D$5:$E$68,2,FALSE),0) -> 0 | DR52: =IF(DR$40>=5,DR$42,"") ->  | DS52: =IFERROR(VLOOKUP(DR52,DEBUTSTEP!$D$5:$E$68,2,FALSE),0) -> 0 | EG52: =IF(EG$40>=5,EG$42,"") ->  | EH52: =IFERROR(VLOOKUP(EG52,DEBUTSTEP!$D$5:$E$68,2,FALSE),0) -> 0
A53: Effort | B53: =IF(B$40>=6,B$41,"") -> 2' | C53: =IFERROR(VLOOKUP(B53,DEBUTSTEP!$D$5:$E$68,2,FALSE),0) -> 120 | Q53: =IF(Q$40>=6,Q$41,"") ->  | R53: =IFERROR(VLOOKUP(Q53,DEBUTSTEP!$D$5:$E$68,2,FALSE),0) -> 0 | AF53: =IF(AF$40>=6,AF$41,"") ->  | AG53: =IFERROR(VLOOKUP(AF53,DEBUTSTEP!$D$5:$E$68,2,FALSE),0) -> 0 | AU53: =IF(AU$40>=6,AU$41,"") ->  | AV53: =IFERROR(VLOOKUP(AU53,DEBUTSTEP!$D$5:$E$68,2,FALSE),0) -> 0 | BJ53: =IF(BJ$40>=6,BJ$41,"") ->  | BK53: =IFERROR(VLOOKUP(BJ53,DEBUTSTEP!$D$5:$E$68,2,FALSE),0) -> 0 | BY53: =IF(BY$40>=6,BY$41,"") ->  | BZ53: =IFERROR(VLOOKUP(BY53,DEBUTSTEP!$D$5:$E$68,2,FALSE),0) -> 0 | CN53: =IF(CN$40>=6,CN$41,"") ->  | CO53: =IFERROR(VLOOKUP(CN53,DEBUTSTEP!$D$5:$E$68,2,FALSE),0) -> 0 | DC53: =IF(DC$40>=6,DC$41,"") ->  | DD53: =IFERROR(VLOOKUP(DC53,DEBUTSTEP!$D$5:$E$68,2,FALSE),0) -> 0 | DR53: =IF(DR$40>=6,DR$41,"") ->  | DS53: =IFERROR(VLOOKUP(DR53,DEBUTSTEP!$D$5:$E$68,2,FALSE),0) -> 0 | EG53: =IF(EG$40>=6,EG$41,"") ->  | EH53: =IFERROR(VLOOKUP(EG53,DEBUTSTEP!$D$5:$E$68,2,FALSE),0) -> 0
A54: Récup' | B54: =IF(B$40>=6,B$42,"") -> 2' | C54: =IFERROR(VLOOKUP(B54,DEBUTSTEP!$D$5:$E$68,2,FALSE),0) -> 120 | Q54: =IF(Q$40>=6,Q$42,"") ->  | R54: =IFERROR(VLOOKUP(Q54,DEBUTSTEP!$D$5:$E$68,2,FALSE),0) -> 0 | AF54: =IF(AF$40>=6,AF$42,"") ->  | AG54: =IFERROR(VLOOKUP(AF54,DEBUTSTEP!$D$5:$E$68,2,FALSE),0) -> 0 | AU54: =IF(AU$40>=6,AU$42,"") ->  | AV54: =IFERROR(VLOOKUP(AU54,DEBUTSTEP!$D$5:$E$68,2,FALSE),0) -> 0 | BJ54: =IF(BJ$40>=6,BJ$42,"") ->  | BK54: =IFERROR(VLOOKUP(BJ54,DEBUTSTEP!$D$5:$E$68,2,FALSE),0) -> 0 | BY54: =IF(BY$40>=6,BY$42,"") ->  | BZ54: =IFERROR(VLOOKUP(BY54,DEBUTSTEP!$D$5:$E$68,2,FALSE),0) -> 0 | CN54: =IF(CN$40>=6,CN$42,"") ->  | CO54: =IFERROR(VLOOKUP(CN54,DEBUTSTEP!$D$5:$E$68,2,FALSE),0) -> 0 | DC54: =IF(DC$40>=6,DC$42,"") ->  | DD54: =IFERROR(VLOOKUP(DC54,DEBUTSTEP!$D$5:$E$68,2,FALSE),0) -> 0 | DR54: =IF(DR$40>=6,DR$42,"") ->  | DS54: =IFERROR(VLOOKUP(DR54,DEBUTSTEP!$D$5:$E$68,2,FALSE),0) -> 0 | EG54: =IF(EG$40>=6,EG$42,"") ->  | EH54: =IFERROR(VLOOKUP(EG54,DEBUTSTEP!$D$5:$E$68,2,FALSE),0) -> 0
A55: Effort | B55: =IF(B$40>=7,B$41,"") -> 2' | C55: =IFERROR(VLOOKUP(B55,DEBUTSTEP!$D$5:$E$68,2,FALSE),0) -> 120 | Q55: =IF(Q$40>=7,Q$41,"") ->  | R55: =IFERROR(VLOOKUP(Q55,DEBUTSTEP!$D$5:$E$68,2,FALSE),0) -> 0 | AF55: =IF(AF$40>=7,AF$41,"") ->  | AG55: =IFERROR(VLOOKUP(AF55,DEBUTSTEP!$D$5:$E$68,2,FALSE),0) -> 0 | AU55: =IF(AU$40>=7,AU$41,"") ->  | AV55: =IFERROR(VLOOKUP(AU55,DEBUTSTEP!$D$5:$E$68,2,FALSE),0) -> 0 | BJ55: =IF(BJ$40>=7,BJ$41,"") ->  | BK55: =IFERROR(VLOOKUP(BJ55,DEBUTSTEP!$D$5:$E$68,2,FALSE),0) -> 0 | BY55: =IF(BY$40>=7,BY$41,"") ->  | BZ55: =IFERROR(VLOOKUP(BY55,DEBUTSTEP!$D$5:$E$68,2,FALSE),0) -> 0 | CN55: =IF(CN$40>=7,CN$41,"") ->  | CO55: =IFERROR(VLOOKUP(CN55,DEBUTSTEP!$D$5:$E$68,2,FALSE),0) -> 0 | DC55: =IF(DC$40>=7,DC$41,"") ->  | DD55: =IFERROR(VLOOKUP(DC55,DEBUTSTEP!$D$5:$E$68,2,FALSE),0) -> 0 | DR55: =IF(DR$40>=7,DR$41,"") ->  | DS55: =IFERROR(VLOOKUP(DR55,DEBUTSTEP!$D$5:$E$68,2,FALSE),0) -> 0 | EG55: =IF(EG$40>=7,EG$41,"") ->  | EH55: =IFERROR(VLOOKUP(EG55,DEBUTSTEP!$D$5:$E$68,2,FALSE),0) -> 0
A56: Récup' | B56: =IF(B$40>=7,B$42,"") -> 2' | C56: =IFERROR(VLOOKUP(B56,DEBUTSTEP!$D$5:$E$68,2,FALSE),0) -> 120 | Q56: =IF(Q$40>=7,Q$42,"") ->  | R56: =IFERROR(VLOOKUP(Q56,DEBUTSTEP!$D$5:$E$68,2,FALSE),0) -> 0 | AF56: =IF(AF$40>=7,AF$42,"") ->  | AG56: =IFERROR(VLOOKUP(AF56,DEBUTSTEP!$D$5:$E$68,2,FALSE),0) -> 0 | AU56: =IF(AU$40>=7,AU$42,"") ->  | AV56: =IFERROR(VLOOKUP(AU56,DEBUTSTEP!$D$5:$E$68,2,FALSE),0) -> 0 | BJ56: =IF(BJ$40>=7,BJ$42,"") ->  | BK56: =IFERROR(VLOOKUP(BJ56,DEBUTSTEP!$D$5:$E$68,2,FALSE),0) -> 0 | BY56: =IF(BY$40>=7,BY$42,"") ->  | BZ56: =IFERROR(VLOOKUP(BY56,DEBUTSTEP!$D$5:$E$68,2,FALSE),0) -> 0 | CN56: =IF(CN$40>=7,CN$42,"") ->  | CO56: =IFERROR(VLOOKUP(CN56,DEBUTSTEP!$D$5:$E$68,2,FALSE),0) -> 0 | DC56: =IF(DC$40>=7,DC$42,"") ->  | DD56: =IFERROR(VLOOKUP(DC56,DEBUTSTEP!$D$5:$E$68,2,FALSE),0) -> 0 | DR56: =IF(DR$40>=7,DR$42,"") ->  | DS56: =IFERROR(VLOOKUP(DR56,DEBUTSTEP!$D$5:$E$68,2,FALSE),0) -> 0 | EG56: =IF(EG$40>=7,EG$42,"") ->  | EH56: =IFERROR(VLOOKUP(EG56,DEBUTSTEP!$D$5:$E$68,2,FALSE),0) -> 0
A57: Effort | B57: =IF(B$40>=8,B$41,"") -> 2' | C57: =IFERROR(VLOOKUP(B57,DEBUTSTEP!$D$5:$E$68,2,FALSE),0) -> 120 | Q57: =IF(Q$40>=8,Q$41,"") ->  | R57: =IFERROR(VLOOKUP(Q57,DEBUTSTEP!$D$5:$E$68,2,FALSE),0) -> 0 | AF57: =IF(AF$40>=8,AF$41,"") ->  | AG57: =IFERROR(VLOOKUP(AF57,DEBUTSTEP!$D$5:$E$68,2,FALSE),0) -> 0 | AU57: =IF(AU$40>=8,AU$41,"") ->  | AV57: =IFERROR(VLOOKUP(AU57,DEBUTSTEP!$D$5:$E$68,2,FALSE),0) -> 0 | BJ57: =IF(BJ$40>=8,BJ$41,"") ->  | BK57: =IFERROR(VLOOKUP(BJ57,DEBUTSTEP!$D$5:$E$68,2,FALSE),0) -> 0 | BY57: =IF(BY$40>=8,BY$41,"") ->  | BZ57: =IFERROR(VLOOKUP(BY57,DEBUTSTEP!$D$5:$E$68,2,FALSE),0) -> 0 | CN57: =IF(CN$40>=8,CN$41,"") ->  | CO57: =IFERROR(VLOOKUP(CN57,DEBUTSTEP!$D$5:$E$68,2,FALSE),0) -> 0 | DC57: =IF(DC$40>=8,DC$41,"") ->  | DD57: =IFERROR(VLOOKUP(DC57,DEBUTSTEP!$D$5:$E$68,2,FALSE),0) -> 0 | DR57: =IF(DR$40>=8,DR$41,"") ->  | DS57: =IFERROR(VLOOKUP(DR57,DEBUTSTEP!$D$5:$E$68,2,FALSE),0) -> 0 | EG57: =IF(EG$40>=8,EG$41,"") ->  | EH57: =IFERROR(VLOOKUP(EG57,DEBUTSTEP!$D$5:$E$68,2,FALSE),0) -> 0
A58: Récup' | B58: =IF(B$40>=8,B$42,"") -> 2' | C58: =IFERROR(VLOOKUP(B58,DEBUTSTEP!$D$5:$E$68,2,FALSE),0) -> 120 | Q58: =IF(Q$40>=8,Q$42,"") ->  | R58: =IFERROR(VLOOKUP(Q58,DEBUTSTEP!$D$5:$E$68,2,FALSE),0) -> 0 | AF58: =IF(AF$40>=8,AF$42,"") ->  | AG58: =IFERROR(VLOOKUP(AF58,DEBUTSTEP!$D$5:$E$68,2,FALSE),0) -> 0 | AU58: =IF(AU$40>=8,AU$42,"") ->  | AV58: =IFERROR(VLOOKUP(AU58,DEBUTSTEP!$D$5:$E$68,2,FALSE),0) -> 0 | BJ58: =IF(BJ$40>=8,BJ$42,"") ->  | BK58: =IFERROR(VLOOKUP(BJ58,DEBUTSTEP!$D$5:$E$68,2,FALSE),0) -> 0 | BY58: =IF(BY$40>=8,BY$42,"") ->  | BZ58: =IFERROR(VLOOKUP(BY58,DEBUTSTEP!$D$5:$E$68,2,FALSE),0) -> 0 | CN58: =IF(CN$40>=8,CN$42,"") ->  | CO58: =IFERROR(VLOOKUP(CN58,DEBUTSTEP!$D$5:$E$68,2,FALSE),0) -> 0 | DC58: =IF(DC$40>=8,DC$42,"") ->  | DD58: =IFERROR(VLOOKUP(DC58,DEBUTSTEP!$D$5:$E$68,2,FALSE),0) -> 0 | DR58: =IF(DR$40>=8,DR$42,"") ->  | DS58: =IFERROR(VLOOKUP(DR58,DEBUTSTEP!$D$5:$E$68,2,FALSE),0) -> 0 | EG58: =IF(EG$40>=8,EG$42,"") ->  | EH58: =IFERROR(VLOOKUP(EG58,DEBUTSTEP!$D$5:$E$68,2,FALSE),0) -> 0
A59: Effort | B59: =IF(B$40>=9,B$41,"") ->  | C59: =IFERROR(VLOOKUP(B59,DEBUTSTEP!$D$5:$E$68,2,FALSE),0) -> 0 | Q59: =IF(Q$40>=9,Q$41,"") ->  | R59: =IFERROR(VLOOKUP(Q59,DEBUTSTEP!$D$5:$E$68,2,FALSE),0) -> 0 | AF59: =IF(AF$40>=9,AF$41,"") ->  | AG59: =IFERROR(VLOOKUP(AF59,DEBUTSTEP!$D$5:$E$68,2,FALSE),0) -> 0 | AU59: =IF(AU$40>=9,AU$41,"") ->  | AV59: =IFERROR(VLOOKUP(AU59,DEBUTSTEP!$D$5:$E$68,2,FALSE),0) -> 0 | BJ59: =IF(BJ$40>=9,BJ$41,"") ->  | BK59: =IFERROR(VLOOKUP(BJ59,DEBUTSTEP!$D$5:$E$68,2,FALSE),0) -> 0 | BY59: =IF(BY$40>=9,BY$41,"") ->  | BZ59: =IFERROR(VLOOKUP(BY59,DEBUTSTEP!$D$5:$E$68,2,FALSE),0) -> 0 | CN59: =IF(CN$40>=9,CN$41,"") ->  | CO59: =IFERROR(VLOOKUP(CN59,DEBUTSTEP!$D$5:$E$68,2,FALSE),0) -> 0 | DC59: =IF(DC$40>=9,DC$41,"") ->  | DD59: =IFERROR(VLOOKUP(DC59,DEBUTSTEP!$D$5:$E$68,2,FALSE),0) -> 0 | DR59: =IF(DR$40>=9,DR$41,"") ->  | DS59: =IFERROR(VLOOKUP(DR59,DEBUTSTEP!$D$5:$E$68,2,FALSE),0) -> 0 | EG59: =IF(EG$40>=9,EG$41,"") ->  | EH59: =IFERROR(VLOOKUP(EG59,DEBUTSTEP!$D$5:$E$68,2,FALSE),0) -> 0
A60: Récup' | B60: =IF(B$40>=9,B$42,"") ->  | C60: =IFERROR(VLOOKUP(B60,DEBUTSTEP!$D$5:$E$68,2,FALSE),0) -> 0 | Q60: =IF(Q$40>=9,Q$42,"") ->  | R60: =IFERROR(VLOOKUP(Q60,DEBUTSTEP!$D$5:$E$68,2,FALSE),0) -> 0 | AF60: =IF(AF$40>=9,AF$42,"") ->  | AG60: =IFERROR(VLOOKUP(AF60,DEBUTSTEP!$D$5:$E$68,2,FALSE),0) -> 0 | AU60: =IF(AU$40>=9,AU$42,"") ->  | AV60: =IFERROR(VLOOKUP(AU60,DEBUTSTEP!$D$5:$E$68,2,FALSE),0) -> 0 | BJ60: =IF(BJ$40>=9,BJ$42,"") ->  | BK60: =IFERROR(VLOOKUP(BJ60,DEBUTSTEP!$D$5:$E$68,2,FALSE),0) -> 0 | BY60: =IF(BY$40>=9,BY$42,"") ->  | BZ60: =IFERROR(VLOOKUP(BY60,DEBUTSTEP!$D$5:$E$68,2,FALSE),0) -> 0 | CN60: =IF(CN$40>=9,CN$42,"") ->  | CO60: =IFERROR(VLOOKUP(CN60,DEBUTSTEP!$D$5:$E$68,2,FALSE),0) -> 0 | DC60: =IF(DC$40>=9,DC$42,"") ->  | DD60: =IFERROR(VLOOKUP(DC60,DEBUTSTEP!$D$5:$E$68,2,FALSE),0) -> 0 | DR60: =IF(DR$40>=9,DR$42,"") ->  | DS60: =IFERROR(VLOOKUP(DR60,DEBUTSTEP!$D$5:$E$68,2,FALSE),0) -> 0 | EG60: =IF(EG$40>=9,EG$42,"") ->  | EH60: =IFERROR(VLOOKUP(EG60,DEBUTSTEP!$D$5:$E$68,2,FALSE),0) -> 0
A61: EFFORT TOTAL | B61: =(C43+C45+C47+C49+C51+C53+C55+C57+C59)*"00:00:01" -> 00:16:00 | C61: =IFERROR((C44+C46+C48+C50+C52+C54+C56+C58+C60)*"00:00:01",0) -> 00:16:00 | Q61: =(R43+R45+R47+R49+R51+R53+R55+R57+R59)*"00:00:01" -> 00:21:00 | R61: =IFERROR((R44+R46+R48+R50+R52+R54+R56+R58+R60)*"00:00:01",0) -> 00:12:00 | AF61: =(AG43+AG45+AG47+AG49+AG51+AG53+AG55+AG57+AG59)*"00:00:01" -> 00:20:00 | AG61: =IFERROR((AG44+AG46+AG48+AG50+AG52+AG54+AG56+AG58+AG60)*"00:00:01",0) -> 00:16:00 | AU61: =(AV43+AV45+AV47+AV49+AV51+AV53+AV55+AV57+AV59)*"00:00:01" -> 00:08:00 | AV61: =IFERROR((AV44+AV46+AV48+AV50+AV52+AV54+AV56+AV58+AV60)*"00:00:01",0) -> 00:08:00 | BJ61: =(BK43+BK45+BK47+BK49+BK51+BK53+BK55+BK57+BK59)*"00:00:01" -> 00:08:00 | BK61: =IFERROR((BK44+BK46+BK48+BK50+BK52+BK54+BK56+BK58+BK60)*"00:00:01",0) -> 00:08:00 | BY61: =(BZ43+BZ45+BZ47+BZ49+BZ51+BZ53+BZ55+BZ57+BZ59)*"00:00:01" -> 00:08:00 | BZ61: =IFERROR((BZ44+BZ46+BZ48+BZ50+BZ52+BZ54+BZ56+BZ58+BZ60)*"00:00:01",0) -> 00:08:00 | CN61: =(CO43+CO45+CO47+CO49+CO51+CO53+CO55+CO57+CO59)*"00:00:01" -> 00:08:00 | CO61: =IFERROR((CO44+CO46+CO48+CO50+CO52+CO54+CO56+CO58+CO60)*"00:00:01",0) -> 00:08:00 | DC61: =(DD43+DD45+DD47+DD49+DD51+DD53+DD55+DD57+DD59)*"00:00:01" -> 00:08:00 | DD61: =IFERROR((DD44+DD46+DD48+DD50+DD52+DD54+DD56+DD58+DD60)*"00:00:01",0) -> 00:08:00 | DR61: =(DS43+DS45+DS47+DS49+DS51+DS53+DS55+DS57+DS59)*"00:00:01" -> 00:08:00 | DS61: =IFERROR((DS44+DS46+DS48+DS50+DS52+DS54+DS56+DS58+DS60)*"00:00:01",0) -> 00:08:00 | EG61: =(EH43+EH45+EH47+EH49+EH51+EH53+EH55+EH57+EH59)*"00:00:01" -> 00:08:00 | EH61: =IFERROR((EH44+EH46+EH48+EH50+EH52+EH54+EH56+EH58+EH60)*"00:00:01",0) -> 00:08:00
A63: Pourquoi avoir choisi cet entrainement ? (expression libre)
B65: BLOCS CHOISIS | Q65: BLOCS CHOISIS | AF65: BLOCS CHOISIS | AU65: BLOCS CHOISIS | BJ65: BLOCS CHOISIS | BY65: BLOCS CHOISIS | CN65: BLOCS CHOISIS | DC65: BLOCS CHOISIS | DR65: BLOCS CHOISIS | EG65: BLOCS CHOISIS
B66: 1 BLOC = 4x8 TEMPS | Q66: 1 BLOC = 4x8 TEMPS | AF66: 1 BLOC = 4x8 TEMPS | AU66: 1 BLOC = 4x8 TEMPS | BJ66: 1 BLOC = 4x8 TEMPS | BY66: 1 BLOC = 4x8 TEMPS | CN66: 1 BLOC = 4x8 TEMPS | DC66: 1 BLOC = 4x8 TEMPS | DR66: 1 BLOC = 4x8 TEMPS | EG66: 1 BLOC = 4x8 TEMPS
A67: BLOC 1 | B67: =CONCATENATE(SUMIF(E67,"<>")+SUMIF(H67,"<>")+SUMIF(K67,"<>")+SUMIF(N67,"<>")+SUMIF(E69,"<>")+SUMIF(H69,"<>")+SUMIF(K69,"<>")+SUMIF(N69,"<>")," temps") -> 32 temps | C67: MARCHE | E67: =IFERROR(VLOOKUP(C67,TOUSLESPAS!$B$4:$C$207,2,FALSE),"") -> 4 | F67: MARCHE | H67: =IFERROR(VLOOKUP(F67,TOUSLESPAS!$B$4:$C$207,2,FALSE),"") -> 4 | I67: V-STEP | K67: =IFERROR(VLOOKUP(I67,TOUSLESPAS!$B$4:$C$207,2,FALSE),"") -> 4 | L67: V-STEP | N67: =IFERROR(VLOOKUP(L67,TOUSLESPAS!$B$4:$C$207,2,FALSE),"") -> 4 | Q67: =CONCATENATE(SUMIF(T67,"<>")+SUMIF(W67,"<>")+SUMIF(Z67,"<>")+SUMIF(AC67,"<>")+SUMIF(T69,"<>")+SUMIF(W69,"<>")+SUMIF(Z69,"<>")+SUMIF(AC69,"<>")," temps") -> 32 temps | R67: =IF(C67="","",C67) -> MARCHE | T67: =IFERROR(VLOOKUP(R67,TOUSLESPAS!$B$4:$C$207,2,FALSE),"") -> 4 | U67: =IF(F67="","",F67) -> MARCHE | W67: =IFERROR(VLOOKUP(U67,TOUSLESPAS!$B$4:$C$207,2,FALSE),"") -> 4 | X67: =IF(I67="","",I67) -> V-STEP | Z67: =IFERROR(VLOOKUP(X67,TOUSLESPAS!$B$4:$C$207,2,FALSE),"") -> 4 | AA67: =IF(L67="","",L67) -> V-STEP | AC67: =IFERROR(VLOOKUP(AA67,TOUSLESPAS!$B$4:$C$207,2,FALSE),"") -> 4 | AF67: =CONCATENATE(SUMIF(AI67,"<>")+SUMIF(AL67,"<>")+SUMIF(AO67,"<>")+SUMIF(AR67,"<>")+SUMIF(AI69,"<>")+SUMIF(AL69,"<>")+SUMIF(AO69,"<>")+SUMIF(AR69,"<>")," temps") -> 32 temps | AG67: =IF(R67="","",R67) -> MARCHE | AI67: =IFERROR(VLOOKUP(AG67,TOUSLESPAS!$B$4:$C$207,2,FALSE),"") -> 4 | AJ67: =IF(U67="","",U67) -> MARCHE | AL67: =IFERROR(VLOOKUP(AJ67,TOUSLESPAS!$B$4:$C$207,2,FALSE),"") -> 4 | AM67: =IF(X67="","",X67) -> V-STEP | AO67: =IFERROR(VLOOKUP(AM67,TOUSLESPAS!$B$4:$C$207,2,FALSE),"") -> 4 | AP67: =IF(AA67="","",AA67) -> V-STEP | AR67: =IFERROR(VLOOKUP(AP67,TOUSLESPAS!$B$4:$C$207,2,FALSE),"") -> 4 | AU67: =CONCATENATE(SUMIF(AX67,"<>")+SUMIF(BA67,"<>")+SUMIF(BD67,"<>")+SUMIF(BG67,"<>")+SUMIF(AX69,"<>")+SUMIF(BA69,"<>")+SUMIF(BD69,"<>")+SUMIF(BG69,"<>")," temps") -> 32 temps | AV67: =IF(AG67="","",AG67) -> MARCHE | AX67: =IFERROR(VLOOKUP(AV67,TOUSLESPAS!$B$4:$C$207,2,FALSE),"") -> 4 | AY67: =IF(AJ67="","",AJ67) -> MARCHE | BA67: =IFERROR(VLOOKUP(AY67,TOUSLESPAS!$B$4:$C$207,2,FALSE),"") -> 4 | BB67: =IF(AM67="","",AM67) -> V-STEP | BD67: =IFERROR(VLOOKUP(BB67,TOUSLESPAS!$B$4:$C$207,2,FALSE),"") -> 4 | BE67: =IF(AP67="","",AP67) -> V-STEP | BG67: =IFERROR(VLOOKUP(BE67,TOUSLESPAS!$B$4:$C$207,2,FALSE),"") -> 4 | BJ67: =CONCATENATE(SUMIF(BM67,"<>")+SUMIF(BP67,"<>")+SUMIF(BS67,"<>")+SUMIF(BV67,"<>")+SUMIF(BM69,"<>")+SUMIF(BP69,"<>")+SUMIF(BS69,"<>")+SUMIF(BV69,"<>")," temps") -> 32 temps | BK67: =IF(AV67="","",AV67) -> MARCHE | BM67: =IFERROR(VLOOKUP(BK67,TOUSLESPAS!$B$4:$C$207,2,FALSE),"") -> 4 | BN67: =IF(AY67="","",AY67) -> MARCHE | BP67: =IFERROR(VLOOKUP(BN67,TOUSLESPAS!$B$4:$C$207,2,FALSE),"") -> 4 | BQ67: =IF(BB67="","",BB67) -> V-STEP | BS67: =IFERROR(VLOOKUP(BQ67,TOUSLESPAS!$B$4:$C$207,2,FALSE),"") -> 4 | BT67: =IF(BE67="","",BE67) -> V-STEP | BV67: =IFERROR(VLOOKUP(BT67,TOUSLESPAS!$B$4:$C$207,2,FALSE),"") -> 4 | BY67: =CONCATENATE(SUMIF(CB67,"<>")+SUMIF(CE67,"<>")+SUMIF(CH67,"<>")+SUMIF(CK67,"<>")+SUMIF(CB69,"<>")+SUMIF(CE69,"<>")+SUMIF(CH69,"<>")+SUMIF(CK69,"<>")," temps") -> 32 temps | BZ67: =IF(BK67="","",BK67) -> MARCHE | CB67: =IFERROR(VLOOKUP(BZ67,TOUSLESPAS!$B$4:$C$207,2,FALSE),"") -> 4 | CC67: =IF(BN67="","",BN67) -> MARCHE | CE67: =IFERROR(VLOOKUP(CC67,TOUSLESPAS!$B$4:$C$207,2,FALSE),"") -> 4 | CF67: =IF(BQ67="","",BQ67) -> V-STEP | CH67: =IFERROR(VLOOKUP(CF67,TOUSLESPAS!$B$4:$C$207,2,FALSE),"") -> 4 | CI67: =IF(BT67="","",BT67) -> V-STEP | CK67: =IFERROR(VLOOKUP(CI67,TOUSLESPAS!$B$4:$C$207,2,FALSE),"") -> 4 | CN67: =CONCATENATE(SUMIF(CQ67,"<>")+SUMIF(CT67,"<>")+SUMIF(CW67,"<>")+SUMIF(CZ67,"<>")+SUMIF(CQ69,"<>")+SUMIF(CT69,"<>")+SUMIF(CW69,"<>")+SUMIF(CZ69,"<>")," temps") -> 32 temps | CO67: =IF(BZ67="","",BZ67) -> MARCHE | CQ67: =IFERROR(VLOOKUP(CO67,TOUSLESPAS!$B$4:$C$207,2,FALSE),"") -> 4 | CR67: =IF(CC67="","",CC67) -> MARCHE | CT67: =IFERROR(VLOOKUP(CR67,TOUSLESPAS!$B$4:$C$207,2,FALSE),"") -> 4 | CU67: =IF(CF67="","",CF67) -> V-STEP | CW67: =IFERROR(VLOOKUP(CU67,TOUSLESPAS!$B$4:$C$207,2,FALSE),"") -> 4 | CX67: =IF(CI67="","",CI67) -> V-STEP | CZ67: =IFERROR(VLOOKUP(CX67,TOUSLESPAS!$B$4:$C$207,2,FALSE),"") -> 4 | DC67: =CONCATENATE(SUMIF(DF67,"<>")+SUMIF(DI67,"<>")+SUMIF(DL67,"<>")+SUMIF(DO67,"<>")+SUMIF(DF69,"<>")+SUMIF(DI69,"<>")+SUMIF(DL69,"<>")+SUMIF(DO69,"<>")," temps") -> 32 temps | DD67: =IF(CO67="","",CO67) -> MARCHE | DF67: =IFERROR(VLOOKUP(DD67,TOUSLESPAS!$B$4:$C$207,2,FALSE),"") -> 4 | DG67: =IF(CR67="","",CR67) -> MARCHE | DI67: =IFERROR(VLOOKUP(DG67,TOUSLESPAS!$B$4:$C$207,2,FALSE),"") -> 4 | DJ67: =IF(CU67="","",CU67) -> V-STEP | DL67: =IFERROR(VLOOKUP(DJ67,TOUSLESPAS!$B$4:$C$207,2,FALSE),"") -> 4 | DM67: =IF(CX67="","",CX67) -> V-STEP | DO67: =IFERROR(VLOOKUP(DM67,TOUSLESPAS!$B$4:$C$207,2,FALSE),"") -> 4 | DR67: =CONCATENATE(SUMIF(DU67,"<>")+SUMIF(DX67,"<>")+SUMIF(EA67,"<>")+SUMIF(ED67,"<>")+SUMIF(DU69,"<>")+SUMIF(DX69,"<>")+SUMIF(EA69,"<>")+SUMIF(ED69,"<>")," temps") -> 32 temps | DS67: =IF(DD67="","",DD67) -> MARCHE | DU67: =IFERROR(VLOOKUP(DS67,TOUSLESPAS!$B$4:$C$207,2,FALSE),"") -> 4 | DV67: =IF(DG67="","",DG67) -> MARCHE | DX67: =IFERROR(VLOOKUP(DV67,TOUSLESPAS!$B$4:$C$207,2,FALSE),"") -> 4 | DY67: =IF(DJ67="","",DJ67) -> V-STEP | EA67: =IFERROR(VLOOKUP(DY67,TOUSLESPAS!$B$4:$C$207,2,FALSE),"") -> 4 | EB67: =IF(DM67="","",DM67) -> V-STEP | ED67: =IFERROR(VLOOKUP(EB67,TOUSLESPAS!$B$4:$C$207,2,FALSE),"") -> 4 | EG67: =CONCATENATE(SUMIF(EJ67,"<>")+SUMIF(EM67,"<>")+SUMIF(EP67,"<>")+SUMIF(ES67,"<>")+SUMIF(EJ69,"<>")+SUMIF(EM69,"<>")+SUMIF(EP69,"<>")+SUMIF(ES69,"<>")," temps") -> 32 temps | EH67: =IF(DS67="","",DS67) -> MARCHE | EJ67: =IFERROR(VLOOKUP(EH67,TOUSLESPAS!$B$4:$C$207,2,FALSE),"") -> 4 | EK67: =IF(DV67="","",DV67) -> MARCHE | EM67: =IFERROR(VLOOKUP(EK67,TOUSLESPAS!$B$4:$C$207,2,FALSE),"") -> 4 | EN67: =IF(DY67="","",DY67) -> V-STEP | EP67: =IFERROR(VLOOKUP(EN67,TOUSLESPAS!$B$4:$C$207,2,FALSE),"") -> 4 | EQ67: =IF(EB67="","",EB67) -> V-STEP | ES67: =IFERROR(VLOOKUP(EQ67,TOUSLESPAS!$B$4:$C$207,2,FALSE),"") -> 4
C69: PAS CHASSES | E69: =IFERROR(VLOOKUP(C69,TOUSLESPAS!$B$4:$C$207,2,FALSE),"") -> 4 | F69: PAS CHASSES | H69: =IFERROR(VLOOKUP(F69,TOUSLESPAS!$B$4:$C$207,2,FALSE),"") -> 4 | I69: COUP DE PIED | K69: =IFERROR(VLOOKUP(I69,TOUSLESPAS!$B$4:$C$207,2,FALSE),"") -> 4 | L69: COUP DE PIED | N69: =IFERROR(VLOOKUP(L69,TOUSLESPAS!$B$4:$C$207,2,FALSE),"") -> 4 | R69: =IF(C69="","",C69) -> PAS CHASSES | T69: =IFERROR(VLOOKUP(R69,TOUSLESPAS!$B$4:$C$207,2,FALSE),"") -> 4 | U69: =IF(F69="","",F69) -> PAS CHASSES | W69: =IFERROR(VLOOKUP(U69,TOUSLESPAS!$B$4:$C$207,2,FALSE),"") -> 4 | X69: =IF(I69="","",I69) -> COUP DE PIED | Z69: =IFERROR(VLOOKUP(X69,TOUSLESPAS!$B$4:$C$207,2,FALSE),"") -> 4 | AA69: =IF(L69="","",L69) -> COUP DE PIED | AC69: =IFERROR(VLOOKUP(AA69,TOUSLESPAS!$B$4:$C$207,2,FALSE),"") -> 4 | AG69: =IF(R69="","",R69) -> PAS CHASSES | AI69: =IFERROR(VLOOKUP(AG69,TOUSLESPAS!$B$4:$C$207,2,FALSE),"") -> 4 | AJ69: =IF(U69="","",U69) -> PAS CHASSES | AL69: =IFERROR(VLOOKUP(AJ69,TOUSLESPAS!$B$4:$C$207,2,FALSE),"") -> 4 | AM69: =IF(X69="","",X69) -> COUP DE PIED | AO69: =IFERROR(VLOOKUP(AM69,TOUSLESPAS!$B$4:$C$207,2,FALSE),"") -> 4 | AP69: =IF(AA69="","",AA69) -> COUP DE PIED | AR69: =IFERROR(VLOOKUP(AP69,TOUSLESPAS!$B$4:$C$207,2,FALSE),"") -> 4 | AV69: =IF(AG69="","",AG69) -> PAS CHASSES | AX69: =IFERROR(VLOOKUP(AV69,TOUSLESPAS!$B$4:$C$207,2,FALSE),"") -> 4 | AY69: =IF(AJ69="","",AJ69) -> PAS CHASSES | BA69: =IFERROR(VLOOKUP(AY69,TOUSLESPAS!$B$4:$C$207,2,FALSE),"") -> 4 | BB69: =IF(AM69="","",AM69) -> COUP DE PIED | BD69: =IFERROR(VLOOKUP(BB69,TOUSLESPAS!$B$4:$C$207,2,FALSE),"") -> 4 | BE69: =IF(AP69="","",AP69) -> COUP DE PIED | BG69: =IFERROR(VLOOKUP(BE69,TOUSLESPAS!$B$4:$C$207,2,FALSE),"") -> 4 | BK69: =IF(AV69="","",AV69) -> PAS CHASSES | BM69: =IFERROR(VLOOKUP(BK69,TOUSLESPAS!$B$4:$C$207,2,FALSE),"") -> 4 | BN69: =IF(AY69="","",AY69) -> PAS CHASSES | BP69: =IFERROR(VLOOKUP(BN69,TOUSLESPAS!$B$4:$C$207,2,FALSE),"") -> 4 | BQ69: =IF(BB69="","",BB69) -> COUP DE PIED | BS69: =IFERROR(VLOOKUP(BQ69,TOUSLESPAS!$B$4:$C$207,2,FALSE),"") -> 4 | BT69: =IF(BE69="","",BE69) -> COUP DE PIED | BV69: =IFERROR(VLOOKUP(BT69,TOUSLESPAS!$B$4:$C$207,2,FALSE),"") -> 4 | BZ69: =IF(BK69="","",BK69) -> PAS CHASSES | CB69: =IFERROR(VLOOKUP(BZ69,TOUSLESPAS!$B$4:$C$207,2,FALSE),"") -> 4 | CC69: =IF(BN69="","",BN69) -> PAS CHASSES | CE69: =IFERROR(VLOOKUP(CC69,TOUSLESPAS!$B$4:$C$207,2,FALSE),"") -> 4 | CF69: =IF(BQ69="","",BQ69) -> COUP DE PIED | CH69: =IFERROR(VLOOKUP(CF69,TOUSLESPAS!$B$4:$C$207,2,FALSE),"") -> 4 | CI69: =IF(BT69="","",BT69) -> COUP DE PIED | CK69: =IFERROR(VLOOKUP(CI69,TOUSLESPAS!$B$4:$C$207,2,FALSE),"") -> 4 | CO69: =IF(BZ69="","",BZ69) -> PAS CHASSES | CQ69: =IFERROR(VLOOKUP(CO69,TOUSLESPAS!$B$4:$C$207,2,FALSE),"") -> 4 | CR69: =IF(CC69="","",CC69) -> PAS CHASSES | CT69: =IFERROR(VLOOKUP(CR69,TOUSLESPAS!$B$4:$C$207,2,FALSE),"") -> 4 | CU69: =IF(CF69="","",CF69) -> COUP DE PIED | CW69: =IFERROR(VLOOKUP(CU69,TOUSLESPAS!$B$4:$C$207,2,FALSE),"") -> 4 | CX69: =IF(CI69="","",CI69) -> COUP DE PIED | CZ69: =IFERROR(VLOOKUP(CX69,TOUSLESPAS!$B$4:$C$207,2,FALSE),"") -> 4 | DD69: =IF(CO69="","",CO69) -> PAS CHASSES | DF69: =IFERROR(VLOOKUP(DD69,TOUSLESPAS!$B$4:$C$207,2,FALSE),"") -> 4 | DG69: =IF(CR69="","",CR69) -> PAS CHASSES | DI69: =IFERROR(VLOOKUP(DG69,TOUSLESPAS!$B$4:$C$207,2,FALSE),"") -> 4 | DJ69: =IF(CU69="","",CU69) -> COUP DE PIED | DL69: =IFERROR(VLOOKUP(DJ69,TOUSLESPAS!$B$4:$C$207,2,FALSE),"") -> 4 | DM69: =IF(CX69="","",CX69) -> COUP DE PIED | DO69: =IFERROR(VLOOKUP(DM69,TOUSLESPAS!$B$4:$C$207,2,FALSE),"") -> 4 | DS69: =IF(DD69="","",DD69) -> PAS CHASSES | DU69: =IFERROR(VLOOKUP(DS69,TOUSLESPAS!$B$4:$C$207,2,FALSE),"") -> 4 | DV69: =IF(DG69="","",DG69) -> PAS CHASSES | DX69: =IFERROR(VLOOKUP(DV69,TOUSLESPAS!$B$4:$C$207,2,FALSE),"") -> 4 | DY69: =IF(DJ69="","",DJ69) -> COUP DE PIED | EA69: =IFERROR(VLOOKUP(DY69,TOUSLESPAS!$B$4:$C$207,2,FALSE),"") -> 4 | EB69: =IF(DM69="","",DM69) -> COUP DE PIED | ED69: =IFERROR(VLOOKUP(EB69,TOUSLESPAS!$B$4:$C$207,2,FALSE),"") -> 4 | EH69: =IF(DS69="","",DS69) -> PAS CHASSES | EJ69: =IFERROR(VLOOKUP(EH69,TOUSLESPAS!$B$4:$C$207,2,FALSE),"") -> 4 | EK69: =IF(DV69="","",DV69) -> PAS CHASSES | EM69: =IFERROR(VLOOKUP(EK69,TOUSLESPAS!$B$4:$C$207,2,FALSE),"") -> 4 | EN69: =IF(DY69="","",DY69) -> COUP DE PIED | EP69: =IFERROR(VLOOKUP(EN69,TOUSLESPAS!$B$4:$C$207,2,FALSE),"") -> 4 | EQ69: =IF(EB69="","",EB69) -> COUP DE PIED | ES69: =IFERROR(VLOOKUP(EQ69,TOUSLESPAS!$B$4:$C$207,2,FALSE),"") -> 4
A71: BLOC 2 | B71: =CONCATENATE(SUMIF(E71,"<>")+SUMIF(H71,"<>")+SUMIF(K71,"<>")+SUMIF(N71,"<>")+SUMIF(E73,"<>")+SUMIF(H73,"<>")+SUMIF(K73,"<>")+SUMIF(N73,"<>")," temps") -> 32 temps | C71: COURSE | E71: =IFERROR(VLOOKUP(C71,TOUSLESPAS!$B$4:$C$207,2,FALSE),"") -> 4 | F71: COURSE | H71: =IFERROR(VLOOKUP(F71,TOUSLESPAS!$B$4:$C$207,2,FALSE),"") -> 4 | I71: CHARLESTON | K71: =IFERROR(VLOOKUP(I71,TOUSLESPAS!$B$4:$C$207,2,FALSE),"") -> 8 | L71: HELICO | N71: =IFERROR(VLOOKUP(L71,TOUSLESPAS!$B$4:$C$207,2,FALSE),"") -> 8 | Q71: =CONCATENATE(SUMIF(T71,"<>")+SUMIF(W71,"<>")+SUMIF(Z71,"<>")+SUMIF(AC71,"<>")+SUMIF(T73,"<>")+SUMIF(W73,"<>")+SUMIF(Z73,"<>")+SUMIF(AC73,"<>")," temps") -> 32 temps | R71: =IF(C71="","",C71) -> COURSE | T71: =IFERROR(VLOOKUP(R71,TOUSLESPAS!$B$4:$C$207,2,FALSE),"") -> 4 | U71: =IF(F71="","",F71) -> COURSE | W71: =IFERROR(VLOOKUP(U71,TOUSLESPAS!$B$4:$C$207,2,FALSE),"") -> 4 | X71: =IF(I71="","",I71) -> CHARLESTON | Z71: =IFERROR(VLOOKUP(X71,TOUSLESPAS!$B$4:$C$207,2,FALSE),"") -> 8 | AA71: =IF(L71="","",L71) -> HELICO | AC71: =IFERROR(VLOOKUP(AA71,TOUSLESPAS!$B$4:$C$207,2,FALSE),"") -> 8 | AF71: =CONCATENATE(SUMIF(AI71,"<>")+SUMIF(AL71,"<>")+SUMIF(AO71,"<>")+SUMIF(AR71,"<>")+SUMIF(AI73,"<>")+SUMIF(AL73,"<>")+SUMIF(AO73,"<>")+SUMIF(AR73,"<>")," temps") -> 32 temps | AG71: =IF(R71="","",R71) -> COURSE | AI71: =IFERROR(VLOOKUP(AG71,TOUSLESPAS!$B$4:$C$207,2,FALSE),"") -> 4 | AJ71: =IF(U71="","",U71) -> COURSE | AL71: =IFERROR(VLOOKUP(AJ71,TOUSLESPAS!$B$4:$C$207,2,FALSE),"") -> 4 | AM71: =IF(X71="","",X71) -> CHARLESTON | AO71: =IFERROR(VLOOKUP(AM71,TOUSLESPAS!$B$4:$C$207,2,FALSE),"") -> 8 | AP71: =IF(AA71="","",AA71) -> HELICO | AR71: =IFERROR(VLOOKUP(AP71,TOUSLESPAS!$B$4:$C$207,2,FALSE),"") -> 8 | AU71: =CONCATENATE(SUMIF(AX71,"<>")+SUMIF(BA71,"<>")+SUMIF(BD71,"<>")+SUMIF(BG71,"<>")+SUMIF(AX73,"<>")+SUMIF(BA73,"<>")+SUMIF(BD73,"<>")+SUMIF(BG73,"<>")," temps") -> 32 temps | AV71: =IF(AG71="","",AG71) -> COURSE | AX71: =IFERROR(VLOOKUP(AV71,TOUSLESPAS!$B$4:$C$207,2,FALSE),"") -> 4 | AY71: =IF(AJ71="","",AJ71) -> COURSE | BA71: =IFERROR(VLOOKUP(AY71,TOUSLESPAS!$B$4:$C$207,2,FALSE),"") -> 4 | BB71: =IF(AM71="","",AM71) -> CHARLESTON | BD71: =IFERROR(VLOOKUP(BB71,TOUSLESPAS!$B$4:$C$207,2,FALSE),"") -> 8 | BE71: =IF(AP71="","",AP71) -> HELICO | BG71: =IFERROR(VLOOKUP(BE71,TOUSLESPAS!$B$4:$C$207,2,FALSE),"") -> 8 | BJ71: =CONCATENATE(SUMIF(BM71,"<>")+SUMIF(BP71,"<>")+SUMIF(BS71,"<>")+SUMIF(BV71,"<>")+SUMIF(BM73,"<>")+SUMIF(BP73,"<>")+SUMIF(BS73,"<>")+SUMIF(BV73,"<>")," temps") -> 32 temps | BK71: =IF(AV71="","",AV71) -> COURSE | BM71: =IFERROR(VLOOKUP(BK71,TOUSLESPAS!$B$4:$C$207,2,FALSE),"") -> 4 | BN71: =IF(AY71="","",AY71) -> COURSE | BP71: =IFERROR(VLOOKUP(BN71,TOUSLESPAS!$B$4:$C$207,2,FALSE),"") -> 4 | BQ71: =IF(BB71="","",BB71) -> CHARLESTON | BS71: =IFERROR(VLOOKUP(BQ71,TOUSLESPAS!$B$4:$C$207,2,FALSE),"") -> 8 | BT71: =IF(BE71="","",BE71) -> HELICO | BV71: =IFERROR(VLOOKUP(BT71,TOUSLESPAS!$B$4:$C$207,2,FALSE),"") -> 8 | BY71: =CONCATENATE(SUMIF(CB71,"<>")+SUMIF(CE71,"<>")+SUMIF(CH71,"<>")+SUMIF(CK71,"<>")+SUMIF(CB73,"<>")+SUMIF(CE73,"<>")+SUMIF(CH73,"<>")+SUMIF(CK73,"<>")," temps") -> 32 temps | BZ71: =IF(BK71="","",BK71) -> COURSE | CB71: =IFERROR(VLOOKUP(BZ71,TOUSLESPAS!$B$4:$C$207,2,FALSE),"") -> 4 | CC71: =IF(BN71="","",BN71) -> COURSE | CE71: =IFERROR(VLOOKUP(CC71,TOUSLESPAS!$B$4:$C$207,2,FALSE),"") -> 4 | CF71: =IF(BQ71="","",BQ71) -> CHARLESTON | CH71: =IFERROR(VLOOKUP(CF71,TOUSLESPAS!$B$4:$C$207,2,FALSE),"") -> 8 | CI71: =IF(BT71="","",BT71) -> HELICO | CK71: =IFERROR(VLOOKUP(CI71,TOUSLESPAS!$B$4:$C$207,2,FALSE),"") -> 8 | CN71: =CONCATENATE(SUMIF(CQ71,"<>")+SUMIF(CT71,"<>")+SUMIF(CW71,"<>")+SUMIF(CZ71,"<>")+SUMIF(CQ73,"<>")+SUMIF(CT73,"<>")+SUMIF(CW73,"<>")+SUMIF(CZ73,"<>")," temps") -> 32 temps | CO71: =IF(BZ71="","",BZ71) -> COURSE | CQ71: =IFERROR(VLOOKUP(CO71,TOUSLESPAS!$B$4:$C$207,2,FALSE),"") -> 4 | CR71: =IF(CC71="","",CC71) -> COURSE | CT71: =IFERROR(VLOOKUP(CR71,TOUSLESPAS!$B$4:$C$207,2,FALSE),"") -> 4 | CU71: =IF(CF71="","",CF71) -> CHARLESTON | CW71: =IFERROR(VLOOKUP(CU71,TOUSLESPAS!$B$4:$C$207,2,FALSE),"") -> 8 | CX71: =IF(CI71="","",CI71) -> HELICO | CZ71: =IFERROR(VLOOKUP(CX71,TOUSLESPAS!$B$4:$C$207,2,FALSE),"") -> 8 | DC71: =CONCATENATE(SUMIF(DF71,"<>")+SUMIF(DI71,"<>")+SUMIF(DL71,"<>")+SUMIF(DO71,"<>")+SUMIF(DF73,"<>")+SUMIF(DI73,"<>")+SUMIF(DL73,"<>")+SUMIF(DO73,"<>")," temps") -> 32 temps | DD71: =IF(CO71="","",CO71) -> COURSE | DF71: =IFERROR(VLOOKUP(DD71,TOUSLESPAS!$B$4:$C$207,2,FALSE),"") -> 4 | DG71: =IF(CR71="","",CR71) -> COURSE | DI71: =IFERROR(VLOOKUP(DG71,TOUSLESPAS!$B$4:$C$207,2,FALSE),"") -> 4 | DJ71: =IF(CU71="","",CU71) -> CHARLESTON | DL71: =IFERROR(VLOOKUP(DJ71,TOUSLESPAS!$B$4:$C$207,2,FALSE),"") -> 8 | DM71: =IF(CX71="","",CX71) -> HELICO | DO71: =IFERROR(VLOOKUP(DM71,TOUSLESPAS!$B$4:$C$207,2,FALSE),"") -> 8 | DR71: =CONCATENATE(SUMIF(DU71,"<>")+SUMIF(DX71,"<>")+SUMIF(EA71,"<>")+SUMIF(ED71,"<>")+SUMIF(DU73,"<>")+SUMIF(DX73,"<>")+SUMIF(EA73,"<>")+SUMIF(ED73,"<>")," temps") -> 32 temps | DS71: =IF(DD71="","",DD71) -> COURSE | DU71: =IFERROR(VLOOKUP(DS71,TOUSLESPAS!$B$4:$C$207,2,FALSE),"") -> 4 | DV71: =IF(DG71="","",DG71) -> COURSE | DX71: =IFERROR(VLOOKUP(DV71,TOUSLESPAS!$B$4:$C$207,2,FALSE),"") -> 4 | DY71: =IF(DJ71="","",DJ71) -> CHARLESTON | EA71: =IFERROR(VLOOKUP(DY71,TOUSLESPAS!$B$4:$C$207,2,FALSE),"") -> 8 | EB71: =IF(DM71="","",DM71) -> HELICO | ED71: =IFERROR(VLOOKUP(EB71,TOUSLESPAS!$B$4:$C$207,2,FALSE),"") -> 8 | EG71: =CONCATENATE(SUMIF(EJ71,"<>")+SUMIF(EM71,"<>")+SUMIF(EP71,"<>")+SUMIF(ES71,"<>")+SUMIF(EJ73,"<>")+SUMIF(EM73,"<>")+SUMIF(EP73,"<>")+SUMIF(ES73,"<>")," temps") -> 32 temps | EH71: =IF(DS71="","",DS71) -> COURSE | EJ71: =IFERROR(VLOOKUP(EH71,TOUSLESPAS!$B$4:$C$207,2,FALSE),"") -> 4 | EK71: =IF(DV71="","",DV71) -> COURSE | EM71: =IFERROR(VLOOKUP(EK71,TOUSLESPAS!$B$4:$C$207,2,FALSE),"") -> 4 | EN71: =IF(DY71="","",DY71) -> CHARLESTON | EP71: =IFERROR(VLOOKUP(EN71,TOUSLESPAS!$B$4:$C$207,2,FALSE),"") -> 8 | EQ71: =IF(EB71="","",EB71) -> HELICO | ES71: =IFERROR(VLOOKUP(EQ71,TOUSLESPAS!$B$4:$C$207,2,FALSE),"") -> 8
C73: SQUAT | E73: =IFERROR(VLOOKUP(C73,TOUSLESPAS!$B$4:$C$207,2,FALSE),"") -> 4 | F73: SQUAT | H73: =IFERROR(VLOOKUP(F73,TOUSLESPAS!$B$4:$C$207,2,FALSE),"") -> 4 | K73: =IFERROR(VLOOKUP(I73,TOUSLESPAS!$B$4:$C$207,2,FALSE),"") ->  | N73: =IFERROR(VLOOKUP(L73,TOUSLESPAS!$B$4:$C$207,2,FALSE),"") ->  | R73: =IF(C73="","",C73) -> SQUAT | T73: =IFERROR(VLOOKUP(R73,TOUSLESPAS!$B$4:$C$207,2,FALSE),"") -> 4 | U73: =IF(F73="","",F73) -> SQUAT | W73: =IFERROR(VLOOKUP(U73,TOUSLESPAS!$B$4:$C$207,2,FALSE),"") -> 4 | X73: =IF(I73="","",I73) ->  | Z73: =IFERROR(VLOOKUP(X73,TOUSLESPAS!$B$4:$C$207,2,FALSE),"") ->  | AA73: =IF(L73="","",L73) ->  | AC73: =IFERROR(VLOOKUP(AA73,TOUSLESPAS!$B$4:$C$207,2,FALSE),"") ->  | AG73: =IF(R73="","",R73) -> SQUAT | AI73: =IFERROR(VLOOKUP(AG73,TOUSLESPAS!$B$4:$C$207,2,FALSE),"") -> 4 | AJ73: =IF(U73="","",U73) -> SQUAT | AL73: =IFERROR(VLOOKUP(AJ73,TOUSLESPAS!$B$4:$C$207,2,FALSE),"") -> 4 | AM73: =IF(X73="","",X73) ->  | AO73: =IFERROR(VLOOKUP(AM73,TOUSLESPAS!$B$4:$C$207,2,FALSE),"") ->  | AP73: =IF(AA73="","",AA73) ->  | AR73: =IFERROR(VLOOKUP(AP73,TOUSLESPAS!$B$4:$C$207,2,FALSE),"") ->  | AV73: =IF(AG73="","",AG73) -> SQUAT | AX73: =IFERROR(VLOOKUP(AV73,TOUSLESPAS!$B$4:$C$207,2,FALSE),"") -> 4 | AY73: =IF(AJ73="","",AJ73) -> SQUAT | BA73: =IFERROR(VLOOKUP(AY73,TOUSLESPAS!$B$4:$C$207,2,FALSE),"") -> 4 | BB73: =IF(AM73="","",AM73) ->  | BD73: =IFERROR(VLOOKUP(BB73,TOUSLESPAS!$B$4:$C$207,2,FALSE),"") ->  | BE73: =IF(AP73="","",AP73) ->  | BG73: =IFERROR(VLOOKUP(BE73,TOUSLESPAS!$B$4:$C$207,2,FALSE),"") ->  | BK73: =IF(AV73="","",AV73) -> SQUAT | BM73: =IFERROR(VLOOKUP(BK73,TOUSLESPAS!$B$4:$C$207,2,FALSE),"") -> 4 | BN73: =IF(AY73="","",AY73) -> SQUAT | BP73: =IFERROR(VLOOKUP(BN73,TOUSLESPAS!$B$4:$C$207,2,FALSE),"") -> 4 | BQ73: =IF(BB73="","",BB73) ->  | BS73: =IFERROR(VLOOKUP(BQ73,TOUSLESPAS!$B$4:$C$207,2,FALSE),"") ->  | BT73: =IF(BE73="","",BE73) ->  | BV73: =IFERROR(VLOOKUP(BT73,TOUSLESPAS!$B$4:$C$207,2,FALSE),"") ->  | BZ73: =IF(BK73="","",BK73) -> SQUAT | CB73: =IFERROR(VLOOKUP(BZ73,TOUSLESPAS!$B$4:$C$207,2,FALSE),"") -> 4 | CC73: =IF(BN73="","",BN73) -> SQUAT | CE73: =IFERROR(VLOOKUP(CC73,TOUSLESPAS!$B$4:$C$207,2,FALSE),"") -> 4 | CF73: =IF(BQ73="","",BQ73) ->  | CH73: =IFERROR(VLOOKUP(CF73,TOUSLESPAS!$B$4:$C$207,2,FALSE),"") ->  | CI73: =IF(BT73="","",BT73) ->  | CK73: =IFERROR(VLOOKUP(CI73,TOUSLESPAS!$B$4:$C$207,2,FALSE),"") ->  | CO73: =IF(BZ73="","",BZ73) -> SQUAT | CQ73: =IFERROR(VLOOKUP(CO73,TOUSLESPAS!$B$4:$C$207,2,FALSE),"") -> 4 | CR73: =IF(CC73="","",CC73) -> SQUAT | CT73: =IFERROR(VLOOKUP(CR73,TOUSLESPAS!$B$4:$C$207,2,FALSE),"") -> 4 | CU73: =IF(CF73="","",CF73) ->  | CW73: =IFERROR(VLOOKUP(CU73,TOUSLESPAS!$B$4:$C$207,2,FALSE),"") ->  | CX73: =IF(CI73="","",CI73) ->  | CZ73: =IFERROR(VLOOKUP(CX73,TOUSLESPAS!$B$4:$C$207,2,FALSE),"") ->  | DD73: =IF(CO73="","",CO73) -> SQUAT | DF73: =IFERROR(VLOOKUP(DD73,TOUSLESPAS!$B$4:$C$207,2,FALSE),"") -> 4 | DG73: =IF(CR73="","",CR73) -> SQUAT | DI73: =IFERROR(VLOOKUP(DG73,TOUSLESPAS!$B$4:$C$207,2,FALSE),"") -> 4 | DJ73: =IF(CU73="","",CU73) ->  | DL73: =IFERROR(VLOOKUP(DJ73,TOUSLESPAS!$B$4:$C$207,2,FALSE),"") ->  | DM73: =IF(CX73="","",CX73) ->  | DO73: =IFERROR(VLOOKUP(DM73,TOUSLESPAS!$B$4:$C$207,2,FALSE),"") ->  | DS73: =IF(DD73="","",DD73) -> SQUAT | DU73: =IFERROR(VLOOKUP(DS73,TOUSLESPAS!$B$4:$C$207,2,FALSE),"") -> 4 | DV73: =IF(DG73="","",DG73) -> SQUAT | DX73: =IFERROR(VLOOKUP(DV73,TOUSLESPAS!$B$4:$C$207,2,FALSE),"") -> 4 | DY73: =IF(DJ73="","",DJ73) ->  | EA73: =IFERROR(VLOOKUP(DY73,TOUSLESPAS!$B$4:$C$207,2,FALSE),"") ->  | EB73: =IF(DM73="","",DM73) ->  | ED73: =IFERROR(VLOOKUP(EB73,TOUSLESPAS!$B$4:$C$207,2,FALSE),"") ->  | EH73: =IF(DS73="","",DS73) -> SQUAT | EJ73: =IFERROR(VLOOKUP(EH73,TOUSLESPAS!$B$4:$C$207,2,FALSE),"") -> 4 | EK73: =IF(DV73="","",DV73) -> SQUAT | EM73: =IFERROR(VLOOKUP(EK73,TOUSLESPAS!$B$4:$C$207,2,FALSE),"") -> 4 | EN73: =IF(DY73="","",DY73) ->  | EP73: =IFERROR(VLOOKUP(EN73,TOUSLESPAS!$B$4:$C$207,2,FALSE),"") ->  | EQ73: =IF(EB73="","",EB73) ->  | ES73: =IFERROR(VLOOKUP(EQ73,TOUSLESPAS!$B$4:$C$207,2,FALSE),"") -> 
A75: BLOC 3 | B75: =CONCATENATE(SUMIF(E75,"<>")+SUMIF(H75,"<>")+SUMIF(K75,"<>")+SUMIF(N75,"<>")+SUMIF(E77,"<>")+SUMIF(H77,"<>")+SUMIF(K77,"<>")+SUMIF(N77,"<>")," temps") -> 0 temps | E75: =IFERROR(VLOOKUP(C75,TOUSLESPAS!$B$4:$C$207,2,FALSE),"") ->  | H75: =IFERROR(VLOOKUP(F75,TOUSLESPAS!$B$4:$C$207,2,FALSE),"") ->  | K75: =IFERROR(VLOOKUP(I75,TOUSLESPAS!$B$4:$C$207,2,FALSE),"") ->  | N75: =IFERROR(VLOOKUP(L75,TOUSLESPAS!$B$4:$C$207,2,FALSE),"") ->  | Q75: =CONCATENATE(SUMIF(T75,"<>")+SUMIF(W75,"<>")+SUMIF(Z75,"<>")+SUMIF(AC75,"<>")+SUMIF(T77,"<>")+SUMIF(W77,"<>")+SUMIF(Z77,"<>")+SUMIF(AC77,"<>")," temps") -> 0 temps | R75: =IF(C75="","",C75) ->  | T75: =IFERROR(VLOOKUP(R75,TOUSLESPAS!$B$4:$C$207,2,FALSE),"") ->  | U75: =IF(F75="","",F75) ->  | W75: =IFERROR(VLOOKUP(U75,TOUSLESPAS!$B$4:$C$207,2,FALSE),"") ->  | X75: =IF(I75="","",I75) ->  | Z75: =IFERROR(VLOOKUP(X75,TOUSLESPAS!$B$4:$C$207,2,FALSE),"") ->  | AA75: =IF(L75="","",L75) ->  | AC75: =IFERROR(VLOOKUP(AA75,TOUSLESPAS!$B$4:$C$207,2,FALSE),"") ->  | AF75: =CONCATENATE(SUMIF(AI75,"<>")+SUMIF(AL75,"<>")+SUMIF(AO75,"<>")+SUMIF(AR75,"<>")+SUMIF(AI77,"<>")+SUMIF(AL77,"<>")+SUMIF(AO77,"<>")+SUMIF(AR77,"<>")," temps") -> 0 temps | AG75: =IF(R75="","",R75) ->  | AI75: =IFERROR(VLOOKUP(AG75,TOUSLESPAS!$B$4:$C$207,2,FALSE),"") ->  | AJ75: =IF(U75="","",U75) ->  | AL75: =IFERROR(VLOOKUP(AJ75,TOUSLESPAS!$B$4:$C$207,2,FALSE),"") ->  | AM75: =IF(X75="","",X75) ->  | AO75: =IFERROR(VLOOKUP(AM75,TOUSLESPAS!$B$4:$C$207,2,FALSE),"") ->  | AP75: =IF(AA75="","",AA75) ->  | AR75: =IFERROR(VLOOKUP(AP75,TOUSLESPAS!$B$4:$C$207,2,FALSE),"") ->  | AU75: =CONCATENATE(SUMIF(AX75,"<>")+SUMIF(BA75,"<>")+SUMIF(BD75,"<>")+SUMIF(BG75,"<>")+SUMIF(AX77,"<>")+SUMIF(BA77,"<>")+SUMIF(BD77,"<>")+SUMIF(BG77,"<>")," temps") -> 0 temps | AV75: =IF(AG75="","",AG75) ->  | AX75: =IFERROR(VLOOKUP(AV75,TOUSLESPAS!$B$4:$C$207,2,FALSE),"") ->  | AY75: =IF(AJ75="","",AJ75) ->  | BA75: =IFERROR(VLOOKUP(AY75,TOUSLESPAS!$B$4:$C$207,2,FALSE),"") ->  | BB75: =IF(AM75="","",AM75) ->  | BD75: =IFERROR(VLOOKUP(BB75,TOUSLESPAS!$B$4:$C$207,2,FALSE),"") ->  | BE75: =IF(AP75="","",AP75) ->  | BG75: =IFERROR(VLOOKUP(BE75,TOUSLESPAS!$B$4:$C$207,2,FALSE),"") ->  | BJ75: =CONCATENATE(SUMIF(BM75,"<>")+SUMIF(BP75,"<>")+SUMIF(BS75,"<>")+SUMIF(BV75,"<>")+SUMIF(BM77,"<>")+SUMIF(BP77,"<>")+SUMIF(BS77,"<>")+SUMIF(BV77,"<>")," temps") -> 0 temps | BK75: =IF(AV75="","",AV75) ->  | BM75: =IFERROR(VLOOKUP(BK75,TOUSLESPAS!$B$4:$C$207,2,FALSE),"") ->  | BN75: =IF(AY75="","",AY75) ->  | BP75: =IFERROR(VLOOKUP(BN75,TOUSLESPAS!$B$4:$C$207,2,FALSE),"") ->  | BQ75: =IF(BB75="","",BB75) ->  | BS75: =IFERROR(VLOOKUP(BQ75,TOUSLESPAS!$B$4:$C$207,2,FALSE),"") ->  | BT75: =IF(BE75="","",BE75) ->  | BV75: =IFERROR(VLOOKUP(BT75,TOUSLESPAS!$B$4:$C$207,2,FALSE),"") ->  | BY75: =CONCATENATE(SUMIF(CB75,"<>")+SUMIF(CE75,"<>")+SUMIF(CH75,"<>")+SUMIF(CK75,"<>")+SUMIF(CB77,"<>")+SUMIF(CE77,"<>")+SUMIF(CH77,"<>")+SUMIF(CK77,"<>")," temps") -> 0 temps | BZ75: =IF(BK75="","",BK75) ->  | CB75: =IFERROR(VLOOKUP(BZ75,TOUSLESPAS!$B$4:$C$207,2,FALSE),"") ->  | CC75: =IF(BN75="","",BN75) ->  | CE75: =IFERROR(VLOOKUP(CC75,TOUSLESPAS!$B$4:$C$207,2,FALSE),"") ->  | CF75: =IF(BQ75="","",BQ75) ->  | CH75: =IFERROR(VLOOKUP(CF75,TOUSLESPAS!$B$4:$C$207,2,FALSE),"") ->  | CI75: =IF(BT75="","",BT75) ->  | CK75: =IFERROR(VLOOKUP(CI75,TOUSLESPAS!$B$4:$C$207,2,FALSE),"") ->  | CN75: =CONCATENATE(SUMIF(CQ75,"<>")+SUMIF(CT75,"<>")+SUMIF(CW75,"<>")+SUMIF(CZ75,"<>")+SUMIF(CQ77,"<>")+SUMIF(CT77,"<>")+SUMIF(CW77,"<>")+SUMIF(CZ77,"<>")," temps") -> 0 temps | CO75: =IF(BZ75="","",BZ75) ->  | CQ75: =IFERROR(VLOOKUP(CO75,TOUSLESPAS!$B$4:$C$207,2,FALSE),"") ->  | CR75: =IF(CC75="","",CC75) ->  | CT75: =IFERROR(VLOOKUP(CR75,TOUSLESPAS!$B$4:$C$207,2,FALSE),"") ->  | CU75: =IF(CF75="","",CF75) ->  | CW75: =IFERROR(VLOOKUP(CU75,TOUSLESPAS!$B$4:$C$207,2,FALSE),"") ->  | CX75: =IF(CI75="","",CI75) ->  | CZ75: =IFERROR(VLOOKUP(CX75,TOUSLESPAS!$B$4:$C$207,2,FALSE),"") ->  | DC75: =CONCATENATE(SUMIF(DF75,"<>")+SUMIF(DI75,"<>")+SUMIF(DL75,"<>")+SUMIF(DO75,"<>")+SUMIF(DF77,"<>")+SUMIF(DI77,"<>")+SUMIF(DL77,"<>")+SUMIF(DO77,"<>")," temps") -> 0 temps | DD75: =IF(CO75="","",CO75) ->  | DF75: =IFERROR(VLOOKUP(DD75,TOUSLESPAS!$B$4:$C$207,2,FALSE),"") ->  | DG75: =IF(CR75="","",CR75) ->  | DI75: =IFERROR(VLOOKUP(DG75,TOUSLESPAS!$B$4:$C$207,2,FALSE),"") ->  | DJ75: =IF(CU75="","",CU75) ->  | DL75: =IFERROR(VLOOKUP(DJ75,TOUSLESPAS!$B$4:$C$207,2,FALSE),"") ->  | DM75: =IF(CX75="","",CX75) ->  | DO75: =IFERROR(VLOOKUP(DM75,TOUSLESPAS!$B$4:$C$207,2,FALSE),"") ->  | DR75: =CONCATENATE(SUMIF(DU75,"<>")+SUMIF(DX75,"<>")+SUMIF(EA75,"<>")+SUMIF(ED75,"<>")+SUMIF(DU77,"<>")+SUMIF(DX77,"<>")+SUMIF(EA77,"<>")+SUMIF(ED77,"<>")," temps") -> 0 temps | DS75: =IF(DD75="","",DD75) ->  | DU75: =IFERROR(VLOOKUP(DS75,TOUSLESPAS!$B$4:$C$207,2,FALSE),"") ->  | DV75: =IF(DG75="","",DG75) ->  | DX75: =IFERROR(VLOOKUP(DV75,TOUSLESPAS!$B$4:$C$207,2,FALSE),"") ->  | DY75: =IF(DJ75="","",DJ75) ->  | EA75: =IFERROR(VLOOKUP(DY75,TOUSLESPAS!$B$4:$C$207,2,FALSE),"") ->  | EB75: =IF(DM75="","",DM75) ->  | ED75: =IFERROR(VLOOKUP(EB75,TOUSLESPAS!$B$4:$C$207,2,FALSE),"") ->  | EG75: =CONCATENATE(SUMIF(EJ75,"<>")+SUMIF(EM75,"<>")+SUMIF(EP75,"<>")+SUMIF(ES75,"<>")+SUMIF(EJ77,"<>")+SUMIF(EM77,"<>")+SUMIF(EP77,"<>")+SUMIF(ES77,"<>")," temps") -> 0 temps | EH75: =IF(DS75="","",DS75) ->  | EJ75: =IFERROR(VLOOKUP(EH75,TOUSLESPAS!$B$4:$C$207,2,FALSE),"") ->  | EK75: =IF(DV75="","",DV75) ->  | EM75: =IFERROR(VLOOKUP(EK75,TOUSLESPAS!$B$4:$C$207,2,FALSE),"") ->  | EN75: =IF(DY75="","",DY75) ->  | EP75: =IFERROR(VLOOKUP(EN75,TOUSLESPAS!$B$4:$C$207,2,FALSE),"") ->  | EQ75: =IF(EB75="","",EB75) ->  | ES75: =IFERROR(VLOOKUP(EQ75,TOUSLESPAS!$B$4:$C$207,2,FALSE),"") -> 
E77: =IFERROR(VLOOKUP(C77,TOUSLESPAS!$B$4:$C$207,2,FALSE),"") ->  | H77: =IFERROR(VLOOKUP(F77,TOUSLESPAS!$B$4:$C$207,2,FALSE),"") ->  | K77: =IFERROR(VLOOKUP(I77,TOUSLESPAS!$B$4:$C$207,2,FALSE),"") ->  | N77: =IFERROR(VLOOKUP(L77,TOUSLESPAS!$B$4:$C$207,2,FALSE),"") ->  | R77: =IF(C77="","",C77) ->  | T77: =IFERROR(VLOOKUP(R77,TOUSLESPAS!$B$4:$C$207,2,FALSE),"") ->  | U77: =IF(F77="","",F77) ->  | W77: =IFERROR(VLOOKUP(U77,TOUSLESPAS!$B$4:$C$207,2,FALSE),"") ->  | X77: =IF(I77="","",I77) ->  | Z77: =IFERROR(VLOOKUP(X77,TOUSLESPAS!$B$4:$C$207,2,FALSE),"") ->  | AA77: =IF(L77="","",L77) ->  | AC77: =IFERROR(VLOOKUP(AA77,TOUSLESPAS!$B$4:$C$207,2,FALSE),"") ->  | AG77: =IF(R77="","",R77) ->  | AI77: =IFERROR(VLOOKUP(AG77,TOUSLESPAS!$B$4:$C$207,2,FALSE),"") ->  | AJ77: =IF(U77="","",U77) ->  | AL77: =IFERROR(VLOOKUP(AJ77,TOUSLESPAS!$B$4:$C$207,2,FALSE),"") ->  | AM77: =IF(X77="","",X77) ->  | AO77: =IFERROR(VLOOKUP(AM77,TOUSLESPAS!$B$4:$C$207,2,FALSE),"") ->  | AP77: =IF(AA77="","",AA77) ->  | AR77: =IFERROR(VLOOKUP(AP77,TOUSLESPAS!$B$4:$C$207,2,FALSE),"") ->  | AV77: =IF(AG77="","",AG77) ->  | AX77: =IFERROR(VLOOKUP(AV77,TOUSLESPAS!$B$4:$C$207,2,FALSE),"") ->  | AY77: =IF(AJ77="","",AJ77) ->  | BA77: =IFERROR(VLOOKUP(AY77,TOUSLESPAS!$B$4:$C$207,2,FALSE),"") ->  | BB77: =IF(AM77="","",AM77) ->  | BD77: =IFERROR(VLOOKUP(BB77,TOUSLESPAS!$B$4:$C$207,2,FALSE),"") ->  | BE77: =IF(AP77="","",AP77) ->  | BG77: =IFERROR(VLOOKUP(BE77,TOUSLESPAS!$B$4:$C$207,2,FALSE),"") ->  | BK77: =IF(AV77="","",AV77) ->  | BM77: =IFERROR(VLOOKUP(BK77,TOUSLESPAS!$B$4:$C$207,2,FALSE),"") ->  | BN77: =IF(AY77="","",AY77) ->  | BP77: =IFERROR(VLOOKUP(BN77,TOUSLESPAS!$B$4:$C$207,2,FALSE),"") ->  | BQ77: =IF(BB77="","",BB77) ->  | BS77: =IFERROR(VLOOKUP(BQ77,TOUSLESPAS!$B$4:$C$207,2,FALSE),"") ->  | BT77: =IF(BE77="","",BE77) ->  | BV77: =IFERROR(VLOOKUP(BT77,TOUSLESPAS!$B$4:$C$207,2,FALSE),"") ->  | BZ77: =IF(BK77="","",BK77) ->  | CB77: =IFERROR(VLOOKUP(BZ77,TOUSLESPAS!$B$4:$C$207,2,FALSE),"") ->  | CC77: =IF(BN77="","",BN77) ->  | CE77: =IFERROR(VLOOKUP(CC77,TOUSLESPAS!$B$4:$C$207,2,FALSE),"") ->  | CF77: =IF(BQ77="","",BQ77) ->  | CH77: =IFERROR(VLOOKUP(CF77,TOUSLESPAS!$B$4:$C$207,2,FALSE),"") ->  | CI77: =IF(BT77="","",BT77) ->  | CK77: =IFERROR(VLOOKUP(CI77,TOUSLESPAS!$B$4:$C$207,2,FALSE),"") ->  | CO77: =IF(BZ77="","",BZ77) ->  | CQ77: =IFERROR(VLOOKUP(CO77,TOUSLESPAS!$B$4:$C$207,2,FALSE),"") ->  | CR77: =IF(CC77="","",CC77) ->  | CT77: =IFERROR(VLOOKUP(CR77,TOUSLESPAS!$B$4:$C$207,2,FALSE),"") ->  | CU77: =IF(CF77="","",CF77) ->  | CW77: =IFERROR(VLOOKUP(CU77,TOUSLESPAS!$B$4:$C$207,2,FALSE),"") ->  | CX77: =IF(CI77="","",CI77) ->  | CZ77: =IFERROR(VLOOKUP(CX77,TOUSLESPAS!$B$4:$C$207,2,FALSE),"") ->  | DD77: =IF(CO77="","",CO77) ->  | DF77: =IFERROR(VLOOKUP(DD77,TOUSLESPAS!$B$4:$C$207,2,FALSE),"") ->  | DG77: =IF(CR77="","",CR77) ->  | DI77: =IFERROR(VLOOKUP(DG77,TOUSLESPAS!$B$4:$C$207,2,FALSE),"") ->  | DJ77: =IF(CU77="","",CU77) ->  | DL77: =IFERROR(VLOOKUP(DJ77,TOUSLESPAS!$B$4:$C$207,2,FALSE),"") ->  | DM77: =IF(CX77="","",CX77) ->  | DO77: =IFERROR(VLOOKUP(DM77,TOUSLESPAS!$B$4:$C$207,2,FALSE),"") ->  | DS77: =IF(DD77="","",DD77) ->  | DU77: =IFERROR(VLOOKUP(DS77,TOUSLESPAS!$B$4:$C$207,2,FALSE),"") ->  | DV77: =IF(DG77="","",DG77) ->  | DX77: =IFERROR(VLOOKUP(DV77,TOUSLESPAS!$B$4:$C$207,2,FALSE),"") ->  | DY77: =IF(DJ77="","",DJ77) ->  | EA77: =IFERROR(VLOOKUP(DY77,TOUSLESPAS!$B$4:$C$207,2,FALSE),"") ->  | EB77: =IF(DM77="","",DM77) ->  | ED77: =IFERROR(VLOOKUP(EB77,TOUSLESPAS!$B$4:$C$207,2,FALSE),"") ->  | EH77: =IF(DS77="","",DS77) ->  | EJ77: =IFERROR(VLOOKUP(EH77,TOUSLESPAS!$B$4:$C$207,2,FALSE),"") ->  | EK77: =IF(DV77="","",DV77) ->  | EM77: =IFERROR(VLOOKUP(EK77,TOUSLESPAS!$B$4:$C$207,2,FALSE),"") ->  | EN77: =IF(DY77="","",DY77) ->  | EP77: =IFERROR(VLOOKUP(EN77,TOUSLESPAS!$B$4:$C$207,2,FALSE),"") ->  | EQ77: =IF(EB77="","",EB77) ->  | ES77: =IFERROR(VLOOKUP(EQ77,TOUSLESPAS!$B$4:$C$207,2,FALSE),"") -> 
A79: BLOC 4 | B79: =CONCATENATE(SUMIF(E79,"<>")+SUMIF(H79,"<>")+SUMIF(K79,"<>")+SUMIF(N79,"<>")+SUMIF(E81,"<>")+SUMIF(H81,"<>")+SUMIF(K81,"<>")+SUMIF(N81,"<>")," temps") -> 0 temps | E79: =IFERROR(VLOOKUP(C79,TOUSLESPAS!$B$4:$C$207,2,FALSE),"") ->  | H79: =IFERROR(VLOOKUP(F79,TOUSLESPAS!$B$4:$C$207,2,FALSE),"") ->  | K79: =IFERROR(VLOOKUP(I79,TOUSLESPAS!$B$4:$C$207,2,FALSE),"") ->  | N79: =IFERROR(VLOOKUP(L79,TOUSLESPAS!$B$4:$C$207,2,FALSE),"") ->  | Q79: =CONCATENATE(SUMIF(T79,"<>")+SUMIF(W79,"<>")+SUMIF(Z79,"<>")+SUMIF(AC79,"<>")+SUMIF(T81,"<>")+SUMIF(W81,"<>")+SUMIF(Z81,"<>")+SUMIF(AC81,"<>")," temps") -> 0 temps | R79: =IF(C79="","",C79) ->  | T79: =IFERROR(VLOOKUP(R79,TOUSLESPAS!$B$4:$C$207,2,FALSE),"") ->  | U79: =IF(F79="","",F79) ->  | W79: =IFERROR(VLOOKUP(U79,TOUSLESPAS!$B$4:$C$207,2,FALSE),"") ->  | X79: =IF(I79="","",I79) ->  | Z79: =IFERROR(VLOOKUP(X79,TOUSLESPAS!$B$4:$C$207,2,FALSE),"") ->  | AA79: =IF(L79="","",L79) ->  | AC79: =IFERROR(VLOOKUP(AA79,TOUSLESPAS!$B$4:$C$207,2,FALSE),"") ->  | AF79: =CONCATENATE(SUMIF(AI79,"<>")+SUMIF(AL79,"<>")+SUMIF(AO79,"<>")+SUMIF(AR79,"<>")+SUMIF(AI81,"<>")+SUMIF(AL81,"<>")+SUMIF(AO81,"<>")+SUMIF(AR81,"<>")," temps") -> 0 temps | AG79: =IF(R79="","",R79) ->  | AI79: =IFERROR(VLOOKUP(AG79,TOUSLESPAS!$B$4:$C$207,2,FALSE),"") ->  | AJ79: =IF(U79="","",U79) ->  | AL79: =IFERROR(VLOOKUP(AJ79,TOUSLESPAS!$B$4:$C$207,2,FALSE),"") ->  | AM79: =IF(X79="","",X79) ->  | AO79: =IFERROR(VLOOKUP(AM79,TOUSLESPAS!$B$4:$C$207,2,FALSE),"") ->  | AP79: =IF(AA79="","",AA79) ->  | AR79: =IFERROR(VLOOKUP(AP79,TOUSLESPAS!$B$4:$C$207,2,FALSE),"") ->  | AU79: =CONCATENATE(SUMIF(AX79,"<>")+SUMIF(BA79,"<>")+SUMIF(BD79,"<>")+SUMIF(BG79,"<>")+SUMIF(AX81,"<>")+SUMIF(BA81,"<>")+SUMIF(BD81,"<>")+SUMIF(BG81,"<>")," temps") -> 0 temps | AV79: =IF(AG79="","",AG79) ->  | AX79: =IFERROR(VLOOKUP(AV79,TOUSLESPAS!$B$4:$C$207,2,FALSE),"") ->  | AY79: =IF(AJ79="","",AJ79) ->  | BA79: =IFERROR(VLOOKUP(AY79,TOUSLESPAS!$B$4:$C$207,2,FALSE),"") ->  | BB79: =IF(AM79="","",AM79) ->  | BD79: =IFERROR(VLOOKUP(BB79,TOUSLESPAS!$B$4:$C$207,2,FALSE),"") ->  | BE79: =IF(AP79="","",AP79) ->  | BG79: =IFERROR(VLOOKUP(BE79,TOUSLESPAS!$B$4:$C$207,2,FALSE),"") ->  | BJ79: =CONCATENATE(SUMIF(BM79,"<>")+SUMIF(BP79,"<>")+SUMIF(BS79,"<>")+SUMIF(BV79,"<>")+SUMIF(BM81,"<>")+SUMIF(BP81,"<>")+SUMIF(BS81,"<>")+SUMIF(BV81,"<>")," temps") -> 0 temps | BK79: =IF(AV79="","",AV79) ->  | BM79: =IFERROR(VLOOKUP(BK79,TOUSLESPAS!$B$4:$C$207,2,FALSE),"") ->  | BN79: =IF(AY79="","",AY79) ->  | BP79: =IFERROR(VLOOKUP(BN79,TOUSLESPAS!$B$4:$C$207,2,FALSE),"") ->  | BQ79: =IF(BB79="","",BB79) ->  | BS79: =IFERROR(VLOOKUP(BQ79,TOUSLESPAS!$B$4:$C$207,2,FALSE),"") ->  | BT79: =IF(BE79="","",BE79) ->  | BV79: =IFERROR(VLOOKUP(BT79,TOUSLESPAS!$B$4:$C$207,2,FALSE),"") ->  | BY79: =CONCATENATE(SUMIF(CB79,"<>")+SUMIF(CE79,"<>")+SUMIF(CH79,"<>")+SUMIF(CK79,"<>")+SUMIF(CB81,"<>")+SUMIF(CE81,"<>")+SUMIF(CH81,"<>")+SUMIF(CK81,"<>")," temps") -> 0 temps | BZ79: =IF(BK79="","",BK79) ->  | CB79: =IFERROR(VLOOKUP(BZ79,TOUSLESPAS!$B$4:$C$207,2,FALSE),"") ->  | CC79: =IF(BN79="","",BN79) ->  | CE79: =IFERROR(VLOOKUP(CC79,TOUSLESPAS!$B$4:$C$207,2,FALSE),"") ->  | CF79: =IF(BQ79="","",BQ79) ->  | CH79: =IFERROR(VLOOKUP(CF79,TOUSLESPAS!$B$4:$C$207,2,FALSE),"") ->  | CI79: =IF(BT79="","",BT79) ->  | CK79: =IFERROR(VLOOKUP(CI79,TOUSLESPAS!$B$4:$C$207,2,FALSE),"") ->  | CN79: =CONCATENATE(SUMIF(CQ79,"<>")+SUMIF(CT79,"<>")+SUMIF(CW79,"<>")+SUMIF(CZ79,"<>")+SUMIF(CQ81,"<>")+SUMIF(CT81,"<>")+SUMIF(CW81,"<>")+SUMIF(CZ81,"<>")," temps") -> 0 temps | CO79: =IF(BZ79="","",BZ79) ->  | CQ79: =IFERROR(VLOOKUP(CO79,TOUSLESPAS!$B$4:$C$207,2,FALSE),"") ->  | CR79: =IF(CC79="","",CC79) ->  | CT79: =IFERROR(VLOOKUP(CR79,TOUSLESPAS!$B$4:$C$207,2,FALSE),"") ->  | CU79: =IF(CF79="","",CF79) ->  | CW79: =IFERROR(VLOOKUP(CU79,TOUSLESPAS!$B$4:$C$207,2,FALSE),"") ->  | CX79: =IF(CI79="","",CI79) ->  | CZ79: =IFERROR(VLOOKUP(CX79,TOUSLESPAS!$B$4:$C$207,2,FALSE),"") ->  | DC79: =CONCATENATE(SUMIF(DF79,"<>")+SUMIF(DI79,"<>")+SUMIF(DL79,"<>")+SUMIF(DO79,"<>")+SUMIF(DF81,"<>")+SUMIF(DI81,"<>")+SUMIF(DL81,"<>")+SUMIF(DO81,"<>")," temps") -> 0 temps | DD79: =IF(CO79="","",CO79) ->  | DF79: =IFERROR(VLOOKUP(DD79,TOUSLESPAS!$B$4:$C$207,2,FALSE),"") ->  | DG79: =IF(CR79="","",CR79) ->  | DI79: =IFERROR(VLOOKUP(DG79,TOUSLESPAS!$B$4:$C$207,2,FALSE),"") ->  | DJ79: =IF(CU79="","",CU79) ->  | DL79: =IFERROR(VLOOKUP(DJ79,TOUSLESPAS!$B$4:$C$207,2,FALSE),"") ->  | DM79: =IF(CX79="","",CX79) ->  | DO79: =IFERROR(VLOOKUP(DM79,TOUSLESPAS!$B$4:$C$207,2,FALSE),"") ->  | DR79: =CONCATENATE(SUMIF(DU79,"<>")+SUMIF(DX79,"<>")+SUMIF(EA79,"<>")+SUMIF(ED79,"<>")+SUMIF(DU81,"<>")+SUMIF(DX81,"<>")+SUMIF(EA81,"<>")+SUMIF(ED81,"<>")," temps") -> 0 temps | DS79: =IF(DD79="","",DD79) ->  | DU79: =IFERROR(VLOOKUP(DS79,TOUSLESPAS!$B$4:$C$207,2,FALSE),"") ->  | DV79: =IF(DG79="","",DG79) ->  | DX79: =IFERROR(VLOOKUP(DV79,TOUSLESPAS!$B$4:$C$207,2,FALSE),"") ->  | DY79: =IF(DJ79="","",DJ79) ->  | EA79: =IFERROR(VLOOKUP(DY79,TOUSLESPAS!$B$4:$C$207,2,FALSE),"") ->  | EB79: =IF(DM79="","",DM79) ->  | ED79: =IFERROR(VLOOKUP(EB79,TOUSLESPAS!$B$4:$C$207,2,FALSE),"") ->  | EG79: =CONCATENATE(SUMIF(EJ79,"<>")+SUMIF(EM79,"<>")+SUMIF(EP79,"<>")+SUMIF(ES79,"<>")+SUMIF(EJ81,"<>")+SUMIF(EM81,"<>")+SUMIF(EP81,"<>")+SUMIF(ES81,"<>")," temps") -> 0 temps | EH79: =IF(DS79="","",DS79) ->  | EJ79: =IFERROR(VLOOKUP(EH79,TOUSLESPAS!$B$4:$C$207,2,FALSE),"") ->  | EK79: =IF(DV79="","",DV79) ->  | EM79: =IFERROR(VLOOKUP(EK79,TOUSLESPAS!$B$4:$C$207,2,FALSE),"") ->  | EN79: =IF(DY79="","",DY79) ->  | EP79: =IFERROR(VLOOKUP(EN79,TOUSLESPAS!$B$4:$C$207,2,FALSE),"") ->  | EQ79: =IF(EB79="","",EB79) ->  | ES79: =IFERROR(VLOOKUP(EQ79,TOUSLESPAS!$B$4:$C$207,2,FALSE),"") -> 
E81: =IFERROR(VLOOKUP(C81,TOUSLESPAS!$B$4:$C$207,2,FALSE),"") ->  | H81: =IFERROR(VLOOKUP(F81,TOUSLESPAS!$B$4:$C$207,2,FALSE),"") ->  | K81: =IFERROR(VLOOKUP(I81,TOUSLESPAS!$B$4:$C$207,2,FALSE),"") ->  | N81: =IFERROR(VLOOKUP(L81,TOUSLESPAS!$B$4:$C$207,2,FALSE),"") ->  | R81: =IF(C81="","",C81) ->  | T81: =IFERROR(VLOOKUP(R81,TOUSLESPAS!$B$4:$C$207,2,FALSE),"") ->  | U81: =IF(F81="","",F81) ->  | W81: =IFERROR(VLOOKUP(U81,TOUSLESPAS!$B$4:$C$207,2,FALSE),"") ->  | X81: =IF(I81="","",I81) ->  | Z81: =IFERROR(VLOOKUP(X81,TOUSLESPAS!$B$4:$C$207,2,FALSE),"") ->  | AA81: =IF(L81="","",L81) ->  | AC81: =IFERROR(VLOOKUP(AA81,TOUSLESPAS!$B$4:$C$207,2,FALSE),"") ->  | AG81: =IF(R81="","",R81) ->  | AI81: =IFERROR(VLOOKUP(AG81,TOUSLESPAS!$B$4:$C$207,2,FALSE),"") ->  | AJ81: =IF(U81="","",U81) ->  | AL81: =IFERROR(VLOOKUP(AJ81,TOUSLESPAS!$B$4:$C$207,2,FALSE),"") ->  | AM81: =IF(X81="","",X81) ->  | AO81: =IFERROR(VLOOKUP(AM81,TOUSLESPAS!$B$4:$C$207,2,FALSE),"") ->  | AP81: =IF(AA81="","",AA81) ->  | AR81: =IFERROR(VLOOKUP(AP81,TOUSLESPAS!$B$4:$C$207,2,FALSE),"") ->  | AV81: =IF(AG81="","",AG81) ->  | AX81: =IFERROR(VLOOKUP(AV81,TOUSLESPAS!$B$4:$C$207,2,FALSE),"") ->  | AY81: =IF(AJ81="","",AJ81) ->  | BA81: =IFERROR(VLOOKUP(AY81,TOUSLESPAS!$B$4:$C$207,2,FALSE),"") ->  | BB81: =IF(AM81="","",AM81) ->  | BD81: =IFERROR(VLOOKUP(BB81,TOUSLESPAS!$B$4:$C$207,2,FALSE),"") ->  | BE81: =IF(AP81="","",AP81) ->  | BG81: =IFERROR(VLOOKUP(BE81,TOUSLESPAS!$B$4:$C$207,2,FALSE),"") ->  | BK81: =IF(AV81="","",AV81) ->  | BM81: =IFERROR(VLOOKUP(BK81,TOUSLESPAS!$B$4:$C$207,2,FALSE),"") ->  | BN81: =IF(AY81="","",AY81) ->  | BP81: =IFERROR(VLOOKUP(BN81,TOUSLESPAS!$B$4:$C$207,2,FALSE),"") ->  | BQ81: =IF(BB81="","",BB81) ->  | BS81: =IFERROR(VLOOKUP(BQ81,TOUSLESPAS!$B$4:$C$207,2,FALSE),"") ->  | BT81: =IF(BE81="","",BE81) ->  | BV81: =IFERROR(VLOOKUP(BT81,TOUSLESPAS!$B$4:$C$207,2,FALSE),"") ->  | BZ81: =IF(BK81="","",BK81) ->  | CB81: =IFERROR(VLOOKUP(BZ81,TOUSLESPAS!$B$4:$C$207,2,FALSE),"") ->  | CC81: =IF(BN81="","",BN81) ->  | CE81: =IFERROR(VLOOKUP(CC81,TOUSLESPAS!$B$4:$C$207,2,FALSE),"") ->  | CF81: =IF(BQ81="","",BQ81) ->  | CH81: =IFERROR(VLOOKUP(CF81,TOUSLESPAS!$B$4:$C$207,2,FALSE),"") ->  | CI81: =IF(BT81="","",BT81) ->  | CK81: =IFERROR(VLOOKUP(CI81,TOUSLESPAS!$B$4:$C$207,2,FALSE),"") ->  | CO81: =IF(BZ81="","",BZ81) ->  | CQ81: =IFERROR(VLOOKUP(CO81,TOUSLESPAS!$B$4:$C$207,2,FALSE),"") ->  | CR81: =IF(CC81="","",CC81) ->  | CT81: =IFERROR(VLOOKUP(CR81,TOUSLESPAS!$B$4:$C$207,2,FALSE),"") ->  | CU81: =IF(CF81="","",CF81) ->  | CW81: =IFERROR(VLOOKUP(CU81,TOUSLESPAS!$B$4:$C$207,2,FALSE),"") ->  | CX81: =IF(CI81="","",CI81) ->  | CZ81: =IFERROR(VLOOKUP(CX81,TOUSLESPAS!$B$4:$C$207,2,FALSE),"") ->  | DD81: =IF(CO81="","",CO81) ->  | DF81: =IFERROR(VLOOKUP(DD81,TOUSLESPAS!$B$4:$C$207,2,FALSE),"") ->  | DG81: =IF(CR81="","",CR81) ->  | DI81: =IFERROR(VLOOKUP(DG81,TOUSLESPAS!$B$4:$C$207,2,FALSE),"") ->  | DJ81: =IF(CU81="","",CU81) ->  | DL81: =IFERROR(VLOOKUP(DJ81,TOUSLESPAS!$B$4:$C$207,2,FALSE),"") ->  | DM81: =IF(CX81="","",CX81) ->  | DO81: =IFERROR(VLOOKUP(DM81,TOUSLESPAS!$B$4:$C$207,2,FALSE),"") ->  | DS81: =IF(DD81="","",DD81) ->  | DU81: =IFERROR(VLOOKUP(DS81,TOUSLESPAS!$B$4:$C$207,2,FALSE),"") ->  | DV81: =IF(DG81="","",DG81) ->  | DX81: =IFERROR(VLOOKUP(DV81,TOUSLESPAS!$B$4:$C$207,2,FALSE),"") ->  | DY81: =IF(DJ81="","",DJ81) ->  | EA81: =IFERROR(VLOOKUP(DY81,TOUSLESPAS!$B$4:$C$207,2,FALSE),"") ->  | EB81: =IF(DM81="","",DM81) ->  | ED81: =IFERROR(VLOOKUP(EB81,TOUSLESPAS!$B$4:$C$207,2,FALSE),"") ->  | EH81: =IF(DS81="","",DS81) ->  | EJ81: =IFERROR(VLOOKUP(EH81,TOUSLESPAS!$B$4:$C$207,2,FALSE),"") ->  | EK81: =IF(DV81="","",DV81) ->  | EM81: =IFERROR(VLOOKUP(EK81,TOUSLESPAS!$B$4:$C$207,2,FALSE),"") ->  | EN81: =IF(DY81="","",DY81) ->  | EP81: =IFERROR(VLOOKUP(EN81,TOUSLESPAS!$B$4:$C$207,2,FALSE),"") ->  | EQ81: =IF(EB81="","",EB81) ->  | ES81: =IFERROR(VLOOKUP(EQ81,TOUSLESPAS!$B$4:$C$207,2,FALSE),"") -> 
A84: MUSIQUE CHOISIE | C84: Rihanna | R84: Rihanna | AG84: Rihanna | AV84: Rihanna | BK84: Rihanna | BZ84: Rihanna | CO84: Rihanna | DD84: Rihanna | DS84: Rihanna | EH84: Rihanna
B86: ANALYSE DE LA PRESTATION | Q86: ANALYSE DE LA PRESTATION | AF86: ANALYSE DE LA PRESTATION | AU86: ANALYSE DE LA PRESTATION | BJ86: ANALYSE DE LA PRESTATION | BY86: ANALYSE DE LA PRESTATION | CN86: ANALYSE DE LA PRESTATION | DC86: ANALYSE DE LA PRESTATION | DR86: ANALYSE DE LA PRESTATION | EG86: ANALYSE DE LA PRESTATION
A87: Ta prestation est-elle réussie ? Pourquoi ? (expression libre)
A88: Respiration | B88: Assez essoufflé | D88: =IF(D3="","",B$88) -> Assez essoufflé | F88: =IF(F3="","",B$88) -> Assez essoufflé | H88: =IF(H3="","",B$88) -> Assez essoufflé | J88: =IF(J3="","",B$88) -> Assez essoufflé | L88: =IF(L3="","",B$88) -> Assez essoufflé | Q88: Non essouflé | S88: =IF(S3="","",$Q$88) -> Non essouflé | U88: =IF(U3="","",$Q$88) -> Non essouflé | W88: =IF(W3="","",Q$88) -> Non essouflé | Y88: =IF(Y3="","",Q$88) -> Non essouflé | AA88: =IF(AA3="","",Q$88) -> Non essouflé | AF88: Non essouflé | AH88: =IF(AH3="","",AF$88) -> Non essouflé | AJ88: =IF(AJ3="","",AF$88) -> Non essouflé | AL88: =IF(AL3="","",AF$88) -> Non essouflé | AN88: =IF(AN3="","",AF$88) -> Non essouflé | AP88: =IF(AP3="","",AF$88) -> Non essouflé | AU88: Non essouflé | AW88: =IF(AW3="","",AU$88) -> Non essouflé | AY88: =IF(AY3="","",AU$88) -> Non essouflé | BA88: =IF(BA3="","",AU$88) -> Non essouflé | BC88: =IF(BC3="","",AU$88) -> Non essouflé | BE88: =IF(BE3="","",AU$88) -> Non essouflé | BJ88: Non essouflé | BL88: =IF(BL3="","",BJ$88) -> Non essouflé | BN88: =IF(BN3="","",BJ$88) -> Non essouflé | BP88: =IF(BP3="","",BJ$88) -> Non essouflé | BR88: =IF(BR3="","",BJ$88) -> Non essouflé | BT88: =IF(BT3="","",BJ$88) -> Non essouflé | BY88: Non essouflé | CA88: =IF(CA3="","",BY$88) -> Non essouflé | CC88: =IF(CC3="","",BY$88) -> Non essouflé | CE88: =IF(CE3="","",BY$88) -> Non essouflé | CG88: =IF(CG3="","",BY$88) -> Non essouflé | CI88: =IF(CI3="","",BY$88) -> Non essouflé | CN88: Non essouflé | CP88: =IF(CP3="","",CN$88) -> Non essouflé | CR88: =IF(CR3="","",CN$88) -> Non essouflé | CT88: =IF(CT3="","",CN$88) -> Non essouflé | CV88: =IF(CV3="","",CN$88) -> Non essouflé | CX88: =IF(CX3="","",CN$88) -> Non essouflé | DC88: Non essouflé | DE88: =IF(DE3="","",DC$88) -> Non essouflé | DG88: =IF(DG3="","",DC$88) -> Non essouflé | DI88: =IF(DI3="","",DC$88) -> Non essouflé | DK88: =IF(DK3="","",DC$88) -> Non essouflé | DM88: =IF(DM3="","",DC$88) -> Non essouflé | DR88: Non essouflé | DT88: =IF(DT3="","",DR$88) -> Non essouflé | DV88: =IF(DV3="","",DR$88) -> Non essouflé | DX88: =IF(DX3="","",DR$88) -> Non essouflé | DZ88: =IF(DZ3="","",DR$88) -> Non essouflé | EB88: =IF(EB3="","",DR$88) -> Non essouflé | EG88: Non essouflé | EI88: =IF(EI3="","",EG$88) -> Non essouflé | EK88: =IF(EK3="","",EG$88) -> Non essouflé | EM88: =IF(EM3="","",EG$88) -> Non essouflé | EO88: =IF(EO3="","",EG$88) -> Non essouflé | EQ88: =IF(EQ3="","",EG$88) -> Non essouflé
A89: Transpiration | B89: Aucune | D89: =IF(D3="","",B$89) -> Aucune | F89: =IF(F3="","",B$89) -> Aucune | H89: =IF(H3="","",B$89) -> Aucune | J89: =IF(J3="","",B$89) -> Aucune | L89: =IF(L3="","",B$89) -> Aucune | Q89: Aucune | S89: =IF(S3="","",$Q$89) -> Aucune | U89: =IF(U3="","",$Q$89) -> Aucune | W89: =IF(W3="","",Q$89) -> Aucune | Y89: =IF(Y3="","",Q$89) -> Aucune | AA89: =IF(AA3="","",Q$89) -> Aucune | AF89: Aucune | AH89: =IF(AH3="","",AF$89) -> Aucune | AJ89: =IF(AJ3="","",AF$89) -> Aucune | AL89: =IF(AL3="","",AF$89) -> Aucune | AN89: =IF(AN3="","",AF$89) -> Aucune | AP89: =IF(AP3="","",AF$89) -> Aucune | AU89: Aucune | AW89: =IF(AW3="","",AU$89) -> Aucune | AY89: =IF(AY3="","",AU$89) -> Aucune | BA89: =IF(BA3="","",AU$89) -> Aucune | BC89: =IF(BC3="","",AU$89) -> Aucune | BE89: =IF(BE3="","",AU$89) -> Aucune | BJ89: Aucune | BL89: =IF(BL3="","",BJ$89) -> Aucune | BN89: =IF(BN3="","",BJ$89) -> Aucune | BP89: =IF(BP3="","",BJ$89) -> Aucune | BR89: =IF(BR3="","",BJ$89) -> Aucune | BT89: =IF(BT3="","",BJ$89) -> Aucune | BY89: Aucune | CA89: =IF(CA3="","",BY$89) -> Aucune | CC89: =IF(CC3="","",BY$89) -> Aucune | CE89: =IF(CE3="","",BY$89) -> Aucune | CG89: =IF(CG3="","",BY$89) -> Aucune | CI89: =IF(CI3="","",BY$89) -> Aucune | CN89: Aucune | CP89: =IF(CP3="","",CN$89) -> Aucune | CR89: =IF(CR3="","",CN$89) -> Aucune | CT89: =IF(CT3="","",CN$89) -> Aucune | CV89: =IF(CV3="","",CN$89) -> Aucune | CX89: =IF(CX3="","",CN$89) -> Aucune | DC89: Aucune | DE89: =IF(DE3="","",DC$89) -> Aucune | DG89: =IF(DG3="","",DC$89) -> Aucune | DI89: =IF(DI3="","",DC$89) -> Aucune | DK89: =IF(DK3="","",DC$89) -> Aucune | DM89: =IF(DM3="","",DC$89) -> Aucune | DR89: Aucune | DT89: =IF(DT3="","",DR$89) -> Aucune | DV89: =IF(DV3="","",DR$89) -> Aucune | DX89: =IF(DX3="","",DR$89) -> Aucune | DZ89: =IF(DZ3="","",DR$89) -> Aucune | EB89: =IF(EB3="","",DR$89) -> Aucune | EG89: Aucune | EI89: =IF(EI3="","",EG$89) -> Aucune | EK89: =IF(EK3="","",EG$89) -> Aucune | EM89: =IF(EM3="","",EG$89) -> Aucune | EO89: =IF(EO3="","",EG$89) -> Aucune | EQ89: =IF(EQ3="","",EG$89) -> Aucune
A90: Perception Effort | B90: Très très léger | D90: =IF(D3="","",B$90) -> Très très léger | F90: =IF(F3="","",B$90) -> Très très léger | H90: =IF(H3="","",B$90) -> Très très léger | J90: =IF(J3="","",B$90) -> Très très léger | L90: =IF(L3="","",B$90) -> Très très léger | Q90: Très très léger | S90: =IF(S3="","",$Q$90) -> Très très léger | U90: =IF(U3="","",$Q$90) -> Très très léger | W90: =IF(W3="","",Q$90) -> Très très léger | Y90: =IF(Y3="","",Q$90) -> Très très léger | AA90: =IF(AA3="","",Q$90) -> Très très léger | AF90: Très très léger | AH90: =IF(AH3="","",AF$90) -> Très très léger | AJ90: =IF(AJ3="","",AF$90) -> Très très léger | AL90: =IF(AL3="","",AF$90) -> Très très léger | AN90: =IF(AN3="","",AF$90) -> Très très léger | AP90: =IF(AP3="","",AF$90) -> Très très léger | AU90: Très très léger | AW90: =IF(AW3="","",AU$90) -> Très très léger | AY90: =IF(AY3="","",AU$90) -> Très très léger | BA90: =IF(BA3="","",AU$90) -> Très très léger | BC90: =IF(BC3="","",AU$90) -> Très très léger | BE90: =IF(BE3="","",AU$90) -> Très très léger | BJ90: Très très léger | BL90: =IF(BL3="","",BJ$90) -> Très très léger | BN90: =IF(BN3="","",BJ$90) -> Très très léger | BP90: =IF(BP3="","",BJ$90) -> Très très léger | BR90: =IF(BR3="","",BJ$90) -> Très très léger | BT90: =IF(BT3="","",BJ$90) -> Très très léger | BY90: Très très léger | CA90: =IF(CA3="","",BY$90) -> Très très léger | CC90: =IF(CC3="","",BY$90) -> Très très léger | CE90: =IF(CE3="","",BY$90) -> Très très léger | CG90: =IF(CG3="","",BY$90) -> Très très léger | CI90: =IF(CI3="","",BY$90) -> Très très léger | CN90: Très très léger | CP90: =IF(CP3="","",CN$90) -> Très très léger | CR90: =IF(CR3="","",CN$90) -> Très très léger | CT90: =IF(CT3="","",CN$90) -> Très très léger | CV90: =IF(CV3="","",CN$90) -> Très très léger | CX90: =IF(CX3="","",CN$90) -> Très très léger | DC90: Très très léger | DE90: =IF(DE3="","",DC$90) -> Très très léger | DG90: =IF(DG3="","",DC$90) -> Très très léger | DI90: =IF(DI3="","",DC$90) -> Très très léger | DK90: =IF(DK3="","",DC$90) -> Très très léger | DM90: =IF(DM3="","",DC$90) -> Très très léger | DR90: Très très léger | DT90: =IF(DT3="","",DR$90) -> Très très léger | DV90: =IF(DV3="","",DR$90) -> Très très léger | DX90: =IF(DX3="","",DR$90) -> Très très léger | DZ90: =IF(DZ3="","",DR$90) -> Très très léger | EB90: =IF(EB3="","",DR$90) -> Très très léger | EG90: Très très léger | EI90: =IF(EI3="","",EG$90) -> Très très léger | EK90: =IF(EK3="","",EG$90) -> Très très léger | EM90: =IF(EM3="","",EG$90) -> Très très léger | EO90: =IF(EO3="","",EG$90) -> Très très léger | EQ90: =IF(EQ3="","",EG$90) -> Très très léger
A91: Fatigue | B91: Je suis obligé de faire des pauses | D91: =IF(D3="","",B$91) -> Je suis obligé de faire des pauses | F91: =IF(F3="","",B$91) -> Je suis obligé de faire des pauses | H91: =IF(H3="","",B$91) -> Je suis obligé de faire des pauses | J91: =IF(J3="","",B$91) -> Je suis obligé de faire des pauses | L91: =IF(L3="","",B$91) -> Je suis obligé de faire des pauses | Q91: Je suis obligé de faire des pauses | S91: =IF(S3="","",$Q$91) -> Je suis obligé de faire des pauses | U91: =IF(U3="","",$Q$91) -> Je suis obligé de faire des pauses | W91: =IF(W3="","",Q$91) -> Je suis obligé de faire des pauses | Y91: =IF(Y3="","",Q$91) -> Je suis obligé de faire des pauses | AA91: =IF(AA3="","",Q$91) -> Je suis obligé de faire des pauses | AF91: Je suis obligé de faire des pauses | AH91: =IF(AH3="","",AF$91) -> Je suis obligé de faire des pauses | AJ91: =IF(AJ3="","",AF$91) -> Je suis obligé de faire des pauses | AL91: =IF(AL3="","",AF$91) -> Je suis obligé de faire des pauses | AN91: =IF(AN3="","",AF$91) -> Je suis obligé de faire des pauses | AP91: =IF(AP3="","",AF$91) -> Je suis obligé de faire des pauses | AU91: Je suis obligé de faire des pauses | AW91: =IF(AW3="","",AU$91) -> Je suis obligé de faire des pauses | AY91: =IF(AY3="","",AU$91) -> Je suis obligé de faire des pauses | BA91: =IF(BA3="","",AU$91) -> Je suis obligé de faire des pauses | BC91: =IF(BC3="","",AU$91) -> Je suis obligé de faire des pauses | BE91: =IF(BE3="","",AU$91) -> Je suis obligé de faire des pauses | BJ91: Je suis obligé de faire des pauses | BL91: =IF(BL3="","",BJ$91) -> Je suis obligé de faire des pauses | BN91: =IF(BN3="","",BJ$91) -> Je suis obligé de faire des pauses | BP91: =IF(BP3="","",BJ$91) -> Je suis obligé de faire des pauses | BR91: =IF(BR3="","",BJ$91) -> Je suis obligé de faire des pauses | BT91: =IF(BT3="","",BJ$91) -> Je suis obligé de faire des pauses | BY91: Je suis obligé de faire des pauses | CA91: =IF(CA3="","",BY$91) -> Je suis obligé de faire des pauses | CC91: =IF(CC3="","",BY$91) -> Je suis obligé de faire des pauses | CE91: =IF(CE3="","",BY$91) -> Je suis obligé de faire des pauses | CG91: =IF(CG3="","",BY$91) -> Je suis obligé de faire des pauses | CI91: =IF(CI3="","",BY$91) -> Je suis obligé de faire des pauses | CN91: Je suis obligé de faire des pauses | CP91: =IF(CP3="","",CN$91) -> Je suis obligé de faire des pauses | CR91: =IF(CR3="","",CN$91) -> Je suis obligé de faire des pauses | CT91: =IF(CT3="","",CN$91) -> Je suis obligé de faire des pauses | CV91: =IF(CV3="","",CN$91) -> Je suis obligé de faire des pauses | CX91: =IF(CX3="","",CN$91) -> Je suis obligé de faire des pauses | DC91: Je suis obligé de faire des pauses | DE91: =IF(DE3="","",DC$91) -> Je suis obligé de faire des pauses | DG91: =IF(DG3="","",DC$91) -> Je suis obligé de faire des pauses | DI91: =IF(DI3="","",DC$91) -> Je suis obligé de faire des pauses | DK91: =IF(DK3="","",DC$91) -> Je suis obligé de faire des pauses | DM91: =IF(DM3="","",DC$91) -> Je suis obligé de faire des pauses | DR91: Je suis obligé de faire des pauses | DT91: =IF(DT3="","",DR$91) -> Je suis obligé de faire des pauses | DV91: =IF(DV3="","",DR$91) -> Je suis obligé de faire des pauses | DX91: =IF(DX3="","",DR$91) -> Je suis obligé de faire des pauses | DZ91: =IF(DZ3="","",DR$91) -> Je suis obligé de faire des pauses | EB91: =IF(EB3="","",DR$91) -> Je suis obligé de faire des pauses | EG91: Je suis obligé de faire des pauses | EI91: =IF(EI3="","",EG$91) -> Je suis obligé de faire des pauses | EK91: =IF(EK3="","",EG$91) -> Je suis obligé de faire des pauses | EM91: =IF(EM3="","",EG$91) -> Je suis obligé de faire des pauses | EO91: =IF(EO3="","",EG$91) -> Je suis obligé de faire des pauses | EQ91: =IF(EQ3="","",EG$91) -> Je suis obligé de faire des pauses
A92: Mémoire | B92: Beaucoup de trous | D92: =IF(D3="","",B$92) -> Beaucoup de trous | F92: =IF(F3="","",B$92) -> Beaucoup de trous | H92: =IF(H3="","",B$92) -> Beaucoup de trous | J92: =IF(J3="","",B$92) -> Beaucoup de trous | L92: =IF(L3="","",B$92) -> Beaucoup de trous | Q92: Beaucoup de trous | S92: =IF(S3="","",$Q$92) -> Beaucoup de trous | U92: =IF(U3="","",$Q$92) -> Beaucoup de trous | W92: =IF(W3="","",Q$92) -> Beaucoup de trous | Y92: =IF(Y3="","",Q$92) -> Beaucoup de trous | AA92: =IF(AA3="","",Q$92) -> Beaucoup de trous | AF92: Beaucoup de trous | AH92: =IF(AH3="","",AF$92) -> Beaucoup de trous | AJ92: =IF(AJ3="","",AF$92) -> Beaucoup de trous | AL92: =IF(AL3="","",AF$92) -> Beaucoup de trous | AN92: =IF(AN3="","",AF$92) -> Beaucoup de trous | AP92: =IF(AP3="","",AF$92) -> Beaucoup de trous | AU92: Beaucoup de trous | AW92: =IF(AW3="","",AU$92) -> Beaucoup de trous | AY92: =IF(AY3="","",AU$92) -> Beaucoup de trous | BA92: =IF(BA3="","",AU$92) -> Beaucoup de trous | BC92: =IF(BC3="","",AU$92) -> Beaucoup de trous | BE92: =IF(BE3="","",AU$92) -> Beaucoup de trous | BJ92: Beaucoup de trous | BL92: =IF(BL3="","",BJ$92) -> Beaucoup de trous | BN92: =IF(BN3="","",BJ$92) -> Beaucoup de trous | BP92: =IF(BP3="","",BJ$92) -> Beaucoup de trous | BR92: =IF(BR3="","",BJ$92) -> Beaucoup de trous | BT92: =IF(BT3="","",BJ$92) -> Beaucoup de trous | BY92: Beaucoup de trous | CA92: =IF(CA3="","",BY$92) -> Beaucoup de trous | CC92: =IF(CC3="","",BY$92) -> Beaucoup de trous | CE92: =IF(CE3="","",BY$92) -> Beaucoup de trous | CG92: =IF(CG3="","",BY$92) -> Beaucoup de trous | CI92: =IF(CI3="","",BY$92) -> Beaucoup de trous | CN92: Beaucoup de trous | CP92: =IF(CP3="","",CN$92) -> Beaucoup de trous | CR92: =IF(CR3="","",CN$92) -> Beaucoup de trous | CT92: =IF(CT3="","",CN$92) -> Beaucoup de trous | CV92: =IF(CV3="","",CN$92) -> Beaucoup de trous | CX92: =IF(CX3="","",CN$92) -> Beaucoup de trous | DC92: Beaucoup de trous | DE92: =IF(DE3="","",DC$92) -> Beaucoup de trous | DG92: =IF(DG3="","",DC$92) -> Beaucoup de trous | DI92: =IF(DI3="","",DC$92) -> Beaucoup de trous | DK92: =IF(DK3="","",DC$92) -> Beaucoup de trous | DM92: =IF(DM3="","",DC$92) -> Beaucoup de trous | DR92: Beaucoup de trous | DT92: =IF(DT3="","",DR$92) -> Beaucoup de trous | DV92: =IF(DV3="","",DR$92) -> Beaucoup de trous | DX92: =IF(DX3="","",DR$92) -> Beaucoup de trous | DZ92: =IF(DZ3="","",DR$92) -> Beaucoup de trous | EB92: =IF(EB3="","",DR$92) -> Beaucoup de trous | EG92: Beaucoup de trous | EI92: =IF(EI3="","",EG$92) -> Beaucoup de trous | EK92: =IF(EK3="","",EG$92) -> Beaucoup de trous | EM92: =IF(EM3="","",EG$92) -> Beaucoup de trous | EO92: =IF(EO3="","",EG$92) -> Beaucoup de trous | EQ92: =IF(EQ3="","",EG$92) -> Beaucoup de trous

Sheet CARNETSOLO
C1: SEANCE 1 | R1: SEANCE 2 | AG1: SEANCE 3 | AV1: SEANCE 4 | BK1: SEANCE 5 | BZ1: SEANCE 6 | CO1: SEANCE 7 | DD1: SEANCE 8 | DS1: SEANCE 9 | EH1: SEANCE 10
B2: TPROE | Q2: =$B$2 -> TPROE | AF2: =$B$2 -> TPROE | AU2: =$B$2 -> TPROE | BJ2: =$B$2 -> TPROE | BY2: =$B$2 -> TPROE | CN2: =$B$2 -> TPROE | DC2: =$B$2 -> TPROE | DR2: =$B$2 -> TPROE | EG2: =$B$2 -> TPROE
B3: Abdelwahid | D3: Nom du groupe | Q3: =$B$3 -> Abdelwahid | S3: =D3 -> Nom du groupe | AF3: =$B$3 -> Abdelwahid | AH3: =S3 -> Nom du groupe | AU3: =$B$3 -> Abdelwahid | AW3: =AH3 -> Nom du groupe | BJ3: =$B$3 -> Abdelwahid | BL3: Nom du groupe | BY3: =$B$3 -> Abdelwahid | CA3: =BL3 -> Nom du groupe | CN3: =$B$3 -> Abdelwahid | CP3: =CA3 -> Nom du groupe | DC3: =$B$3 -> Abdelwahid | DE3: =CP3 -> Nom du groupe | DR3: =$B$3 -> Abdelwahid | DT3: =DE3 -> Nom du groupe | EG3: =$B$3 -> Abdelwahid | EI3: =DT3 -> Nom du groupe
B4: FREQUENCE CARDIAQUE | Q4: FREQUENCE CARDIAQUE | AF4: FREQUENCE CARDIAQUE | AU4: FREQUENCE CARDIAQUE | BJ4: FREQUENCE CARDIAQUE | BY4: FREQUENCE CARDIAQUE | CN4: FREQUENCE CARDIAQUE | DC4: FREQUENCE CARDIAQUE | DR4: FREQUENCE CARDIAQUE | EG4: FREQUENCE CARDIAQUE
A5: FC AU REPOS | B5: 70 | C5: bpm | Q5: 70 | R5: bpm | AF5: 70 | AG5: bpm | AU5: 70 | AV5: bpm | BJ5: 70 | BK5: bpm | BY5: 70 | BZ5: bpm | CN5: 70 | CO5: bpm | DC5: 70 | DD5: bpm | DR5: 70 | DS5: bpm | EG5: 70 | EH5: bpm
A6: AGE | B6: 16 | C6: ans | Q6: =B6 -> 16 | R6: ans | AF6: =Q6 -> 16 | AG6: ans | AU6: =AF6 -> 16 | AV6: ans | BJ6: =AU6 -> 16 | BK6: ans | BY6: =BJ6 -> 16 | BZ6: ans | CN6: =BY6 -> 16 | CO6: ans | DC6: =CN6 -> 16 | DD6: ans | DR6: =DC6 -> 16 | DS6: ans | EG6: =DR6 -> 16 | EH6: ans
A7: FC max | B7: =220-B6 -> 204 | C7: bpm | Q7: =220-Q6 -> 204 | R7: bpm | AF7: =220-AF6 -> 204 | AG7: bpm | AU7: =220-AU6 -> 204 | AV7: bpm | BJ7: =220-BJ6 -> 204 | BK7: bpm | BY7: =220-BY6 -> 204 | BZ7: bpm | CN7: =220-CN6 -> 204 | CO7: bpm | DC7: =220-DC6 -> 204 | DD7: bpm | DR7: =220-DR6 -> 204 | DS7: bpm | EG7: =220-EG6 -> 204 | EH7: bpm
A8: FC Réserve | B8: =B7-B5 -> 134 | C8: bpm | Q8: =Q7-Q5 -> 134 | R8: bpm | AF8: =AF7-AF5 -> 134 | AG8: bpm | AU8: =AU7-AU5 -> 134 | AV8: bpm | BJ8: =BJ7-BJ5 -> 134 | BK8: bpm | BY8: =BY7-BY5 -> 134 | BZ8: bpm | CN8: =CN7-CN5 -> 134 | CO8: bpm | DC8: =DC7-DC5 -> 134 | DD8: bpm | DR8: =DR7-DR5 -> 134 | DS8: bpm | EG8: =EG7-EG5 -> 134 | EH8: bpm
A9: % Intensité travail choisi | B9: 85 | C9: % | Q9: 85 | R9: % | AF9: 85 | AG9: % | AU9: 85 | AV9: % | BJ9: 85 | BK9: % | BY9: 85 | BZ9: % | CN9: 85 | CO9: % | DC9: 85 | DD9: % | DR9: 85 | DS9: % | EG9: 85 | EH9: %
A10: FC ENTRAINEMENT | B10: =B8*B9/100 +B5 -> 183.9 | C10: bpm | Q10: =Q8*Q9/100 +Q5 -> 183.9 | R10: bpm | AF10: =AF8*AF9/100 +AF5 -> 183.9 | AG10: bpm | AU10: =AU8*AU9/100 +AU5 -> 183.9 | AV10: bpm | BJ10: =BJ8*BJ9/100 +BJ5 -> 183.9 | BK10: bpm | BY10: =BY8*BY9/100 +BY5 -> 183.9 | BZ10: bpm | CN10: =CN8*CN9/100 +CN5 -> 183.9 | CO10: bpm | DC10: =DC8*DC9/100 +DC5 -> 183.9 | DD10: bpm | DR10: =DR8*DR9/100 +DR5 -> 183.9 | DS10: bpm | EG10: =EG8*EG9/100 +EG5 -> 183.9 | EH10: bpm
B11: FC max = 226 - âge | E11: FC Réserve = FC max - FC repos | H11: FC Entrainement = FC Réserve x % intensité travail choisi + FC repos | Q11: FC max = 226 - âge | T11: FC Réserve = FC max - FC repos | W11: FC Entrainement = FC Réserve x % intensité travail choisi + FC repos | AF11: FC max = 226 - âge | AI11: FC Réserve = FC max - FC repos | AL11: FC Entrainement = FC Réserve x % intensité travail choisi + FC repos | AU11: FC max = 226 - âge | AX11: FC Réserve = FC max - FC repos | BA11: FC Entrainement = FC Réserve x % intensité travail choisi + FC repos | BJ11: FC max = 226 - âge | BM11: FC Réserve = FC max - FC repos | BP11: FC Entrainement = FC Réserve x % intensité travail choisi + FC repos | BY11: FC max = 226 - âge | CB11: FC Réserve = FC max - FC repos | CE11: FC Entrainement = FC Réserve x % intensité travail choisi + FC repos | CN11: FC max = 226 - âge | CQ11: FC Réserve = FC max - FC repos | CT11: FC Entrainement = FC Réserve x % intensité travail choisi + FC repos | DC11: FC max = 226 - âge | DF11: FC Réserve = FC max - FC repos | DI11: FC Entrainement = FC Réserve x % intensité travail choisi + FC repos | DR11: FC max = 226 - âge | DU11: FC Réserve = FC max - FC repos | DX11: FC Entrainement = FC Réserve x % intensité travail choisi + FC repos | EG11: FC max = 226 - âge | EJ11: FC Réserve = FC max - FC repos | EM11: FC Entrainement = FC Réserve x % intensité travail choisi + FC repos
B13: CHOIX DU MOBILE | Q13: CHOIX DU MOBILE | AF13: CHOIX DU MOBILE | AU13: CHOIX DU MOBILE | BJ13: CHOIX DU MOBILE | BY13: CHOIX DU MOBILE | CN13: CHOIX DU MOBILE | DC13: CHOIX DU MOBILE | DR13: CHOIX DU MOBILE | EG13: CHOIX DU MOBILE
A14: Choix du mobile | D14: Effort bref et intense | S14: Effort long et soutenu | AH14: Effort modéré et prolongé | AW14: Mobiles | BL14: Mobiles | CA14: Mobiles | CP14: Mobiles | DE14: Mobiles | DT14: Mobiles | EI14: Mobiles
A15: Temps de travail | D15: =VLOOKUP(D14,DEBUTSTEP!$V$4:$X$25,2,FALSE) -> 12 à 18' | S15: =VLOOKUP(S14,DEBUTSTEP!$V$4:$X$25,2,FALSE) -> 16 à 22' | AH15: =VLOOKUP(AH14,DEBUTSTEP!$V$4:$X$25,2,FALSE) -> 20 à 26' | AW15: =VLOOKUP(AW14,DEBUTSTEP!$V$4:$X$25,2,FALSE) -> Temps de travail | BL15: =VLOOKUP(BL14,DEBUTSTEP!$V$4:$X$25,2,FALSE) -> Temps de travail | CA15: =VLOOKUP(CA14,DEBUTSTEP!$V$4:$X$25,2,FALSE) -> Temps de travail | CP15: =VLOOKUP(CP14,DEBUTSTEP!$V$4:$X$25,2,FALSE) -> Temps de travail | DE15: =VLOOKUP(DE14,DEBUTSTEP!$V$4:$X$25,2,FALSE) -> Temps de travail | DT15: =VLOOKUP(DT14,DEBUTSTEP!$V$4:$X$25,2,FALSE) -> Temps de travail | EI15: =VLOOKUP(EI14,DEBUTSTEP!$V$4:$X$25,2,FALSE) -> Temps de travail
A17: Mobile | B17: Quel type d'effort ? | D17: 1 | G17: 2 | J17: 3 | Q17: Quel type d'effort ? | S17: 1 | V17: 2 | Y17: 3 | AF17: Quel type d'effort ? | AH17: 1 | AK17: 2 | AN17: 3 | AU17: Quel type d'effort ? | AW17: 1 | AZ17: 2 | BC17: 3 | BJ17: Quel type d'effort ? | BL17: 1 | BO17: 2 | BR17: 3 | BY17: Quel type d'effort ? | CA17: 1 | CD17: 2 | CG17: 3 | CN17: Quel type d'effort ? | CP17: 1 | CS17: 2 | CV17: 3 | DC17: Quel type d'effort ? | DE17: 1 | DH17: 2 | DK17: 3 | DR17: Quel type d'effort ? | DT17: 1 | DW17: 2 | DZ17: 3 | EG17: Quel type d'effort ? | EI17: 1 | EL17: 2 | EO17: 3
D18: Effort bref et intense | G18: Effort long et soutenu | J18: Effort modéré et prolongé | S18: Effort bref et intense | V18: Effort long et soutenu | Y18: Effort modéré et prolongé | AH18: Effort bref et intense | AK18: Effort long et soutenu | AN18: Effort modéré et prolongé | AW18: Effort bref et intense | AZ18: Effort long et soutenu | BC18: Effort modéré et prolongé | BL18: Effort bref et intense | BO18: Effort long et soutenu | BR18: Effort modéré et prolongé | CA18: Effort bref et intense | CD18: Effort long et soutenu | CG18: Effort modéré et prolongé | CP18: Effort bref et intense | CS18: Effort long et soutenu | CV18: Effort modéré et prolongé | DE18: Effort bref et intense | DH18: Effort long et soutenu | DK18: Effort modéré et prolongé | DT18: Effort bref et intense | DW18: Effort long et soutenu | DZ18: Effort modéré et prolongé | EI18: Effort bref et intense | EL18: Effort long et soutenu | EO18: Effort modéré et prolongé
A19: Filières énergétiques | B19: Quelles qualités développées ? | D19: =VLOOKUP($D$18,DEBUTSTEP!$V$4:$AG$22,7,FALSE) -> La puissance aérobie | G19: =VLOOKUP($G$18,DEBUTSTEP!$V$4:$AG$22,7,FALSE) -> La capacité aérobie | J19: =VLOOKUP($J$18,DEBUTSTEP!$V$4:$AG$22,7,FALSE) -> L’endurance fondamentale | Q19: Quelles qualités développées ? | S19: =VLOOKUP($D$18,DEBUTSTEP!$V$4:$AG$22,7,FALSE) -> La puissance aérobie | V19: =VLOOKUP($G$18,DEBUTSTEP!$V$4:$AG$22,7,FALSE) -> La capacité aérobie | Y19: =VLOOKUP($J$18,DEBUTSTEP!$V$4:$AG$22,7,FALSE) -> L’endurance fondamentale | AF19: Quelles qualités développées ? | AH19: =VLOOKUP($D$18,DEBUTSTEP!$V$4:$AG$22,7,FALSE) -> La puissance aérobie | AK19: =VLOOKUP($G$18,DEBUTSTEP!$V$4:$AG$22,7,FALSE) -> La capacité aérobie | AN19: =VLOOKUP($J$18,DEBUTSTEP!$V$4:$AG$22,7,FALSE) -> L’endurance fondamentale | AU19: Quelles qualités développées ? | AW19: =VLOOKUP($D$18,DEBUTSTEP!$V$4:$AG$22,7,FALSE) -> La puissance aérobie | AZ19: =VLOOKUP($G$18,DEBUTSTEP!$V$4:$AG$22,7,FALSE) -> La capacité aérobie | BC19: =VLOOKUP($J$18,DEBUTSTEP!$V$4:$AG$22,7,FALSE) -> L’endurance fondamentale | BJ19: Quelles qualités développées ? | BL19: =VLOOKUP($D$18,DEBUTSTEP!$V$4:$AG$22,7,FALSE) -> La puissance aérobie | BO19: =VLOOKUP($G$18,DEBUTSTEP!$V$4:$AG$22,7,FALSE) -> La capacité aérobie | BR19: =VLOOKUP($J$18,DEBUTSTEP!$V$4:$AG$22,7,FALSE) -> L’endurance fondamentale | BY19: Quelles qualités développées ? | CA19: =VLOOKUP($D$18,DEBUTSTEP!$V$4:$AG$22,7,FALSE) -> La puissance aérobie | CD19: =VLOOKUP($G$18,DEBUTSTEP!$V$4:$AG$22,7,FALSE) -> La capacité aérobie | CG19: =VLOOKUP($J$18,DEBUTSTEP!$V$4:$AG$22,7,FALSE) -> L’endurance fondamentale | CN19: Quelles qualités développées ? | CP19: =VLOOKUP($D$18,DEBUTSTEP!$V$4:$AG$22,7,FALSE) -> La puissance aérobie | CS19: =VLOOKUP($G$18,DEBUTSTEP!$V$4:$AG$22,7,FALSE) -> La capacité aérobie | CV19: =VLOOKUP($J$18,DEBUTSTEP!$V$4:$AG$22,7,FALSE) -> L’endurance fondamentale | DC19: Quelles qualités développées ? | DE19: =VLOOKUP($D$18,DEBUTSTEP!$V$4:$AG$22,7,FALSE) -> La puissance aérobie | DH19: =VLOOKUP($G$18,DEBUTSTEP!$V$4:$AG$22,7,FALSE) -> La capacité aérobie | DK19: =VLOOKUP($J$18,DEBUTSTEP!$V$4:$AG$22,7,FALSE) -> L’endurance fondamentale | DR19: Quelles qualités développées ? | DT19: =VLOOKUP($D$18,DEBUTSTEP!$V$4:$AG$22,7,FALSE) -> La puissance aérobie | DW19: =VLOOKUP($G$18,DEBUTSTEP!$V$4:$AG$22,7,FALSE) -> La capacité aérobie | DZ19: =VLOOKUP($J$18,DEBUTSTEP!$V$4:$AG$22,7,FALSE) -> L’endurance fondamentale | EG19: Quelles qualités développées ? | EI19: =VLOOKUP($D$18,DEBUTSTEP!$V$4:$AG$22,7,FALSE) -> La puissance aérobie | EL19: =VLOOKUP($G$18,DEBUTSTEP!$V$4:$AG$22,7,FALSE) -> La capacité aérobie | EO19: =VLOOKUP($J$18,DEBUTSTEP!$V$4:$AG$22,7,FALSE) -> L’endurance fondamentale
A20: FCE | D20: =VLOOKUP($D$18,DEBUTSTEP!$V$4:$AC$22,6,FALSE) -> >85% de FCR | G20: =VLOOKUP($G$18,DEBUTSTEP!$V$4:$AC$22,6,FALSE) -> 70 à 85% de FCR | J20: =VLOOKUP($J$18,DEBUTSTEP!$V$4:$AC$22,6,FALSE) -> 50 à 65% de FCR | S20: =VLOOKUP($D$18,DEBUTSTEP!$V$4:$AC$22,6,FALSE) -> >85% de FCR | V20: =VLOOKUP($G$18,DEBUTSTEP!$V$4:$AC$22,6,FALSE) -> 70 à 85% de FCR | Y20: =VLOOKUP($J$18,DEBUTSTEP!$V$4:$AC$22,6,FALSE) -> 50 à 65% de FCR | AH20: =VLOOKUP($D$18,DEBUTSTEP!$V$4:$AC$22,6,FALSE) -> >85% de FCR | AK20: =VLOOKUP($G$18,DEBUTSTEP!$V$4:$AC$22,6,FALSE) -> 70 à 85% de FCR | AN20: =VLOOKUP($J$18,DEBUTSTEP!$V$4:$AC$22,6,FALSE) -> 50 à 65% de FCR | AW20: =VLOOKUP($D$18,DEBUTSTEP!$V$4:$AC$22,6,FALSE) -> >85% de FCR | AZ20: =VLOOKUP($G$18,DEBUTSTEP!$V$4:$AC$22,6,FALSE) -> 70 à 85% de FCR | BC20: =VLOOKUP($J$18,DEBUTSTEP!$V$4:$AC$22,6,FALSE) -> 50 à 65% de FCR | BL20: =VLOOKUP($D$18,DEBUTSTEP!$V$4:$AC$22,6,FALSE) -> >85% de FCR | BO20: =VLOOKUP($G$18,DEBUTSTEP!$V$4:$AC$22,6,FALSE) -> 70 à 85% de FCR | BR20: =VLOOKUP($J$18,DEBUTSTEP!$V$4:$AC$22,6,FALSE) -> 50 à 65% de FCR | CA20: =VLOOKUP($D$18,DEBUTSTEP!$V$4:$AC$22,6,FALSE) -> >85% de FCR | CD20: =VLOOKUP($G$18,DEBUTSTEP!$V$4:$AC$22,6,FALSE) -> 70 à 85% de FCR | CG20: =VLOOKUP($J$18,DEBUTSTEP!$V$4:$AC$22,6,FALSE) -> 50 à 65% de FCR | CP20: =VLOOKUP($D$18,DEBUTSTEP!$V$4:$AC$22,6,FALSE) -> >85% de FCR | CS20: =VLOOKUP($G$18,DEBUTSTEP!$V$4:$AC$22,6,FALSE) -> 70 à 85% de FCR | CV20: =VLOOKUP($J$18,DEBUTSTEP!$V$4:$AC$22,6,FALSE) -> 50 à 65% de FCR | DE20: =VLOOKUP($D$18,DEBUTSTEP!$V$4:$AC$22,6,FALSE) -> >85% de FCR | DH20: =VLOOKUP($G$18,DEBUTSTEP!$V$4:$AC$22,6,FALSE) -> 70 à 85% de FCR | DK20: =VLOOKUP($J$18,DEBUTSTEP!$V$4:$AC$22,6,FALSE) -> 50 à 65% de FCR | DT20: =VLOOKUP($D$18,DEBUTSTEP!$V$4:$AC$22,6,FALSE) -> >85% de FCR | DW20: =VLOOKUP($G$18,DEBUTSTEP!$V$4:$AC$22,6,FALSE) -> 70 à 85% de FCR | DZ20: =VLOOKUP($J$18,DEBUTSTEP!$V$4:$AC$22,6,FALSE) -> 50 à 65% de FCR | EI20: =VLOOKUP($D$18,DEBUTSTEP!$V$4:$AC$22,6,FALSE) -> >85% de FCR | EL20: =VLOOKUP($G$18,DEBUTSTEP!$V$4:$AC$22,6,FALSE) -> 70 à 85% de FCR | EO20: =VLOOKUP($J$18,DEBUTSTEP!$V$4:$AC$22,6,FALSE) -> 50 à 65% de FCR
A21: Temps de travail | B21: Alterner temps de travail et récupération à une intenisté adaptée à l'objectif | D21: =VLOOKUP($D$18,DEBUTSTEP!$V$4:$AC$22,2,FALSE) -> 12 à 18' | G21: =VLOOKUP($G$18,DEBUTSTEP!$V$4:$AC$22,2,FALSE) -> 16 à 22' | J21: =VLOOKUP($J$18,DEBUTSTEP!$V$4:$AC$22,2,FALSE) -> 20 à 26' | Q21: Alterner temps de travail et récupération à une intenisté adaptée à l'objectif | S21: =VLOOKUP($D$18,DEBUTSTEP!$V$4:$AC$22,2,FALSE) -> 12 à 18' | V21: =VLOOKUP($G$18,DEBUTSTEP!$V$4:$AC$22,2,FALSE) -> 16 à 22' | Y21: =VLOOKUP($J$18,DEBUTSTEP!$V$4:$AC$22,2,FALSE) -> 20 à 26' | AF21: Alterner temps de travail et récupération à une intenisté adaptée à l'objectif | AH21: =VLOOKUP($D$18,DEBUTSTEP!$V$4:$AC$22,2,FALSE) -> 12 à 18' | AK21: =VLOOKUP($G$18,DEBUTSTEP!$V$4:$AC$22,2,FALSE) -> 16 à 22' | AN21: =VLOOKUP($J$18,DEBUTSTEP!$V$4:$AC$22,2,FALSE) -> 20 à 26' | AU21: Alterner temps de travail et récupération à une intenisté adaptée à l'objectif | AW21: =VLOOKUP($D$18,DEBUTSTEP!$V$4:$AC$22,2,FALSE) -> 12 à 18' | AZ21: =VLOOKUP($G$18,DEBUTSTEP!$V$4:$AC$22,2,FALSE) -> 16 à 22' | BC21: =VLOOKUP($J$18,DEBUTSTEP!$V$4:$AC$22,2,FALSE) -> 20 à 26' | BJ21: Alterner temps de travail et récupération à une intenisté adaptée à l'objectif | BL21: =VLOOKUP($D$18,DEBUTSTEP!$V$4:$AC$22,2,FALSE) -> 12 à 18' | BO21: =VLOOKUP($G$18,DEBUTSTEP!$V$4:$AC$22,2,FALSE) -> 16 à 22' | BR21: =VLOOKUP($J$18,DEBUTSTEP!$V$4:$AC$22,2,FALSE) -> 20 à 26' | BY21: Alterner temps de travail et récupération à une intenisté adaptée à l'objectif | CA21: =VLOOKUP($D$18,DEBUTSTEP!$V$4:$AC$22,2,FALSE) -> 12 à 18' | CD21: =VLOOKUP($G$18,DEBUTSTEP!$V$4:$AC$22,2,FALSE) -> 16 à 22' | CG21: =VLOOKUP($J$18,DEBUTSTEP!$V$4:$AC$22,2,FALSE) -> 20 à 26' | CN21: Alterner temps de travail et récupération à une intenisté adaptée à l'objectif | CP21: =VLOOKUP($D$18,DEBUTSTEP!$V$4:$AC$22,2,FALSE) -> 12 à 18' | CS21: =VLOOKUP($G$18,DEBUTSTEP!$V$4:$AC$22,2,FALSE) -> 16 à 22' | CV21: =VLOOKUP($J$18,DEBUTSTEP!$V$4:$AC$22,2,FALSE) -> 20 à 26' | DC21: Alterner temps de travail et récupération à une intenisté adaptée à l'objectif | DE21: =VLOOKUP($D$18,DEBUTSTEP!$V$4:$AC$22,2,FALSE) -> 12 à 18' | DH21: =VLOOKUP($G$18,DEBUTSTEP!$V$4:$AC$22,2,FALSE) -> 16 à 22' | DK21: =VLOOKUP($J$18,DEBUTSTEP!$V$4:$AC$22,2,FALSE) -> 20 à 26' | DR21: Alterner temps de travail et récupération à une intenisté adaptée à l'objectif | DT21: =VLOOKUP($D$18,DEBUTSTEP!$V$4:$AC$22,2,FALSE) -> 12 à 18' | DW21: =VLOOKUP($G$18,DEBUTSTEP!$V$4:$AC$22,2,FALSE) -> 16 à 22' | DZ21: =VLOOKUP($J$18,DEBUTSTEP!$V$4:$AC$22,2,FALSE) -> 20 à 26' | EG21: Alterner temps de travail et récupération à une intenisté adaptée à l'objectif | EI21: =VLOOKUP($D$18,DEBUTSTEP!$V$4:$AC$22,2,FALSE) -> 12 à 18' | EL21: =VLOOKUP($G$18,DEBUTSTEP!$V$4:$AC$22,2,FALSE) -> 16 à 22' | EO21: =VLOOKUP($J$18,DEBUTSTEP!$V$4:$AC$22,2,FALSE) -> 20 à 26'
A22: Séries | D22: =VLOOKUP($D$18,DEBUTSTEP!$V$4:$AC$22,3,FALSE) -> jusqu'à 4' | G22: =VLOOKUP($G$18,DEBUTSTEP!$V$4:$AC$22,3,FALSE) -> Au moins 3 séries | J22: =VLOOKUP($J$18,DEBUTSTEP!$V$4:$AC$22,3,FALSE) -> Au moins 3 séries | S22: =VLOOKUP($D$18,DEBUTSTEP!$V$4:$AC$22,3,FALSE) -> jusqu'à 4' | V22: =VLOOKUP($G$18,DEBUTSTEP!$V$4:$AC$22,3,FALSE) -> Au moins 3 séries | Y22: =VLOOKUP($J$18,DEBUTSTEP!$V$4:$AC$22,3,FALSE) -> Au moins 3 séries | AH22: =VLOOKUP($D$18,DEBUTSTEP!$V$4:$AC$22,3,FALSE) -> jusqu'à 4' | AK22: =VLOOKUP($G$18,DEBUTSTEP!$V$4:$AC$22,3,FALSE) -> Au moins 3 séries | AN22: =VLOOKUP($J$18,DEBUTSTEP!$V$4:$AC$22,3,FALSE) -> Au moins 3 séries | AW22: =VLOOKUP($D$18,DEBUTSTEP!$V$4:$AC$22,3,FALSE) -> jusqu'à 4' | AZ22: =VLOOKUP($G$18,DEBUTSTEP!$V$4:$AC$22,3,FALSE) -> Au moins 3 séries | BC22: =VLOOKUP($J$18,DEBUTSTEP!$V$4:$AC$22,3,FALSE) -> Au moins 3 séries | BL22: =VLOOKUP($D$18,DEBUTSTEP!$V$4:$AC$22,3,FALSE) -> jusqu'à 4' | BO22: =VLOOKUP($G$18,DEBUTSTEP!$V$4:$AC$22,3,FALSE) -> Au moins 3 séries | BR22: =VLOOKUP($J$18,DEBUTSTEP!$V$4:$AC$22,3,FALSE) -> Au moins 3 séries | CA22: =VLOOKUP($D$18,DEBUTSTEP!$V$4:$AC$22,3,FALSE) -> jusqu'à 4' | CD22: =VLOOKUP($G$18,DEBUTSTEP!$V$4:$AC$22,3,FALSE) -> Au moins 3 séries | CG22: =VLOOKUP($J$18,DEBUTSTEP!$V$4:$AC$22,3,FALSE) -> Au moins 3 séries | CP22: =VLOOKUP($D$18,DEBUTSTEP!$V$4:$AC$22,3,FALSE) -> jusqu'à 4' | CS22: =VLOOKUP($G$18,DEBUTSTEP!$V$4:$AC$22,3,FALSE) -> Au moins 3 séries | CV22: =VLOOKUP($J$18,DEBUTSTEP!$V$4:$AC$22,3,FALSE) -> Au moins 3 séries | DE22: =VLOOKUP($D$18,DEBUTSTEP!$V$4:$AC$22,3,FALSE) -> jusqu'à 4' | DH22: =VLOOKUP($G$18,DEBUTSTEP!$V$4:$AC$22,3,FALSE) -> Au moins 3 séries | DK22: =VLOOKUP($J$18,DEBUTSTEP!$V$4:$AC$22,3,FALSE) -> Au moins 3 séries | DT22: =VLOOKUP($D$18,DEBUTSTEP!$V$4:$AC$22,3,FALSE) -> jusqu'à 4' | DW22: =VLOOKUP($G$18,DEBUTSTEP!$V$4:$AC$22,3,FALSE) -> Au moins 3 séries | DZ22: =VLOOKUP($J$18,DEBUTSTEP!$V$4:$AC$22,3,FALSE) -> Au moins 3 séries | EI22: =VLOOKUP($D$18,DEBUTSTEP!$V$4:$AC$22,3,FALSE) -> jusqu'à 4' | EL22: =VLOOKUP($G$18,DEBUTSTEP!$V$4:$AC$22,3,FALSE) -> Au moins 3 séries | EO22: =VLOOKUP($J$18,DEBUTSTEP!$V$4:$AC$22,3,FALSE) -> Au moins 3 séries
A23: Repos | D23: =VLOOKUP($D$18,DEBUTSTEP!$V$4:$AC$22,4,FALSE) -> jusqu'à 4' | G23: =VLOOKUP($G$18,DEBUTSTEP!$V$4:$AC$22,4,FALSE) -> jusqu'à 4' | J23: =VLOOKUP($J$18,DEBUTSTEP!$V$4:$AC$22,4,FALSE) -> jusqu'à 5' | S23: =VLOOKUP($D$18,DEBUTSTEP!$V$4:$AC$22,4,FALSE) -> jusqu'à 4' | V23: =VLOOKUP($G$18,DEBUTSTEP!$V$4:$AC$22,4,FALSE) -> jusqu'à 4' | Y23: =VLOOKUP($J$18,DEBUTSTEP!$V$4:$AC$22,4,FALSE) -> jusqu'à 5' | AH23: =VLOOKUP($D$18,DEBUTSTEP!$V$4:$AC$22,4,FALSE) -> jusqu'à 4' | AK23: =VLOOKUP($G$18,DEBUTSTEP!$V$4:$AC$22,4,FALSE) -> jusqu'à 4' | AN23: =VLOOKUP($J$18,DEBUTSTEP!$V$4:$AC$22,4,FALSE) -> jusqu'à 5' | AW23: =VLOOKUP($D$18,DEBUTSTEP!$V$4:$AC$22,4,FALSE) -> jusqu'à 4' | AZ23: =VLOOKUP($G$18,DEBUTSTEP!$V$4:$AC$22,4,FALSE) -> jusqu'à 4' | BC23: =VLOOKUP($J$18,DEBUTSTEP!$V$4:$AC$22,4,FALSE) -> jusqu'à 5' | BL23: =VLOOKUP($D$18,DEBUTSTEP!$V$4:$AC$22,4,FALSE) -> jusqu'à 4' | BO23: =VLOOKUP($G$18,DEBUTSTEP!$V$4:$AC$22,4,FALSE) -> jusqu'à 4' | BR23: =VLOOKUP($J$18,DEBUTSTEP!$V$4:$AC$22,4,FALSE) -> jusqu'à 5' | CA23: =VLOOKUP($D$18,DEBUTSTEP!$V$4:$AC$22,4,FALSE) -> jusqu'à 4' | CD23: =VLOOKUP($G$18,DEBUTSTEP!$V$4:$AC$22,4,FALSE) -> jusqu'à 4' | CG23: =VLOOKUP($J$18,DEBUTSTEP!$V$4:$AC$22,4,FALSE) -> jusqu'à 5' | CP23: =VLOOKUP($D$18,DEBUTSTEP!$V$4:$AC$22,4,FALSE) -> jusqu'à 4' | CS23: =VLOOKUP($G$18,DEBUTSTEP!$V$4:$AC$22,4,FALSE) -> jusqu'à 4' | CV23: =VLOOKUP($J$18,DEBUTSTEP!$V$4:$AC$22,4,FALSE) -> jusqu'à 5' | DE23: =VLOOKUP($D$18,DEBUTSTEP!$V$4:$AC$22,4,FALSE) -> jusqu'à 4' | DH23: =VLOOKUP($G$18,DEBUTSTEP!$V$4:$AC$22,4,FALSE) -> jusqu'à 4' | DK23: =VLOOKUP($J$18,DEBUTSTEP!$V$4:$AC$22,4,FALSE) -> jusqu'à 5' | DT23: =VLOOKUP($D$18,DEBUTSTEP!$V$4:$AC$22,4,FALSE) -> jusqu'à 4' | DW23: =VLOOKUP($G$18,DEBUTSTEP!$V$4:$AC$22,4,FALSE) -> jusqu'à 4' | DZ23: =VLOOKUP($J$18,DEBUTSTEP!$V$4:$AC$22,4,FALSE) -> jusqu'à 5' | EI23: =VLOOKUP($D$18,DEBUTSTEP!$V$4:$AC$22,4,FALSE) -> jusqu'à 4' | EL23: =VLOOKUP($G$18,DEBUTSTEP!$V$4:$AC$22,4,FALSE) -> jusqu'à 4' | EO23: =VLOOKUP($J$18,DEBUTSTEP!$V$4:$AC$22,4,FALSE) -> jusqu'à 5'
A24: Indicateurs | B24: Repères sur mon activité | D24: =VLOOKUP(D18,DEBUTSTEP!$V$4:$AG$22,8,FALSE) -> FC s’approche progressivement du maximum - Ventilation fortement marquée et accélérée - Séries plutôt courtes - Motricité variée qui ne gêne pas l’engagement. - Paramètres, variateurs d’intensité, essentiellement d’ordre énergétique : sursauts, lests, hauteur du step, bras au-dessus des épaules. - Tempo > 135 bpm le plus souvent. | G24: =VLOOKUP(G18,DEBUTSTEP!$V$4:$AG$22,8,FALSE) -> FC élevée - Ventilation accentuée et rythmée sans gêne excessive - Séries à minima 3" - Coordination et dissociations présentes - Paramètres d’ordre énergétique : sursauts, bras au-dessus des épaules, lests, hauteur du step. - 130 bpm < tempo < 140 bpm. | J24: =VLOOKUP(J18,DEBUTSTEP!$V$4:$AG$22,8,FALSE) -> FC modérée - Aisance respiratoire - Séries longues et "à minima 3" - Temps de récupération minimisé - Motricité explorée de façon ambitieuse - Paramètres essentiellement d’ordre biomécanique : pas complexes, bras en dissociation, changement d'orientation, éléments réalisés à côté du step - Tempo le plus souvent proche de 130 bpm | Q24: Repères sur mon activité | S24: =VLOOKUP(S18,DEBUTSTEP!$V$4:$AG$22,8,FALSE) -> FC s’approche progressivement du maximum - Ventilation fortement marquée et accélérée - Séries plutôt courtes - Motricité variée qui ne gêne pas l’engagement. - Paramètres, variateurs d’intensité, essentiellement d’ordre énergétique : sursauts, lests, hauteur du step, bras au-dessus des épaules. - Tempo > 135 bpm le plus souvent. | V24: =VLOOKUP(V18,DEBUTSTEP!$V$4:$AG$22,8,FALSE) -> FC élevée - Ventilation accentuée et rythmée sans gêne excessive - Séries à minima 3" - Coordination et dissociations présentes - Paramètres d’ordre énergétique : sursauts, bras au-dessus des épaules, lests, hauteur du step. - 130 bpm < tempo < 140 bpm. | Y24: =VLOOKUP(Y18,DEBUTSTEP!$V$4:$AG$22,8,FALSE) -> FC modérée - Aisance respiratoire - Séries longues et "à minima 3" - Temps de récupération minimisé - Motricité explorée de façon ambitieuse - Paramètres essentiellement d’ordre biomécanique : pas complexes, bras en dissociation, changement d'orientation, éléments réalisés à côté du step - Tempo le plus souvent proche de 130 bpm | AF24: Repères sur mon activité | AH24: =VLOOKUP(AH18,DEBUTSTEP!$V$4:$AG$22,8,FALSE) -> FC s’approche progressivement du maximum - Ventilation fortement marquée et accélérée - Séries plutôt courtes - Motricité variée qui ne gêne pas l’engagement. - Paramètres, variateurs d’intensité, essentiellement d’ordre énergétique : sursauts, lests, hauteur du step, bras au-dessus des épaules. - Tempo > 135 bpm le plus souvent. | AK24: =VLOOKUP(AK18,DEBUTSTEP!$V$4:$AG$22,8,FALSE) -> FC élevée - Ventilation accentuée et rythmée sans gêne excessive - Séries à minima 3" - Coordination et dissociations présentes - Paramètres d’ordre énergétique : sursauts, bras au-dessus des épaules, lests, hauteur du step. - 130 bpm < tempo < 140 bpm. | AN24: =VLOOKUP(AN18,DEBUTSTEP!$V$4:$AG$22,8,FALSE) -> FC modérée - Aisance respiratoire - Séries longues et "à minima 3" - Temps de récupération minimisé - Motricité explorée de façon ambitieuse - Paramètres essentiellement d’ordre biomécanique : pas complexes, bras en dissociation, changement d'orientation, éléments réalisés à côté du step - Tempo le plus souvent proche de 130 bpm | AU24: Repères sur mon activité | AW24: =VLOOKUP(AW18,DEBUTSTEP!$V$4:$AG$22,8,FALSE) -> FC s’approche progressivement du maximum - Ventilation fortement marquée et accélérée - Séries plutôt courtes - Motricité variée qui ne gêne pas l’engagement. - Paramètres, variateurs d’intensité, essentiellement d’ordre énergétique : sursauts, lests, hauteur du step, bras au-dessus des épaules. - Tempo > 135 bpm le plus souvent. | AZ24: =VLOOKUP(AZ18,DEBUTSTEP!$V$4:$AG$22,8,FALSE) -> FC élevée - Ventilation accentuée et rythmée sans gêne excessive - Séries à minima 3" - Coordination et dissociations présentes - Paramètres d’ordre énergétique : sursauts, bras au-dessus des épaules, lests, hauteur du step. - 130 bpm < tempo < 140 bpm. | BC24: =VLOOKUP(BC18,DEBUTSTEP!$V$4:$AG$22,8,FALSE) -> FC modérée - Aisance respiratoire - Séries longues et "à minima 3" - Temps de récupération minimisé - Motricité explorée de façon ambitieuse - Paramètres essentiellement d’ordre biomécanique : pas complexes, bras en dissociation, changement d'orientation, éléments réalisés à côté du step - Tempo le plus souvent proche de 130 bpm | BJ24: Repères sur mon activité | BL24: =VLOOKUP(BL18,DEBUTSTEP!$V$4:$AG$22,8,FALSE) -> FC s’approche progressivement du maximum - Ventilation fortement marquée et accélérée - Séries plutôt courtes - Motricité variée qui ne gêne pas l’engagement. - Paramètres, variateurs d’intensité, essentiellement d’ordre énergétique : sursauts, lests, hauteur du step, bras au-dessus des épaules. - Tempo > 135 bpm le plus souvent. | BO24: =VLOOKUP(BO18,DEBUTSTEP!$V$4:$AG$22,8,FALSE) -> FC élevée - Ventilation accentuée et rythmée sans gêne excessive - Séries à minima 3" - Coordination et dissociations présentes - Paramètres d’ordre énergétique : sursauts, bras au-dessus des épaules, lests, hauteur du step. - 130 bpm < tempo < 140 bpm. | BR24: =VLOOKUP(BR18,DEBUTSTEP!$V$4:$AG$22,8,FALSE) -> FC modérée - Aisance respiratoire - Séries longues et "à minima 3" - Temps de récupération minimisé - Motricité explorée de façon ambitieuse - Paramètres essentiellement d’ordre biomécanique : pas complexes, bras en dissociation, changement d'orientation, éléments réalisés à côté du step - Tempo le plus souvent proche de 130 bpm | BY24: Repères sur mon activité | CA24: =VLOOKUP(CA18,DEBUTSTEP!$V$4:$AG$22,8,FALSE) -> FC s’approche progressivement du maximum - Ventilation fortement marquée et accélérée - Séries plutôt courtes - Motricité variée qui ne gêne pas l’engagement. - Paramètres, variateurs d’intensité, essentiellement d’ordre énergétique : sursauts, lests, hauteur du step, bras au-dessus des épaules. - Tempo > 135 bpm le plus souvent. | CD24: =VLOOKUP(CD18,DEBUTSTEP!$V$4:$AG$22,8,FALSE) -> FC élevée - Ventilation accentuée et rythmée sans gêne excessive - Séries à minima 3" - Coordination et dissociations présentes - Paramètres d’ordre énergétique : sursauts, bras au-dessus des épaules, lests, hauteur du step. - 130 bpm < tempo < 140 bpm. | CG24: =VLOOKUP(CG18,DEBUTSTEP!$V$4:$AG$22,8,FALSE) -> FC modérée - Aisance respiratoire - Séries longues et "à minima 3" - Temps de récupération minimisé - Motricité explorée de façon ambitieuse - Paramètres essentiellement d’ordre biomécanique : pas complexes, bras en dissociation, changement d'orientation, éléments réalisés à côté du step - Tempo le plus souvent proche de 130 bpm | CN24: Repères sur mon activité | CP24: =VLOOKUP(CP18,DEBUTSTEP!$V$4:$AG$22,8,FALSE) -> FC s’approche progressivement du maximum - Ventilation fortement marquée et accélérée - Séries plutôt courtes - Motricité variée qui ne gêne pas l’engagement. - Paramètres, variateurs d’intensité, essentiellement d’ordre énergétique : sursauts, lests, hauteur du step, bras au-dessus des épaules. - Tempo > 135 bpm le plus souvent. | CS24: =VLOOKUP(CS18,DEBUTSTEP!$V$4:$AG$22,8,FALSE) -> FC élevée - Ventilation accentuée et rythmée sans gêne excessive - Séries à minima 3" - Coordination et dissociations présentes - Paramètres d’ordre énergétique : sursauts, bras au-dessus des épaules, lests, hauteur du step. - 130 bpm < tempo < 140 bpm. | CV24: =VLOOKUP(CV18,DEBUTSTEP!$V$4:$AG$22,8,FALSE) -> FC modérée - Aisance respiratoire - Séries longues et "à minima 3" - Temps de récupération minimisé - Motricité explorée de façon ambitieuse - Paramètres essentiellement d’ordre biomécanique : pas complexes, bras en dissociation, changement d'orientation, éléments réalisés à côté du step - Tempo le plus souvent proche de 130 bpm | DC24: Repères sur mon activité | DE24: =VLOOKUP(DE18,DEBUTSTEP!$V$4:$AG$22,8,FALSE) -> FC s’approche progressivement du maximum - Ventilation fortement marquée et accélérée - Séries plutôt courtes - Motricité variée qui ne gêne pas l’engagement. - Paramètres, variateurs d’intensité, essentiellement d’ordre énergétique : sursauts, lests, hauteur du step, bras au-dessus des épaules. - Tempo > 135 bpm le plus souvent. | DH24: =VLOOKUP(DH18,DEBUTSTEP!$V$4:$AG$22,8,FALSE) -> FC élevée - Ventilation accentuée et rythmée sans gêne excessive - Séries à minima 3" - Coordination et dissociations présentes - Paramètres d’ordre énergétique : sursauts, bras au-dessus des épaules, lests, hauteur du step. - 130 bpm < tempo < 140 bpm. | DK24: =VLOOKUP(DK18,DEBUTSTEP!$V$4:$AG$22,8,FALSE) -> FC modérée - Aisance respiratoire - Séries longues et "à minima 3" - Temps de récupération minimisé - Motricité explorée de façon ambitieuse - Paramètres essentiellement d’ordre biomécanique : pas complexes, bras en dissociation, changement d'orientation, éléments réalisés à côté du step - Tempo le plus souvent proche de 130 bpm | DR24: Repères sur mon activité | DT24: =VLOOKUP(DT18,DEBUTSTEP!$V$4:$AG$22,8,FALSE) -> FC s’approche progressivement du maximum - Ventilation fortement marquée et accélérée - Séries plutôt courtes - Motricité variée qui ne gêne pas l’engagement. - Paramètres, variateurs d’intensité, essentiellement d’ordre énergétique : sursauts, lests, hauteur du step, bras au-dessus des épaules. - Tempo > 135 bpm le plus souvent. | DW24: =VLOOKUP(DW18,DEBUTSTEP!$V$4:$AG$22,8,FALSE) -> FC élevée - Ventilation accentuée et rythmée sans gêne excessive - Séries à minima 3" - Coordination et dissociations présentes - Paramètres d’ordre énergétique : sursauts, bras au-dessus des épaules, lests, hauteur du step. - 130 bpm < tempo < 140 bpm. | DZ24: =VLOOKUP(DZ18,DEBUTSTEP!$V$4:$AG$22,8,FALSE) -> FC modérée - Aisance respiratoire - Séries longues et "à minima 3" - Temps de récupération minimisé - Motricité explorée de façon ambitieuse - Paramètres essentiellement d’ordre biomécanique : pas complexes, bras en dissociation, changement d'orientation, éléments réalisés à côté du step - Tempo le plus souvent proche de 130 bpm | EG24: Repères sur mon activité | EI24: =VLOOKUP(EI18,DEBUTSTEP!$V$4:$AG$22,8,FALSE) -> FC s’approche progressivement du maximum - Ventilation fortement marquée et accélérée - Séries plutôt courtes - Motricité variée qui ne gêne pas l’engagement. - Paramètres, variateurs d’intensité, essentiellement d’ordre énergétique : sursauts, lests, hauteur du step, bras au-dessus des épaules. - Tempo > 135 bpm le plus souvent. | EL24: =VLOOKUP(EL18,DEBUTSTEP!$V$4:$AG$22,8,FALSE) -> FC élevée - Ventilation accentuée et rythmée sans gêne excessive - Séries à minima 3" - Coordination et dissociations présentes - Paramètres d’ordre énergétique : sursauts, bras au-dessus des épaules, lests, hauteur du step. - 130 bpm < tempo < 140 bpm. | EO24: =VLOOKUP(EO18,DEBUTSTEP!$V$4:$AG$22,8,FALSE) -> FC modérée - Aisance respiratoire - Séries longues et "à minima 3" - Temps de récupération minimisé - Motricité explorée de façon ambitieuse - Paramètres essentiellement d’ordre biomécanique : pas complexes, bras en dissociation, changement d'orientation, éléments réalisés à côté du step - Tempo le plus souvent proche de 130 bpm
A26: Pourquoi avoir choisi cet objectif ? (expression libre)
B28: CHOIX DES PARAMETRES POUR AUGMENTER LA FREQUENCE | Q28: CHOIX DES PARAMETRES POUR AUGMENTER LA FREQUENCE | AF28: CHOIX DES PARAMETRES POUR AUGMENTER LA FREQUENCE | AU28: CHOIX DES PARAMETRES POUR AUGMENTER LA FREQUENCE | BJ28: CHOIX DES PARAMETRES POUR AUGMENTER LA FREQUENCE | BY28: CHOIX DES PARAMETRES POUR AUGMENTER LA FREQUENCE | CN28: CHOIX DES PARAMETRES POUR AUGMENTER LA FREQUENCE | DC28: CHOIX DES PARAMETRES POUR AUGMENTER LA FREQUENCE | DR28: CHOIX DES PARAMETRES POUR AUGMENTER LA FREQUENCE | EG28: CHOIX DES PARAMETRES POUR AUGMENTER LA FREQUENCE
A29: Choix du type d'effort | B29: =D14 -> Effort bref et intense | Q29: =S14 -> Effort long et soutenu | AF29: =AH14 -> Effort modéré et prolongé | AU29: =AW14 -> Mobiles | BJ29: =BL14 -> Mobiles | BY29: =CA14 -> Mobiles | CN29: =CP14 -> Mobiles | DC29: =DE14 -> Mobiles | DR29: =DT14 -> Mobiles | EG29: =EI14 -> Mobiles
A30: Tempo | B30: 128 | Q30: 128 | AF30: 128 | AU30: 128 | BJ30: 128 | BY30: 128 | CN30: 128 | DC30: 128 | DR30: 128 | EG30: 128
A31: Hauteur step | B31: HAUT | Q31: HAUT | AF31: HAUT | AU31: HAUT | BJ31: HAUT | BY31: HAUT | CN31: HAUT | DC31: HAUT | DR31: HAUT | EG31: HAUT
A32: Bras | B32: Toujours | Q32: Toujours | AF32: Toujours | AU32: Toujours | BJ32: Toujours | BY32: Toujours | CN32: Toujours | DC32: Toujours | DR32: Toujours | EG32: Toujours
A33: Impulsions | B33: Avec | Q33: Avec | AF33: Avec | AU33: Avec | BJ33: Avec | BY33: Avec | CN33: Avec | DC33: Avec | DR33: Avec | EG33: Avec
A34: Amplitude | B34: Moyenne | Q34: Moyenne | AF34: Moyenne | AU34: Moyenne | BJ34: Moyenne | BY34: Moyenne | CN34: Moyenne | DC34: Moyenne | DR34: Moyenne | EG34: Moyenne
A35: Lests | B35: 1 kg | Q35: 1 kg | AF35: 1 kg | AU35: 1 kg | BJ35: 1 kg | BY35: 1 kg | CN35: 1 kg | DC35: 1 kg | DR35: 1 kg | EG35: 1 kg
A37: Pourquoi avoir choisi ces paramètres ? (expression libre)
B39: ENTRAINEMENT PREVU | Q39: ENTRAINEMENT PREVU | AF39: ENTRAINEMENT PREVU | AU39: ENTRAINEMENT PREVU | BJ39: ENTRAINEMENT PREVU | BY39: ENTRAINEMENT PREVU | CN39: ENTRAINEMENT PREVU | DC39: ENTRAINEMENT PREVU | DR39: ENTRAINEMENT PREVU | EG39: ENTRAINEMENT PREVU
A40: FC de reprise 110-120 bpm | B40: 8 | C40: Séries | D40: FC | Q40: 3 | R40: Séries | S40: FC | AF40: 4 | AG40: Séries | AH40: FC | AU40: 8 | AV40: Séries | AW40: FC | BJ40: 8 | BK40: Séries | BL40: FC | BY40: 8 | BZ40: Séries | CA40: FC | CN40: 8 | CO40: Séries | CP40: FC | DC40: 8 | DD40: Séries | DE40: FC | DR40: 8 | DS40: Séries | DT40: FC | EG40: 8 | EH40: Séries | EI40: FC
B41: 2' | C41: Effort | Q41: 7' | R41: Effort | AF41: 5' | AG41: Effort | AU41: 2' | AV41: Effort | BJ41: 2' | BK41: Effort | BY41: 2' | BZ41: Effort | CN41: 2' | CO41: Effort | DC41: 2' | DD41: Effort | DR41: 2' | DS41: Effort | EG41: 2' | EH41: Effort
B42: 2' | C42: Récup' | Q42: 4' | R42: Récup' | AF42: 4' | AG42: Récup' | AU42: 2' | AV42: Récup' | BJ42: 2' | BK42: Récup' | BY42: 2' | BZ42: Récup' | CN42: 2' | CO42: Récup' | DC42: 2' | DD42: Récup' | DR42: 2' | DS42: Récup' | EG42: 2' | EH42: Récup'
A43: Effort | B43: =IF(B$40>=1,B$41,"") -> 2' | C43: =IFERROR(VLOOKUP(B43,DEBUTSTEP!$D$5:$E$68,2,FALSE),0) -> 120 | D43: 180 | Q43: =IF(Q$40>=1,Q$41,"") -> 7' | R43: =IFERROR(VLOOKUP(Q43,DEBUTSTEP!$D$5:$E$68,2,FALSE),0) -> 420 | S43: 180 | AF43: =IF(AF$40>=1,AF$41,"") -> 5' | AG43: =IFERROR(VLOOKUP(AF43,DEBUTSTEP!$D$5:$E$68,2,FALSE),0) -> 300 | AH43: 180 | AU43: =IF(AU$40>=1,AU$41,"") -> 2' | AV43: =IFERROR(VLOOKUP(AU43,DEBUTSTEP!$D$5:$E$68,2,FALSE),0) -> 120 | AW43: 180 | BJ43: =IF(BJ$40>=1,BJ$41,"") -> 2' | BK43: =IFERROR(VLOOKUP(BJ43,DEBUTSTEP!$D$5:$E$68,2,FALSE),0) -> 120 | BL43: 180 | BY43: =IF(BY$40>=1,BY$41,"") -> 2' | BZ43: =IFERROR(VLOOKUP(BY43,DEBUTSTEP!$D$5:$E$68,2,FALSE),0) -> 120 | CA43: 180 | CN43: =IF(CN$40>=1,CN$41,"") -> 2' | CO43: =IFERROR(VLOOKUP(CN43,DEBUTSTEP!$D$5:$E$68,2,FALSE),0) -> 120 | CP43: 180 | DC43: =IF(DC$40>=1,DC$41,"") -> 2' | DD43: =IFERROR(VLOOKUP(DC43,DEBUTSTEP!$D$5:$E$68,2,FALSE),0) -> 120 | DE43: 180 | DR43: =IF(DR$40>=1,DR$41,"") -> 2' | DS43: =IFERROR(VLOOKUP(DR43,DEBUTSTEP!$D$5:$E$68,2,FALSE),0) -> 120 | DT43: 180 | EG43: =IF(EG$40>=1,EG$41,"") -> 2' | EH43: =IFERROR(VLOOKUP(EG43,DEBUTSTEP!$D$5:$E$68,2,FALSE),0) -> 120 | EI43: 180
A44: Récup' | B44: =IF(B$40>=1,B$42,"") -> 2' | C44: =IFERROR(VLOOKUP(B44,DEBUTSTEP!$D$5:$E$68,2,FALSE),0) -> 120 | Q44: =IF(Q$40>=1,Q$42,"") -> 4' | R44: =IFERROR(VLOOKUP(Q44,DEBUTSTEP!$D$5:$E$68,2,FALSE),0) -> 240 | AF44: =IF(AF$40>=1,AF$42,"") -> 4' | AG44: =IFERROR(VLOOKUP(AF44,DEBUTSTEP!$D$5:$E$68,2,FALSE),0) -> 240 | AU44: =IF(AU$40>=1,AU$42,"") -> 2' | AV44: =IFERROR(VLOOKUP(AU44,DEBUTSTEP!$D$5:$E$68,2,FALSE),0) -> 120 | BJ44: =IF(BJ$40>=1,BJ$42,"") -> 2' | BK44: =IFERROR(VLOOKUP(BJ44,DEBUTSTEP!$D$5:$E$68,2,FALSE),0) -> 120 | BY44: =IF(BY$40>=1,BY$42,"") -> 2' | BZ44: =IFERROR(VLOOKUP(BY44,DEBUTSTEP!$D$5:$E$68,2,FALSE),0) -> 120 | CN44: =IF(CN$40>=1,CN$42,"") -> 2' | CO44: =IFERROR(VLOOKUP(CN44,DEBUTSTEP!$D$5:$E$68,2,FALSE),0) -> 120 | DC44: =IF(DC$40>=1,DC$42,"") -> 2' | DD44: =IFERROR(VLOOKUP(DC44,DEBUTSTEP!$D$5:$E$68,2,FALSE),0) -> 120 | DR44: =IF(DR$40>=1,DR$42,"") -> 2' | DS44: =IFERROR(VLOOKUP(DR44,DEBUTSTEP!$D$5:$E$68,2,FALSE),0) -> 120 | EG44: =IF(EG$40>=1,EG$42,"") -> 2' | EH44: =IFERROR(VLOOKUP(EG44,DEBUTSTEP!$D$5:$E$68,2,FALSE),0) -> 120
A45: Effort | B45: =IF(B$40>=2,B$41,"") -> 2' | C45: =IFERROR(VLOOKUP(B45,DEBUTSTEP!$D$5:$E$68,2,FALSE),0) -> 120 | Q45: =IF(Q$40>=2,Q$41,"") -> 7' | R45: =IFERROR(VLOOKUP(Q45,DEBUTSTEP!$D$5:$E$68,2,FALSE),0) -> 420 | AF45: =IF(AF$40>=2,AF$41,"") -> 5' | AG45: =IFERROR(VLOOKUP(AF45,DEBUTSTEP!$D$5:$E$68,2,FALSE),0) -> 300 | AU45: =IF(AU$40>=2,AU$41,"") -> 2' | AV45: =IFERROR(VLOOKUP(AU45,DEBUTSTEP!$D$5:$E$68,2,FALSE),0) -> 120 | BJ45: =IF(BJ$40>=2,BJ$41,"") -> 2' | BK45: =IFERROR(VLOOKUP(BJ45,DEBUTSTEP!$D$5:$E$68,2,FALSE),0) -> 120 | BY45: =IF(BY$40>=2,BY$41,"") -> 2' | BZ45: =IFERROR(VLOOKUP(BY45,DEBUTSTEP!$D$5:$E$68,2,FALSE),0) -> 120 | CN45: =IF(CN$40>=2,CN$41,"") -> 2' | CO45: =IFERROR(VLOOKUP(CN45,DEBUTSTEP!$D$5:$E$68,2,FALSE),0) -> 120 | DC45: =IF(DC$40>=2,DC$41,"") -> 2' | DD45: =IFERROR(VLOOKUP(DC45,DEBUTSTEP!$D$5:$E$68,2,FALSE),0) -> 120 | DR45: =IF(DR$40>=2,DR$41,"") -> 2' | DS45: =IFERROR(VLOOKUP(DR45,DEBUTSTEP!$D$5:$E$68,2,FALSE),0) -> 120 | EG45: =IF(EG$40>=2,EG$41,"") -> 2' | EH45: =IFERROR(VLOOKUP(EG45,DEBUTSTEP!$D$5:$E$68,2,FALSE),0) -> 120
A46: Récup' | B46: =IF(B$40>=2,B$42,"") -> 2' | C46: =IFERROR(VLOOKUP(B46,DEBUTSTEP!$D$5:$E$68,2,FALSE),0) -> 120 | Q46: =IF(Q$40>=2,Q$42,"") -> 4' | R46: =IFERROR(VLOOKUP(Q46,DEBUTSTEP!$D$5:$E$68,2,FALSE),0) -> 240 | AF46: =IF(AF$40>=2,AF$42,"") -> 4' | AG46: =IFERROR(VLOOKUP(AF46,DEBUTSTEP!$D$5:$E$68,2,FALSE),0) -> 240 | AU46: =IF(AU$40>=2,AU$42,"") -> 2' | AV46: =IFERROR(VLOOKUP(AU46,DEBUTSTEP!$D$5:$E$68,2,FALSE),0) -> 120 | BJ46: =IF(BJ$40>=2,BJ$42,"") -> 2' | BK46: =IFERROR(VLOOKUP(BJ46,DEBUTSTEP!$D$5:$E$68,2,FALSE),0) -> 120 | BY46: =IF(BY$40>=2,BY$42,"") -> 2' | BZ46: =IFERROR(VLOOKUP(BY46,DEBUTSTEP!$D$5:$E$68,2,FALSE),0) -> 120 | CN46: =IF(CN$40>=2,CN$42,"") -> 2' | CO46: =IFERROR(VLOOKUP(CN46,DEBUTSTEP!$D$5:$E$68,2,FALSE),0) -> 120 | DC46: =IF(DC$40>=2,DC$42,"") -> 2' | DD46: =IFERROR(VLOOKUP(DC46,DEBUTSTEP!$D$5:$E$68,2,FALSE),0) -> 120 | DR46: =IF(DR$40>=2,DR$42,"") -> 2' | DS46: =IFERROR(VLOOKUP(DR46,DEBUTSTEP!$D$5:$E$68,2,FALSE),0) -> 120 | EG46: =IF(EG$40>=2,EG$42,"") -> 2' | EH46: =IFERROR(VLOOKUP(EG46,DEBUTSTEP!$D$5:$E$68,2,FALSE),0) -> 120
A47: Effort | B47: =IF(B$40>=3,B$41,"") -> 2' | C47: =IFERROR(VLOOKUP(B47,DEBUTSTEP!$D$5:$E$68,2,FALSE),0) -> 120 | Q47: =IF(Q$40>=3,Q$41,"") -> 7' | R47: =IFERROR(VLOOKUP(Q47,DEBUTSTEP!$D$5:$E$68,2,FALSE),0) -> 420 | AF47: =IF(AF$40>=3,AF$41,"") -> 5' | AG47: =IFERROR(VLOOKUP(AF47,DEBUTSTEP!$D$5:$E$68,2,FALSE),0) -> 300 | AU47: =IF(AU$40>=3,AU$41,"") -> 2' | AV47: =IFERROR(VLOOKUP(AU47,DEBUTSTEP!$D$5:$E$68,2,FALSE),0) -> 120 | BJ47: =IF(BJ$40>=3,BJ$41,"") -> 2' | BK47: =IFERROR(VLOOKUP(BJ47,DEBUTSTEP!$D$5:$E$68,2,FALSE),0) -> 120 | BY47: =IF(BY$40>=3,BY$41,"") -> 2' | BZ47: =IFERROR(VLOOKUP(BY47,DEBUTSTEP!$D$5:$E$68,2,FALSE),0) -> 120 | CN47: =IF(CN$40>=3,CN$41,"") -> 2' | CO47: =IFERROR(VLOOKUP(CN47,DEBUTSTEP!$D$5:$E$68,2,FALSE),0) -> 120 | DC47: =IF(DC$40>=3,DC$41,"") -> 2' | DD47: =IFERROR(VLOOKUP(DC47,DEBUTSTEP!$D$5:$E$68,2,FALSE),0) -> 120 | DR47: =IF(DR$40>=3,DR$41,"") -> 2' | DS47: =IFERROR(VLOOKUP(DR47,DEBUTSTEP!$D$5:$E$68,2,FALSE),0) -> 120 | EG47: =IF(EG$40>=3,EG$41,"") -> 2' | EH47: =IFERROR(VLOOKUP(EG47,DEBUTSTEP!$D$5:$E$68,2,FALSE),0) -> 120
A48: Récup' | B48: =IF(B$40>=3,B$42,"") -> 2' | C48: =IFERROR(VLOOKUP(B48,DEBUTSTEP!$D$5:$E$68,2,FALSE),0) -> 120 | Q48: =IF(Q$40>=3,Q$42,"") -> 4' | R48: =IFERROR(VLOOKUP(Q48,DEBUTSTEP!$D$5:$E$68,2,FALSE),0) -> 240 | AF48: =IF(AF$40>=3,AF$42,"") -> 4' | AG48: =IFERROR(VLOOKUP(AF48,DEBUTSTEP!$D$5:$E$68,2,FALSE),0) -> 240 | AU48: =IF(AU$40>=3,AU$42,"") -> 2' | AV48: =IFERROR(VLOOKUP(AU48,DEBUTSTEP!$D$5:$E$68,2,FALSE),0) -> 120 | BJ48: =IF(BJ$40>=3,BJ$42,"") -> 2' | BK48: =IFERROR(VLOOKUP(BJ48,DEBUTSTEP!$D$5:$E$68,2,FALSE),0) -> 120 | BY48: =IF(BY$40>=3,BY$42,"") -> 2' | BZ48: =IFERROR(VLOOKUP(BY48,DEBUTSTEP!$D$5:$E$68,2,FALSE),0) -> 120 | CN48: =IF(CN$40>=3,CN$42,"") -> 2' | CO48: =IFERROR(VLOOKUP(CN48,DEBUTSTEP!$D$5:$E$68,2,FALSE),0) -> 120 | DC48: =IF(DC$40>=3,DC$42,"") -> 2' | DD48: =IFERROR(VLOOKUP(DC48,DEBUTSTEP!$D$5:$E$68,2,FALSE),0) -> 120 | DR48: =IF(DR$40>=3,DR$42,"") -> 2' | DS48: =IFERROR(VLOOKUP(DR48,DEBUTSTEP!$D$5:$E$68,2,FALSE),0) -> 120 | EG48: =IF(EG$40>=3,EG$42,"") -> 2' | EH48: =IFERROR(VLOOKUP(EG48,DEBUTSTEP!$D$5:$E$68,2,FALSE),0) -> 120
A49: Effort | B49: =IF(B$40>=4,B$41,"") -> 2' | C49: =IFERROR(VLOOKUP(B49,DEBUTSTEP!$D$5:$E$68,2,FALSE),0) -> 120 | Q49: =IF(Q$40>=4,Q$41,"") ->  | R49: =IFERROR(VLOOKUP(Q49,DEBUTSTEP!$D$5:$E$68,2,FALSE),0) -> 0 | AF49: =IF(AF$40>=4,AF$41,"") -> 5' | AG49: =IFERROR(VLOOKUP(AF49,DEBUTSTEP!$D$5:$E$68,2,FALSE),0) -> 300 | AU49: =IF(AU$40>=4,AU$41,"") -> 2' | AV49: =IFERROR(VLOOKUP(AU49,DEBUTSTEP!$D$5:$E$68,2,FALSE),0) -> 120 | BJ49: =IF(BJ$40>=4,BJ$41,"") -> 2' | BK49: =IFERROR(VLOOKUP(BJ49,DEBUTSTEP!$D$5:$E$68,2,FALSE),0) -> 120 | BY49: =IF(BY$40>=4,BY$41,"") -> 2' | BZ49: =IFERROR(VLOOKUP(BY49,DEBUTSTEP!$D$5:$E$68,2,FALSE),0) -> 120 | CN49: =IF(CN$40>=4,CN$41,"") -> 2' | CO49: =IFERROR(VLOOKUP(CN49,DEBUTSTEP!$D$5:$E$68,2,FALSE),0) -> 120 | DC49: =IF(DC$40>=4,DC$41,"") -> 2' | DD49: =IFERROR(VLOOKUP(DC49,DEBUTSTEP!$D$5:$E$68,2,FALSE),0) -> 120 | DR49: =IF(DR$40>=4,DR$41,"") -> 2' | DS49: =IFERROR(VLOOKUP(DR49,DEBUTSTEP!$D$5:$E$68,2,FALSE),0) -> 120 | EG49: =IF(EG$40>=4,EG$41,"") -> 2' | EH49: =IFERROR(VLOOKUP(EG49,DEBUTSTEP!$D$5:$E$68,2,FALSE),0) -> 120
A50: Récup' | B50: =IF(B$40>=4,B$42,"") -> 2' | C50: =IFERROR(VLOOKUP(B50,DEBUTSTEP!$D$5:$E$68,2,FALSE),0) -> 120 | Q50: =IF(Q$40>=4,Q$42,"") ->  | R50: =IFERROR(VLOOKUP(Q50,DEBUTSTEP!$D$5:$E$68,2,FALSE),0) -> 0 | AF50: =IF(AF$40>=4,AF$42,"") -> 4' | AG50: =IFERROR(VLOOKUP(AF50,DEBUTSTEP!$D$5:$E$68,2,FALSE),0) -> 240 | AU50: =IF(AU$40>=4,AU$42,"") -> 2' | AV50: =IFERROR(VLOOKUP(AU50,DEBUTSTEP!$D$5:$E$68,2,FALSE),0) -> 120 | BJ50: =IF(BJ$40>=4,BJ$42,"") -> 2' | BK50: =IFERROR(VLOOKUP(BJ50,DEBUTSTEP!$D$5:$E$68,2,FALSE),0) -> 120 | BY50: =IF(BY$40>=4,BY$42,"") -> 2' | BZ50: =IFERROR(VLOOKUP(BY50,DEBUTSTEP!$D$5:$E$68,2,FALSE),0) -> 120 | CN50: =IF(CN$40>=4,CN$42,"") -> 2' | CO50: =IFERROR(VLOOKUP(CN50,DEBUTSTEP!$D$5:$E$68,2,FALSE),0) -> 120 | DC50: =IF(DC$40>=4,DC$42,"") -> 2' | DD50: =IFERROR(VLOOKUP(DC50,DEBUTSTEP!$D$5:$E$68,2,FALSE),0) -> 120 | DR50: =IF(DR$40>=4,DR$42,"") -> 2' | DS50: =IFERROR(VLOOKUP(DR50,DEBUTSTEP!$D$5:$E$68,2,FALSE),0) -> 120 | EG50: =IF(EG$40>=4,EG$42,"") -> 2' | EH50: =IFERROR(VLOOKUP(EG50,DEBUTSTEP!$D$5:$E$68,2,FALSE),0) -> 120
A51: Effort | B51: =IF(B$40>=5,B$41,"") -> 2' | C51: =IFERROR(VLOOKUP(B51,DEBUTSTEP!$D$5:$E$68,2,FALSE),0) -> 120 | Q51: =IF(Q$40>=5,Q$41,"") ->  | R51: =IFERROR(VLOOKUP(Q51,DEBUTSTEP!$D$5:$E$68,2,FALSE),0) -> 0 | AF51: =IF(AF$40>=5,AF$41,"") ->  | AG51: =IFERROR(VLOOKUP(AF51,DEBUTSTEP!$D$5:$E$68,2,FALSE),0) -> 0 | AU51: =IF(AU$40>=5,AU$41,"") -> 2' | AV51: =IFERROR(VLOOKUP(AU51,DEBUTSTEP!$D$5:$E$68,2,FALSE),0) -> 120 | BJ51: =IF(BJ$40>=5,BJ$41,"") -> 2' | BK51: =IFERROR(VLOOKUP(BJ51,DEBUTSTEP!$D$5:$E$68,2,FALSE),0) -> 120 | BY51: =IF(BY$40>=5,BY$41,"") -> 2' | BZ51: =IFERROR(VLOOKUP(BY51,DEBUTSTEP!$D$5:$E$68,2,FALSE),0) -> 120 | CN51: =IF(CN$40>=5,CN$41,"") -> 2' | CO51: =IFERROR(VLOOKUP(CN51,DEBUTSTEP!$D$5:$E$68,2,FALSE),0) -> 120 | DC51: =IF(DC$40>=5,DC$41,"") -> 2' | DD51: =IFERROR(VLOOKUP(DC51,DEBUTSTEP!$D$5:$E$68,2,FALSE),0) -> 120 | DR51: =IF(DR$40>=5,DR$41,"") -> 2' | DS51: =IFERROR(VLOOKUP(DR51,DEBUTSTEP!$D$5:$E$68,2,FALSE),0) -> 120 | EG51: =IF(EG$40>=5,EG$41,"") -> 2' | EH51: =IFERROR(VLOOKUP(EG51,DEBUTSTEP!$D$5:$E$68,2,FALSE),0) -> 120
A52: Récup' | B52: =IF(B$40>=5,B$42,"") -> 2' | C52: =IFERROR(VLOOKUP(B52,DEBUTSTEP!$D$5:$E$68,2,FALSE),0) -> 120 | Q52: =IF(Q$40>=5,Q$42,"") ->  | R52: =IFERROR(VLOOKUP(Q52,DEBUTSTEP!$D$5:$E$68,2,FALSE),0) -> 0 | AF52: =IF(AF$40>=5,AF$42,"") ->  | AG52: =IFERROR(VLOOKUP(AF52,DEBUTSTEP!$D$5:$E$68,2,FALSE),0) -> 0 | AU52: =IF(AU$40>=5,AU$42,"") -> 2' | AV52: =IFERROR(VLOOKUP(AU52,DEBUTSTEP!$D$5:$E$68,2,FALSE),0) -> 120 | BJ52: =IF(BJ$40>=5,BJ$42,"") -> 2' | BK52: =IFERROR(VLOOKUP(BJ52,DEBUTSTEP!$D$5:$E$68,2,FALSE),0) -> 120 | BY52: =IF(BY$40>=5,BY$42,"") -> 2' | BZ52: =IFERROR(VLOOKUP(BY52,DEBUTSTEP!$D$5:$E$68,2,FALSE),0) -> 120 | CN52: =IF(CN$40>=5,CN$42,"") -> 2' | CO52: =IFERROR(VLOOKUP(CN52,DEBUTSTEP!$D$5:$E$68,2,FALSE),0) -> 120 | DC52: =IF(DC$40>=5,DC$42,"") -> 2' | DD52: =IFERROR(VLOOKUP(DC52,DEBUTSTEP!$D$5:$E$68,2,FALSE),0) -> 120 | DR52: =IF(DR$40>=5,DR$42,"") -> 2' | DS52: =IFERROR(VLOOKUP(DR52,DEBUTSTEP!$D$5:$E$68,2,FALSE),0) -> 120 | EG52: =IF(EG$40>=5,EG$42,"") -> 2' | EH52: =IFERROR(VLOOKUP(EG52,DEBUTSTEP!$D$5:$E$68,2,FALSE),0) -> 120
A53: Effort | B53: =IF(B$40>=6,B$41,"") -> 2' | C53: =IFERROR(VLOOKUP(B53,DEBUTSTEP!$D$5:$E$68,2,FALSE),0) -> 120 | Q53: =IF(Q$40>=6,Q$41,"") ->  | R53: =IFERROR(VLOOKUP(Q53,DEBUTSTEP!$D$5:$E$68,2,FALSE),0) -> 0 | AF53: =IF(AF$40>=6,AF$41,"") ->  | AG53: =IFERROR(VLOOKUP(AF53,DEBUTSTEP!$D$5:$E$68,2,FALSE),0) -> 0 | AU53: =IF(AU$40>=6,AU$41,"") -> 2' | AV53: =IFERROR(VLOOKUP(AU53,DEBUTSTEP!$D$5:$E$68,2,FALSE),0) -> 120 | BJ53: =IF(BJ$40>=6,BJ$41,"") -> 2' | BK53: =IFERROR(VLOOKUP(BJ53,DEBUTSTEP!$D$5:$E$68,2,FALSE),0) -> 120 | BY53: =IF(BY$40>=6,BY$41,"") -> 2' | BZ53: =IFERROR(VLOOKUP(BY53,DEBUTSTEP!$D$5:$E$68,2,FALSE),0) -> 120 | CN53: =IF(CN$40>=6,CN$41,"") -> 2' | CO53: =IFERROR(VLOOKUP(CN53,DEBUTSTEP!$D$5:$E$68,2,FALSE),0) -> 120 | DC53: =IF(DC$40>=6,DC$41,"") -> 2' | DD53: =IFERROR(VLOOKUP(DC53,DEBUTSTEP!$D$5:$E$68,2,FALSE),0) -> 120 | DR53: =IF(DR$40>=6,DR$41,"") -> 2' | DS53: =IFERROR(VLOOKUP(DR53,DEBUTSTEP!$D$5:$E$68,2,FALSE),0) -> 120 | EG53: =IF(EG$40>=6,EG$41,"") -> 2' | EH53: =IFERROR(VLOOKUP(EG53,DEBUTSTEP!$D$5:$E$68,2,FALSE),0) -> 120
A54: Récup' | B54: =IF(B$40>=6,B$42,"") -> 2' | C54: =IFERROR(VLOOKUP(B54,DEBUTSTEP!$D$5:$E$68,2,FALSE),0) -> 120 | Q54: =IF(Q$40>=6,Q$42,"") ->  | R54: =IFERROR(VLOOKUP(Q54,DEBUTSTEP!$D$5:$E$68,2,FALSE),0) -> 0 | AF54: =IF(AF$40>=6,AF$42,"") ->  | AG54: =IFERROR(VLOOKUP(AF54,DEBUTSTEP!$D$5:$E$68,2,FALSE),0) -> 0 | AU54: =IF(AU$40>=6,AU$42,"") -> 2' | AV54: =IFERROR(VLOOKUP(AU54,DEBUTSTEP!$D$5:$E$68,2,FALSE),0) -> 120 | BJ54: =IF(BJ$40>=6,BJ$42,"") -> 2' | BK54: =IFERROR(VLOOKUP(BJ54,DEBUTSTEP!$D$5:$E$68,2,FALSE),0) -> 120 | BY54: =IF(BY$40>=6,BY$42,"") -> 2' | BZ54: =IFERROR(VLOOKUP(BY54,DEBUTSTEP!$D$5:$E$68,2,FALSE),0) -> 120 | CN54: =IF(CN$40>=6,CN$42,"") -> 2' | CO54: =IFERROR(VLOOKUP(CN54,DEBUTSTEP!$D$5:$E$68,2,FALSE),0) -> 120 | DC54: =IF(DC$40>=6,DC$42,"") -> 2' | DD54: =IFERROR(VLOOKUP(DC54,DEBUTSTEP!$D$5:$E$68,2,FALSE),0) -> 120 | DR54: =IF(DR$40>=6,DR$42,"") -> 2' | DS54: =IFERROR(VLOOKUP(DR54,DEBUTSTEP!$D$5:$E$68,2,FALSE),0) -> 120 | EG54: =IF(EG$40>=6,EG$42,"") -> 2' | EH54: =IFERROR(VLOOKUP(EG54,DEBUTSTEP!$D$5:$E$68,2,FALSE),0) -> 120
A55: Effort | B55: =IF(B$40>=7,B$41,"") -> 2' | C55: =IFERROR(VLOOKUP(B55,DEBUTSTEP!$D$5:$E$68,2,FALSE),0) -> 120 | Q55: =IF(Q$40>=7,Q$41,"") ->  | R55: =IFERROR(VLOOKUP(Q55,DEBUTSTEP!$D$5:$E$68,2,FALSE),0) -> 0 | AF55: =IF(AF$40>=7,AF$41,"") ->  | AG55: =IFERROR(VLOOKUP(AF55,DEBUTSTEP!$D$5:$E$68,2,FALSE),0) -> 0 | AU55: =IF(AU$40>=7,AU$41,"") -> 2' | AV55: =IFERROR(VLOOKUP(AU55,DEBUTSTEP!$D$5:$E$68,2,FALSE),0) -> 120 | BJ55: =IF(BJ$40>=7,BJ$41,"") -> 2' | BK55: =IFERROR(VLOOKUP(BJ55,DEBUTSTEP!$D$5:$E$68,2,FALSE),0) -> 120 | BY55: =IF(BY$40>=7,BY$41,"") -> 2' | BZ55: =IFERROR(VLOOKUP(BY55,DEBUTSTEP!$D$5:$E$68,2,FALSE),0) -> 120 | CN55: =IF(CN$40>=7,CN$41,"") -> 2' | CO55: =IFERROR(VLOOKUP(CN55,DEBUTSTEP!$D$5:$E$68,2,FALSE),0) -> 120 | DC55: =IF(DC$40>=7,DC$41,"") -> 2' | DD55: =IFERROR(VLOOKUP(DC55,DEBUTSTEP!$D$5:$E$68,2,FALSE),0) -> 120 | DR55: =IF(DR$40>=7,DR$41,"") -> 2' | DS55: =IFERROR(VLOOKUP(DR55,DEBUTSTEP!$D$5:$E$68,2,FALSE),0) -> 120 | EG55: =IF(EG$40>=7,EG$41,"") -> 2' | EH55: =IFERROR(VLOOKUP(EG55,DEBUTSTEP!$D$5:$E$68,2,FALSE),0) -> 120
A56: Récup' | B56: =IF(B$40>=7,B$42,"") -> 2' | C56: =IFERROR(VLOOKUP(B56,DEBUTSTEP!$D$5:$E$68,2,FALSE),0) -> 120 | Q56: =IF(Q$40>=7,Q$42,"") ->  | R56: =IFERROR(VLOOKUP(Q56,DEBUTSTEP!$D$5:$E$68,2,FALSE),0) -> 0 | AF56: =IF(AF$40>=7,AF$42,"") ->  | AG56: =IFERROR(VLOOKUP(AF56,DEBUTSTEP!$D$5:$E$68,2,FALSE),0) -> 0 | AU56: =IF(AU$40>=7,AU$42,"") -> 2' | AV56: =IFERROR(VLOOKUP(AU56,DEBUTSTEP!$D$5:$E$68,2,FALSE),0) -> 120 | BJ56: =IF(BJ$40>=7,BJ$42,"") -> 2' | BK56: =IFERROR(VLOOKUP(BJ56,DEBUTSTEP!$D$5:$E$68,2,FALSE),0) -> 120 | BY56: =IF(BY$40>=7,BY$42,"") -> 2' | BZ56: =IFERROR(VLOOKUP(BY56,DEBUTSTEP!$D$5:$E$68,2,FALSE),0) -> 120 | CN56: =IF(CN$40>=7,CN$42,"") -> 2' | CO56: =IFERROR(VLOOKUP(CN56,DEBUTSTEP!$D$5:$E$68,2,FALSE),0) -> 120 | DC56: =IF(DC$40>=7,DC$42,"") -> 2' | DD56: =IFERROR(VLOOKUP(DC56,DEBUTSTEP!$D$5:$E$68,2,FALSE),0) -> 120 | DR56: =IF(DR$40>=7,DR$42,"") -> 2' | DS56: =IFERROR(VLOOKUP(DR56,DEBUTSTEP!$D$5:$E$68,2,FALSE),0) -> 120 | EG56: =IF(EG$40>=7,EG$42,"") -> 2' | EH56: =IFERROR(VLOOKUP(EG56,DEBUTSTEP!$D$5:$E$68,2,FALSE),0) -> 120
A57: Effort | B57: =IF(B$40>=8,B$41,"") -> 2' | C57: =IFERROR(VLOOKUP(B57,DEBUTSTEP!$D$5:$E$68,2,FALSE),0) -> 120 | Q57: =IF(Q$40>=8,Q$41,"") ->  | R57: =IFERROR(VLOOKUP(Q57,DEBUTSTEP!$D$5:$E$68,2,FALSE),0) -> 0 | AF57: =IF(AF$40>=8,AF$41,"") ->  | AG57: =IFERROR(VLOOKUP(AF57,DEBUTSTEP!$D$5:$E$68,2,FALSE),0) -> 0 | AU57: =IF(AU$40>=8,AU$41,"") -> 2' | AV57: =IFERROR(VLOOKUP(AU57,DEBUTSTEP!$D$5:$E$68,2,FALSE),0) -> 120 | BJ57: =IF(BJ$40>=8,BJ$41,"") -> 2' | BK57: =IFERROR(VLOOKUP(BJ57,DEBUTSTEP!$D$5:$E$68,2,FALSE),0) -> 120 | BY57: =IF(BY$40>=8,BY$41,"") -> 2' | BZ57: =IFERROR(VLOOKUP(BY57,DEBUTSTEP!$D$5:$E$68,2,FALSE),0) -> 120 | CN57: =IF(CN$40>=8,CN$41,"") -> 2' | CO57: =IFERROR(VLOOKUP(CN57,DEBUTSTEP!$D$5:$E$68,2,FALSE),0) -> 120 | DC57: =IF(DC$40>=8,DC$41,"") -> 2' | DD57: =IFERROR(VLOOKUP(DC57,DEBUTSTEP!$D$5:$E$68,2,FALSE),0) -> 120 | DR57: =IF(DR$40>=8,DR$41,"") -> 2' | DS57: =IFERROR(VLOOKUP(DR57,DEBUTSTEP!$D$5:$E$68,2,FALSE),0) -> 120 | EG57: =IF(EG$40>=8,EG$41,"") -> 2' | EH57: =IFERROR(VLOOKUP(EG57,DEBUTSTEP!$D$5:$E$68,2,FALSE),0) -> 120
A58: Récup' | B58: =IF(B$40>=8,B$42,"") -> 2' | C58: =IFERROR(VLOOKUP(B58,DEBUTSTEP!$D$5:$E$68,2,FALSE),0) -> 120 | Q58: =IF(Q$40>=8,Q$42,"") ->  | R58: =IFERROR(VLOOKUP(Q58,DEBUTSTEP!$D$5:$E$68,2,FALSE),0) -> 0 | AF58: =IF(AF$40>=8,AF$42,"") ->  | AG58: =IFERROR(VLOOKUP(AF58,DEBUTSTEP!$D$5:$E$68,2,FALSE),0) -> 0 | AU58: =IF(AU$40>=8,AU$42,"") -> 2' | AV58: =IFERROR(VLOOKUP(AU58,DEBUTSTEP!$D$5:$E$68,2,FALSE),0) -> 120 | BJ58: =IF(BJ$40>=8,BJ$42,"") -> 2' | BK58: =IFERROR(VLOOKUP(BJ58,DEBUTSTEP!$D$5:$E$68,2,FALSE),0) -> 120 | BY58: =IF(BY$40>=8,BY$42,"") -> 2' | BZ58: =IFERROR(VLOOKUP(BY58,DEBUTSTEP!$D$5:$E$68,2,FALSE),0) -> 120 | CN58: =IF(CN$40>=8,CN$42,"") -> 2' | CO58: =IFERROR(VLOOKUP(CN58,DEBUTSTEP!$D$5:$E$68,2,FALSE),0) -> 120 | DC58: =IF(DC$40>=8,DC$42,"") -> 2' | DD58: =IFERROR(VLOOKUP(DC58,DEBUTSTEP!$D$5:$E$68,2,FALSE),0) -> 120 | DR58: =IF(DR$40>=8,DR$42,"") -> 2' | DS58: =IFERROR(VLOOKUP(DR58,DEBUTSTEP!$D$5:$E$68,2,FALSE),0) -> 120 | EG58: =IF(EG$40>=8,EG$42,"") -> 2' | EH58: =IFERROR(VLOOKUP(EG58,DEBUTSTEP!$D$5:$E$68,2,FALSE),0) -> 120
A59: Effort | B59: =IF(B$40>=9,B$41,"") ->  | C59: =IFERROR(VLOOKUP(B59,DEBUTSTEP!$D$5:$E$68,2,FALSE),0) -> 0 | Q59: =IF(Q$40>=9,Q$41,"") ->  | R59: =IFERROR(VLOOKUP(Q59,DEBUTSTEP!$D$5:$E$68,2,FALSE),0) -> 0 | AF59: =IF(AF$40>=9,AF$41,"") ->  | AG59: =IFERROR(VLOOKUP(AF59,DEBUTSTEP!$D$5:$E$68,2,FALSE),0) -> 0 | AU59: =IF(AU$40>=9,AU$41,"") ->  | AV59: =IFERROR(VLOOKUP(AU59,DEBUTSTEP!$D$5:$E$68,2,FALSE),0) -> 0 | BJ59: =IF(BJ$40>=9,BJ$41,"") ->  | BK59: =IFERROR(VLOOKUP(BJ59,DEBUTSTEP!$D$5:$E$68,2,FALSE),0) -> 0 | BY59: =IF(BY$40>=9,BY$41,"") ->  | BZ59: =IFERROR(VLOOKUP(BY59,DEBUTSTEP!$D$5:$E$68,2,FALSE),0) -> 0 | CN59: =IF(CN$40>=9,CN$41,"") ->  | CO59: =IFERROR(VLOOKUP(CN59,DEBUTSTEP!$D$5:$E$68,2,FALSE),0) -> 0 | DC59: =IF(DC$40>=9,DC$41,"") ->  | DD59: =IFERROR(VLOOKUP(DC59,DEBUTSTEP!$D$5:$E$68,2,FALSE),0) -> 0 | DR59: =IF(DR$40>=9,DR$41,"") ->  | DS59: =IFERROR(VLOOKUP(DR59,DEBUTSTEP!$D$5:$E$68,2,FALSE),0) -> 0 | EG59: =IF(EG$40>=9,EG$41,"") ->  | EH59: =IFERROR(VLOOKUP(EG59,DEBUTSTEP!$D$5:$E$68,2,FALSE),0) -> 0
A60: Récup' | B60: =IF(B$40>=9,B$42,"") ->  | C60: =IFERROR(VLOOKUP(B60,DEBUTSTEP!$D$5:$E$68,2,FALSE),0) -> 0 | Q60: =IF(Q$40>=9,Q$42,"") ->  | R60: =IFERROR(VLOOKUP(Q60,DEBUTSTEP!$D$5:$E$68,2,FALSE),0) -> 0 | AF60: =IF(AF$40>=9,AF$42,"") ->  | AG60: =IFERROR(VLOOKUP(AF60,DEBUTSTEP!$D$5:$E$68,2,FALSE),0) -> 0 | AU60: =IF(AU$40>=9,AU$42,"") ->  | AV60: =IFERROR(VLOOKUP(AU60,DEBUTSTEP!$D$5:$E$68,2,FALSE),0) -> 0 | BJ60: =IF(BJ$40>=9,BJ$42,"") ->  | BK60: =IFERROR(VLOOKUP(BJ60,DEBUTSTEP!$D$5:$E$68,2,FALSE),0) -> 0 | BY60: =IF(BY$40>=9,BY$42,"") ->  | BZ60: =IFERROR(VLOOKUP(BY60,DEBUTSTEP!$D$5:$E$68,2,FALSE),0) -> 0 | CN60: =IF(CN$40>=9,CN$42,"") ->  | CO60: =IFERROR(VLOOKUP(CN60,DEBUTSTEP!$D$5:$E$68,2,FALSE),0) -> 0 | DC60: =IF(DC$40>=9,DC$42,"") ->  | DD60: =IFERROR(VLOOKUP(DC60,DEBUTSTEP!$D$5:$E$68,2,FALSE),0) -> 0 | DR60: =IF(DR$40>=9,DR$42,"") ->  | DS60: =IFERROR(VLOOKUP(DR60,DEBUTSTEP!$D$5:$E$68,2,FALSE),0) -> 0 | EG60: =IF(EG$40>=9,EG$42,"") ->  | EH60: =IFERROR(VLOOKUP(EG60,DEBUTSTEP!$D$5:$E$68,2,FALSE),0) -> 0
A61: EFFORT TOTAL | B61: =(C43+C45+C47+C49+C51+C53+C55+C57+C59)*"00:00:01" -> 00:16:00 | C61: =IFERROR((C44+C46+C48+C50+C52+C54+C56+C58+C60)*"00:00:01",0) -> 00:16:00 | Q61: =(R43+R45+R47+R49+R51+R53+R55+R57+R59)*"00:00:01" -> 00:21:00 | R61: =IFERROR((R44+R46+R48+R50+R52+R54+R56+R58+R60)*"00:00:01",0) -> 00:12:00 | AF61: =(AG43+AG45+AG47+AG49+AG51+AG53+AG55+AG57+AG59)*"00:00:01" -> 00:20:00 | AG61: =IFERROR((AG44+AG46+AG48+AG50+AG52+AG54+AG56+AG58+AG60)*"00:00:01",0) -> 00:16:00 | AU61: =(AV43+AV45+AV47+AV49+AV51+AV53+AV55+AV57+AV59)*"00:00:01" -> 00:16:00 | AV61: =IFERROR((AV44+AV46+AV48+AV50+AV52+AV54+AV56+AV58+AV60)*"00:00:01",0) -> 00:16:00 | BJ61: =(BK43+BK45+BK47+BK49+BK51+BK53+BK55+BK57+BK59)*"00:00:01" -> 00:16:00 | BK61: =IFERROR((BK44+BK46+BK48+BK50+BK52+BK54+BK56+BK58+BK60)*"00:00:01",0) -> 00:16:00 | BY61: =(BZ43+BZ45+BZ47+BZ49+BZ51+BZ53+BZ55+BZ57+BZ59)*"00:00:01" -> 00:16:00 | BZ61: =IFERROR((BZ44+BZ46+BZ48+BZ50+BZ52+BZ54+BZ56+BZ58+BZ60)*"00:00:01",0) -> 00:16:00 | CN61: =(CO43+CO45+CO47+CO49+CO51+CO53+CO55+CO57+CO59)*"00:00:01" -> 00:16:00 | CO61: =IFERROR((CO44+CO46+CO48+CO50+CO52+CO54+CO56+CO58+CO60)*"00:00:01",0) -> 00:16:00 | DC61: =(DD43+DD45+DD47+DD49+DD51+DD53+DD55+DD57+DD59)*"00:00:01" -> 00:16:00 | DD61: =IFERROR((DD44+DD46+DD48+DD50+DD52+DD54+DD56+DD58+DD60)*"00:00:01",0) -> 00:16:00 | DR61: =(DS43+DS45+DS47+DS49+DS51+DS53+DS55+DS57+DS59)*"00:00:01" -> 00:16:00 | DS61: =IFERROR((DS44+DS46+DS48+DS50+DS52+DS54+DS56+DS58+DS60)*"00:00:01",0) -> 00:16:00 | EG61: =(EH43+EH45+EH47+EH49+EH51+EH53+EH55+EH57+EH59)*"00:00:01" -> 00:16:00 | EH61: =IFERROR((EH44+EH46+EH48+EH50+EH52+EH54+EH56+EH58+EH60)*"00:00:01",0) -> 00:16:00
A63: Pourquoi avoir choisi cet entrainement ? (expression libre)
B65: BLOCS CHOISIS | Q65: BLOCS CHOISIS | AF65: BLOCS CHOISIS | AU65: BLOCS CHOISIS | BJ65: BLOCS CHOISIS | BY65: BLOCS CHOISIS | CN65: BLOCS CHOISIS | DC65: BLOCS CHOISIS | DR65: BLOCS CHOISIS | EG65: BLOCS CHOISIS
B66: 1 BLOC = 4x8 TEMPS | Q66: 1 BLOC = 4x8 TEMPS | AF66: 1 BLOC = 4x8 TEMPS | AU66: 1 BLOC = 4x8 TEMPS | BJ66: 1 BLOC = 4x8 TEMPS | BY66: 1 BLOC = 4x8 TEMPS | CN66: 1 BLOC = 4x8 TEMPS | DC66: 1 BLOC = 4x8 TEMPS | DR66: 1 BLOC = 4x8 TEMPS | EG66: 1 BLOC = 4x8 TEMPS
A67: BLOC 1 | B67: =CONCATENATE(SUMIF(E67,"<>")+SUMIF(H67,"<>")+SUMIF(K67,"<>")+SUMIF(N67,"<>")+SUMIF(E69,"<>")+SUMIF(H69,"<>")+SUMIF(K69,"<>")+SUMIF(N69,"<>")," temps") -> 32 temps | C67: MARCHE | E67: =IFERROR(VLOOKUP(C67,TOUSLESPAS!$B$4:$C$207,2,FALSE),"") -> 4 | F67: MARCHE | H67: =IFERROR(VLOOKUP(F67,TOUSLESPAS!$B$4:$C$207,2,FALSE),"") -> 4 | I67: V-STEP | K67: =IFERROR(VLOOKUP(I67,TOUSLESPAS!$B$4:$C$207,2,FALSE),"") -> 4 | L67: V-STEP | N67: =IFERROR(VLOOKUP(L67,TOUSLESPAS!$B$4:$C$207,2,FALSE),"") -> 4 | Q67: =CONCATENATE(SUMIF(T67,"<>")+SUMIF(W67,"<>")+SUMIF(Z67,"<>")+SUMIF(AC67,"<>")+SUMIF(T69,"<>")+SUMIF(W69,"<>")+SUMIF(Z69,"<>")+SUMIF(AC69,"<>")," temps") -> 32 temps | R67: =IF(C67="","",C67) -> MARCHE | T67: =IFERROR(VLOOKUP(R67,TOUSLESPAS!$B$4:$C$207,2,FALSE),"") -> 4 | U67: =IF(F67="","",F67) -> MARCHE | W67: =IFERROR(VLOOKUP(U67,TOUSLESPAS!$B$4:$C$207,2,FALSE),"") -> 4 | X67: =IF(I67="","",I67) -> V-STEP | Z67: =IFERROR(VLOOKUP(X67,TOUSLESPAS!$B$4:$C$207,2,FALSE),"") -> 4 | AA67: =IF(L67="","",L67) -> V-STEP | AC67: =IFERROR(VLOOKUP(AA67,TOUSLESPAS!$B$4:$C$207,2,FALSE),"") -> 4 | AF67: =CONCATENATE(SUMIF(AI67,"<>")+SUMIF(AL67,"<>")+SUMIF(AO67,"<>")+SUMIF(AR67,"<>")+SUMIF(AI69,"<>")+SUMIF(AL69,"<>")+SUMIF(AO69,"<>")+SUMIF(AR69,"<>")," temps") -> 32 temps | AG67: =IF(R67="","",R67) -> MARCHE | AI67: =IFERROR(VLOOKUP(AG67,TOUSLESPAS!$B$4:$C$207,2,FALSE),"") -> 4 | AJ67: =IF(U67="","",U67) -> MARCHE | AL67: =IFERROR(VLOOKUP(AJ67,TOUSLESPAS!$B$4:$C$207,2,FALSE),"") -> 4 | AM67: =IF(X67="","",X67) -> V-STEP | AO67: =IFERROR(VLOOKUP(AM67,TOUSLESPAS!$B$4:$C$207,2,FALSE),"") -> 4 | AP67: =IF(AA67="","",AA67) -> V-STEP | AR67: =IFERROR(VLOOKUP(AP67,TOUSLESPAS!$B$4:$C$207,2,FALSE),"") -> 4 | AU67: =CONCATENATE(SUMIF(AX67,"<>")+SUMIF(BA67,"<>")+SUMIF(BD67,"<>")+SUMIF(BG67,"<>")+SUMIF(AX69,"<>")+SUMIF(BA69,"<>")+SUMIF(BD69,"<>")+SUMIF(BG69,"<>")," temps") -> 32 temps | AV67: =IF(AG67="","",AG67) -> MARCHE | AX67: =IFERROR(VLOOKUP(AV67,TOUSLESPAS!$B$4:$C$207,2,FALSE),"") -> 4 | AY67: =IF(AJ67="","",AJ67) -> MARCHE | BA67: =IFERROR(VLOOKUP(AY67,TOUSLESPAS!$B$4:$C$207,2,FALSE),"") -> 4 | BB67: =IF(AM67="","",AM67) -> V-STEP | BD67: =IFERROR(VLOOKUP(BB67,TOUSLESPAS!$B$4:$C$207,2,FALSE),"") -> 4 | BE67: =IF(AP67="","",AP67) -> V-STEP | BG67: =IFERROR(VLOOKUP(BE67,TOUSLESPAS!$B$4:$C$207,2,FALSE),"") -> 4 | BJ67: =CONCATENATE(SUMIF(BM67,"<>")+SUMIF(BP67,"<>")+SUMIF(BS67,"<>")+SUMIF(BV67,"<>")+SUMIF(BM69,"<>")+SUMIF(BP69,"<>")+SUMIF(BS69,"<>")+SUMIF(BV69,"<>")," temps") -> 32 temps | BK67: =IF(AV67="","",AV67) -> MARCHE | BM67: =IFERROR(VLOOKUP(BK67,TOUSLESPAS!$B$4:$C$207,2,FALSE),"") -> 4 | BN67: =IF(AY67="","",AY67) -> MARCHE | BP67: =IFERROR(VLOOKUP(BN67,TOUSLESPAS!$B$4:$C$207,2,FALSE),"") -> 4 | BQ67: =IF(BB67="","",BB67) -> V-STEP | BS67: =IFERROR(VLOOKUP(BQ67,TOUSLESPAS!$B$4:$C$207,2,FALSE),"") -> 4 | BT67: =IF(BE67="","",BE67) -> V-STEP | BV67: =IFERROR(VLOOKUP(BT67,TOUSLESPAS!$B$4:$C$207,2,FALSE),"") -> 4 | BY67: =CONCATENATE(SUMIF(CB67,"<>")+SUMIF(CE67,"<>")+SUMIF(CH67,"<>")+SUMIF(CK67,"<>")+SUMIF(CB69,"<>")+SUMIF(CE69,"<>")+SUMIF(CH69,"<>")+SUMIF(CK69,"<>")," temps") -> 32 temps | BZ67: =IF(BK67="","",BK67) -> MARCHE | CB67: =IFERROR(VLOOKUP(BZ67,TOUSLESPAS!$B$4:$C$207,2,FALSE),"") -> 4 | CC67: =IF(BN67="","",BN67) -> MARCHE | CE67: =IFERROR(VLOOKUP(CC67,TOUSLESPAS!$B$4:$C$207,2,FALSE),"") -> 4 | CF67: =IF(BQ67="","",BQ67) -> V-STEP | CH67: =IFERROR(VLOOKUP(CF67,TOUSLESPAS!$B$4:$C$207,2,FALSE),"") -> 4 | CI67: =IF(BT67="","",BT67) -> V-STEP | CK67: =IFERROR(VLOOKUP(CI67,TOUSLESPAS!$B$4:$C$207,2,FALSE),"") -> 4 | CN67: =CONCATENATE(SUMIF(CQ67,"<>")+SUMIF(CT67,"<>")+SUMIF(CW67,"<>")+SUMIF(CZ67,"<>")+SUMIF(CQ69,"<>")+SUMIF(CT69,"<>")+SUMIF(CW69,"<>")+SUMIF(CZ69,"<>")," temps") -> 32 temps | CO67: =IF(BZ67="","",BZ67) -> MARCHE | CQ67: =IFERROR(VLOOKUP(CO67,TOUSLESPAS!$B$4:$C$207,2,FALSE),"") -> 4 | CR67: =IF(CC67="","",CC67) -> MARCHE | CT67: =IFERROR(VLOOKUP(CR67,TOUSLESPAS!$B$4:$C$207,2,FALSE),"") -> 4 | CU67: =IF(CF67="","",CF67) -> V-STEP | CW67: =IFERROR(VLOOKUP(CU67,TOUSLESPAS!$B$4:$C$207,2,FALSE),"") -> 4 | CX67: =IF(CI67="","",CI67) -> V-STEP | CZ67: =IFERROR(VLOOKUP(CX67,TOUSLESPAS!$B$4:$C$207,2,FALSE),"") -> 4 | DC67: =CONCATENATE(SUMIF(DF67,"<>")+SUMIF(DI67,"<>")+SUMIF(DL67,"<>")+SUMIF(DO67,"<>")+SUMIF(DF69,"<>")+SUMIF(DI69,"<>")+SUMIF(DL69,"<>")+SUMIF(DO69,"<>")," temps") -> 32 temps | DD67: =IF(CO67="","",CO67) -> MARCHE | DF67: =IFERROR(VLOOKUP(DD67,TOUSLESPAS!$B$4:$C$207,2,FALSE),"") -> 4 | DG67: =IF(CR67="","",CR67) -> MARCHE | DI67: =IFERROR(VLOOKUP(DG67,TOUSLESPAS!$B$4:$C$207,2,FALSE),"") -> 4 | DJ67: =IF(CU67="","",CU67) -> V-STEP | DL67: =IFERROR(VLOOKUP(DJ67,TOUSLESPAS!$B$4:$C$207,2,FALSE),"") -> 4 | DM67: =IF(CX67="","",CX67) -> V-STEP | DO67: =IFERROR(VLOOKUP(DM67,TOUSLESPAS!$B$4:$C$207,2,FALSE),"") -> 4 | DR67: =CONCATENATE(SUMIF(DU67,"<>")+SUMIF(DX67,"<>")+SUMIF(EA67,"<>")+SUMIF(ED67,"<>")+SUMIF(DU69,"<>")+SUMIF(DX69,"<>")+SUMIF(EA69,"<>")+SUMIF(ED69,"<>")," temps") -> 32 temps | DS67: =IF(DD67="","",DD67) -> MARCHE | DU67: =IFERROR(VLOOKUP(DS67,TOUSLESPAS!$B$4:$C$207,2,FALSE),"") -> 4 | DV67: =IF(DG67="","",DG67) -> MARCHE | DX67: =IFERROR(VLOOKUP(DV67,TOUSLESPAS!$B$4:$C$207,2,FALSE),"") -> 4 | DY67: =IF(DJ67="","",DJ67) -> V-STEP | EA67: =IFERROR(VLOOKUP(DY67,TOUSLESPAS!$B$4:$C$207,2,FALSE),"") -> 4 | EB67: =IF(DM67="","",DM67) -> V-STEP | ED67: =IFERROR(VLOOKUP(EB67,TOUSLESPAS!$B$4:$C$207,2,FALSE),"") -> 4 | EG67: =CONCATENATE(SUMIF(EJ67,"<>")+SUMIF(EM67,"<>")+SUMIF(EP67,"<>")+SUMIF(ES67,"<>")+SUMIF(EJ69,"<>")+SUMIF(EM69,"<>")+SUMIF(EP69,"<>")+SUMIF(ES69,"<>")," temps") -> 32 temps | EH67: =IF(DS67="","",DS67) -> MARCHE | EJ67: =IFERROR(VLOOKUP(EH67,TOUSLESPAS!$B$4:$C$207,2,FALSE),"") -> 4 | EK67: =IF(DV67="","",DV67) -> MARCHE | EM67: =IFERROR(VLOOKUP(EK67,TOUSLESPAS!$B$4:$C$207,2,FALSE),"") -> 4 | EN67: =IF(DY67="","",DY67) -> V-STEP | EP67: =IFERROR(VLOOKUP(EN67,TOUSLESPAS!$B$4:$C$207,2,FALSE),"") -> 4 | EQ67: =IF(EB67="","",EB67) -> V-STEP | ES67: =IFERROR(VLOOKUP(EQ67,TOUSLESPAS!$B$4:$C$207,2,FALSE),"") -> 4
C69: GENOU | E69: =IFERROR(VLOOKUP(C69,TOUSLESPAS!$B$4:$C$207,2,FALSE),"") -> 4 | F69: GENOU | H69: =IFERROR(VLOOKUP(F69,TOUSLESPAS!$B$4:$C$207,2,FALSE),"") -> 4 | I69: COUP DE PIED | K69: =IFERROR(VLOOKUP(I69,TOUSLESPAS!$B$4:$C$207,2,FALSE),"") -> 4 | L69: COUP DE PIED | N69: =IFERROR(VLOOKUP(L69,TOUSLESPAS!$B$4:$C$207,2,FALSE),"") -> 4 | R69: =IF(C69="","",C69) -> GENOU | T69: =IFERROR(VLOOKUP(R69,TOUSLESPAS!$B$4:$C$207,2,FALSE),"") -> 4 | U69: =IF(F69="","",F69) -> GENOU | W69: =IFERROR(VLOOKUP(U69,TOUSLESPAS!$B$4:$C$207,2,FALSE),"") -> 4 | X69: =IF(I69="","",I69) -> COUP DE PIED | Z69: =IFERROR(VLOOKUP(X69,TOUSLESPAS!$B$4:$C$207,2,FALSE),"") -> 4 | AA69: =IF(L69="","",L69) -> COUP DE PIED | AC69: =IFERROR(VLOOKUP(AA69,TOUSLESPAS!$B$4:$C$207,2,FALSE),"") -> 4 | AG69: =IF(R69="","",R69) -> GENOU | AI69: =IFERROR(VLOOKUP(AG69,TOUSLESPAS!$B$4:$C$207,2,FALSE),"") -> 4 | AJ69: =IF(U69="","",U69) -> GENOU | AL69: =IFERROR(VLOOKUP(AJ69,TOUSLESPAS!$B$4:$C$207,2,FALSE),"") -> 4 | AM69: =IF(X69="","",X69) -> COUP DE PIED | AO69: =IFERROR(VLOOKUP(AM69,TOUSLESPAS!$B$4:$C$207,2,FALSE),"") -> 4 | AP69: =IF(AA69="","",AA69) -> COUP DE PIED | AR69: =IFERROR(VLOOKUP(AP69,TOUSLESPAS!$B$4:$C$207,2,FALSE),"") -> 4 | AV69: =IF(AG69="","",AG69) -> GENOU | AX69: =IFERROR(VLOOKUP(AV69,TOUSLESPAS!$B$4:$C$207,2,FALSE),"") -> 4 | AY69: =IF(AJ69="","",AJ69) -> GENOU | BA69: =IFERROR(VLOOKUP(AY69,TOUSLESPAS!$B$4:$C$207,2,FALSE),"") -> 4 | BB69: =IF(AM69="","",AM69) -> COUP DE PIED | BD69: =IFERROR(VLOOKUP(BB69,TOUSLESPAS!$B$4:$C$207,2,FALSE),"") -> 4 | BE69: =IF(AP69="","",AP69) -> COUP DE PIED | BG69: =IFERROR(VLOOKUP(BE69,TOUSLESPAS!$B$4:$C$207,2,FALSE),"") -> 4 | BK69: =IF(AV69="","",AV69) -> GENOU | BM69: =IFERROR(VLOOKUP(BK69,TOUSLESPAS!$B$4:$C$207,2,FALSE),"") -> 4 | BN69: =IF(AY69="","",AY69) -> GENOU | BP69: =IFERROR(VLOOKUP(BN69,TOUSLESPAS!$B$4:$C$207,2,FALSE),"") -> 4 | BQ69: =IF(BB69="","",BB69) -> COUP DE PIED | BS69: =IFERROR(VLOOKUP(BQ69,TOUSLESPAS!$B$4:$C$207,2,FALSE),"") -> 4 | BT69: =IF(BE69="","",BE69) -> COUP DE PIED | BV69: =IFERROR(VLOOKUP(BT69,TOUSLESPAS!$B$4:$C$207,2,FALSE),"") -> 4 | BZ69: =IF(BK69="","",BK69) -> GENOU | CB69: =IFERROR(VLOOKUP(BZ69,TOUSLESPAS!$B$4:$C$207,2,FALSE),"") -> 4 | CC69: =IF(BN69="","",BN69) -> GENOU | CE69: =IFERROR(VLOOKUP(CC69,TOUSLESPAS!$B$4:$C$207,2,FALSE),"") -> 4 | CF69: =IF(BQ69="","",BQ69) -> COUP DE PIED | CH69: =IFERROR(VLOOKUP(CF69,TOUSLESPAS!$B$4:$C$207,2,FALSE),"") -> 4 | CI69: =IF(BT69="","",BT69) -> COUP DE PIED | CK69: =IFERROR(VLOOKUP(CI69,TOUSLESPAS!$B$4:$C$207,2,FALSE),"") -> 4 | CO69: =IF(BZ69="","",BZ69) -> GENOU | CQ69: =IFERROR(VLOOKUP(CO69,TOUSLESPAS!$B$4:$C$207,2,FALSE),"") -> 4 | CR69: =IF(CC69="","",CC69) -> GENOU | CT69: =IFERROR(VLOOKUP(CR69,TOUSLESPAS!$B$4:$C$207,2,FALSE),"") -> 4 | CU69: =IF(CF69="","",CF69) -> COUP DE PIED | CW69: =IFERROR(VLOOKUP(CU69,TOUSLESPAS!$B$4:$C$207,2,FALSE),"") -> 4 | CX69: =IF(CI69="","",CI69) -> COUP DE PIED | CZ69: =IFERROR(VLOOKUP(CX69,TOUSLESPAS!$B$4:$C$207,2,FALSE),"") -> 4 | DD69: =IF(CO69="","",CO69) -> GENOU | DF69: =IFERROR(VLOOKUP(DD69,TOUSLESPAS!$B$4:$C$207,2,FALSE),"") -> 4 | DG69: =IF(CR69="","",CR69) -> GENOU | DI69: =IFERROR(VLOOKUP(DG69,TOUSLESPAS!$B$4:$C$207,2,FALSE),"") -> 4 | DJ69: =IF(CU69="","",CU69) -> COUP DE PIED | DL69: =IFERROR(VLOOKUP(DJ69,TOUSLESPAS!$B$4:$C$207,2,FALSE),"") -> 4 | DM69: =IF(CX69="","",CX69) -> COUP DE PIED | DO69: =IFERROR(VLOOKUP(DM69,TOUSLESPAS!$B$4:$C$207,2,FALSE),"") -> 4 | DS69: =IF(DD69="","",DD69) -> GENOU | DU69: =IFERROR(VLOOKUP(DS69,TOUSLESPAS!$B$4:$C$207,2,FALSE),"") -> 4 | DV69: =IF(DG69="","",DG69) -> GENOU | DX69: =IFERROR(VLOOKUP(DV69,TOUSLESPAS!$B$4:$C$207,2,FALSE),"") -> 4 | DY69: =IF(DJ69="","",DJ69) -> COUP DE PIED | EA69: =IFERROR(VLOOKUP(DY69,TOUSLESPAS!$B$4:$C$207,2,FALSE),"") -> 4 | EB69: =IF(DM69="","",DM69) -> COUP DE PIED | ED69: =IFERROR(VLOOKUP(EB69,TOUSLESPAS!$B$4:$C$207,2,FALSE),"") -> 4 | EH69: =IF(DS69="","",DS69) -> GENOU | EJ69: =IFERROR(VLOOKUP(EH69,TOUSLESPAS!$B$4:$C$207,2,FALSE),"") -> 4 | EK69: =IF(DV69="","",DV69) -> GENOU | EM69: =IFERROR(VLOOKUP(EK69,TOUSLESPAS!$B$4:$C$207,2,FALSE),"") -> 4 | EN69: =IF(DY69="","",DY69) -> COUP DE PIED | EP69: =IFERROR(VLOOKUP(EN69,TOUSLESPAS!$B$4:$C$207,2,FALSE),"") -> 4 | EQ69: =IF(EB69="","",EB69) -> COUP DE PIED | ES69: =IFERROR(VLOOKUP(EQ69,TOUSLESPAS!$B$4:$C$207,2,FALSE),"") -> 4
A71: BLOC 2 | B71: =CONCATENATE(SUMIF(E71,"<>")+SUMIF(H71,"<>")+SUMIF(K71,"<>")+SUMIF(N71,"<>")+SUMIF(E73,"<>")+SUMIF(H73,"<>")+SUMIF(K73,"<>")+SUMIF(N73,"<>")," temps") -> 0 temps | E71: =IFERROR(VLOOKUP(C71,TOUSLESPAS!$B$4:$C$207,2,FALSE),"") ->  | H71: =IFERROR(VLOOKUP(F71,TOUSLESPAS!$B$4:$C$207,2,FALSE),"") ->  | K71: =IFERROR(VLOOKUP(I71,TOUSLESPAS!$B$4:$C$207,2,FALSE),"") ->  | N71: =IFERROR(VLOOKUP(L71,TOUSLESPAS!$B$4:$C$207,2,FALSE),"") ->  | Q71: =CONCATENATE(SUMIF(T71,"<>")+SUMIF(W71,"<>")+SUMIF(Z71,"<>")+SUMIF(AC71,"<>")+SUMIF(T73,"<>")+SUMIF(W73,"<>")+SUMIF(Z73,"<>")+SUMIF(AC73,"<>")," temps") -> 0 temps | R71: =IF(C71="","",C71) ->  | T71: =IFERROR(VLOOKUP(R71,TOUSLESPAS!$B$4:$C$207,2,FALSE),"") ->  | U71: =IF(F71="","",F71) ->  | W71: =IFERROR(VLOOKUP(U71,TOUSLESPAS!$B$4:$C$207,2,FALSE),"") ->  | X71: =IF(I71="","",I71) ->  | Z71: =IFERROR(VLOOKUP(X71,TOUSLESPAS!$B$4:$C$207,2,FALSE),"") ->  | AA71: =IF(L71="","",L71) ->  | AC71: =IFERROR(VLOOKUP(AA71,TOUSLESPAS!$B$4:$C$207,2,FALSE),"") ->  | AF71: =CONCATENATE(SUMIF(AI71,"<>")+SUMIF(AL71,"<>")+SUMIF(AO71,"<>")+SUMIF(AR71,"<>")+SUMIF(AI73,"<>")+SUMIF(AL73,"<>")+SUMIF(AO73,"<>")+SUMIF(AR73,"<>")," temps") -> 0 temps | AG71: =IF(R71="","",R71) ->  | AI71: =IFERROR(VLOOKUP(AG71,TOUSLESPAS!$B$4:$C$207,2,FALSE),"") ->  | AJ71: =IF(U71="","",U71) ->  | AL71: =IFERROR(VLOOKUP(AJ71,TOUSLESPAS!$B$4:$C$207,2,FALSE),"") ->  | AM71: =IF(X71="","",X71) ->  | AO71: =IFERROR(VLOOKUP(AM71,TOUSLESPAS!$B$4:$C$207,2,FALSE),"") ->  | AP71: =IF(AA71="","",AA71) ->  | AR71: =IFERROR(VLOOKUP(AP71,TOUSLESPAS!$B$4:$C$207,2,FALSE),"") ->  | AU71: =CONCATENATE(SUMIF(AX71,"<>")+SUMIF(BA71,"<>")+SUMIF(BD71,"<>")+SUMIF(BG71,"<>")+SUMIF(AX73,"<>")+SUMIF(BA73,"<>")+SUMIF(BD73,"<>")+SUMIF(BG73,"<>")," temps") -> 0 temps | AV71: =IF(AG71="","",AG71) ->  | AX71: =IFERROR(VLOOKUP(AV71,TOUSLESPAS!$B$4:$C$207,2,FALSE),"") ->  | AY71: =IF(AJ71="","",AJ71) ->  | BA71: =IFERROR(VLOOKUP(AY71,TOUSLESPAS!$B$4:$C$207,2,FALSE),"") ->  | BB71: =IF(AM71="","",AM71) ->  | BD71: =IFERROR(VLOOKUP(BB71,TOUSLESPAS!$B$4:$C$207,2,FALSE),"") ->  | BE71: =IF(AP71="","",AP71) ->  | BG71: =IFERROR(VLOOKUP(BE71,TOUSLESPAS!$B$4:$C$207,2,FALSE),"") ->  | BJ71: =CONCATENATE(SUMIF(BM71,"<>")+SUMIF(BP71,"<>")+SUMIF(BS71,"<>")+SUMIF(BV71,"<>")+SUMIF(BM73,"<>")+SUMIF(BP73,"<>")+SUMIF(BS73,"<>")+SUMIF(BV73,"<>")," temps") -> 0 temps | BK71: =IF(AV71="","",AV71) ->  | BM71: =IFERROR(VLOOKUP(BK71,TOUSLESPAS!$B$4:$C$207,2,FALSE),"") ->  | BN71: =IF(AY71="","",AY71) ->  | BP71: =IFERROR(VLOOKUP(BN71,TOUSLESPAS!$B$4:$C$207,2,FALSE),"") ->  | BQ71: =IF(BB71="","",BB71) ->  | BS71: =IFERROR(VLOOKUP(BQ71,TOUSLESPAS!$B$4:$C$207,2,FALSE),"") ->  | BT71: =IF(BE71="","",BE71) ->  | BV71: =IFERROR(VLOOKUP(BT71,TOUSLESPAS!$B$4:$C$207,2,FALSE),"") ->  | BY71: =CONCATENATE(SUMIF(CB71,"<>")+SUMIF(CE71,"<>")+SUMIF(CH71,"<>")+SUMIF(CK71,"<>")+SUMIF(CB73,"<>")+SUMIF(CE73,"<>")+SUMIF(CH73,"<>")+SUMIF(CK73,"<>")," temps") -> 0 temps | BZ71: =IF(BK71="","",BK71) ->  | CB71: =IFERROR(VLOOKUP(BZ71,TOUSLESPAS!$B$4:$C$207,2,FALSE),"") ->  | CC71: =IF(BN71="","",BN71) ->  | CE71: =IFERROR(VLOOKUP(CC71,TOUSLESPAS!$B$4:$C$207,2,FALSE),"") ->  | CF71: =IF(BQ71="","",BQ71) ->  | CH71: =IFERROR(VLOOKUP(CF71,TOUSLESPAS!$B$4:$C$207,2,FALSE),"") ->  | CI71: =IF(BT71="","",BT71) ->  | CK71: =IFERROR(VLOOKUP(CI71,TOUSLESPAS!$B$4:$C$207,2,FALSE),"") ->  | CN71: =CONCATENATE(SUMIF(CQ71,"<>")+SUMIF(CT71,"<>")+SUMIF(CW71,"<>")+SUMIF(CZ71,"<>")+SUMIF(CQ73,"<>")+SUMIF(CT73,"<>")+SUMIF(CW73,"<>")+SUMIF(CZ73,"<>")," temps") -> 0 temps | CO71: =IF(BZ71="","",BZ71) ->  | CQ71: =IFERROR(VLOOKUP(CO71,TOUSLESPAS!$B$4:$C$207,2,FALSE),"") ->  | CR71: =IF(CC71="","",CC71) ->  | CT71: =IFERROR(VLOOKUP(CR71,TOUSLESPAS!$B$4:$C$207,2,FALSE),"") ->  | CU71: =IF(CF71="","",CF71) ->  | CW71: =IFERROR(VLOOKUP(CU71,TOUSLESPAS!$B$4:$C$207,2,FALSE),"") ->  | CX71: =IF(CI71="","",CI71) ->  | CZ71: =IFERROR(VLOOKUP(CX71,TOUSLESPAS!$B$4:$C$207,2,FALSE),"") ->  | DC71: =CONCATENATE(SUMIF(DF71,"<>")+SUMIF(DI71,"<>")+SUMIF(DL71,"<>")+SUMIF(DO71,"<>")+SUMIF(DF73,"<>")+SUMIF(DI73,"<>")+SUMIF(DL73,"<>")+SUMIF(DO73,"<>")," temps") -> 0 temps | DD71: =IF(CO71="","",CO71) ->  | DF71: =IFERROR(VLOOKUP(DD71,TOUSLESPAS!$B$4:$C$207,2,FALSE),"") ->  | DG71: =IF(CR71="","",CR71) ->  | DI71: =IFERROR(VLOOKUP(DG71,TOUSLESPAS!$B$4:$C$207,2,FALSE),"") ->  | DJ71: =IF(CU71="","",CU71) ->  | DL71: =IFERROR(VLOOKUP(DJ71,TOUSLESPAS!$B$4:$C$207,2,FALSE),"") ->  | DM71: =IF(CX71="","",CX71) ->  | DO71: =IFERROR(VLOOKUP(DM71,TOUSLESPAS!$B$4:$C$207,2,FALSE),"") ->  | DR71: =CONCATENATE(SUMIF(DU71,"<>")+SUMIF(DX71,"<>")+SUMIF(EA71,"<>")+SUMIF(ED71,"<>")+SUMIF(DU73,"<>")+SUMIF(DX73,"<>")+SUMIF(EA73,"<>")+SUMIF(ED73,"<>")," temps") -> 0 temps | DS71: =IF(DD71="","",DD71) ->  | DU71: =IFERROR(VLOOKUP(DS71,TOUSLESPAS!$B$4:$C$207,2,FALSE),"") ->  | DV71: =IF(DG71="","",DG71) ->  | DX71: =IFERROR(VLOOKUP(DV71,TOUSLESPAS!$B$4:$C$207,2,FALSE),"") ->  | DY71: =IF(DJ71="","",DJ71) ->  | EA71: =IFERROR(VLOOKUP(DY71,TOUSLESPAS!$B$4:$C$207,2,FALSE),"") ->  | EB71: =IF(DM71="","",DM71) ->  | ED71: =IFERROR(VLOOKUP(EB71,TOUSLESPAS!$B$4:$C$207,2,FALSE),"") ->  | EG71: =CONCATENATE(SUMIF(EJ71,"<>")+SUMIF(EM71,"<>")+SUMIF(EP71,"<>")+SUMIF(ES71,"<>")+SUMIF(EJ73,"<>")+SUMIF(EM73,"<>")+SUMIF(EP73,"<>")+SUMIF(ES73,"<>")," temps") -> 0 temps | EH71: =IF(DS71="","",DS71) ->  | EJ71: =IFERROR(VLOOKUP(EH71,TOUSLESPAS!$B$4:$C$207,2,FALSE),"") ->  | EK71: =IF(DV71="","",DV71) ->  | EM71: =IFERROR(VLOOKUP(EK71,TOUSLESPAS!$B$4:$C$207,2,FALSE),"") ->  | EN71: =IF(DY71="","",DY71) ->  | EP71: =IFERROR(VLOOKUP(EN71,TOUSLESPAS!$B$4:$C$207,2,FALSE),"") ->  | EQ71: =IF(EB71="","",EB71) ->  | ES71: =IFERROR(VLOOKUP(EQ71,TOUSLESPAS!$B$4:$C$207,2,FALSE),"") -> 
E73: =IFERROR(VLOOKUP(C73,TOUSLESPAS!$B$4:$C$207,2,FALSE),"") ->  | H73: =IFERROR(VLOOKUP(F73,TOUSLESPAS!$B$4:$C$207,2,FALSE),"") ->  | K73: =IFERROR(VLOOKUP(I73,TOUSLESPAS!$B$4:$C$207,2,FALSE),"") ->  | N73: =IFERROR(VLOOKUP(L73,TOUSLESPAS!$B$4:$C$207,2,FALSE),"") ->  | R73: =IF(C73="","",C73) ->  | T73: =IFERROR(VLOOKUP(R73,TOUSLESPAS!$B$4:$C$207,2,FALSE),"") ->  | U73: =IF(F73="","",F73) ->  | W73: =IFERROR(VLOOKUP(U73,TOUSLESPAS!$B$4:$C$207,2,FALSE),"") ->  | X73: =IF(I73="","",I73) ->  | Z73: =IFERROR(VLOOKUP(X73,TOUSLESPAS!$B$4:$C$207,2,FALSE),"") ->  | AA73: =IF(L73="","",L73) ->  | AC73: =IFERROR(VLOOKUP(AA73,TOUSLESPAS!$B$4:$C$207,2,FALSE),"") ->  | AG73: =IF(R73="","",R73) ->  | AI73: =IFERROR(VLOOKUP(AG73,TOUSLESPAS!$B$4:$C$207,2,FALSE),"") ->  | AJ73: =IF(U73="","",U73) ->  | AL73: =IFERROR(VLOOKUP(AJ73,TOUSLESPAS!$B$4:$C$207,2,FALSE),"") ->  | AM73: =IF(X73="","",X73) ->  | AO73: =IFERROR(VLOOKUP(AM73,TOUSLESPAS!$B$4:$C$207,2,FALSE),"") ->  | AP73: =IF(AA73="","",AA73) ->  | AR73: =IFERROR(VLOOKUP(AP73,TOUSLESPAS!$B$4:$C$207,2,FALSE),"") ->  | AV73: =IF(AG73="","",AG73) ->  | AX73: =IFERROR(VLOOKUP(AV73,TOUSLESPAS!$B$4:$C$207,2,FALSE),"") ->  | AY73: =IF(AJ73="","",AJ73) ->  | BA73: =IFERROR(VLOOKUP(AY73,TOUSLESPAS!$B$4:$C$207,2,FALSE),"") ->  | BB73: =IF(AM73="","",AM73) ->  | BD73: =IFERROR(VLOOKUP(BB73,TOUSLESPAS!$B$4:$C$207,2,FALSE),"") ->  | BE73: =IF(AP73="","",AP73) ->  | BG73: =IFERROR(VLOOKUP(BE73,TOUSLESPAS!$B$4:$C$207,2,FALSE),"") ->  | BK73: =IF(AV73="","",AV73) ->  | BM73: =IFERROR(VLOOKUP(BK73,TOUSLESPAS!$B$4:$C$207,2,FALSE),"") ->  | BN73: =IF(AY73="","",AY73) ->  | BP73: =IFERROR(VLOOKUP(BN73,TOUSLESPAS!$B$4:$C$207,2,FALSE),"") ->  | BQ73: =IF(BB73="","",BB73) ->  | BS73: =IFERROR(VLOOKUP(BQ73,TOUSLESPAS!$B$4:$C$207,2,FALSE),"") ->  | BT73: =IF(BE73="","",BE73) ->  | BV73: =IFERROR(VLOOKUP(BT73,TOUSLESPAS!$B$4:$C$207,2,FALSE),"") ->  | BZ73: =IF(BK73="","",BK73) ->  | CB73: =IFERROR(VLOOKUP(BZ73,TOUSLESPAS!$B$4:$C$207,2,FALSE),"") ->  | CC73: =IF(BN73="","",BN73) ->  | CE73: =IFERROR(VLOOKUP(CC73,TOUSLESPAS!$B$4:$C$207,2,FALSE),"") ->  | CF73: =IF(BQ73="","",BQ73) ->  | CH73: =IFERROR(VLOOKUP(CF73,TOUSLESPAS!$B$4:$C$207,2,FALSE),"") ->  | CI73: =IF(BT73="","",BT73) ->  | CK73: =IFERROR(VLOOKUP(CI73,TOUSLESPAS!$B$4:$C$207,2,FALSE),"") ->  | CO73: =IF(BZ73="","",BZ73) ->  | CQ73: =IFERROR(VLOOKUP(CO73,TOUSLESPAS!$B$4:$C$207,2,FALSE),"") ->  | CR73: =IF(CC73="","",CC73) ->  | CT73: =IFERROR(VLOOKUP(CR73,TOUSLESPAS!$B$4:$C$207,2,FALSE),"") ->  | CU73: =IF(CF73="","",CF73) ->  | CW73: =IFERROR(VLOOKUP(CU73,TOUSLESPAS!$B$4:$C$207,2,FALSE),"") ->  | CX73: =IF(CI73="","",CI73) ->  | CZ73: =IFERROR(VLOOKUP(CX73,TOUSLESPAS!$B$4:$C$207,2,FALSE),"") ->  | DD73: =IF(CO73="","",CO73) ->  | DF73: =IFERROR(VLOOKUP(DD73,TOUSLESPAS!$B$4:$C$207,2,FALSE),"") ->  | DG73: =IF(CR73="","",CR73) ->  | DI73: =IFERROR(VLOOKUP(DG73,TOUSLESPAS!$B$4:$C$207,2,FALSE),"") ->  | DJ73: =IF(CU73="","",CU73) ->  | DL73: =IFERROR(VLOOKUP(DJ73,TOUSLESPAS!$B$4:$C$207,2,FALSE),"") ->  | DM73: =IF(CX73="","",CX73) ->  | DO73: =IFERROR(VLOOKUP(DM73,TOUSLESPAS!$B$4:$C$207,2,FALSE),"") ->  | DS73: =IF(DD73="","",DD73) ->  | DU73: =IFERROR(VLOOKUP(DS73,TOUSLESPAS!$B$4:$C$207,2,FALSE),"") ->  | DV73: =IF(DG73="","",DG73) ->  | DX73: =IFERROR(VLOOKUP(DV73,TOUSLESPAS!$B$4:$C$207,2,FALSE),"") ->  | DY73: =IF(DJ73="","",DJ73) ->  | EA73: =IFERROR(VLOOKUP(DY73,TOUSLESPAS!$B$4:$C$207,2,FALSE),"") ->  | EB73: =IF(DM73="","",DM73) ->  | ED73: =IFERROR(VLOOKUP(EB73,TOUSLESPAS!$B$4:$C$207,2,FALSE),"") ->  | EH73: =IF(DS73="","",DS73) ->  | EJ73: =IFERROR(VLOOKUP(EH73,TOUSLESPAS!$B$4:$C$207,2,FALSE),"") ->  | EK73: =IF(DV73="","",DV73) ->  | EM73: =IFERROR(VLOOKUP(EK73,TOUSLESPAS!$B$4:$C$207,2,FALSE),"") ->  | EN73: =IF(DY73="","",DY73) ->  | EP73: =IFERROR(VLOOKUP(EN73,TOUSLESPAS!$B$4:$C$207,2,FALSE),"") ->  | EQ73: =IF(EB73="","",EB73) ->  | ES73: =IFERROR(VLOOKUP(EQ73,TOUSLESPAS!$B$4:$C$207,2,FALSE),"") -> 
A75: BLOC 3 | B75: =CONCATENATE(SUMIF(E75,"<>")+SUMIF(H75,"<>")+SUMIF(K75,"<>")+SUMIF(N75,"<>")+SUMIF(E77,"<>")+SUMIF(H77,"<>")+SUMIF(K77,"<>")+SUMIF(N77,"<>")," temps") -> 0 temps | E75: =IFERROR(VLOOKUP(C75,TOUSLESPAS!$B$4:$C$207,2,FALSE),"") ->  | H75: =IFERROR(VLOOKUP(F75,TOUSLESPAS!$B$4:$C$207,2,FALSE),"") ->  | K75: =IFERROR(VLOOKUP(I75,TOUSLESPAS!$B$4:$C$207,2,FALSE),"") ->  | N75: =IFERROR(VLOOKUP(L75,TOUSLESPAS!$B$4:$C$207,2,FALSE),"") ->  | Q75: =CONCATENATE(SUMIF(T75,"<>")+SUMIF(W75,"<>")+SUMIF(Z75,"<>")+SUMIF(AC75,"<>")+SUMIF(T77,"<>")+SUMIF(W77,"<>")+SUMIF(Z77,"<>")+SUMIF(AC77,"<>")," temps") -> 0 temps | R75: =IF(C75="","",C75) ->  | T75: =IFERROR(VLOOKUP(R75,TOUSLESPAS!$B$4:$C$207,2,FALSE),"") ->  | U75: =IF(F75="","",F75) ->  | W75: =IFERROR(VLOOKUP(U75,TOUSLESPAS!$B$4:$C$207,2,FALSE),"") ->  | X75: =IF(I75="","",I75) ->  | Z75: =IFERROR(VLOOKUP(X75,TOUSLESPAS!$B$4:$C$207,2,FALSE),"") ->  | AA75: =IF(L75="","",L75) ->  | AC75: =IFERROR(VLOOKUP(AA75,TOUSLESPAS!$B$4:$C$207,2,FALSE),"") ->  | AF75: =CONCATENATE(SUMIF(AI75,"<>")+SUMIF(AL75,"<>")+SUMIF(AO75,"<>")+SUMIF(AR75,"<>")+SUMIF(AI77,"<>")+SUMIF(AL77,"<>")+SUMIF(AO77,"<>")+SUMIF(AR77,"<>")," temps") -> 0 temps | AG75: =IF(R75="","",R75) ->  | AI75: =IFERROR(VLOOKUP(AG75,TOUSLESPAS!$B$4:$C$207,2,FALSE),"") ->  | AJ75: =IF(U75="","",U75) ->  | AL75: =IFERROR(VLOOKUP(AJ75,TOUSLESPAS!$B$4:$C$207,2,FALSE),"") ->  | AM75: =IF(X75="","",X75) ->  | AO75: =IFERROR(VLOOKUP(AM75,TOUSLESPAS!$B$4:$C$207,2,FALSE),"") ->  | AP75: =IF(AA75="","",AA75) ->  | AR75: =IFERROR(VLOOKUP(AP75,TOUSLESPAS!$B$4:$C$207,2,FALSE),"") ->  | AU75: =CONCATENATE(SUMIF(AX75,"<>")+SUMIF(BA75,"<>")+SUMIF(BD75,"<>")+SUMIF(BG75,"<>")+SUMIF(AX77,"<>")+SUMIF(BA77,"<>")+SUMIF(BD77,"<>")+SUMIF(BG77,"<>")," temps") -> 0 temps | AV75: =IF(AG75="","",AG75) ->  | AX75: =IFERROR(VLOOKUP(AV75,TOUSLESPAS!$B$4:$C$207,2,FALSE),"") ->  | AY75: =IF(AJ75="","",AJ75) ->  | BA75: =IFERROR(VLOOKUP(AY75,TOUSLESPAS!$B$4:$C$207,2,FALSE),"") ->  | BB75: =IF(AM75="","",AM75) ->  | BD75: =IFERROR(VLOOKUP(BB75,TOUSLESPAS!$B$4:$C$207,2,FALSE),"") ->  | BE75: =IF(AP75="","",AP75) ->  | BG75: =IFERROR(VLOOKUP(BE75,TOUSLESPAS!$B$4:$C$207,2,FALSE),"") ->  | BJ75: =CONCATENATE(SUMIF(BM75,"<>")+SUMIF(BP75,"<>")+SUMIF(BS75,"<>")+SUMIF(BV75,"<>")+SUMIF(BM77,"<>")+SUMIF(BP77,"<>")+SUMIF(BS77,"<>")+SUMIF(BV77,"<>")," temps") -> 0 temps | BK75: =IF(AV75="","",AV75) ->  | BM75: =IFERROR(VLOOKUP(BK75,TOUSLESPAS!$B$4:$C$207,2,FALSE),"") ->  | BN75: =IF(AY75="","",AY75) ->  | BP75: =IFERROR(VLOOKUP(BN75,TOUSLESPAS!$B$4:$C$207,2,FALSE),"") ->  | BQ75: =IF(BB75="","",BB75) ->  | BS75: =IFERROR(VLOOKUP(BQ75,TOUSLESPAS!$B$4:$C$207,2,FALSE),"") ->  | BT75: =IF(BE75="","",BE75) ->  | BV75: =IFERROR(VLOOKUP(BT75,TOUSLESPAS!$B$4:$C$207,2,FALSE),"") ->  | BY75: =CONCATENATE(SUMIF(CB75,"<>")+SUMIF(CE75,"<>")+SUMIF(CH75,"<>")+SUMIF(CK75,"<>")+SUMIF(CB77,"<>")+SUMIF(CE77,"<>")+SUMIF(CH77,"<>")+SUMIF(CK77,"<>")," temps") -> 0 temps | BZ75: =IF(BK75="","",BK75) ->  | CB75: =IFERROR(VLOOKUP(BZ75,TOUSLESPAS!$B$4:$C$207,2,FALSE),"") ->  | CC75: =IF(BN75="","",BN75) ->  | CE75: =IFERROR(VLOOKUP(CC75,TOUSLESPAS!$B$4:$C$207,2,FALSE),"") ->  | CF75: =IF(BQ75="","",BQ75) ->  | CH75: =IFERROR(VLOOKUP(CF75,TOUSLESPAS!$B$4:$C$207,2,FALSE),"") ->  | CI75: =IF(BT75="","",BT75) ->  | CK75: =IFERROR(VLOOKUP(CI75,TOUSLESPAS!$B$4:$C$207,2,FALSE),"") ->  | CN75: =CONCATENATE(SUMIF(CQ75,"<>")+SUMIF(CT75,"<>")+SUMIF(CW75,"<>")+SUMIF(CZ75,"<>")+SUMIF(CQ77,"<>")+SUMIF(CT77,"<>")+SUMIF(CW77,"<>")+SUMIF(CZ77,"<>")," temps") -> 0 temps | CO75: =IF(BZ75="","",BZ75) ->  | CQ75: =IFERROR(VLOOKUP(CO75,TOUSLESPAS!$B$4:$C$207,2,FALSE),"") ->  | CR75: =IF(CC75="","",CC75) ->  | CT75: =IFERROR(VLOOKUP(CR75,TOUSLESPAS!$B$4:$C$207,2,FALSE),"") ->  | CU75: =IF(CF75="","",CF75) ->  | CW75: =IFERROR(VLOOKUP(CU75,TOUSLESPAS!$B$4:$C$207,2,FALSE),"") ->  | CX75: =IF(CI75="","",CI75) ->  | CZ75: =IFERROR(VLOOKUP(CX75,TOUSLESPAS!$B$4:$C$207,2,FALSE),"") ->  | DC75: =CONCATENATE(SUMIF(DF75,"<>")+SUMIF(DI75,"<>")+SUMIF(DL75,"<>")+SUMIF(DO75,"<>")+SUMIF(DF77,"<>")+SUMIF(DI77,"<>")+SUMIF(DL77,"<>")+SUMIF(DO77,"<>")," temps") -> 0 temps | DD75: =IF(CO75="","",CO75) ->  | DF75: =IFERROR(VLOOKUP(DD75,TOUSLESPAS!$B$4:$C$207,2,FALSE),"") ->  | DG75: =IF(CR75="","",CR75) ->  | DI75: =IFERROR(VLOOKUP(DG75,TOUSLESPAS!$B$4:$C$207,2,FALSE),"") ->  | DJ75: =IF(CU75="","",CU75) ->  | DL75: =IFERROR(VLOOKUP(DJ75,TOUSLESPAS!$B$4:$C$207,2,FALSE),"") ->  | DM75: =IF(CX75="","",CX75) ->  | DO75: =IFERROR(VLOOKUP(DM75,TOUSLESPAS!$B$4:$C$207,2,FALSE),"") ->  | DR75: =CONCATENATE(SUMIF(DU75,"<>")+SUMIF(DX75,"<>")+SUMIF(EA75,"<>")+SUMIF(ED75,"<>")+SUMIF(DU77,"<>")+SUMIF(DX77,"<>")+SUMIF(EA77,"<>")+SUMIF(ED77,"<>")," temps") -> 0 temps | DS75: =IF(DD75="","",DD75) ->  | DU75: =IFERROR(VLOOKUP(DS75,TOUSLESPAS!$B$4:$C$207,2,FALSE),"") ->  | DV75: =IF(DG75="","",DG75) ->  | DX75: =IFERROR(VLOOKUP(DV75,TOUSLESPAS!$B$4:$C$207,2,FALSE),"") ->  | DY75: =IF(DJ75="","",DJ75) ->  | EA75: =IFERROR(VLOOKUP(DY75,TOUSLESPAS!$B$4:$C$207,2,FALSE),"") ->  | EB75: =IF(DM75="","",DM75) ->  | ED75: =IFERROR(VLOOKUP(EB75,TOUSLESPAS!$B$4:$C$207,2,FALSE),"") ->  | EG75: =CONCATENATE(SUMIF(EJ75,"<>")+SUMIF(EM75,"<>")+SUMIF(EP75,"<>")+SUMIF(ES75,"<>")+SUMIF(EJ77,"<>")+SUMIF(EM77,"<>")+SUMIF(EP77,"<>")+SUMIF(ES77,"<>")," temps") -> 0 temps | EH75: =IF(DS75="","",DS75) ->  | EJ75: =IFERROR(VLOOKUP(EH75,TOUSLESPAS!$B$4:$C$207,2,FALSE),"") ->  | EK75: =IF(DV75="","",DV75) ->  | EM75: =IFERROR(VLOOKUP(EK75,TOUSLESPAS!$B$4:$C$207,2,FALSE),"") ->  | EN75: =IF(DY75="","",DY75) ->  | EP75: =IFERROR(VLOOKUP(EN75,TOUSLESPAS!$B$4:$C$207,2,FALSE),"") ->  | EQ75: =IF(EB75="","",EB75) ->  | ES75: =IFERROR(VLOOKUP(EQ75,TOUSLESPAS!$B$4:$C$207,2,FALSE),"") -> 
E77: =IFERROR(VLOOKUP(C77,TOUSLESPAS!$B$4:$C$207,2,FALSE),"") ->  | H77: =IFERROR(VLOOKUP(F77,TOUSLESPAS!$B$4:$C$207,2,FALSE),"") ->  | K77: =IFERROR(VLOOKUP(I77,TOUSLESPAS!$B$4:$C$207,2,FALSE),"") ->  | N77: =IFERROR(VLOOKUP(L77,TOUSLESPAS!$B$4:$C$207,2,FALSE),"") ->  | R77: =IF(C77="","",C77) ->  | T77: =IFERROR(VLOOKUP(R77,TOUSLESPAS!$B$4:$C$207,2,FALSE),"") ->  | U77: =IF(F77="","",F77) ->  | W77: =IFERROR(VLOOKUP(U77,TOUSLESPAS!$B$4:$C$207,2,FALSE),"") ->  | X77: =IF(I77="","",I77) ->  | Z77: =IFERROR(VLOOKUP(X77,TOUSLESPAS!$B$4:$C$207,2,FALSE),"") ->  | AA77: =IF(L77="","",L77) ->  | AC77: =IFERROR(VLOOKUP(AA77,TOUSLESPAS!$B$4:$C$207,2,FALSE),"") ->  | AG77: =IF(R77="","",R77) ->  | AI77: =IFERROR(VLOOKUP(AG77,TOUSLESPAS!$B$4:$C$207,2,FALSE),"") ->  | AJ77: =IF(U77="","",U77) ->  | AL77: =IFERROR(VLOOKUP(AJ77,TOUSLESPAS!$B$4:$C$207,2,FALSE),"") ->  | AM77: =IF(X77="","",X77) ->  | AO77: =IFERROR(VLOOKUP(AM77,TOUSLESPAS!$B$4:$C$207,2,FALSE),"") ->  | AP77: =IF(AA77="","",AA77) ->  | AR77: =IFERROR(VLOOKUP(AP77,TOUSLESPAS!$B$4:$C$207,2,FALSE),"") ->  | AV77: =IF(AG77="","",AG77) ->  | AX77: =IFERROR(VLOOKUP(AV77,TOUSLESPAS!$B$4:$C$207,2,FALSE),"") ->  | AY77: =IF(AJ77="","",AJ77) ->  | BA77: =IFERROR(VLOOKUP(AY77,TOUSLESPAS!$B$4:$C$207,2,FALSE),"") ->  | BB77: =IF(AM77="","",AM77) ->  | BD77: =IFERROR(VLOOKUP(BB77,TOUSLESPAS!$B$4:$C$207,2,FALSE),"") ->  | BE77: =IF(AP77="","",AP77) ->  | BG77: =IFERROR(VLOOKUP(BE77,TOUSLESPAS!$B$4:$C$207,2,FALSE),"") ->  | BK77: =IF(AV77="","",AV77) ->  | BM77: =IFERROR(VLOOKUP(BK77,TOUSLESPAS!$B$4:$C$207,2,FALSE),"") ->  | BN77: =IF(AY77="","",AY77) ->  | BP77: =IFERROR(VLOOKUP(BN77,TOUSLESPAS!$B$4:$C$207,2,FALSE),"") ->  | BQ77: =IF(BB77="","",BB77) ->  | BS77: =IFERROR(VLOOKUP(BQ77,TOUSLESPAS!$B$4:$C$207,2,FALSE),"") ->  | BT77: =IF(BE77="","",BE77) ->  | BV77: =IFERROR(VLOOKUP(BT77,TOUSLESPAS!$B$4:$C$207,2,FALSE),"") ->  | BZ77: =IF(BK77="","",BK77) ->  | CB77: =IFERROR(VLOOKUP(BZ77,TOUSLESPAS!$B$4:$C$207,2,FALSE),"") ->  | CC77: =IF(BN77="","",BN77) ->  | CE77: =IFERROR(VLOOKUP(CC77,TOUSLESPAS!$B$4:$C$207,2,FALSE),"") ->  | CF77: =IF(BQ77="","",BQ77) ->  | CH77: =IFERROR(VLOOKUP(CF77,TOUSLESPAS!$B$4:$C$207,2,FALSE),"") ->  | CI77: =IF(BT77="","",BT77) ->  | CK77: =IFERROR(VLOOKUP(CI77,TOUSLESPAS!$B$4:$C$207,2,FALSE),"") ->  | CO77: =IF(BZ77="","",BZ77) ->  | CQ77: =IFERROR(VLOOKUP(CO77,TOUSLESPAS!$B$4:$C$207,2,FALSE),"") ->  | CR77: =IF(CC77="","",CC77) ->  | CT77: =IFERROR(VLOOKUP(CR77,TOUSLESPAS!$B$4:$C$207,2,FALSE),"") ->  | CU77: =IF(CF77="","",CF77) ->  | CW77: =IFERROR(VLOOKUP(CU77,TOUSLESPAS!$B$4:$C$207,2,FALSE),"") ->  | CX77: =IF(CI77="","",CI77) ->  | CZ77: =IFERROR(VLOOKUP(CX77,TOUSLESPAS!$B$4:$C$207,2,FALSE),"") ->  | DD77: =IF(CO77="","",CO77) ->  | DF77: =IFERROR(VLOOKUP(DD77,TOUSLESPAS!$B$4:$C$207,2,FALSE),"") ->  | DG77: =IF(CR77="","",CR77) ->  | DI77: =IFERROR(VLOOKUP(DG77,TOUSLESPAS!$B$4:$C$207,2,FALSE),"") ->  | DJ77: =IF(CU77="","",CU77) ->  | DL77: =IFERROR(VLOOKUP(DJ77,TOUSLESPAS!$B$4:$C$207,2,FALSE),"") ->  | DM77: =IF(CX77="","",CX77) ->  | DO77: =IFERROR(VLOOKUP(DM77,TOUSLESPAS!$B$4:$C$207,2,FALSE),"") ->  | DS77: =IF(DD77="","",DD77) ->  | DU77: =IFERROR(VLOOKUP(DS77,TOUSLESPAS!$B$4:$C$207,2,FALSE),"") ->  | DV77: =IF(DG77="","",DG77) ->  | DX77: =IFERROR(VLOOKUP(DV77,TOUSLESPAS!$B$4:$C$207,2,FALSE),"") ->  | DY77: =IF(DJ77="","",DJ77) ->  | EA77: =IFERROR(VLOOKUP(DY77,TOUSLESPAS!$B$4:$C$207,2,FALSE),"") ->  | EB77: =IF(DM77="","",DM77) ->  | ED77: =IFERROR(VLOOKUP(EB77,TOUSLESPAS!$B$4:$C$207,2,FALSE),"") ->  | EH77: =IF(DS77="","",DS77) ->  | EJ77: =IFERROR(VLOOKUP(EH77,TOUSLESPAS!$B$4:$C$207,2,FALSE),"") ->  | EK77: =IF(DV77="","",DV77) ->  | EM77: =IFERROR(VLOOKUP(EK77,TOUSLESPAS!$B$4:$C$207,2,FALSE),"") ->  | EN77: =IF(DY77="","",DY77) ->  | EP77: =IFERROR(VLOOKUP(EN77,TOUSLESPAS!$B$4:$C$207,2,FALSE),"") ->  | EQ77: =IF(EB77="","",EB77) ->  | ES77: =IFERROR(VLOOKUP(EQ77,TOUSLESPAS!$B$4:$C$207,2,FALSE),"") -> 
A79: BLOC 4 | B79: =CONCATENATE(SUMIF(E79,"<>")+SUMIF(H79,"<>")+SUMIF(K79,"<>")+SUMIF(N79,"<>")+SUMIF(E81,"<>")+SUMIF(H81,"<>")+SUMIF(K81,"<>")+SUMIF(N81,"<>")," temps") -> 0 temps | E79: =IFERROR(VLOOKUP(C79,TOUSLESPAS!$B$4:$C$207,2,FALSE),"") ->  | H79: =IFERROR(VLOOKUP(F79,TOUSLESPAS!$B$4:$C$207,2,FALSE),"") ->  | K79: =IFERROR(VLOOKUP(I79,TOUSLESPAS!$B$4:$C$207,2,FALSE),"") ->  | N79: =IFERROR(VLOOKUP(L79,TOUSLESPAS!$B$4:$C$207,2,FALSE),"") ->  | Q79: =CONCATENATE(SUMIF(T79,"<>")+SUMIF(W79,"<>")+SUMIF(Z79,"<>")+SUMIF(AC79,"<>")+SUMIF(T81,"<>")+SUMIF(W81,"<>")+SUMIF(Z81,"<>")+SUMIF(AC81,"<>")," temps") -> 0 temps | R79: =IF(C79="","",C79) ->  | T79: =IFERROR(VLOOKUP(R79,TOUSLESPAS!$B$4:$C$207,2,FALSE),"") ->  | U79: =IF(F79="","",F79) ->  | W79: =IFERROR(VLOOKUP(U79,TOUSLESPAS!$B$4:$C$207,2,FALSE),"") ->  | X79: =IF(I79="","",I79) ->  | Z79: =IFERROR(VLOOKUP(X79,TOUSLESPAS!$B$4:$C$207,2,FALSE),"") ->  | AA79: =IF(L79="","",L79) ->  | AC79: =IFERROR(VLOOKUP(AA79,TOUSLESPAS!$B$4:$C$207,2,FALSE),"") ->  | AF79: =CONCATENATE(SUMIF(AI79,"<>")+SUMIF(AL79,"<>")+SUMIF(AO79,"<>")+SUMIF(AR79,"<>")+SUMIF(AI81,"<>")+SUMIF(AL81,"<>")+SUMIF(AO81,"<>")+SUMIF(AR81,"<>")," temps") -> 0 temps | AG79: =IF(R79="","",R79) ->  | AI79: =IFERROR(VLOOKUP(AG79,TOUSLESPAS!$B$4:$C$207,2,FALSE),"") ->  | AJ79: =IF(U79="","",U79) ->  | AL79: =IFERROR(VLOOKUP(AJ79,TOUSLESPAS!$B$4:$C$207,2,FALSE),"") ->  | AM79: =IF(X79="","",X79) ->  | AO79: =IFERROR(VLOOKUP(AM79,TOUSLESPAS!$B$4:$C$207,2,FALSE),"") ->  | AP79: =IF(AA79="","",AA79) ->  | AR79: =IFERROR(VLOOKUP(AP79,TOUSLESPAS!$B$4:$C$207,2,FALSE),"") ->  | AU79: =CONCATENATE(SUMIF(AX79,"<>")+SUMIF(BA79,"<>")+SUMIF(BD79,"<>")+SUMIF(BG79,"<>")+SUMIF(AX81,"<>")+SUMIF(BA81,"<>")+SUMIF(BD81,"<>")+SUMIF(BG81,"<>")," temps") -> 0 temps | AV79: =IF(AG79="","",AG79) ->  | AX79: =IFERROR(VLOOKUP(AV79,TOUSLESPAS!$B$4:$C$207,2,FALSE),"") ->  | AY79: =IF(AJ79="","",AJ79) ->  | BA79: =IFERROR(VLOOKUP(AY79,TOUSLESPAS!$B$4:$C$207,2,FALSE),"") ->  | BB79: =IF(AM79="","",AM79) ->  | BD79: =IFERROR(VLOOKUP(BB79,TOUSLESPAS!$B$4:$C$207,2,FALSE),"") ->  | BE79: =IF(AP79="","",AP79) ->  | BG79: =IFERROR(VLOOKUP(BE79,TOUSLESPAS!$B$4:$C$207,2,FALSE),"") ->  | BJ79: =CONCATENATE(SUMIF(BM79,"<>")+SUMIF(BP79,"<>")+SUMIF(BS79,"<>")+SUMIF(BV79,"<>")+SUMIF(BM81,"<>")+SUMIF(BP81,"<>")+SUMIF(BS81,"<>")+SUMIF(BV81,"<>")," temps") -> 0 temps | BK79: =IF(AV79="","",AV79) ->  | BM79: =IFERROR(VLOOKUP(BK79,TOUSLESPAS!$B$4:$C$207,2,FALSE),"") ->  | BN79: =IF(AY79="","",AY79) ->  | BP79: =IFERROR(VLOOKUP(BN79,TOUSLESPAS!$B$4:$C$207,2,FALSE),"") ->  | BQ79: =IF(BB79="","",BB79) ->  | BS79: =IFERROR(VLOOKUP(BQ79,TOUSLESPAS!$B$4:$C$207,2,FALSE),"") ->  | BT79: =IF(BE79="","",BE79) ->  | BV79: =IFERROR(VLOOKUP(BT79,TOUSLESPAS!$B$4:$C$207,2,FALSE),"") ->  | BY79: =CONCATENATE(SUMIF(CB79,"<>")+SUMIF(CE79,"<>")+SUMIF(CH79,"<>")+SUMIF(CK79,"<>")+SUMIF(CB81,"<>")+SUMIF(CE81,"<>")+SUMIF(CH81,"<>")+SUMIF(CK81,"<>")," temps") -> 0 temps | BZ79: =IF(BK79="","",BK79) ->  | CB79: =IFERROR(VLOOKUP(BZ79,TOUSLESPAS!$B$4:$C$207,2,FALSE),"") ->  | CC79: =IF(BN79="","",BN79) ->  | CE79: =IFERROR(VLOOKUP(CC79,TOUSLESPAS!$B$4:$C$207,2,FALSE),"") ->  | CF79: =IF(BQ79="","",BQ79) ->  | CH79: =IFERROR(VLOOKUP(CF79,TOUSLESPAS!$B$4:$C$207,2,FALSE),"") ->  | CI79: =IF(BT79="","",BT79) ->  | CK79: =IFERROR(VLOOKUP(CI79,TOUSLESPAS!$B$4:$C$207,2,FALSE),"") ->  | CN79: =CONCATENATE(SUMIF(CQ79,"<>")+SUMIF(CT79,"<>")+SUMIF(CW79,"<>")+SUMIF(CZ79,"<>")+SUMIF(CQ81,"<>")+SUMIF(CT81,"<>")+SUMIF(CW81,"<>")+SUMIF(CZ81,"<>")," temps") -> 0 temps | CO79: =IF(BZ79="","",BZ79) ->  | CQ79: =IFERROR(VLOOKUP(CO79,TOUSLESPAS!$B$4:$C$207,2,FALSE),"") ->  | CR79: =IF(CC79="","",CC79) ->  | CT79: =IFERROR(VLOOKUP(CR79,TOUSLESPAS!$B$4:$C$207,2,FALSE),"") ->  | CU79: =IF(CF79="","",CF79) ->  | CW79: =IFERROR(VLOOKUP(CU79,TOUSLESPAS!$B$4:$C$207,2,FALSE),"") ->  | CX79: =IF(CI79="","",CI79) ->  | CZ79: =IFERROR(VLOOKUP(CX79,TOUSLESPAS!$B$4:$C$207,2,FALSE),"") ->  | DC79: =CONCATENATE(SUMIF(DF79,"<>")+SUMIF(DI79,"<>")+SUMIF(DL79,"<>")+SUMIF(DO79,"<>")+SUMIF(DF81,"<>")+SUMIF(DI81,"<>")+SUMIF(DL81,"<>")+SUMIF(DO81,"<>")," temps") -> 0 temps | DD79: =IF(CO79="","",CO79) ->  | DF79: =IFERROR(VLOOKUP(DD79,TOUSLESPAS!$B$4:$C$207,2,FALSE),"") ->  | DG79: =IF(CR79="","",CR79) ->  | DI79: =IFERROR(VLOOKUP(DG79,TOUSLESPAS!$B$4:$C$207,2,FALSE),"") ->  | DJ79: =IF(CU79="","",CU79) ->  | DL79: =IFERROR(VLOOKUP(DJ79,TOUSLESPAS!$B$4:$C$207,2,FALSE),"") ->  | DM79: =IF(CX79="","",CX79) ->  | DO79: =IFERROR(VLOOKUP(DM79,TOUSLESPAS!$B$4:$C$207,2,FALSE),"") ->  | DR79: =CONCATENATE(SUMIF(DU79,"<>")+SUMIF(DX79,"<>")+SUMIF(EA79,"<>")+SUMIF(ED79,"<>")+SUMIF(DU81,"<>")+SUMIF(DX81,"<>")+SUMIF(EA81,"<>")+SUMIF(ED81,"<>")," temps") -> 0 temps | DS79: =IF(DD79="","",DD79) ->  | DU79: =IFERROR(VLOOKUP(DS79,TOUSLESPAS!$B$4:$C$207,2,FALSE),"") ->  | DV79: =IF(DG79="","",DG79) ->  | DX79: =IFERROR(VLOOKUP(DV79,TOUSLESPAS!$B$4:$C$207,2,FALSE),"") ->  | DY79: =IF(DJ79="","",DJ79) ->  | EA79: =IFERROR(VLOOKUP(DY79,TOUSLESPAS!$B$4:$C$207,2,FALSE),"") ->  | EB79: =IF(DM79="","",DM79) ->  | ED79: =IFERROR(VLOOKUP(EB79,TOUSLESPAS!$B$4:$C$207,2,FALSE),"") ->  | EG79: =CONCATENATE(SUMIF(EJ79,"<>")+SUMIF(EM79,"<>")+SUMIF(EP79,"<>")+SUMIF(ES79,"<>")+SUMIF(EJ81,"<>")+SUMIF(EM81,"<>")+SUMIF(EP81,"<>")+SUMIF(ES81,"<>")," temps") -> 0 temps | EH79: =IF(DS79="","",DS79) ->  | EJ79: =IFERROR(VLOOKUP(EH79,TOUSLESPAS!$B$4:$C$207,2,FALSE),"") ->  | EK79: =IF(DV79="","",DV79) ->  | EM79: =IFERROR(VLOOKUP(EK79,TOUSLESPAS!$B$4:$C$207,2,FALSE),"") ->  | EN79: =IF(DY79="","",DY79) ->  | EP79: =IFERROR(VLOOKUP(EN79,TOUSLESPAS!$B$4:$C$207,2,FALSE),"") ->  | EQ79: =IF(EB79="","",EB79) ->  | ES79: =IFERROR(VLOOKUP(EQ79,TOUSLESPAS!$B$4:$C$207,2,FALSE),"") -> 
E81: =IFERROR(VLOOKUP(C81,TOUSLESPAS!$B$4:$C$207,2,FALSE),"") ->  | H81: =IFERROR(VLOOKUP(F81,TOUSLESPAS!$B$4:$C$207,2,FALSE),"") ->  | K81: =IFERROR(VLOOKUP(I81,TOUSLESPAS!$B$4:$C$207,2,FALSE),"") ->  | N81: =IFERROR(VLOOKUP(L81,TOUSLESPAS!$B$4:$C$207,2,FALSE),"") ->  | R81: =IF(C81="","",C81) ->  | T81: =IFERROR(VLOOKUP(R81,TOUSLESPAS!$B$4:$C$207,2,FALSE),"") ->  | U81: =IF(F81="","",F81) ->  | W81: =IFERROR(VLOOKUP(U81,TOUSLESPAS!$B$4:$C$207,2,FALSE),"") ->  | X81: =IF(I81="","",I81) ->  | Z81: =IFERROR(VLOOKUP(X81,TOUSLESPAS!$B$4:$C$207,2,FALSE),"") ->  | AA81: =IF(L81="","",L81) ->  | AC81: =IFERROR(VLOOKUP(AA81,TOUSLESPAS!$B$4:$C$207,2,FALSE),"") ->  | AG81: =IF(R81="","",R81) ->  | AI81: =IFERROR(VLOOKUP(AG81,TOUSLESPAS!$B$4:$C$207,2,FALSE),"") ->  | AJ81: =IF(U81="","",U81) ->  | AL81: =IFERROR(VLOOKUP(AJ81,TOUSLESPAS!$B$4:$C$207,2,FALSE),"") ->  | AM81: =IF(X81="","",X81) ->  | AO81: =IFERROR(VLOOKUP(AM81,TOUSLESPAS!$B$4:$C$207,2,FALSE),"") ->  | AP81: =IF(AA81="","",AA81) ->  | AR81: =IFERROR(VLOOKUP(AP81,TOUSLESPAS!$B$4:$C$207,2,FALSE),"") ->  | AV81: =IF(AG81="","",AG81) ->  | AX81: =IFERROR(VLOOKUP(AV81,TOUSLESPAS!$B$4:$C$207,2,FALSE),"") ->  | AY81: =IF(AJ81="","",AJ81) ->  | BA81: =IFERROR(VLOOKUP(AY81,TOUSLESPAS!$B$4:$C$207,2,FALSE),"") ->  | BB81: =IF(AM81="","",AM81) ->  | BD81: =IFERROR(VLOOKUP(BB81,TOUSLESPAS!$B$4:$C$207,2,FALSE),"") ->  | BE81: =IF(AP81="","",AP81) ->  | BG81: =IFERROR(VLOOKUP(BE81,TOUSLESPAS!$B$4:$C$207,2,FALSE),"") ->  | BK81: =IF(AV81="","",AV81) ->  | BM81: =IFERROR(VLOOKUP(BK81,TOUSLESPAS!$B$4:$C$207,2,FALSE),"") ->  | BN81: =IF(AY81="","",AY81) ->  | BP81: =IFERROR(VLOOKUP(BN81,TOUSLESPAS!$B$4:$C$207,2,FALSE),"") ->  | BQ81: =IF(BB81="","",BB81) ->  | BS81: =IFERROR(VLOOKUP(BQ81,TOUSLESPAS!$B$4:$C$207,2,FALSE),"") ->  | BT81: =IF(BE81="","",BE81) ->  | BV81: =IFERROR(VLOOKUP(BT81,TOUSLESPAS!$B$4:$C$207,2,FALSE),"") ->  | BZ81: =IF(BK81="","",BK81) ->  | CB81: =IFERROR(VLOOKUP(BZ81,TOUSLESPAS!$B$4:$C$207,2,FALSE),"") ->  | CC81: =IF(BN81="","",BN81) ->  | CE81: =IFERROR(VLOOKUP(CC81,TOUSLESPAS!$B$4:$C$207,2,FALSE),"") ->  | CF81: =IF(BQ81="","",BQ81) ->  | CH81: =IFERROR(VLOOKUP(CF81,TOUSLESPAS!$B$4:$C$207,2,FALSE),"") ->  | CI81: =IF(BT81="","",BT81) ->  | CK81: =IFERROR(VLOOKUP(CI81,TOUSLESPAS!$B$4:$C$207,2,FALSE),"") ->  | CO81: =IF(BZ81="","",BZ81) ->  | CQ81: =IFERROR(VLOOKUP(CO81,TOUSLESPAS!$B$4:$C$207,2,FALSE),"") ->  | CR81: =IF(CC81="","",CC81) ->  | CT81: =IFERROR(VLOOKUP(CR81,TOUSLESPAS!$B$4:$C$207,2,FALSE),"") ->  | CU81: =IF(CF81="","",CF81) ->  | CW81: =IFERROR(VLOOKUP(CU81,TOUSLESPAS!$B$4:$C$207,2,FALSE),"") ->  | CX81: =IF(CI81="","",CI81) ->  | CZ81: =IFERROR(VLOOKUP(CX81,TOUSLESPAS!$B$4:$C$207,2,FALSE),"") ->  | DD81: =IF(CO81="","",CO81) ->  | DF81: =IFERROR(VLOOKUP(DD81,TOUSLESPAS!$B$4:$C$207,2,FALSE),"") ->  | DG81: =IF(CR81="","",CR81) ->  | DI81: =IFERROR(VLOOKUP(DG81,TOUSLESPAS!$B$4:$C$207,2,FALSE),"") ->  | DJ81: =IF(CU81="","",CU81) ->  | DL81: =IFERROR(VLOOKUP(DJ81,TOUSLESPAS!$B$4:$C$207,2,FALSE),"") ->  | DM81: =IF(CX81="","",CX81) ->  | DO81: =IFERROR(VLOOKUP(DM81,TOUSLESPAS!$B$4:$C$207,2,FALSE),"") ->  | DS81: =IF(DD81="","",DD81) ->  | DU81: =IFERROR(VLOOKUP(DS81,TOUSLESPAS!$B$4:$C$207,2,FALSE),"") ->  | DV81: =IF(DG81="","",DG81) ->  | DX81: =IFERROR(VLOOKUP(DV81,TOUSLESPAS!$B$4:$C$207,2,FALSE),"") ->  | DY81: =IF(DJ81="","",DJ81) ->  | EA81: =IFERROR(VLOOKUP(DY81,TOUSLESPAS!$B$4:$C$207,2,FALSE),"") ->  | EB81: =IF(DM81="","",DM81) ->  | ED81: =IFERROR(VLOOKUP(EB81,TOUSLESPAS!$B$4:$C$207,2,FALSE),"") ->  | EH81: =IF(DS81="","",DS81) ->  | EJ81: =IFERROR(VLOOKUP(EH81,TOUSLESPAS!$B$4:$C$207,2,FALSE),"") ->  | EK81: =IF(DV81="","",DV81) ->  | EM81: =IFERROR(VLOOKUP(EK81,TOUSLESPAS!$B$4:$C$207,2,FALSE),"") ->  | EN81: =IF(DY81="","",DY81) ->  | EP81: =IFERROR(VLOOKUP(EN81,TOUSLESPAS!$B$4:$C$207,2,FALSE),"") ->  | EQ81: =IF(EB81="","",EB81) ->  | ES81: =IFERROR(VLOOKUP(EQ81,TOUSLESPAS!$B$4:$C$207,2,FALSE),"") -> 
A84: MUSIQUE CHOISIE | C84: Rihanna | R84: Rihanna | AG84: Rihanna | AV84: Rihanna | BK84: Rihanna | BZ84: Rihanna | CO84: Rihanna | DD84: Rihanna | DS84: Rihanna | EH84: Rihanna
B86: ANALYSE DE LA PRESTATION | Q86: ANALYSE DE LA PRESTATION | AF86: ANALYSE DE LA PRESTATION | AU86: ANALYSE DE LA PRESTATION | BJ86: ANALYSE DE LA PRESTATION | BY86: ANALYSE DE LA PRESTATION | CN86: ANALYSE DE LA PRESTATION | DC86: ANALYSE DE LA PRESTATION | DR86: ANALYSE DE LA PRESTATION | EG86: ANALYSE DE LA PRESTATION
A87: Ta prestation est-elle réussie ? Pourquoi ? (expression libre)
A88: Respiration | B88: Assez essoufflé | D88: =IF(F3="","",$B$88) ->  | Q88: Assez essoufflé | S88: =IF(U3="","",$B$88) ->  | AF88: Assez essoufflé | AH88: =IF(AJ3="","",$B$88) ->  | AU88: Assez essoufflé | AW88: =IF(AY3="","",$B$88) ->  | BJ88: Assez essoufflé | BL88: =IF(BN3="","",$B$88) ->  | BY88: Assez essoufflé | CA88: =IF(CC3="","",$B$88) ->  | CN88: Assez essoufflé | CP88: =IF(CR3="","",$B$88) ->  | DC88: Assez essoufflé | DE88: =IF(DG3="","",$B$88) ->  | DR88: Assez essoufflé | DT88: =IF(DV3="","",$B$88) ->  | EG88: Assez essoufflé | EI88: =IF(EK3="","",$B$88) -> 
A89: Transpiration | B89: Aucune | D89: =IF(F4="","",$B$88) ->  | Q89: Aucune | S89: =IF(U4="","",$B$88) ->  | AF89: Aucune | AH89: =IF(AJ4="","",$B$88) ->  | AU89: Aucune | AW89: =IF(AY4="","",$B$88) ->  | BJ89: Aucune | BL89: =IF(BN4="","",$B$88) ->  | BY89: Aucune | CA89: =IF(CC4="","",$B$88) ->  | CN89: Aucune | CP89: =IF(CR4="","",$B$88) ->  | DC89: Aucune | DE89: =IF(DG4="","",$B$88) ->  | DR89: Aucune | DT89: =IF(DV4="","",$B$88) ->  | EG89: Aucune | EI89: =IF(EK4="","",$B$88) -> 
A90: Perception Effort | B90: Très très léger | Q90: Très très léger | AF90: Très très léger | AU90: Très très léger | BJ90: Très très léger | BY90: Très très léger | CN90: Très très léger | DC90: Très très léger | DR90: Très très léger | EG90: Très très léger
A91: Fatigue | B91: Je suis obligé de faire des pauses | Q91: Je suis obligé de faire des pauses | AF91: Je suis obligé de faire des pauses | AU91: Je suis obligé de faire des pauses | BJ91: Je suis obligé de faire des pauses | BY91: Je suis obligé de faire des pauses | CN91: Je suis obligé de faire des pauses | DC91: Je suis obligé de faire des pauses | DR91: Je suis obligé de faire des pauses | EG91: Je suis obligé de faire des pauses
A92: Mémoire | B92: Beaucoup de trous | Q92: Beaucoup de trous | AF92: Beaucoup de trous | AU92: Beaucoup de trous | BJ92: Beaucoup de trous | BY92: Beaucoup de trous | CN92: Beaucoup de trous | DC92: Beaucoup de trous | DR92: Beaucoup de trous | EG92: Beaucoup de trous

Sheet EVALCONTINUE2TAB
B2: TAPR
C3: Asiya | E3: Inès | G3: Narjisse | M3: Aslem | O3: Hamza | W3: Dhayaeddine | Y3: Abdelwahid | AA3: Abdelwahid | AC3: Abdelwahid | AE3: Abdelwahid | AG3: Abdelwahid | AI3: Abdelwahid | AK3: Abdelwahid | AO3: Abdelwahid | AQ3: Abdelwahid | AS3: Abdelwahid | AU3: Abdelwahid | AW3: Abdelwahid | BA3: Abdelwahid | BE3: Abdelwahid | BG3: Abdelwahid | BK3: Abdelwahid | BM3: Abdelwahid | BO3: Abdelwahid | BQ3: Abdelwahid
A5: SEANCE 1 | B5: =DEBUTSTEP!$AP$4 -> Prendre sa FC efficacement | C5: Régulière mais pas au bon moment | D5: =VLOOKUP(C5,DEBUTSTEP!$AP$4:$AQ$33,2,FALSE) -> A | E5: absent | F5: =VLOOKUP(E5,DEBUTSTEP!$AP$4:$AQ$33,2,FALSE) -> X | G5: Aléatoire | H5: =VLOOKUP(G5,DEBUTSTEP!$AP$4:$AQ$33,2,FALSE) -> ECA | I5: Jamais | J5: =VLOOKUP(I5,DEBUTSTEP!$AP$4:$AQ$33,2,FALSE) -> NA | K5: Jamais | L5: =VLOOKUP(K5,DEBUTSTEP!$AP$4:$AQ$33,2,FALSE) -> NA | M5: Jamais | N5: =VLOOKUP(M5,DEBUTSTEP!$AP$4:$AQ$33,2,FALSE) -> NA | O5: Jamais | P5: =VLOOKUP(O5,DEBUTSTEP!$AP$4:$AQ$33,2,FALSE) -> NA | Q5: Jamais | R5: =VLOOKUP(Q5,DEBUTSTEP!$AP$4:$AQ$33,2,FALSE) -> NA | S5: Jamais | T5: =VLOOKUP(S5,DEBUTSTEP!$AP$4:$AQ$33,2,FALSE) -> NA | U5: Jamais | V5: =VLOOKUP(U5,DEBUTSTEP!$AP$4:$AQ$33,2,FALSE) -> NA | W5: Jamais | X5: =VLOOKUP(W5,DEBUTSTEP!$AP$4:$AQ$33,2,FALSE) -> NA | Y5: Jamais | Z5: =VLOOKUP(Y5,DEBUTSTEP!$AP$4:$AQ$33,2,FALSE) -> NA | AA5: Jamais | AB5: =VLOOKUP(AA5,DEBUTSTEP!$AP$4:$AQ$33,2,FALSE) -> NA | AC5: Jamais | AD5: =VLOOKUP(AC5,DEBUTSTEP!$AP$4:$AQ$33,2,FALSE) -> NA | AE5: Jamais | AF5: =VLOOKUP(AE5,DEBUTSTEP!$AP$4:$AQ$33,2,FALSE) -> NA | AG5: Jamais | AH5: =VLOOKUP(AG5,DEBUTSTEP!$AP$4:$AQ$33,2,FALSE) -> NA | AI5: Jamais | AJ5: =VLOOKUP(AI5,DEBUTSTEP!$AP$4:$AQ$33,2,FALSE) -> NA | AK5: Jamais | AL5: =VLOOKUP(AK5,DEBUTSTEP!$AP$4:$AQ$33,2,FALSE) -> NA | AM5: Jamais | AN5: =VLOOKUP(AM5,DEBUTSTEP!$AP$4:$AQ$33,2,FALSE) -> NA | AO5: Jamais | AP5: =VLOOKUP(AO5,DEBUTSTEP!$AP$4:$AQ$33,2,FALSE) -> NA | AQ5: Jamais | AR5: =VLOOKUP(AQ5,DEBUTSTEP!$AP$4:$AQ$33,2,FALSE) -> NA | AS5: Jamais | AT5: =VLOOKUP(AS5,DEBUTSTEP!$AP$4:$AQ$33,2,FALSE) -> NA | AU5: Jamais | AV5: =VLOOKUP(AU5,DEBUTSTEP!$AP$4:$AQ$33,2,FALSE) -> NA | AW5: Jamais | AX5: =VLOOKUP(AW5,DEBUTSTEP!$AP$4:$AQ$33,2,FALSE) -> NA | AY5: Jamais | AZ5: =VLOOKUP(AY5,DEBUTSTEP!$AP$4:$AQ$33,2,FALSE) -> NA | BA5: Jamais | BB5: =VLOOKUP(BA5,DEBUTSTEP!$AP$4:$AQ$33,2,FALSE) -> NA | BC5: Jamais | BD5: =VLOOKUP(BC5,DEBUTSTEP!$AP$4:$AQ$33,2,FALSE) -> NA | BE5: Jamais | BF5: =VLOOKUP(BE5,DEBUTSTEP!$AP$4:$AQ$33,2,FALSE) -> NA | BG5: Jamais | BH5: =VLOOKUP(BG5,DEBUTSTEP!$AP$4:$AQ$33,2,FALSE) -> NA | BI5: Jamais | BJ5: =VLOOKUP(BI5,DEBUTSTEP!$AP$4:$AQ$33,2,FALSE) -> NA | BK5: Jamais | BL5: =VLOOKUP(BK5,DEBUTSTEP!$AP$4:$AQ$33,2,FALSE) -> NA | BM5: Jamais | BN5: =VLOOKUP(BM5,DEBUTSTEP!$AP$4:$AQ$33,2,FALSE) -> NA | BO5: Jamais | BP5: =VLOOKUP(BO5,DEBUTSTEP!$AP$4:$AQ$33,2,FALSE) -> NA | BQ5: Jamais | BR5: =VLOOKUP(BQ5,DEBUTSTEP!$AP$4:$AQ$33,2,FALSE) -> NA | BS5: Jamais | BT5: =VLOOKUP(BS5,DEBUTSTEP!$AP$4:$AQ$33,2,FALSE) -> NA
B6: =DEBUTSTEP!$AR$4 -> S'engager dans le mobile | C6: Modéré | D6: =VLOOKUP(C6,DEBUTSTEP!$AR$4:$AS$33,2,FALSE) -> 2 | F6: =VLOOKUP(E6,DEBUTSTEP!$AR$4:$AS$33,2,FALSE) -> 0 | H6: =VLOOKUP(G6,DEBUTSTEP!$AR$4:$AS$33,2,FALSE) -> 0 | I6: Faible | J6: =VLOOKUP(I6,DEBUTSTEP!$AR$4:$AS$33,2,FALSE) -> 1 | K6: Faible | L6: =VLOOKUP(K6,DEBUTSTEP!$AR$4:$AS$33,2,FALSE) -> 1 | M6: Faible | N6: =VLOOKUP(M6,DEBUTSTEP!$AR$4:$AS$33,2,FALSE) -> 1 | O6: Faible | P6: =VLOOKUP(O6,DEBUTSTEP!$AR$4:$AS$33,2,FALSE) -> 1 | Q6: Faible | R6: =VLOOKUP(Q6,DEBUTSTEP!$AR$4:$AS$33,2,FALSE) -> 1 | S6: Faible | T6: =VLOOKUP(S6,DEBUTSTEP!$AR$4:$AS$33,2,FALSE) -> 1 | U6: Faible | V6: =VLOOKUP(U6,DEBUTSTEP!$AR$4:$AS$33,2,FALSE) -> 1 | W6: Faible | X6: =VLOOKUP(W6,DEBUTSTEP!$AR$4:$AS$33,2,FALSE) -> 1 | Y6: Faible | Z6: =VLOOKUP(Y6,DEBUTSTEP!$AR$4:$AS$33,2,FALSE) -> 1 | AA6: Faible | AB6: =VLOOKUP(AA6,DEBUTSTEP!$AR$4:$AS$33,2,FALSE) -> 1 | AC6: Faible | AD6: =VLOOKUP(AC6,DEBUTSTEP!$AR$4:$AS$33,2,FALSE) -> 1 | AE6: Faible | AF6: =VLOOKUP(AE6,DEBUTSTEP!$AR$4:$AS$33,2,FALSE) -> 1 | AG6: Faible | AH6: =VLOOKUP(AG6,DEBUTSTEP!$AR$4:$AS$33,2,FALSE) -> 1 | AI6: Faible | AJ6: =VLOOKUP(AI6,DEBUTSTEP!$AR$4:$AS$33,2,FALSE) -> 1 | AK6: Faible | AL6: =VLOOKUP(AK6,DEBUTSTEP!$AR$4:$AS$33,2,FALSE) -> 1 | AM6: Faible | AN6: =VLOOKUP(AM6,DEBUTSTEP!$AR$4:$AS$33,2,FALSE) -> 1 | AO6: Faible | AP6: =VLOOKUP(AO6,DEBUTSTEP!$AR$4:$AS$33,2,FALSE) -> 1 | AQ6: Faible | AR6: =VLOOKUP(AQ6,DEBUTSTEP!$AR$4:$AS$33,2,FALSE) -> 1 | AS6: Faible | AT6: =VLOOKUP(AS6,DEBUTSTEP!$AR$4:$AS$33,2,FALSE) -> 1 | AU6: Faible | AV6: =VLOOKUP(AU6,DEBUTSTEP!$AR$4:$AS$33,2,FALSE) -> 1 | AW6: Faible | AX6: =VLOOKUP(AW6,DEBUTSTEP!$AR$4:$AS$33,2,FALSE) -> 1 | AY6: Faible | AZ6: =VLOOKUP(AY6,DEBUTSTEP!$AR$4:$AS$33,2,FALSE) -> 1 | BA6: Faible | BB6: =VLOOKUP(BA6,DEBUTSTEP!$AR$4:$AS$33,2,FALSE) -> 1 | BC6: Faible | BD6: =VLOOKUP(BC6,DEBUTSTEP!$AR$4:$AS$33,2,FALSE) -> 1 | BE6: Faible | BF6: =VLOOKUP(BE6,DEBUTSTEP!$AR$4:$AS$33,2,FALSE) -> 1 | BG6: Faible | BH6: =VLOOKUP(BG6,DEBUTSTEP!$AR$4:$AS$33,2,FALSE) -> 1 | BI6: Faible | BJ6: =VLOOKUP(BI6,DEBUTSTEP!$AR$4:$AS$33,2,FALSE) -> 1 | BK6: Faible | BL6: =VLOOKUP(BK6,DEBUTSTEP!$AR$4:$AS$33,2,FALSE) -> 1 | BM6: Faible | BN6: =VLOOKUP(BM6,DEBUTSTEP!$AR$4:$AS$33,2,FALSE) -> 1 | BO6: Faible | BP6: =VLOOKUP(BO6,DEBUTSTEP!$AR$4:$AS$33,2,FALSE) -> 1 | BQ6: Faible | BR6: =VLOOKUP(BQ6,DEBUTSTEP!$AR$4:$AS$33,2,FALSE) -> 1 | BS6: Faible | BT6: =VLOOKUP(BS6,DEBUTSTEP!$AR$4:$AS$33,2,FALSE) -> 1
B7: =DEBUTSTEP!$AT$4 -> Agir en sécu | C7: Quelques avertissements | D7: =VLOOKUP(C7,DEBUTSTEP!$AT$4:$AU$33,2,FALSE) -> 1 | F7: =VLOOKUP(E7,DEBUTSTEP!$AT$4:$AU$33,2,FALSE) -> 0 | H7: =VLOOKUP(G7,DEBUTSTEP!$AT$4:$AU$33,2,FALSE) -> 0 | I7: Quelques avertissements | J7: =VLOOKUP(I7,DEBUTSTEP!$AT$4:$AU$33,2,FALSE) -> 1 | K7: Quelques avertissements | L7: =VLOOKUP(K7,DEBUTSTEP!$AT$4:$AU$33,2,FALSE) -> 1 | M7: Quelques avertissements | N7: =VLOOKUP(M7,DEBUTSTEP!$AT$4:$AU$33,2,FALSE) -> 1 | O7: Quelques avertissements | P7: =VLOOKUP(O7,DEBUTSTEP!$AT$4:$AU$33,2,FALSE) -> 1 | Q7: Quelques avertissements | R7: =VLOOKUP(Q7,DEBUTSTEP!$AT$4:$AU$33,2,FALSE) -> 1 | S7: Quelques avertissements | T7: =VLOOKUP(S7,DEBUTSTEP!$AT$4:$AU$33,2,FALSE) -> 1 | U7: Quelques avertissements | V7: =VLOOKUP(U7,DEBUTSTEP!$AT$4:$AU$33,2,FALSE) -> 1 | W7: Quelques avertissements | X7: =VLOOKUP(W7,DEBUTSTEP!$AT$4:$AU$33,2,FALSE) -> 1 | Y7: Quelques avertissements | Z7: =VLOOKUP(Y7,DEBUTSTEP!$AT$4:$AU$33,2,FALSE) -> 1 | AA7: Quelques avertissements | AB7: =VLOOKUP(AA7,DEBUTSTEP!$AT$4:$AU$33,2,FALSE) -> 1 | AC7: Quelques avertissements | AD7: =VLOOKUP(AC7,DEBUTSTEP!$AT$4:$AU$33,2,FALSE) -> 1 | AE7: Quelques avertissements | AF7: =VLOOKUP(AE7,DEBUTSTEP!$AT$4:$AU$33,2,FALSE) -> 1 | AG7: Quelques avertissements | AH7: =VLOOKUP(AG7,DEBUTSTEP!$AT$4:$AU$33,2,FALSE) -> 1 | AI7: Quelques avertissements | AJ7: =VLOOKUP(AI7,DEBUTSTEP!$AT$4:$AU$33,2,FALSE) -> 1 | AK7: Quelques avertissements | AL7: =VLOOKUP(AK7,DEBUTSTEP!$AT$4:$AU$33,2,FALSE) -> 1 | AM7: Quelques avertissements | AN7: =VLOOKUP(AM7,DEBUTSTEP!$AT$4:$AU$33,2,FALSE) -> 1 | AO7: Quelques avertissements | AP7: =VLOOKUP(AO7,DEBUTSTEP!$AT$4:$AU$33,2,FALSE) -> 1 | AQ7: Quelques avertissements | AR7: =VLOOKUP(AQ7,DEBUTSTEP!$AT$4:$AU$33,2,FALSE) -> 1 | AS7: Quelques avertissements | AT7: =VLOOKUP(AS7,DEBUTSTEP!$AT$4:$AU$33,2,FALSE) -> 1 | AU7: Quelques avertissements | AV7: =VLOOKUP(AU7,DEBUTSTEP!$AT$4:$AU$33,2,FALSE) -> 1 | AW7: Quelques avertissements | AX7: =VLOOKUP(AW7,DEBUTSTEP!$AT$4:$AU$33,2,FALSE) -> 1 | AY7: Quelques avertissements | AZ7: =VLOOKUP(AY7,DEBUTSTEP!$AT$4:$AU$33,2,FALSE) -> 1 | BA7: Quelques avertissements | BB7: =VLOOKUP(BA7,DEBUTSTEP!$AT$4:$AU$33,2,FALSE) -> 1 | BC7: Quelques avertissements | BD7: =VLOOKUP(BC7,DEBUTSTEP!$AT$4:$AU$33,2,FALSE) -> 1 | BE7: Quelques avertissements | BF7: =VLOOKUP(BE7,DEBUTSTEP!$AT$4:$AU$33,2,FALSE) -> 1 | BG7: Quelques avertissements | BH7: =VLOOKUP(BG7,DEBUTSTEP!$AT$4:$AU$33,2,FALSE) -> 1 | BI7: Quelques avertissements | BJ7: =VLOOKUP(BI7,DEBUTSTEP!$AT$4:$AU$33,2,FALSE) -> 1 | BK7: Quelques avertissements | BL7: =VLOOKUP(BK7,DEBUTSTEP!$AT$4:$AU$33,2,FALSE) -> 1 | BM7: Quelques avertissements | BN7: =VLOOKUP(BM7,DEBUTSTEP!$AT$4:$AU$33,2,FALSE) -> 1 | BO7: Quelques avertissements | BP7: =VLOOKUP(BO7,DEBUTSTEP!$AT$4:$AU$33,2,FALSE) -> 1 | BQ7: Quelques avertissements | BR7: =VLOOKUP(BQ7,DEBUTSTEP!$AT$4:$AU$33,2,FALSE) -> 1 | BS7: Quelques avertissements | BT7: =VLOOKUP(BS7,DEBUTSTEP!$AT$4:$AU$33,2,FALSE) -> 1
B8: =DEBUTSTEP!$AV$4 -> Respect de l'entrainement proposé | C8: Aléatoire | D8: =VLOOKUP(C8,DEBUTSTEP!$AV$4:$AW$33,2,FALSE) -> 1 | F8: =VLOOKUP(E8,DEBUTSTEP!$AV$4:$AW$33,2,FALSE) -> 0 | H8: =VLOOKUP(G8,DEBUTSTEP!$AV$4:$AW$33,2,FALSE) -> 0 | I8: Aléatoire | J8: =VLOOKUP(I8,DEBUTSTEP!$AV$4:$AW$33,2,FALSE) -> 1 | K8: Aléatoire | L8: =VLOOKUP(K8,DEBUTSTEP!$AV$4:$AW$33,2,FALSE) -> 1 | M8: Aléatoire | N8: =VLOOKUP(M8,DEBUTSTEP!$AV$4:$AW$33,2,FALSE) -> 1 | O8: Aléatoire | P8: =VLOOKUP(O8,DEBUTSTEP!$AV$4:$AW$33,2,FALSE) -> 1 | Q8: Aléatoire | R8: =VLOOKUP(Q8,DEBUTSTEP!$AV$4:$AW$33,2,FALSE) -> 1 | S8: Aléatoire | T8: =VLOOKUP(S8,DEBUTSTEP!$AV$4:$AW$33,2,FALSE) -> 1 | U8: Aléatoire | V8: =VLOOKUP(U8,DEBUTSTEP!$AV$4:$AW$33,2,FALSE) -> 1 | W8: Aléatoire | X8: =VLOOKUP(W8,DEBUTSTEP!$AV$4:$AW$33,2,FALSE) -> 1 | Y8: Aléatoire | Z8: =VLOOKUP(Y8,DEBUTSTEP!$AV$4:$AW$33,2,FALSE) -> 1 | AA8: Aléatoire | AB8: =VLOOKUP(AA8,DEBUTSTEP!$AV$4:$AW$33,2,FALSE) -> 1 | AC8: Aléatoire | AD8: =VLOOKUP(AC8,DEBUTSTEP!$AV$4:$AW$33,2,FALSE) -> 1 | AE8: Aléatoire | AF8: =VLOOKUP(AE8,DEBUTSTEP!$AV$4:$AW$33,2,FALSE) -> 1 | AG8: Aléatoire | AH8: =VLOOKUP(AG8,DEBUTSTEP!$AV$4:$AW$33,2,FALSE) -> 1 | AI8: Aléatoire | AJ8: =VLOOKUP(AI8,DEBUTSTEP!$AV$4:$AW$33,2,FALSE) -> 1 | AK8: Aléatoire | AL8: =VLOOKUP(AK8,DEBUTSTEP!$AV$4:$AW$33,2,FALSE) -> 1 | AM8: Aléatoire | AN8: =VLOOKUP(AM8,DEBUTSTEP!$AV$4:$AW$33,2,FALSE) -> 1 | AO8: Aléatoire | AP8: =VLOOKUP(AO8,DEBUTSTEP!$AV$4:$AW$33,2,FALSE) -> 1 | AQ8: Aléatoire | AR8: =VLOOKUP(AQ8,DEBUTSTEP!$AV$4:$AW$33,2,FALSE) -> 1 | AS8: Aléatoire | AT8: =VLOOKUP(AS8,DEBUTSTEP!$AV$4:$AW$33,2,FALSE) -> 1 | AU8: Aléatoire | AV8: =VLOOKUP(AU8,DEBUTSTEP!$AV$4:$AW$33,2,FALSE) -> 1 | AW8: Aléatoire | AX8: =VLOOKUP(AW8,DEBUTSTEP!$AV$4:$AW$33,2,FALSE) -> 1 | AY8: Aléatoire | AZ8: =VLOOKUP(AY8,DEBUTSTEP!$AV$4:$AW$33,2,FALSE) -> 1 | BA8: Aléatoire | BB8: =VLOOKUP(BA8,DEBUTSTEP!$AV$4:$AW$33,2,FALSE) -> 1 | BC8: Aléatoire | BD8: =VLOOKUP(BC8,DEBUTSTEP!$AV$4:$AW$33,2,FALSE) -> 1 | BE8: Aléatoire | BF8: =VLOOKUP(BE8,DEBUTSTEP!$AV$4:$AW$33,2,FALSE) -> 1 | BG8: Aléatoire | BH8: =VLOOKUP(BG8,DEBUTSTEP!$AV$4:$AW$33,2,FALSE) -> 1 | BI8: Aléatoire | BJ8: =VLOOKUP(BI8,DEBUTSTEP!$AV$4:$AW$33,2,FALSE) -> 1 | BK8: Aléatoire | BL8: =VLOOKUP(BK8,DEBUTSTEP!$AV$4:$AW$33,2,FALSE) -> 1 | BM8: Aléatoire | BN8: =VLOOKUP(BM8,DEBUTSTEP!$AV$4:$AW$33,2,FALSE) -> 1 | BO8: Aléatoire | BP8: =VLOOKUP(BO8,DEBUTSTEP!$AV$4:$AW$33,2,FALSE) -> 1 | BQ8: Aléatoire | BR8: =VLOOKUP(BQ8,DEBUTSTEP!$AV$4:$AW$33,2,FALSE) -> 1 | BS8: Aléatoire | BT8: =VLOOKUP(BS8,DEBUTSTEP!$AV$4:$AW$33,2,FALSE) -> 1
B9: =DEBUTSTEP!$AX$4 -> Mémorisation des blocs | C9: Beaucoup d'erreurs | D9: =VLOOKUP(C9,DEBUTSTEP!$AX$4:$AY$33,2,FALSE) -> 1 | F9: =VLOOKUP(E9,DEBUTSTEP!$AX$4:$AY$33,2,FALSE) -> 0 | H9: =VLOOKUP(G9,DEBUTSTEP!$AX$4:$AY$33,2,FALSE) -> 0 | I9: Beaucoup d'erreurs | J9: =VLOOKUP(I9,DEBUTSTEP!$AX$4:$AY$33,2,FALSE) -> 1 | K9: Beaucoup d'erreurs | L9: =VLOOKUP(K9,DEBUTSTEP!$AX$4:$AY$33,2,FALSE) -> 1 | M9: Beaucoup d'erreurs | N9: =VLOOKUP(M9,DEBUTSTEP!$AX$4:$AY$33,2,FALSE) -> 1 | O9: Beaucoup d'erreurs | P9: =VLOOKUP(O9,DEBUTSTEP!$AX$4:$AY$33,2,FALSE) -> 1 | Q9: Beaucoup d'erreurs | R9: =VLOOKUP(Q9,DEBUTSTEP!$AX$4:$AY$33,2,FALSE) -> 1 | S9: Beaucoup d'erreurs | T9: =VLOOKUP(S9,DEBUTSTEP!$AX$4:$AY$33,2,FALSE) -> 1 | U9: Beaucoup d'erreurs | V9: =VLOOKUP(U9,DEBUTSTEP!$AX$4:$AY$33,2,FALSE) -> 1 | W9: Beaucoup d'erreurs | X9: =VLOOKUP(W9,DEBUTSTEP!$AX$4:$AY$33,2,FALSE) -> 1 | Y9: Beaucoup d'erreurs | Z9: =VLOOKUP(Y9,DEBUTSTEP!$AX$4:$AY$33,2,FALSE) -> 1 | AA9: Beaucoup d'erreurs | AB9: =VLOOKUP(AA9,DEBUTSTEP!$AX$4:$AY$33,2,FALSE) -> 1 | AC9: Beaucoup d'erreurs | AD9: =VLOOKUP(AC9,DEBUTSTEP!$AX$4:$AY$33,2,FALSE) -> 1 | AE9: Beaucoup d'erreurs | AF9: =VLOOKUP(AE9,DEBUTSTEP!$AX$4:$AY$33,2,FALSE) -> 1 | AG9: Beaucoup d'erreurs | AH9: =VLOOKUP(AG9,DEBUTSTEP!$AX$4:$AY$33,2,FALSE) -> 1 | AI9: Beaucoup d'erreurs | AJ9: =VLOOKUP(AI9,DEBUTSTEP!$AX$4:$AY$33,2,FALSE) -> 1 | AK9: Beaucoup d'erreurs | AL9: =VLOOKUP(AK9,DEBUTSTEP!$AX$4:$AY$33,2,FALSE) -> 1 | AM9: Beaucoup d'erreurs | AN9: =VLOOKUP(AM9,DEBUTSTEP!$AX$4:$AY$33,2,FALSE) -> 1 | AO9: Beaucoup d'erreurs | AP9: =VLOOKUP(AO9,DEBUTSTEP!$AX$4:$AY$33,2,FALSE) -> 1 | AQ9: Beaucoup d'erreurs | AR9: =VLOOKUP(AQ9,DEBUTSTEP!$AX$4:$AY$33,2,FALSE) -> 1 | AS9: Beaucoup d'erreurs | AT9: =VLOOKUP(AS9,DEBUTSTEP!$AX$4:$AY$33,2,FALSE) -> 1 | AU9: Beaucoup d'erreurs | AV9: =VLOOKUP(AU9,DEBUTSTEP!$AX$4:$AY$33,2,FALSE) -> 1 | AW9: Beaucoup d'erreurs | AX9: =VLOOKUP(AW9,DEBUTSTEP!$AX$4:$AY$33,2,FALSE) -> 1 | AY9: Beaucoup d'erreurs | AZ9: =VLOOKUP(AY9,DEBUTSTEP!$AX$4:$AY$33,2,FALSE) -> 1 | BA9: Beaucoup d'erreurs | BB9: =VLOOKUP(BA9,DEBUTSTEP!$AX$4:$AY$33,2,FALSE) -> 1 | BC9: Beaucoup d'erreurs | BD9: =VLOOKUP(BC9,DEBUTSTEP!$AX$4:$AY$33,2,FALSE) -> 1 | BE9: Beaucoup d'erreurs | BF9: =VLOOKUP(BE9,DEBUTSTEP!$AX$4:$AY$33,2,FALSE) -> 1 | BG9: Beaucoup d'erreurs | BH9: =VLOOKUP(BG9,DEBUTSTEP!$AX$4:$AY$33,2,FALSE) -> 1 | BI9: Beaucoup d'erreurs | BJ9: =VLOOKUP(BI9,DEBUTSTEP!$AX$4:$AY$33,2,FALSE) -> 1 | BK9: Beaucoup d'erreurs | BL9: =VLOOKUP(BK9,DEBUTSTEP!$AX$4:$AY$33,2,FALSE) -> 1 | BM9: Beaucoup d'erreurs | BN9: =VLOOKUP(BM9,DEBUTSTEP!$AX$4:$AY$33,2,FALSE) -> 1 | BO9: Beaucoup d'erreurs | BP9: =VLOOKUP(BO9,DEBUTSTEP!$AX$4:$AY$33,2,FALSE) -> 1 | BQ9: Beaucoup d'erreurs | BR9: =VLOOKUP(BQ9,DEBUTSTEP!$AX$4:$AY$33,2,FALSE) -> 1 | BS9: Beaucoup d'erreurs | BT9: =VLOOKUP(BS9,DEBUTSTEP!$AX$4:$AY$33,2,FALSE) -> 1
B10: =DEBUTSTEP!$AZ$4 -> Analyse de sa prestation | C10: Pertinente | D10: =VLOOKUP(C10,DEBUTSTEP!$AZ$4:$BA$33,2,FALSE) -> 3 | F10: =VLOOKUP(E10,DEBUTSTEP!$AZ$4:$BA$33,2,FALSE) -> 0 | H10: =VLOOKUP(G10,DEBUTSTEP!$AZ$4:$BA$33,2,FALSE) -> 0 | I10: Pertinente | J10: =VLOOKUP(I10,DEBUTSTEP!$AZ$4:$BA$33,2,FALSE) -> 3 | K10: Pertinente | L10: =VLOOKUP(K10,DEBUTSTEP!$AZ$4:$BA$33,2,FALSE) -> 3 | M10: Pertinente | N10: =VLOOKUP(M10,DEBUTSTEP!$AZ$4:$BA$33,2,FALSE) -> 3 | O10: Pertinente | P10: =VLOOKUP(O10,DEBUTSTEP!$AZ$4:$BA$33,2,FALSE) -> 3 | Q10: Pertinente | R10: =VLOOKUP(Q10,DEBUTSTEP!$AZ$4:$BA$33,2,FALSE) -> 3 | S10: Pertinente | T10: =VLOOKUP(S10,DEBUTSTEP!$AZ$4:$BA$33,2,FALSE) -> 3 | U10: Pertinente | V10: =VLOOKUP(U10,DEBUTSTEP!$AZ$4:$BA$33,2,FALSE) -> 3 | W10: Pertinente | X10: =VLOOKUP(W10,DEBUTSTEP!$AZ$4:$BA$33,2,FALSE) -> 3 | Y10: Pertinente | Z10: =VLOOKUP(Y10,DEBUTSTEP!$AZ$4:$BA$33,2,FALSE) -> 3 | AA10: Pertinente | AB10: =VLOOKUP(AA10,DEBUTSTEP!$AZ$4:$BA$33,2,FALSE) -> 3 | AC10: Pertinente | AD10: =VLOOKUP(AC10,DEBUTSTEP!$AZ$4:$BA$33,2,FALSE) -> 3 | AE10: Pertinente | AF10: =VLOOKUP(AE10,DEBUTSTEP!$AZ$4:$BA$33,2,FALSE) -> 3 | AG10: Pertinente | AH10: =VLOOKUP(AG10,DEBUTSTEP!$AZ$4:$BA$33,2,FALSE) -> 3 | AI10: Pertinente | AJ10: =VLOOKUP(AI10,DEBUTSTEP!$AZ$4:$BA$33,2,FALSE) -> 3 | AK10: Pertinente | AL10: =VLOOKUP(AK10,DEBUTSTEP!$AZ$4:$BA$33,2,FALSE) -> 3 | AM10: Pertinente | AN10: =VLOOKUP(AM10,DEBUTSTEP!$AZ$4:$BA$33,2,FALSE) -> 3 | AO10: Pertinente | AP10: =VLOOKUP(AO10,DEBUTSTEP!$AZ$4:$BA$33,2,FALSE) -> 3 | AQ10: Pertinente | AR10: =VLOOKUP(AQ10,DEBUTSTEP!$AZ$4:$BA$33,2,FALSE) -> 3 | AS10: Pertinente | AT10: =VLOOKUP(AS10,DEBUTSTEP!$AZ$4:$BA$33,2,FALSE) -> 3 | AU10: Pertinente | AV10: =VLOOKUP(AU10,DEBUTSTEP!$AZ$4:$BA$33,2,FALSE) -> 3 | AW10: Pertinente | AX10: =VLOOKUP(AW10,DEBUTSTEP!$AZ$4:$BA$33,2,FALSE) -> 3 | AY10: Pertinente | AZ10: =VLOOKUP(AY10,DEBUTSTEP!$AZ$4:$BA$33,2,FALSE) -> 3 | BA10: Pertinente | BB10: =VLOOKUP(BA10,DEBUTSTEP!$AZ$4:$BA$33,2,FALSE) -> 3 | BC10: Pertinente | BD10: =VLOOKUP(BC10,DEBUTSTEP!$AZ$4:$BA$33,2,FALSE) -> 3 | BE10: Pertinente | BF10: =VLOOKUP(BE10,DEBUTSTEP!$AZ$4:$BA$33,2,FALSE) -> 3 | BG10: Pertinente | BH10: =VLOOKUP(BG10,DEBUTSTEP!$AZ$4:$BA$33,2,FALSE) -> 3 | BI10: Pertinente | BJ10: =VLOOKUP(BI10,DEBUTSTEP!$AZ$4:$BA$33,2,FALSE) -> 3 | BK10: Pertinente | BL10: =VLOOKUP(BK10,DEBUTSTEP!$AZ$4:$BA$33,2,FALSE) -> 3 | BM10: Pertinente | BN10: =VLOOKUP(BM10,DEBUTSTEP!$AZ$4:$BA$33,2,FALSE) -> 3 | BO10: Pertinente | BP10: =VLOOKUP(BO10,DEBUTSTEP!$AZ$4:$BA$33,2,FALSE) -> 3 | BQ10: Pertinente | BR10: =VLOOKUP(BQ10,DEBUTSTEP!$AZ$4:$BA$33,2,FALSE) -> 3 | BS10: Pertinente | BT10: =VLOOKUP(BS10,DEBUTSTEP!$AZ$4:$BA$33,2,FALSE) -> 3
B11: NOTE | C11: =IF(OR(D5="x",D6="x",D7="x",D8="x",D9="x",D10="x"),"ABSENT",SUMIF(D5,"<>X")+SUMIF(D6,"<>X")+SUMIF(D7,"<>X")+SUMIF(D8,"<>X")+SUMIF(D9,"<>X")+SUMIF(D10,"<>X")) -> 8 | E11: =IF(OR(F5="x",F6="x",F7="x",F8="x",F9="x",F10="x"),"ABSENT",SUMIF(F5,"<>X")+SUMIF(F6,"<>X")+SUMIF(F7,"<>X")+SUMIF(F8,"<>X")+SUMIF(F9,"<>X")+SUMIF(F10,"<>X")) -> ABSENT | G11: =IF(OR(H5="x",H6="x",H7="x",H8="x",H9="x",H10="x"),"ABSENT",SUMIF(H5,"<>X")+SUMIF(H6,"<>X")+SUMIF(H7,"<>X")+SUMIF(H8,"<>X")+SUMIF(H9,"<>X")+SUMIF(H10,"<>X")) -> 0 | I11: =IF(OR(J5="x",J6="x",J7="x",J8="x",J9="x",J10="x"),"ABSENT",SUMIF(J5,"<>X")+SUMIF(J6,"<>X")+SUMIF(J7,"<>X")+SUMIF(J8,"<>X")+SUMIF(J9,"<>X")+SUMIF(J10,"<>X")) -> 7 | K11: =IF(OR(L5="x",L6="x",L7="x",L8="x",L9="x",L10="x"),"ABSENT",SUMIF(L5,"<>X")+SUMIF(L6,"<>X")+SUMIF(L7,"<>X")+SUMIF(L8,"<>X")+SUMIF(L9,"<>X")+SUMIF(L10,"<>X")) -> 7 | M11: =IF(OR(N5="x",N6="x",N7="x",N8="x",N9="x",N10="x"),"ABSENT",SUMIF(N5,"<>X")+SUMIF(N6,"<>X")+SUMIF(N7,"<>X")+SUMIF(N8,"<>X")+SUMIF(N9,"<>X")+SUMIF(N10,"<>X")) -> 7 | O11: =IF(OR(P5="x",P6="x",P7="x",P8="x",P9="x",P10="x"),"ABSENT",SUMIF(P5,"<>X")+SUMIF(P6,"<>X")+SUMIF(P7,"<>X")+SUMIF(P8,"<>X")+SUMIF(P9,"<>X")+SUMIF(P10,"<>X")) -> 7 | Q11: =IF(OR(R5="x",R6="x",R7="x",R8="x",R9="x",R10="x"),"ABSENT",SUMIF(R5,"<>X")+SUMIF(R6,"<>X")+SUMIF(R7,"<>X")+SUMIF(R8,"<>X")+SUMIF(R9,"<>X")+SUMIF(R10,"<>X")) -> 7 | S11: =IF(OR(T5="x",T6="x",T7="x",T8="x",T9="x",T10="x"),"ABSENT",SUMIF(T5,"<>X")+SUMIF(T6,"<>X")+SUMIF(T7,"<>X")+SUMIF(T8,"<>X")+SUMIF(T9,"<>X")+SUMIF(T10,"<>X")) -> 7 | U11: =IF(OR(V5="x",V6="x",V7="x",V8="x",V9="x",V10="x"),"ABSENT",SUMIF(V5,"<>X")+SUMIF(V6,"<>X")+SUMIF(V7,"<>X")+SUMIF(V8,"<>X")+SUMIF(V9,"<>X")+SUMIF(V10,"<>X")) -> 7 | W11: =IF(OR(X5="x",X6="x",X7="x",X8="x",X9="x",X10="x"),"ABSENT",SUMIF(X5,"<>X")+SUMIF(X6,"<>X")+SUMIF(X7,"<>X")+SUMIF(X8,"<>X")+SUMIF(X9,"<>X")+SUMIF(X10,"<>X")) -> 7 | Y11: =IF(OR(Z5="x",Z6="x",Z7="x",Z8="x",Z9="x",Z10="x"),"ABSENT",SUMIF(Z5,"<>X")+SUMIF(Z6,"<>X")+SUMIF(Z7,"<>X")+SUMIF(Z8,"<>X")+SUMIF(Z9,"<>X")+SUMIF(Z10,"<>X")) -> 7 | AA11: =IF(OR(AB5="x",AB6="x",AB7="x",AB8="x",AB9="x",AB10="x"),"ABSENT",SUMIF(AB5,"<>X")+SUMIF(AB6,"<>X")+SUMIF(AB7,"<>X")+SUMIF(AB8,"<>X")+SUMIF(AB9,"<>X")+SUMIF(AB10,"<>X")) -> 7 | AC11: =IF(OR(AD5="x",AD6="x",AD7="x",AD8="x",AD9="x",AD10="x"),"ABSENT",SUMIF(AD5,"<>X")+SUMIF(AD6,"<>X")+SUMIF(AD7,"<>X")+SUMIF(AD8,"<>X")+SUMIF(AD9,"<>X")+SUMIF(AD10,"<>X")) -> 7 | AE11: =IF(OR(AF5="x",AF6="x",AF7="x",AF8="x",AF9="x",AF10="x"),"ABSENT",SUMIF(AF5,"<>X")+SUMIF(AF6,"<>X")+SUMIF(AF7,"<>X")+SUMIF(AF8,"<>X")+SUMIF(AF9,"<>X")+SUMIF(AF10,"<>X")) -> 7 | AG11: =IF(OR(AH5="x",AH6="x",AH7="x",AH8="x",AH9="x",AH10="x"),"ABSENT",SUMIF(AH5,"<>X")+SUMIF(AH6,"<>X")+SUMIF(AH7,"<>X")+SUMIF(AH8,"<>X")+SUMIF(AH9,"<>X")+SUMIF(AH10,"<>X")) -> 7 | AI11: =IF(OR(AJ5="x",AJ6="x",AJ7="x",AJ8="x",AJ9="x",AJ10="x"),"ABSENT",SUMIF(AJ5,"<>X")+SUMIF(AJ6,"<>X")+SUMIF(AJ7,"<>X")+SUMIF(AJ8,"<>X")+SUMIF(AJ9,"<>X")+SUMIF(AJ10,"<>X")) -> 7 | AK11: =IF(OR(AL5="x",AL6="x",AL7="x",AL8="x",AL9="x",AL10="x"),"ABSENT",SUMIF(AL5,"<>X")+SUMIF(AL6,"<>X")+SUMIF(AL7,"<>X")+SUMIF(AL8,"<>X")+SUMIF(AL9,"<>X")+SUMIF(AL10,"<>X")) -> 7 | AM11: =IF(OR(AN5="x",AN6="x",AN7="x",AN8="x",AN9="x",AN10="x"),"ABSENT",SUMIF(AN5,"<>X")+SUMIF(AN6,"<>X")+SUMIF(AN7,"<>X")+SUMIF(AN8,"<>X")+SUMIF(AN9,"<>X")+SUMIF(AN10,"<>X")) -> 7 | AO11: =IF(OR(AP5="x",AP6="x",AP7="x",AP8="x",AP9="x",AP10="x"),"ABSENT",SUMIF(AP5,"<>X")+SUMIF(AP6,"<>X")+SUMIF(AP7,"<>X")+SUMIF(AP8,"<>X")+SUMIF(AP9,"<>X")+SUMIF(AP10,"<>X")) -> 7 | AQ11: =IF(OR(AR5="x",AR6="x",AR7="x",AR8="x",AR9="x",AR10="x"),"ABSENT",SUMIF(AR5,"<>X")+SUMIF(AR6,"<>X")+SUMIF(AR7,"<>X")+SUMIF(AR8,"<>X")+SUMIF(AR9,"<>X")+SUMIF(AR10,"<>X")) -> 7 | AS11: =IF(OR(AT5="x",AT6="x",AT7="x",AT8="x",AT9="x",AT10="x"),"ABSENT",SUMIF(AT5,"<>X")+SUMIF(AT6,"<>X")+SUMIF(AT7,"<>X")+SUMIF(AT8,"<>X")+SUMIF(AT9,"<>X")+SUMIF(AT10,"<>X")) -> 7 | AU11: =IF(OR(AV5="x",AV6="x",AV7="x",AV8="x",AV9="x",AV10="x"),"ABSENT",SUMIF(AV5,"<>X")+SUMIF(AV6,"<>X")+SUMIF(AV7,"<>X")+SUMIF(AV8,"<>X")+SUMIF(AV9,"<>X")+SUMIF(AV10,"<>X")) -> 7 | AW11: =IF(OR(AX5="x",AX6="x",AX7="x",AX8="x",AX9="x",AX10="x"),"ABSENT",SUMIF(AX5,"<>X")+SUMIF(AX6,"<>X")+SUMIF(AX7,"<>X")+SUMIF(AX8,"<>X")+SUMIF(AX9,"<>X")+SUMIF(AX10,"<>X")) -> 7 | AY11: =IF(OR(AZ5="x",AZ6="x",AZ7="x",AZ8="x",AZ9="x",AZ10="x"),"ABSENT",SUMIF(AZ5,"<>X")+SUMIF(AZ6,"<>X")+SUMIF(AZ7,"<>X")+SUMIF(AZ8,"<>X")+SUMIF(AZ9,"<>X")+SUMIF(AZ10,"<>X")) -> 7 | BA11: =IF(OR(BB5="x",BB6="x",BB7="x",BB8="x",BB9="x",BB10="x"),"ABSENT",SUMIF(BB5,"<>X")+SUMIF(BB6,"<>X")+SUMIF(BB7,"<>X")+SUMIF(BB8,"<>X")+SUMIF(BB9,"<>X")+SUMIF(BB10,"<>X")) -> 7 | BC11: =IF(OR(BD5="x",BD6="x",BD7="x",BD8="x",BD9="x",BD10="x"),"ABSENT",SUMIF(BD5,"<>X")+SUMIF(BD6,"<>X")+SUMIF(BD7,"<>X")+SUMIF(BD8,"<>X")+SUMIF(BD9,"<>X")+SUMIF(BD10,"<>X")) -> 7 | BE11: =IF(OR(BF5="x",BF6="x",BF7="x",BF8="x",BF9="x",BF10="x"),"ABSENT",SUMIF(BF5,"<>X")+SUMIF(BF6,"<>X")+SUMIF(BF7,"<>X")+SUMIF(BF8,"<>X")+SUMIF(BF9,"<>X")+SUMIF(BF10,"<>X")) -> 7 | BG11: =IF(OR(BH5="x",BH6="x",BH7="x",BH8="x",BH9="x",BH10="x"),"ABSENT",SUMIF(BH5,"<>X")+SUMIF(BH6,"<>X")+SUMIF(BH7,"<>X")+SUMIF(BH8,"<>X")+SUMIF(BH9,"<>X")+SUMIF(BH10,"<>X")) -> 7 | BI11: =IF(OR(BJ5="x",BJ6="x",BJ7="x",BJ8="x",BJ9="x",BJ10="x"),"ABSENT",SUMIF(BJ5,"<>X")+SUMIF(BJ6,"<>X")+SUMIF(BJ7,"<>X")+SUMIF(BJ8,"<>X")+SUMIF(BJ9,"<>X")+SUMIF(BJ10,"<>X")) -> 7 | BK11: =IF(OR(BL5="x",BL6="x",BL7="x",BL8="x",BL9="x",BL10="x"),"ABSENT",SUMIF(BL5,"<>X")+SUMIF(BL6,"<>X")+SUMIF(BL7,"<>X")+SUMIF(BL8,"<>X")+SUMIF(BL9,"<>X")+SUMIF(BL10,"<>X")) -> 7 | BM11: =IF(OR(BN5="x",BN6="x",BN7="x",BN8="x",BN9="x",BN10="x"),"ABSENT",SUMIF(BN5,"<>X")+SUMIF(BN6,"<>X")+SUMIF(BN7,"<>X")+SUMIF(BN8,"<>X")+SUMIF(BN9,"<>X")+SUMIF(BN10,"<>X")) -> 7 | BO11: =IF(OR(BP5="x",BP6="x",BP7="x",BP8="x",BP9="x",BP10="x"),"ABSENT",SUMIF(BP5,"<>X")+SUMIF(BP6,"<>X")+SUMIF(BP7,"<>X")+SUMIF(BP8,"<>X")+SUMIF(BP9,"<>X")+SUMIF(BP10,"<>X")) -> 7 | BQ11: =IF(OR(BR5="x",BR6="x",BR7="x",BR8="x",BR9="x",BR10="x"),"ABSENT",SUMIF(BR5,"<>X")+SUMIF(BR6,"<>X")+SUMIF(BR7,"<>X")+SUMIF(BR8,"<>X")+SUMIF(BR9,"<>X")+SUMIF(BR10,"<>X")) -> 7 | BS11: =IF(OR(BT5="x",BT6="x",BT7="x",BT8="x",BT9="x",BT10="x"),"ABSENT",SUMIF(BT5,"<>X")+SUMIF(BT6,"<>X")+SUMIF(BT7,"<>X")+SUMIF(BT8,"<>X")+SUMIF(BT9,"<>X")+SUMIF(BT10,"<>X")) -> 7
A13: SEANCE 2 | B13: =DEBUTSTEP!$AP$4 -> Prendre sa FC efficacement | C13: Jamais | D13: =VLOOKUP(C13,DEBUTSTEP!$AP$4:$AQ$33,2,FALSE) -> NA | E13: Jamais | F13: =VLOOKUP(E13,DEBUTSTEP!$AP$4:$AQ$33,2,FALSE) -> NA | G13: Jamais | H13: =VLOOKUP(G13,DEBUTSTEP!$AP$4:$AQ$33,2,FALSE) -> NA | I13: Jamais | J13: =VLOOKUP(I13,DEBUTSTEP!$AP$4:$AQ$33,2,FALSE) -> NA | K13: Jamais | L13: =VLOOKUP(K13,DEBUTSTEP!$AP$4:$AQ$33,2,FALSE) -> NA | M13: Jamais | N13: =VLOOKUP(M13,DEBUTSTEP!$AP$4:$AQ$33,2,FALSE) -> NA | O13: Jamais | P13: =VLOOKUP(O13,DEBUTSTEP!$AP$4:$AQ$33,2,FALSE) -> NA | Q13: Jamais | R13: =VLOOKUP(Q13,DEBUTSTEP!$AP$4:$AQ$33,2,FALSE) -> NA | S13: Jamais | T13: =VLOOKUP(S13,DEBUTSTEP!$AP$4:$AQ$33,2,FALSE) -> NA | U13: Jamais | V13: =VLOOKUP(U13,DEBUTSTEP!$AP$4:$AQ$33,2,FALSE) -> NA | W13: Jamais | X13: =VLOOKUP(W13,DEBUTSTEP!$AP$4:$AQ$33,2,FALSE) -> NA | Y13: Jamais | Z13: =VLOOKUP(Y13,DEBUTSTEP!$AP$4:$AQ$33,2,FALSE) -> NA | AA13: Jamais | AB13: =VLOOKUP(AA13,DEBUTSTEP!$AP$4:$AQ$33,2,FALSE) -> NA | AC13: Jamais | AD13: =VLOOKUP(AC13,DEBUTSTEP!$AP$4:$AQ$33,2,FALSE) -> NA | AE13: Jamais | AF13: =VLOOKUP(AE13,DEBUTSTEP!$AP$4:$AQ$33,2,FALSE) -> NA | AG13: Jamais | AH13: =VLOOKUP(AG13,DEBUTSTEP!$AP$4:$AQ$33,2,FALSE) -> NA | AI13: Jamais | AJ13: =VLOOKUP(AI13,DEBUTSTEP!$AP$4:$AQ$33,2,FALSE) -> NA | AK13: Jamais | AL13: =VLOOKUP(AK13,DEBUTSTEP!$AP$4:$AQ$33,2,FALSE) -> NA | AM13: Jamais | AN13: =VLOOKUP(AM13,DEBUTSTEP!$AP$4:$AQ$33,2,FALSE) -> NA | AO13: Jamais | AP13: =VLOOKUP(AO13,DEBUTSTEP!$AP$4:$AQ$33,2,FALSE) -> NA | AQ13: Jamais | AR13: =VLOOKUP(AQ13,DEBUTSTEP!$AP$4:$AQ$33,2,FALSE) -> NA | AS13: Jamais | AT13: =VLOOKUP(AS13,DEBUTSTEP!$AP$4:$AQ$33,2,FALSE) -> NA | AU13: Jamais | AV13: =VLOOKUP(AU13,DEBUTSTEP!$AP$4:$AQ$33,2,FALSE) -> NA | AW13: Jamais | AX13: =VLOOKUP(AW13,DEBUTSTEP!$AP$4:$AQ$33,2,FALSE) -> NA | AY13: Jamais | AZ13: =VLOOKUP(AY13,DEBUTSTEP!$AP$4:$AQ$33,2,FALSE) -> NA | BA13: Jamais | BB13: =VLOOKUP(BA13,DEBUTSTEP!$AP$4:$AQ$33,2,FALSE) -> NA | BC13: Jamais | BD13: =VLOOKUP(BC13,DEBUTSTEP!$AP$4:$AQ$33,2,FALSE) -> NA | BE13: Jamais | BF13: =VLOOKUP(BE13,DEBUTSTEP!$AP$4:$AQ$33,2,FALSE) -> NA | BG13: Jamais | BH13: =VLOOKUP(BG13,DEBUTSTEP!$AP$4:$AQ$33,2,FALSE) -> NA | BI13: Jamais | BJ13: =VLOOKUP(BI13,DEBUTSTEP!$AP$4:$AQ$33,2,FALSE) -> NA | BK13: Jamais | BL13: =VLOOKUP(BK13,DEBUTSTEP!$AP$4:$AQ$33,2,FALSE) -> NA | BM13: Jamais | BN13: =VLOOKUP(BM13,DEBUTSTEP!$AP$4:$AQ$33,2,FALSE) -> NA | BO13: Jamais | BP13: =VLOOKUP(BO13,DEBUTSTEP!$AP$4:$AQ$33,2,FALSE) -> NA | BQ13: Jamais | BR13: =VLOOKUP(BQ13,DEBUTSTEP!$AP$4:$AQ$33,2,FALSE) -> NA | BS13: Jamais | BT13: =VLOOKUP(BS13,DEBUTSTEP!$AP$4:$AQ$33,2,FALSE) -> NA
B14: =DEBUTSTEP!$AR$4 -> S'engager dans le mobile | C14: Faible | D14: =VLOOKUP(C14,DEBUTSTEP!$AR$4:$AS$33,2,FALSE) -> 1 | E14: Faible | F14: =VLOOKUP(E14,DEBUTSTEP!$AR$4:$AS$33,2,FALSE) -> 1 | G14: Faible | H14: =VLOOKUP(G14,DEBUTSTEP!$AR$4:$AS$33,2,FALSE) -> 1 | I14: Faible | J14: =VLOOKUP(I14,DEBUTSTEP!$AR$4:$AS$33,2,FALSE) -> 1 | K14: Faible | L14: =VLOOKUP(K14,DEBUTSTEP!$AR$4:$AS$33,2,FALSE) -> 1 | M14: Faible | N14: =VLOOKUP(M14,DEBUTSTEP!$AR$4:$AS$33,2,FALSE) -> 1 | O14: Faible | P14: =VLOOKUP(O14,DEBUTSTEP!$AR$4:$AS$33,2,FALSE) -> 1 | Q14: Faible | R14: =VLOOKUP(Q14,DEBUTSTEP!$AR$4:$AS$33,2,FALSE) -> 1 | S14: Faible | T14: =VLOOKUP(S14,DEBUTSTEP!$AR$4:$AS$33,2,FALSE) -> 1 | U14: Faible | V14: =VLOOKUP(U14,DEBUTSTEP!$AR$4:$AS$33,2,FALSE) -> 1 | W14: Faible | X14: =VLOOKUP(W14,DEBUTSTEP!$AR$4:$AS$33,2,FALSE) -> 1 | Y14: Faible | Z14: =VLOOKUP(Y14,DEBUTSTEP!$AR$4:$AS$33,2,FALSE) -> 1 | AA14: Faible | AB14: =VLOOKUP(AA14,DEBUTSTEP!$AR$4:$AS$33,2,FALSE) -> 1 | AC14: Faible | AD14: =VLOOKUP(AC14,DEBUTSTEP!$AR$4:$AS$33,2,FALSE) -> 1 | AE14: Faible | AF14: =VLOOKUP(AE14,DEBUTSTEP!$AR$4:$AS$33,2,FALSE) -> 1 | AG14: Faible | AH14: =VLOOKUP(AG14,DEBUTSTEP!$AR$4:$AS$33,2,FALSE) -> 1 | AI14: Faible | AJ14: =VLOOKUP(AI14,DEBUTSTEP!$AR$4:$AS$33,2,FALSE) -> 1 | AK14: Faible | AL14: =VLOOKUP(AK14,DEBUTSTEP!$AR$4:$AS$33,2,FALSE) -> 1 | AM14: Faible | AN14: =VLOOKUP(AM14,DEBUTSTEP!$AR$4:$AS$33,2,FALSE) -> 1 | AO14: Faible | AP14: =VLOOKUP(AO14,DEBUTSTEP!$AR$4:$AS$33,2,FALSE) -> 1 | AQ14: Faible | AR14: =VLOOKUP(AQ14,DEBUTSTEP!$AR$4:$AS$33,2,FALSE) -> 1 | AS14: Faible | AT14: =VLOOKUP(AS14,DEBUTSTEP!$AR$4:$AS$33,2,FALSE) -> 1 | AU14: Faible | AV14: =VLOOKUP(AU14,DEBUTSTEP!$AR$4:$AS$33,2,FALSE) -> 1 | AW14: Faible | AX14: =VLOOKUP(AW14,DEBUTSTEP!$AR$4:$AS$33,2,FALSE) -> 1 | AY14: Faible | AZ14: =VLOOKUP(AY14,DEBUTSTEP!$AR$4:$AS$33,2,FALSE) -> 1 | BA14: Faible | BB14: =VLOOKUP(BA14,DEBUTSTEP!$AR$4:$AS$33,2,FALSE) -> 1 | BC14: Faible | BD14: =VLOOKUP(BC14,DEBUTSTEP!$AR$4:$AS$33,2,FALSE) -> 1 | BE14: Faible | BF14: =VLOOKUP(BE14,DEBUTSTEP!$AR$4:$AS$33,2,FALSE) -> 1 | BG14: Faible | BH14: =VLOOKUP(BG14,DEBUTSTEP!$AR$4:$AS$33,2,FALSE) -> 1 | BI14: Faible | BJ14: =VLOOKUP(BI14,DEBUTSTEP!$AR$4:$AS$33,2,FALSE) -> 1 | BK14: Faible | BL14: =VLOOKUP(BK14,DEBUTSTEP!$AR$4:$AS$33,2,FALSE) -> 1 | BM14: Faible | BN14: =VLOOKUP(BM14,DEBUTSTEP!$AR$4:$AS$33,2,FALSE) -> 1 | BO14: Faible | BP14: =VLOOKUP(BO14,DEBUTSTEP!$AR$4:$AS$33,2,FALSE) -> 1 | BQ14: Faible | BR14: =VLOOKUP(BQ14,DEBUTSTEP!$AR$4:$AS$33,2,FALSE) -> 1 | BS14: Faible | BT14: =VLOOKUP(BS14,DEBUTSTEP!$AR$4:$AS$33,2,FALSE) -> 1
B15: =DEBUTSTEP!$AT$4 -> Agir en sécu | C15: Quelques avertissements | D15: =VLOOKUP(C15,DEBUTSTEP!$AT$4:$AU$33,2,FALSE) -> 1 | E15: Quelques avertissements | F15: =VLOOKUP(E15,DEBUTSTEP!$AT$4:$AU$33,2,FALSE) -> 1 | G15: Quelques avertissements | H15: =VLOOKUP(G15,DEBUTSTEP!$AT$4:$AU$33,2,FALSE) -> 1 | I15: Quelques avertissements | J15: =VLOOKUP(I15,DEBUTSTEP!$AT$4:$AU$33,2,FALSE) -> 1 | K15: Quelques avertissements | L15: =VLOOKUP(K15,DEBUTSTEP!$AT$4:$AU$33,2,FALSE) -> 1 | M15: Quelques avertissements | N15: =VLOOKUP(M15,DEBUTSTEP!$AT$4:$AU$33,2,FALSE) -> 1 | O15: Quelques avertissements | P15: =VLOOKUP(O15,DEBUTSTEP!$AT$4:$AU$33,2,FALSE) -> 1 | Q15: Quelques avertissements | R15: =VLOOKUP(Q15,DEBUTSTEP!$AT$4:$AU$33,2,FALSE) -> 1 | S15: Quelques avertissements | T15: =VLOOKUP(S15,DEBUTSTEP!$AT$4:$AU$33,2,FALSE) -> 1 | U15: Quelques avertissements | V15: =VLOOKUP(U15,DEBUTSTEP!$AT$4:$AU$33,2,FALSE) -> 1 | W15: Quelques avertissements | X15: =VLOOKUP(W15,DEBUTSTEP!$AT$4:$AU$33,2,FALSE) -> 1 | Y15: Quelques avertissements | Z15: =VLOOKUP(Y15,DEBUTSTEP!$AT$4:$AU$33,2,FALSE) -> 1 | AA15: Quelques avertissements | AB15: =VLOOKUP(AA15,DEBUTSTEP!$AT$4:$AU$33,2,FALSE) -> 1 | AC15: Quelques avertissements | AD15: =VLOOKUP(AC15,DEBUTSTEP!$AT$4:$AU$33,2,FALSE) -> 1 | AE15: Quelques avertissements | AF15: =VLOOKUP(AE15,DEBUTSTEP!$AT$4:$AU$33,2,FALSE) -> 1 | AG15: Quelques avertissements | AH15: =VLOOKUP(AG15,DEBUTSTEP!$AT$4:$AU$33,2,FALSE) -> 1 | AI15: Quelques avertissements | AJ15: =VLOOKUP(AI15,DEBUTSTEP!$AT$4:$AU$33,2,FALSE) -> 1 | AK15: Quelques avertissements | AL15: =VLOOKUP(AK15,DEBUTSTEP!$AT$4:$AU$33,2,FALSE) -> 1 | AM15: Quelques avertissements | AN15: =VLOOKUP(AM15,DEBUTSTEP!$AT$4:$AU$33,2,FALSE) -> 1 | AO15: Quelques avertissements | AP15: =VLOOKUP(AO15,DEBUTSTEP!$AT$4:$AU$33,2,FALSE) -> 1 | AQ15: Quelques avertissements | AR15: =VLOOKUP(AQ15,DEBUTSTEP!$AT$4:$AU$33,2,FALSE) -> 1 | AS15: Quelques avertissements | AT15: =VLOOKUP(AS15,DEBUTSTEP!$AT$4:$AU$33,2,FALSE) -> 1 | AU15: Quelques avertissements | AV15: =VLOOKUP(AU15,DEBUTSTEP!$AT$4:$AU$33,2,FALSE) -> 1 | AW15: Quelques avertissements | AX15: =VLOOKUP(AW15,DEBUTSTEP!$AT$4:$AU$33,2,FALSE) -> 1 | AY15: Quelques avertissements | AZ15: =VLOOKUP(AY15,DEBUTSTEP!$AT$4:$AU$33,2,FALSE) -> 1 | BA15: Quelques avertissements | BB15: =VLOOKUP(BA15,DEBUTSTEP!$AT$4:$AU$33,2,FALSE) -> 1 | BC15: Quelques avertissements | BD15: =VLOOKUP(BC15,DEBUTSTEP!$AT$4:$AU$33,2,FALSE) -> 1 | BE15: Quelques avertissements | BF15: =VLOOKUP(BE15,DEBUTSTEP!$AT$4:$AU$33,2,FALSE) -> 1 | BG15: Quelques avertissements | BH15: =VLOOKUP(BG15,DEBUTSTEP!$AT$4:$AU$33,2,FALSE) -> 1 | BI15: Quelques avertissements | BJ15: =VLOOKUP(BI15,DEBUTSTEP!$AT$4:$AU$33,2,FALSE) -> 1 | BK15: Quelques avertissements | BL15: =VLOOKUP(BK15,DEBUTSTEP!$AT$4:$AU$33,2,FALSE) -> 1 | BM15: Quelques avertissements | BN15: =VLOOKUP(BM15,DEBUTSTEP!$AT$4:$AU$33,2,FALSE) -> 1 | BO15: Quelques avertissements | BP15: =VLOOKUP(BO15,DEBUTSTEP!$AT$4:$AU$33,2,FALSE) -> 1 | BQ15: Quelques avertissements | BR15: =VLOOKUP(BQ15,DEBUTSTEP!$AT$4:$AU$33,2,FALSE) -> 1 | BS15: Quelques avertissements | BT15: =VLOOKUP(BS15,DEBUTSTEP!$AT$4:$AU$33,2,FALSE) -> 1
B16: =DEBUTSTEP!$AV$4 -> Respect de l'entrainement proposé | C16: Aléatoire | D16: =VLOOKUP(C16,DEBUTSTEP!$AV$4:$AW$33,2,FALSE) -> 1 | E16: Aléatoire | F16: =VLOOKUP(E16,DEBUTSTEP!$AV$4:$AW$33,2,FALSE) -> 1 | G16: Aléatoire | H16: =VLOOKUP(G16,DEBUTSTEP!$AV$4:$AW$33,2,FALSE) -> 1 | I16: Aléatoire | J16: =VLOOKUP(I16,DEBUTSTEP!$AV$4:$AW$33,2,FALSE) -> 1 | K16: Aléatoire | L16: =VLOOKUP(K16,DEBUTSTEP!$AV$4:$AW$33,2,FALSE) -> 1 | M16: Aléatoire | N16: =VLOOKUP(M16,DEBUTSTEP!$AV$4:$AW$33,2,FALSE) -> 1 | O16: Aléatoire | P16: =VLOOKUP(O16,DEBUTSTEP!$AV$4:$AW$33,2,FALSE) -> 1 | Q16: Aléatoire | R16: =VLOOKUP(Q16,DEBUTSTEP!$AV$4:$AW$33,2,FALSE) -> 1 | S16: Aléatoire | T16: =VLOOKUP(S16,DEBUTSTEP!$AV$4:$AW$33,2,FALSE) -> 1 | U16: Aléatoire | V16: =VLOOKUP(U16,DEBUTSTEP!$AV$4:$AW$33,2,FALSE) -> 1 | W16: Aléatoire | X16: =VLOOKUP(W16,DEBUTSTEP!$AV$4:$AW$33,2,FALSE) -> 1 | Y16: Aléatoire | Z16: =VLOOKUP(Y16,DEBUTSTEP!$AV$4:$AW$33,2,FALSE) -> 1 | AA16: Aléatoire | AB16: =VLOOKUP(AA16,DEBUTSTEP!$AV$4:$AW$33,2,FALSE) -> 1 | AC16: Aléatoire | AD16: =VLOOKUP(AC16,DEBUTSTEP!$AV$4:$AW$33,2,FALSE) -> 1 | AE16: Aléatoire | AF16: =VLOOKUP(AE16,DEBUTSTEP!$AV$4:$AW$33,2,FALSE) -> 1 | AG16: Aléatoire | AH16: =VLOOKUP(AG16,DEBUTSTEP!$AV$4:$AW$33,2,FALSE) -> 1 | AI16: Aléatoire | AJ16: =VLOOKUP(AI16,DEBUTSTEP!$AV$4:$AW$33,2,FALSE) -> 1 | AK16: Aléatoire | AL16: =VLOOKUP(AK16,DEBUTSTEP!$AV$4:$AW$33,2,FALSE) -> 1 | AM16: Aléatoire | AN16: =VLOOKUP(AM16,DEBUTSTEP!$AV$4:$AW$33,2,FALSE) -> 1 | AO16: Aléatoire | AP16: =VLOOKUP(AO16,DEBUTSTEP!$AV$4:$AW$33,2,FALSE) -> 1 | AQ16: Aléatoire | AR16: =VLOOKUP(AQ16,DEBUTSTEP!$AV$4:$AW$33,2,FALSE) -> 1 | AS16: Aléatoire | AT16: =VLOOKUP(AS16,DEBUTSTEP!$AV$4:$AW$33,2,FALSE) -> 1 | AU16: Aléatoire | AV16: =VLOOKUP(AU16,DEBUTSTEP!$AV$4:$AW$33,2,FALSE) -> 1 | AW16: Aléatoire | AX16: =VLOOKUP(AW16,DEBUTSTEP!$AV$4:$AW$33,2,FALSE) -> 1 | AY16: Aléatoire | AZ16: =VLOOKUP(AY16,DEBUTSTEP!$AV$4:$AW$33,2,FALSE) -> 1 | BA16: Aléatoire | BB16: =VLOOKUP(BA16,DEBUTSTEP!$AV$4:$AW$33,2,FALSE) -> 1 | BC16: Aléatoire | BD16: =VLOOKUP(BC16,DEBUTSTEP!$AV$4:$AW$33,2,FALSE) -> 1 | BE16: Aléatoire | BF16: =VLOOKUP(BE16,DEBUTSTEP!$AV$4:$AW$33,2,FALSE) -> 1 | BG16: Aléatoire | BH16: =VLOOKUP(BG16,DEBUTSTEP!$AV$4:$AW$33,2,FALSE) -> 1 | BI16: Aléatoire | BJ16: =VLOOKUP(BI16,DEBUTSTEP!$AV$4:$AW$33,2,FALSE) -> 1 | BK16: Aléatoire | BL16: =VLOOKUP(BK16,DEBUTSTEP!$AV$4:$AW$33,2,FALSE) -> 1 | BM16: Aléatoire | BN16: =VLOOKUP(BM16,DEBUTSTEP!$AV$4:$AW$33,2,FALSE) -> 1 | BO16: Aléatoire | BP16: =VLOOKUP(BO16,DEBUTSTEP!$AV$4:$AW$33,2,FALSE) -> 1 | BQ16: Aléatoire | BR16: =VLOOKUP(BQ16,DEBUTSTEP!$AV$4:$AW$33,2,FALSE) -> 1 | BS16: Aléatoire | BT16: =VLOOKUP(BS16,DEBUTSTEP!$AV$4:$AW$33,2,FALSE) -> 1
B17: =DEBUTSTEP!$AX$4 -> Mémorisation des blocs | C17: Beaucoup d'erreurs | D17: =VLOOKUP(C17,DEBUTSTEP!$AX$4:$AY$33,2,FALSE) -> 1 | E17: Beaucoup d'erreurs | F17: =VLOOKUP(E17,DEBUTSTEP!$AX$4:$AY$33,2,FALSE) -> 1 | G17: Beaucoup d'erreurs | H17: =VLOOKUP(G17,DEBUTSTEP!$AX$4:$AY$33,2,FALSE) -> 1 | I17: Beaucoup d'erreurs | J17: =VLOOKUP(I17,DEBUTSTEP!$AX$4:$AY$33,2,FALSE) -> 1 | K17: Beaucoup d'erreurs | L17: =VLOOKUP(K17,DEBUTSTEP!$AX$4:$AY$33,2,FALSE) -> 1 | M17: Beaucoup d'erreurs | N17: =VLOOKUP(M17,DEBUTSTEP!$AX$4:$AY$33,2,FALSE) -> 1 | O17: Beaucoup d'erreurs | P17: =VLOOKUP(O17,DEBUTSTEP!$AX$4:$AY$33,2,FALSE) -> 1 | Q17: Beaucoup d'erreurs | R17: =VLOOKUP(Q17,DEBUTSTEP!$AX$4:$AY$33,2,FALSE) -> 1 | S17: Beaucoup d'erreurs | T17: =VLOOKUP(S17,DEBUTSTEP!$AX$4:$AY$33,2,FALSE) -> 1 | U17: Beaucoup d'erreurs | V17: =VLOOKUP(U17,DEBUTSTEP!$AX$4:$AY$33,2,FALSE) -> 1 | W17: Beaucoup d'erreurs | X17: =VLOOKUP(W17,DEBUTSTEP!$AX$4:$AY$33,2,FALSE) -> 1 | Y17: Beaucoup d'erreurs | Z17: =VLOOKUP(Y17,DEBUTSTEP!$AX$4:$AY$33,2,FALSE) -> 1 | AA17: Beaucoup d'erreurs | AB17: =VLOOKUP(AA17,DEBUTSTEP!$AX$4:$AY$33,2,FALSE) -> 1 | AC17: Beaucoup d'erreurs | AD17: =VLOOKUP(AC17,DEBUTSTEP!$AX$4:$AY$33,2,FALSE) -> 1 | AE17: Beaucoup d'erreurs | AF17: =VLOOKUP(AE17,DEBUTSTEP!$AX$4:$AY$33,2,FALSE) -> 1 | AG17: Beaucoup d'erreurs | AH17: =VLOOKUP(AG17,DEBUTSTEP!$AX$4:$AY$33,2,FALSE) -> 1 | AI17: Beaucoup d'erreurs | AJ17: =VLOOKUP(AI17,DEBUTSTEP!$AX$4:$AY$33,2,FALSE) -> 1 | AK17: Beaucoup d'erreurs | AL17: =VLOOKUP(AK17,DEBUTSTEP!$AX$4:$AY$33,2,FALSE) -> 1 | AM17: Beaucoup d'erreurs | AN17: =VLOOKUP(AM17,DEBUTSTEP!$AX$4:$AY$33,2,FALSE) -> 1 | AO17: Beaucoup d'erreurs | AP17: =VLOOKUP(AO17,DEBUTSTEP!$AX$4:$AY$33,2,FALSE) -> 1 | AQ17: Beaucoup d'erreurs | AR17: =VLOOKUP(AQ17,DEBUTSTEP!$AX$4:$AY$33,2,FALSE) -> 1 | AS17: Beaucoup d'erreurs | AT17: =VLOOKUP(AS17,DEBUTSTEP!$AX$4:$AY$33,2,FALSE) -> 1 | AU17: Beaucoup d'erreurs | AV17: =VLOOKUP(AU17,DEBUTSTEP!$AX$4:$AY$33,2,FALSE) -> 1 | AW17: Beaucoup d'erreurs | AX17: =VLOOKUP(AW17,DEBUTSTEP!$AX$4:$AY$33,2,FALSE) -> 1 | AY17: Beaucoup d'erreurs | AZ17: =VLOOKUP(AY17,DEBUTSTEP!$AX$4:$AY$33,2,FALSE) -> 1 | BA17: Beaucoup d'erreurs | BB17: =VLOOKUP(BA17,DEBUTSTEP!$AX$4:$AY$33,2,FALSE) -> 1 | BC17: Beaucoup d'erreurs | BD17: =VLOOKUP(BC17,DEBUTSTEP!$AX$4:$AY$33,2,FALSE) -> 1 | BE17: Beaucoup d'erreurs | BF17: =VLOOKUP(BE17,DEBUTSTEP!$AX$4:$AY$33,2,FALSE) -> 1 | BG17: Beaucoup d'erreurs | BH17: =VLOOKUP(BG17,DEBUTSTEP!$AX$4:$AY$33,2,FALSE) -> 1 | BI17: Beaucoup d'erreurs | BJ17: =VLOOKUP(BI17,DEBUTSTEP!$AX$4:$AY$33,2,FALSE) -> 1 | BK17: Beaucoup d'erreurs | BL17: =VLOOKUP(BK17,DEBUTSTEP!$AX$4:$AY$33,2,FALSE) -> 1 | BM17: Beaucoup d'erreurs | BN17: =VLOOKUP(BM17,DEBUTSTEP!$AX$4:$AY$33,2,FALSE) -> 1 | BO17: Beaucoup d'erreurs | BP17: =VLOOKUP(BO17,DEBUTSTEP!$AX$4:$AY$33,2,FALSE) -> 1 | BQ17: Beaucoup d'erreurs | BR17: =VLOOKUP(BQ17,DEBUTSTEP!$AX$4:$AY$33,2,FALSE) -> 1 | BS17: Beaucoup d'erreurs | BT17: =VLOOKUP(BS17,DEBUTSTEP!$AX$4:$AY$33,2,FALSE) -> 1
B18: =DEBUTSTEP!$AZ$4 -> Analyse de sa prestation | C18: Pertinente | D18: =VLOOKUP(C18,DEBUTSTEP!$AZ$4:$BA$33,2,FALSE) -> 3 | E18: Pertinente | F18: =VLOOKUP(E18,DEBUTSTEP!$AZ$4:$BA$33,2,FALSE) -> 3 | G18: Pertinente | H18: =VLOOKUP(G18,DEBUTSTEP!$AZ$4:$BA$33,2,FALSE) -> 3 | I18: Pertinente | J18: =VLOOKUP(I18,DEBUTSTEP!$AZ$4:$BA$33,2,FALSE) -> 3 | K18: Pertinente | L18: =VLOOKUP(K18,DEBUTSTEP!$AZ$4:$BA$33,2,FALSE) -> 3 | M18: Pertinente | N18: =VLOOKUP(M18,DEBUTSTEP!$AZ$4:$BA$33,2,FALSE) -> 3 | O18: Pertinente | P18: =VLOOKUP(O18,DEBUTSTEP!$AZ$4:$BA$33,2,FALSE) -> 3 | Q18: Pertinente | R18: =VLOOKUP(Q18,DEBUTSTEP!$AZ$4:$BA$33,2,FALSE) -> 3 | S18: Pertinente | T18: =VLOOKUP(S18,DEBUTSTEP!$AZ$4:$BA$33,2,FALSE) -> 3 | U18: Pertinente | V18: =VLOOKUP(U18,DEBUTSTEP!$AZ$4:$BA$33,2,FALSE) -> 3 | W18: Pertinente | X18: =VLOOKUP(W18,DEBUTSTEP!$AZ$4:$BA$33,2,FALSE) -> 3 | Y18: Pertinente | Z18: =VLOOKUP(Y18,DEBUTSTEP!$AZ$4:$BA$33,2,FALSE) -> 3 | AA18: Pertinente | AB18: =VLOOKUP(AA18,DEBUTSTEP!$AZ$4:$BA$33,2,FALSE) -> 3 | AC18: Pertinente | AD18: =VLOOKUP(AC18,DEBUTSTEP!$AZ$4:$BA$33,2,FALSE) -> 3 | AE18: Pertinente | AF18: =VLOOKUP(AE18,DEBUTSTEP!$AZ$4:$BA$33,2,FALSE) -> 3 | AG18: Pertinente | AH18: =VLOOKUP(AG18,DEBUTSTEP!$AZ$4:$BA$33,2,FALSE) -> 3 | AI18: Pertinente | AJ18: =VLOOKUP(AI18,DEBUTSTEP!$AZ$4:$BA$33,2,FALSE) -> 3 | AK18: Pertinente | AL18: =VLOOKUP(AK18,DEBUTSTEP!$AZ$4:$BA$33,2,FALSE) -> 3 | AM18: Pertinente | AN18: =VLOOKUP(AM18,DEBUTSTEP!$AZ$4:$BA$33,2,FALSE) -> 3 | AO18: Pertinente | AP18: =VLOOKUP(AO18,DEBUTSTEP!$AZ$4:$BA$33,2,FALSE) -> 3 | AQ18: Pertinente | AR18: =VLOOKUP(AQ18,DEBUTSTEP!$AZ$4:$BA$33,2,FALSE) -> 3 | AS18: Pertinente | AT18: =VLOOKUP(AS18,DEBUTSTEP!$AZ$4:$BA$33,2,FALSE) -> 3 | AU18: Pertinente | AV18: =VLOOKUP(AU18,DEBUTSTEP!$AZ$4:$BA$33,2,FALSE) -> 3 | AW18: Pertinente | AX18: =VLOOKUP(AW18,DEBUTSTEP!$AZ$4:$BA$33,2,FALSE) -> 3 | AY18: Pertinente | AZ18: =VLOOKUP(AY18,DEBUTSTEP!$AZ$4:$BA$33,2,FALSE) -> 3 | BA18: Pertinente | BB18: =VLOOKUP(BA18,DEBUTSTEP!$AZ$4:$BA$33,2,FALSE) -> 3 | BC18: Pertinente | BD18: =VLOOKUP(BC18,DEBUTSTEP!$AZ$4:$BA$33,2,FALSE) -> 3 | BE18: Pertinente | BF18: =VLOOKUP(BE18,DEBUTSTEP!$AZ$4:$BA$33,2,FALSE) -> 3 | BG18: Pertinente | BH18: =VLOOKUP(BG18,DEBUTSTEP!$AZ$4:$BA$33,2,FALSE) -> 3 | BI18: Pertinente | BJ18: =VLOOKUP(BI18,DEBUTSTEP!$AZ$4:$BA$33,2,FALSE) -> 3 | BK18: Pertinente | BL18: =VLOOKUP(BK18,DEBUTSTEP!$AZ$4:$BA$33,2,FALSE) -> 3 | BM18: Pertinente | BN18: =VLOOKUP(BM18,DEBUTSTEP!$AZ$4:$BA$33,2,FALSE) -> 3 | BO18: Pertinente | BP18: =VLOOKUP(BO18,DEBUTSTEP!$AZ$4:$BA$33,2,FALSE) -> 3 | BQ18: Pertinente | BR18: =VLOOKUP(BQ18,DEBUTSTEP!$AZ$4:$BA$33,2,FALSE) -> 3 | BS18: Pertinente | BT18: =VLOOKUP(BS18,DEBUTSTEP!$AZ$4:$BA$33,2,FALSE) -> 3
B19: NOTE | C19: =IF(OR(D13="x",D14="x",D15="x",D16="x",D17="x",D18="x"),"ABSENT",SUMIF(D13,"<>X")+SUMIF(D14,"<>X")+SUMIF(D15,"<>X")+SUMIF(D16,"<>X")+SUMIF(D17,"<>X")+SUMIF(D18,"<>X")) -> 7 | E19: =IF(OR(F13="x",F14="x",F15="x",F16="x",F17="x",F18="x"),"ABSENT",SUMIF(F13,"<>X")+SUMIF(F14,"<>X")+SUMIF(F15,"<>X")+SUMIF(F16,"<>X")+SUMIF(F17,"<>X")+SUMIF(F18,"<>X")) -> 7 | G19: =IF(OR(H13="x",H14="x",H15="x",H16="x",H17="x",H18="x"),"ABSENT",SUMIF(H13,"<>X")+SUMIF(H14,"<>X")+SUMIF(H15,"<>X")+SUMIF(H16,"<>X")+SUMIF(H17,"<>X")+SUMIF(H18,"<>X")) -> 7 | I19: =IF(OR(J13="x",J14="x",J15="x",J16="x",J17="x",J18="x"),"ABSENT",SUMIF(J13,"<>X")+SUMIF(J14,"<>X")+SUMIF(J15,"<>X")+SUMIF(J16,"<>X")+SUMIF(J17,"<>X")+SUMIF(J18,"<>X")) -> 7 | K19: =IF(OR(L13="x",L14="x",L15="x",L16="x",L17="x",L18="x"),"ABSENT",SUMIF(L13,"<>X")+SUMIF(L14,"<>X")+SUMIF(L15,"<>X")+SUMIF(L16,"<>X")+SUMIF(L17,"<>X")+SUMIF(L18,"<>X")) -> 7 | M19: =IF(OR(N13="x",N14="x",N15="x",N16="x",N17="x",N18="x"),"ABSENT",SUMIF(N13,"<>X")+SUMIF(N14,"<>X")+SUMIF(N15,"<>X")+SUMIF(N16,"<>X")+SUMIF(N17,"<>X")+SUMIF(N18,"<>X")) -> 7 | O19: =IF(OR(P13="x",P14="x",P15="x",P16="x",P17="x",P18="x"),"ABSENT",SUMIF(P13,"<>X")+SUMIF(P14,"<>X")+SUMIF(P15,"<>X")+SUMIF(P16,"<>X")+SUMIF(P17,"<>X")+SUMIF(P18,"<>X")) -> 7 | Q19: =IF(OR(R13="x",R14="x",R15="x",R16="x",R17="x",R18="x"),"ABSENT",SUMIF(R13,"<>X")+SUMIF(R14,"<>X")+SUMIF(R15,"<>X")+SUMIF(R16,"<>X")+SUMIF(R17,"<>X")+SUMIF(R18,"<>X")) -> 7 | S19: =IF(OR(T13="x",T14="x",T15="x",T16="x",T17="x",T18="x"),"ABSENT",SUMIF(T13,"<>X")+SUMIF(T14,"<>X")+SUMIF(T15,"<>X")+SUMIF(T16,"<>X")+SUMIF(T17,"<>X")+SUMIF(T18,"<>X")) -> 7 | U19: =IF(OR(V13="x",V14="x",V15="x",V16="x",V17="x",V18="x"),"ABSENT",SUMIF(V13,"<>X")+SUMIF(V14,"<>X")+SUMIF(V15,"<>X")+SUMIF(V16,"<>X")+SUMIF(V17,"<>X")+SUMIF(V18,"<>X")) -> 7 | W19: =IF(OR(X13="x",X14="x",X15="x",X16="x",X17="x",X18="x"),"ABSENT",SUMIF(X13,"<>X")+SUMIF(X14,"<>X")+SUMIF(X15,"<>X")+SUMIF(X16,"<>X")+SUMIF(X17,"<>X")+SUMIF(X18,"<>X")) -> 7 | Y19: =IF(OR(Z13="x",Z14="x",Z15="x",Z16="x",Z17="x",Z18="x"),"ABSENT",SUMIF(Z13,"<>X")+SUMIF(Z14,"<>X")+SUMIF(Z15,"<>X")+SUMIF(Z16,"<>X")+SUMIF(Z17,"<>X")+SUMIF(Z18,"<>X")) -> 7 | AA19: =IF(OR(AB13="x",AB14="x",AB15="x",AB16="x",AB17="x",AB18="x"),"ABSENT",SUMIF(AB13,"<>X")+SUMIF(AB14,"<>X")+SUMIF(AB15,"<>X")+SUMIF(AB16,"<>X")+SUMIF(AB17,"<>X")+SUMIF(AB18,"<>X")) -> 7 | AC19: =IF(OR(AD13="x",AD14="x",AD15="x",AD16="x",AD17="x",AD18="x"),"ABSENT",SUMIF(AD13,"<>X")+SUMIF(AD14,"<>X")+SUMIF(AD15,"<>X")+SUMIF(AD16,"<>X")+SUMIF(AD17,"<>X")+SUMIF(AD18,"<>X")) -> 7 | AE19: =IF(OR(AF13="x",AF14="x",AF15="x",AF16="x",AF17="x",AF18="x"),"ABSENT",SUMIF(AF13,"<>X")+SUMIF(AF14,"<>X")+SUMIF(AF15,"<>X")+SUMIF(AF16,"<>X")+SUMIF(AF17,"<>X")+SUMIF(AF18,"<>X")) -> 7 | AG19: =IF(OR(AH13="x",AH14="x",AH15="x",AH16="x",AH17="x",AH18="x"),"ABSENT",SUMIF(AH13,"<>X")+SUMIF(AH14,"<>X")+SUMIF(AH15,"<>X")+SUMIF(AH16,"<>X")+SUMIF(AH17,"<>X")+SUMIF(AH18,"<>X")) -> 7 | AI19: =IF(OR(AJ13="x",AJ14="x",AJ15="x",AJ16="x",AJ17="x",AJ18="x"),"ABSENT",SUMIF(AJ13,"<>X")+SUMIF(AJ14,"<>X")+SUMIF(AJ15,"<>X")+SUMIF(AJ16,"<>X")+SUMIF(AJ17,"<>X")+SUMIF(AJ18,"<>X")) -> 7 | AK19: =IF(OR(AL13="x",AL14="x",AL15="x",AL16="x",AL17="x",AL18="x"),"ABSENT",SUMIF(AL13,"<>X")+SUMIF(AL14,"<>X")+SUMIF(AL15,"<>X")+SUMIF(AL16,"<>X")+SUMIF(AL17,"<>X")+SUMIF(AL18,"<>X")) -> 7 | AM19: =IF(OR(AN13="x",AN14="x",AN15="x",AN16="x",AN17="x",AN18="x"),"ABSENT",SUMIF(AN13,"<>X")+SUMIF(AN14,"<>X")+SUMIF(AN15,"<>X")+SUMIF(AN16,"<>X")+SUMIF(AN17,"<>X")+SUMIF(AN18,"<>X")) -> 7 | AO19: =IF(OR(AP13="x",AP14="x",AP15="x",AP16="x",AP17="x",AP18="x"),"ABSENT",SUMIF(AP13,"<>X")+SUMIF(AP14,"<>X")+SUMIF(AP15,"<>X")+SUMIF(AP16,"<>X")+SUMIF(AP17,"<>X")+SUMIF(AP18,"<>X")) -> 7 | AQ19: =IF(OR(AR13="x",AR14="x",AR15="x",AR16="x",AR17="x",AR18="x"),"ABSENT",SUMIF(AR13,"<>X")+SUMIF(AR14,"<>X")+SUMIF(AR15,"<>X")+SUMIF(AR16,"<>X")+SUMIF(AR17,"<>X")+SUMIF(AR18,"<>X")) -> 7 | AS19: =IF(OR(AT13="x",AT14="x",AT15="x",AT16="x",AT17="x",AT18="x"),"ABSENT",SUMIF(AT13,"<>X")+SUMIF(AT14,"<>X")+SUMIF(AT15,"<>X")+SUMIF(AT16,"<>X")+SUMIF(AT17,"<>X")+SUMIF(AT18,"<>X")) -> 7 | AU19: =IF(OR(AV13="x",AV14="x",AV15="x",AV16="x",AV17="x",AV18="x"),"ABSENT",SUMIF(AV13,"<>X")+SUMIF(AV14,"<>X")+SUMIF(AV15,"<>X")+SUMIF(AV16,"<>X")+SUMIF(AV17,"<>X")+SUMIF(AV18,"<>X")) -> 7 | AW19: =IF(OR(AX13="x",AX14="x",AX15="x",AX16="x",AX17="x",AX18="x"),"ABSENT",SUMIF(AX13,"<>X")+SUMIF(AX14,"<>X")+SUMIF(AX15,"<>X")+SUMIF(AX16,"<>X")+SUMIF(AX17,"<>X")+SUMIF(AX18,"<>X")) -> 7 | AY19: =IF(OR(AZ13="x",AZ14="x",AZ15="x",AZ16="x",AZ17="x",AZ18="x"),"ABSENT",SUMIF(AZ13,"<>X")+SUMIF(AZ14,"<>X")+SUMIF(AZ15,"<>X")+SUMIF(AZ16,"<>X")+SUMIF(AZ17,"<>X")+SUMIF(AZ18,"<>X")) -> 7 | BA19: =IF(OR(BB13="x",BB14="x",BB15="x",BB16="x",BB17="x",BB18="x"),"ABSENT",SUMIF(BB13,"<>X")+SUMIF(BB14,"<>X")+SUMIF(BB15,"<>X")+SUMIF(BB16,"<>X")+SUMIF(BB17,"<>X")+SUMIF(BB18,"<>X")) -> 7 | BC19: =IF(OR(BD13="x",BD14="x",BD15="x",BD16="x",BD17="x",BD18="x"),"ABSENT",SUMIF(BD13,"<>X")+SUMIF(BD14,"<>X")+SUMIF(BD15,"<>X")+SUMIF(BD16,"<>X")+SUMIF(BD17,"<>X")+SUMIF(BD18,"<>X")) -> 7 | BE19: =IF(OR(BF13="x",BF14="x",BF15="x",BF16="x",BF17="x",BF18="x"),"ABSENT",SUMIF(BF13,"<>X")+SUMIF(BF14,"<>X")+SUMIF(BF15,"<>X")+SUMIF(BF16,"<>X")+SUMIF(BF17,"<>X")+SUMIF(BF18,"<>X")) -> 7 | BG19: =IF(OR(BH13="x",BH14="x",BH15="x",BH16="x",BH17="x",BH18="x"),"ABSENT",SUMIF(BH13,"<>X")+SUMIF(BH14,"<>X")+SUMIF(BH15,"<>X")+SUMIF(BH16,"<>X")+SUMIF(BH17,"<>X")+SUMIF(BH18,"<>X")) -> 7 | BI19: =IF(OR(BJ13="x",BJ14="x",BJ15="x",BJ16="x",BJ17="x",BJ18="x"),"ABSENT",SUMIF(BJ13,"<>X")+SUMIF(BJ14,"<>X")+SUMIF(BJ15,"<>X")+SUMIF(BJ16,"<>X")+SUMIF(BJ17,"<>X")+SUMIF(BJ18,"<>X")) -> 7 | BK19: =IF(OR(BL13="x",BL14="x",BL15="x",BL16="x",BL17="x",BL18="x"),"ABSENT",SUMIF(BL13,"<>X")+SUMIF(BL14,"<>X")+SUMIF(BL15,"<>X")+SUMIF(BL16,"<>X")+SUMIF(BL17,"<>X")+SUMIF(BL18,"<>X")) -> 7 | BM19: =IF(OR(BN13="x",BN14="x",BN15="x",BN16="x",BN17="x",BN18="x"),"ABSENT",SUMIF(BN13,"<>X")+SUMIF(BN14,"<>X")+SUMIF(BN15,"<>X")+SUMIF(BN16,"<>X")+SUMIF(BN17,"<>X")+SUMIF(BN18,"<>X")) -> 7 | BO19: =IF(OR(BP13="x",BP14="x",BP15="x",BP16="x",BP17="x",BP18="x"),"ABSENT",SUMIF(BP13,"<>X")+SUMIF(BP14,"<>X")+SUMIF(BP15,"<>X")+SUMIF(BP16,"<>X")+SUMIF(BP17,"<>X")+SUMIF(BP18,"<>X")) -> 7 | BQ19: =IF(OR(BR13="x",BR14="x",BR15="x",BR16="x",BR17="x",BR18="x"),"ABSENT",SUMIF(BR13,"<>X")+SUMIF(BR14,"<>X")+SUMIF(BR15,"<>X")+SUMIF(BR16,"<>X")+SUMIF(BR17,"<>X")+SUMIF(BR18,"<>X")) -> 7 | BS19: =IF(OR(BT13="x",BT14="x",BT15="x",BT16="x",BT17="x",BT18="x"),"ABSENT",SUMIF(BT13,"<>X")+SUMIF(BT14,"<>X")+SUMIF(BT15,"<>X")+SUMIF(BT16,"<>X")+SUMIF(BT17,"<>X")+SUMIF(BT18,"<>X")) -> 7
A21: SEANCE 3 | B21: =DEBUTSTEP!$AP$4 -> Prendre sa FC efficacement | C21: Jamais | D21: =VLOOKUP(C21,DEBUTSTEP!$AP$4:$AQ$33,2,FALSE) -> NA | E21: Jamais | F21: =VLOOKUP(E21,DEBUTSTEP!$AP$4:$AQ$33,2,FALSE) -> NA | G21: Jamais | H21: =VLOOKUP(G21,DEBUTSTEP!$AP$4:$AQ$33,2,FALSE) -> NA | I21: Jamais | J21: =VLOOKUP(I21,DEBUTSTEP!$AP$4:$AQ$33,2,FALSE) -> NA | K21: Jamais | L21: =VLOOKUP(K21,DEBUTSTEP!$AP$4:$AQ$33,2,FALSE) -> NA | M21: Jamais | N21: =VLOOKUP(M21,DEBUTSTEP!$AP$4:$AQ$33,2,FALSE) -> NA | O21: Jamais | P21: =VLOOKUP(O21,DEBUTSTEP!$AP$4:$AQ$33,2,FALSE) -> NA | Q21: Jamais | R21: =VLOOKUP(Q21,DEBUTSTEP!$AP$4:$AQ$33,2,FALSE) -> NA | S21: Jamais | T21: =VLOOKUP(S21,DEBUTSTEP!$AP$4:$AQ$33,2,FALSE) -> NA | U21: Jamais | V21: =VLOOKUP(U21,DEBUTSTEP!$AP$4:$AQ$33,2,FALSE) -> NA | W21: Jamais | X21: =VLOOKUP(W21,DEBUTSTEP!$AP$4:$AQ$33,2,FALSE) -> NA | Y21: Jamais | Z21: =VLOOKUP(Y21,DEBUTSTEP!$AP$4:$AQ$33,2,FALSE) -> NA | AA21: Jamais | AB21: =VLOOKUP(AA21,DEBUTSTEP!$AP$4:$AQ$33,2,FALSE) -> NA | AC21: Jamais | AD21: =VLOOKUP(AC21,DEBUTSTEP!$AP$4:$AQ$33,2,FALSE) -> NA | AE21: Jamais | AF21: =VLOOKUP(AE21,DEBUTSTEP!$AP$4:$AQ$33,2,FALSE) -> NA | AG21: Jamais | AH21: =VLOOKUP(AG21,DEBUTSTEP!$AP$4:$AQ$33,2,FALSE) -> NA | AI21: Jamais | AJ21: =VLOOKUP(AI21,DEBUTSTEP!$AP$4:$AQ$33,2,FALSE) -> NA | AK21: Jamais | AL21: =VLOOKUP(AK21,DEBUTSTEP!$AP$4:$AQ$33,2,FALSE) -> NA | AM21: Jamais | AN21: =VLOOKUP(AM21,DEBUTSTEP!$AP$4:$AQ$33,2,FALSE) -> NA | AO21: Jamais | AP21: =VLOOKUP(AO21,DEBUTSTEP!$AP$4:$AQ$33,2,FALSE) -> NA | AQ21: Jamais | AR21: =VLOOKUP(AQ21,DEBUTSTEP!$AP$4:$AQ$33,2,FALSE) -> NA | AS21: Jamais | AT21: =VLOOKUP(AS21,DEBUTSTEP!$AP$4:$AQ$33,2,FALSE) -> NA | AU21: Jamais | AV21: =VLOOKUP(AU21,DEBUTSTEP!$AP$4:$AQ$33,2,FALSE) -> NA | AW21: Jamais | AX21: =VLOOKUP(AW21,DEBUTSTEP!$AP$4:$AQ$33,2,FALSE) -> NA | AY21: Jamais | AZ21: =VLOOKUP(AY21,DEBUTSTEP!$AP$4:$AQ$33,2,FALSE) -> NA | BA21: Jamais | BB21: =VLOOKUP(BA21,DEBUTSTEP!$AP$4:$AQ$33,2,FALSE) -> NA | BC21: Jamais | BD21: =VLOOKUP(BC21,DEBUTSTEP!$AP$4:$AQ$33,2,FALSE) -> NA | BE21: Jamais | BF21: =VLOOKUP(BE21,DEBUTSTEP!$AP$4:$AQ$33,2,FALSE) -> NA | BG21: Jamais | BH21: =VLOOKUP(BG21,DEBUTSTEP!$AP$4:$AQ$33,2,FALSE) -> NA | BI21: Jamais | BJ21: =VLOOKUP(BI21,DEBUTSTEP!$AP$4:$AQ$33,2,FALSE) -> NA | BK21: Jamais | BL21: =VLOOKUP(BK21,DEBUTSTEP!$AP$4:$AQ$33,2,FALSE) -> NA | BM21: Jamais | BN21: =VLOOKUP(BM21,DEBUTSTEP!$AP$4:$AQ$33,2,FALSE) -> NA | BO21: Jamais | BP21: =VLOOKUP(BO21,DEBUTSTEP!$AP$4:$AQ$33,2,FALSE) -> NA | BQ21: Jamais | BR21: =VLOOKUP(BQ21,DEBUTSTEP!$AP$4:$AQ$33,2,FALSE) -> NA | BS21: Jamais | BT21: =VLOOKUP(BS21,DEBUTSTEP!$AP$4:$AQ$33,2,FALSE) -> NA
B22: =DEBUTSTEP!$AR$4 -> S'engager dans le mobile | C22: Faible | D22: =VLOOKUP(C22,DEBUTSTEP!$AR$4:$AS$33,2,FALSE) -> 1 | E22: Faible | F22: =VLOOKUP(E22,DEBUTSTEP!$AR$4:$AS$33,2,FALSE) -> 1 | G22: Faible | H22: =VLOOKUP(G22,DEBUTSTEP!$AR$4:$AS$33,2,FALSE) -> 1 | I22: Faible | J22: =VLOOKUP(I22,DEBUTSTEP!$AR$4:$AS$33,2,FALSE) -> 1 | K22: Faible | L22: =VLOOKUP(K22,DEBUTSTEP!$AR$4:$AS$33,2,FALSE) -> 1 | M22: Faible | N22: =VLOOKUP(M22,DEBUTSTEP!$AR$4:$AS$33,2,FALSE) -> 1 | O22: Faible | P22: =VLOOKUP(O22,DEBUTSTEP!$AR$4:$AS$33,2,FALSE) -> 1 | Q22: Faible | R22: =VLOOKUP(Q22,DEBUTSTEP!$AR$4:$AS$33,2,FALSE) -> 1 | S22: Faible | T22: =VLOOKUP(S22,DEBUTSTEP!$AR$4:$AS$33,2,FALSE) -> 1 | U22: Faible | V22: =VLOOKUP(U22,DEBUTSTEP!$AR$4:$AS$33,2,FALSE) -> 1 | W22: Faible | X22: =VLOOKUP(W22,DEBUTSTEP!$AR$4:$AS$33,2,FALSE) -> 1 | Y22: Faible | Z22: =VLOOKUP(Y22,DEBUTSTEP!$AR$4:$AS$33,2,FALSE) -> 1 | AA22: Faible | AB22: =VLOOKUP(AA22,DEBUTSTEP!$AR$4:$AS$33,2,FALSE) -> 1 | AC22: Faible | AD22: =VLOOKUP(AC22,DEBUTSTEP!$AR$4:$AS$33,2,FALSE) -> 1 | AE22: Faible | AF22: =VLOOKUP(AE22,DEBUTSTEP!$AR$4:$AS$33,2,FALSE) -> 1 | AG22: Faible | AH22: =VLOOKUP(AG22,DEBUTSTEP!$AR$4:$AS$33,2,FALSE) -> 1 | AI22: Faible | AJ22: =VLOOKUP(AI22,DEBUTSTEP!$AR$4:$AS$33,2,FALSE) -> 1 | AK22: Faible | AL22: =VLOOKUP(AK22,DEBUTSTEP!$AR$4:$AS$33,2,FALSE) -> 1 | AM22: Faible | AN22: =VLOOKUP(AM22,DEBUTSTEP!$AR$4:$AS$33,2,FALSE) -> 1 | AO22: Faible | AP22: =VLOOKUP(AO22,DEBUTSTEP!$AR$4:$AS$33,2,FALSE) -> 1 | AQ22: Faible | AR22: =VLOOKUP(AQ22,DEBUTSTEP!$AR$4:$AS$33,2,FALSE) -> 1 | AS22: Faible | AT22: =VLOOKUP(AS22,DEBUTSTEP!$AR$4:$AS$33,2,FALSE) -> 1 | AU22: Faible | AV22: =VLOOKUP(AU22,DEBUTSTEP!$AR$4:$AS$33,2,FALSE) -> 1 | AW22: Faible | AX22: =VLOOKUP(AW22,DEBUTSTEP!$AR$4:$AS$33,2,FALSE) -> 1 | AY22: Faible | AZ22: =VLOOKUP(AY22,DEBUTSTEP!$AR$4:$AS$33,2,FALSE) -> 1 | BA22: Faible | BB22: =VLOOKUP(BA22,DEBUTSTEP!$AR$4:$AS$33,2,FALSE) -> 1 | BC22: Faible | BD22: =VLOOKUP(BC22,DEBUTSTEP!$AR$4:$AS$33,2,FALSE) -> 1 | BE22: Faible | BF22: =VLOOKUP(BE22,DEBUTSTEP!$AR$4:$AS$33,2,FALSE) -> 1 | BG22: Faible | BH22: =VLOOKUP(BG22,DEBUTSTEP!$AR$4:$AS$33,2,FALSE) -> 1 | BI22: Faible | BJ22: =VLOOKUP(BI22,DEBUTSTEP!$AR$4:$AS$33,2,FALSE) -> 1 | BK22: Faible | BL22: =VLOOKUP(BK22,DEBUTSTEP!$AR$4:$AS$33,2,FALSE) -> 1 | BM22: Faible | BN22: =VLOOKUP(BM22,DEBUTSTEP!$AR$4:$AS$33,2,FALSE) -> 1 | BO22: Faible | BP22: =VLOOKUP(BO22,DEBUTSTEP!$AR$4:$AS$33,2,FALSE) -> 1 | BQ22: Faible | BR22: =VLOOKUP(BQ22,DEBUTSTEP!$AR$4:$AS$33,2,FALSE) -> 1 | BS22: Faible | BT22: =VLOOKUP(BS22,DEBUTSTEP!$AR$4:$AS$33,2,FALSE) -> 1
B23: =DEBUTSTEP!$AT$4 -> Agir en sécu | C23: Quelques avertissements | D23: =VLOOKUP(C23,DEBUTSTEP!$AT$4:$AU$33,2,FALSE) -> 1 | E23: Quelques avertissements | F23: =VLOOKUP(E23,DEBUTSTEP!$AT$4:$AU$33,2,FALSE) -> 1 | G23: Quelques avertissements | H23: =VLOOKUP(G23,DEBUTSTEP!$AT$4:$AU$33,2,FALSE) -> 1 | I23: Quelques avertissements | J23: =VLOOKUP(I23,DEBUTSTEP!$AT$4:$AU$33,2,FALSE) -> 1 | K23: Quelques avertissements | L23: =VLOOKUP(K23,DEBUTSTEP!$AT$4:$AU$33,2,FALSE) -> 1 | M23: Quelques avertissements | N23: =VLOOKUP(M23,DEBUTSTEP!$AT$4:$AU$33,2,FALSE) -> 1 | O23: Quelques avertissements | P23: =VLOOKUP(O23,DEBUTSTEP!$AT$4:$AU$33,2,FALSE) -> 1 | Q23: Quelques avertissements | R23: =VLOOKUP(Q23,DEBUTSTEP!$AT$4:$AU$33,2,FALSE) -> 1 | S23: Quelques avertissements | T23: =VLOOKUP(S23,DEBUTSTEP!$AT$4:$AU$33,2,FALSE) -> 1 | U23: Quelques avertissements | V23: =VLOOKUP(U23,DEBUTSTEP!$AT$4:$AU$33,2,FALSE) -> 1 | W23: Quelques avertissements | X23: =VLOOKUP(W23,DEBUTSTEP!$AT$4:$AU$33,2,FALSE) -> 1 | Y23: Quelques avertissements | Z23: =VLOOKUP(Y23,DEBUTSTEP!$AT$4:$AU$33,2,FALSE) -> 1 | AA23: Quelques avertissements | AB23: =VLOOKUP(AA23,DEBUTSTEP!$AT$4:$AU$33,2,FALSE) -> 1 | AC23: Quelques avertissements | AD23: =VLOOKUP(AC23,DEBUTSTEP!$AT$4:$AU$33,2,FALSE) -> 1 | AE23: Quelques avertissements | AF23: =VLOOKUP(AE23,DEBUTSTEP!$AT$4:$AU$33,2,FALSE) -> 1 | AG23: Quelques avertissements | AH23: =VLOOKUP(AG23,DEBUTSTEP!$AT$4:$AU$33,2,FALSE) -> 1 | AI23: Quelques avertissements | AJ23: =VLOOKUP(AI23,DEBUTSTEP!$AT$4:$AU$33,2,FALSE) -> 1 | AK23: Quelques avertissements | AL23: =VLOOKUP(AK23,DEBUTSTEP!$AT$4:$AU$33,2,FALSE) -> 1 | AM23: Quelques avertissements | AN23: =VLOOKUP(AM23,DEBUTSTEP!$AT$4:$AU$33,2,FALSE) -> 1 | AO23: Quelques avertissements | AP23: =VLOOKUP(AO23,DEBUTSTEP!$AT$4:$AU$33,2,FALSE) -> 1 | AQ23: Quelques avertissements | AR23: =VLOOKUP(AQ23,DEBUTSTEP!$AT$4:$AU$33,2,FALSE) -> 1 | AS23: Quelques avertissements | AT23: =VLOOKUP(AS23,DEBUTSTEP!$AT$4:$AU$33,2,FALSE) -> 1 | AU23: Quelques avertissements | AV23: =VLOOKUP(AU23,DEBUTSTEP!$AT$4:$AU$33,2,FALSE) -> 1 | AW23: Quelques avertissements | AX23: =VLOOKUP(AW23,DEBUTSTEP!$AT$4:$AU$33,2,FALSE) -> 1 | AY23: Quelques avertissements | AZ23: =VLOOKUP(AY23,DEBUTSTEP!$AT$4:$AU$33,2,FALSE) -> 1 | BA23: Quelques avertissements | BB23: =VLOOKUP(BA23,DEBUTSTEP!$AT$4:$AU$33,2,FALSE) -> 1 | BC23: Quelques avertissements | BD23: =VLOOKUP(BC23,DEBUTSTEP!$AT$4:$AU$33,2,FALSE) -> 1 | BE23: Quelques avertissements | BF23: =VLOOKUP(BE23,DEBUTSTEP!$AT$4:$AU$33,2,FALSE) -> 1 | BG23: Quelques avertissements | BH23: =VLOOKUP(BG23,DEBUTSTEP!$AT$4:$AU$33,2,FALSE) -> 1 | BI23: Quelques avertissements | BJ23: =VLOOKUP(BI23,DEBUTSTEP!$AT$4:$AU$33,2,FALSE) -> 1 | BK23: Quelques avertissements | BL23: =VLOOKUP(BK23,DEBUTSTEP!$AT$4:$AU$33,2,FALSE) -> 1 | BM23: Quelques avertissements | BN23: =VLOOKUP(BM23,DEBUTSTEP!$AT$4:$AU$33,2,FALSE) -> 1 | BO23: Quelques avertissements | BP23: =VLOOKUP(BO23,DEBUTSTEP!$AT$4:$AU$33,2,FALSE) -> 1 | BQ23: Quelques avertissements | BR23: =VLOOKUP(BQ23,DEBUTSTEP!$AT$4:$AU$33,2,FALSE) -> 1 | BS23: Quelques avertissements | BT23: =VLOOKUP(BS23,DEBUTSTEP!$AT$4:$AU$33,2,FALSE) -> 1
B24: =DEBUTSTEP!$AV$4 -> Respect de l'entrainement proposé | C24: Aléatoire | D24: =VLOOKUP(C24,DEBUTSTEP!$AV$4:$AW$33,2,FALSE) -> 1 | E24: Aléatoire | F24: =VLOOKUP(E24,DEBUTSTEP!$AV$4:$AW$33,2,FALSE) -> 1 | G24: Aléatoire | H24: =VLOOKUP(G24,DEBUTSTEP!$AV$4:$AW$33,2,FALSE) -> 1 | I24: Aléatoire | J24: =VLOOKUP(I24,DEBUTSTEP!$AV$4:$AW$33,2,FALSE) -> 1 | K24: Aléatoire | L24: =VLOOKUP(K24,DEBUTSTEP!$AV$4:$AW$33,2,FALSE) -> 1 | M24: Aléatoire | N24: =VLOOKUP(M24,DEBUTSTEP!$AV$4:$AW$33,2,FALSE) -> 1 | O24: Aléatoire | P24: =VLOOKUP(O24,DEBUTSTEP!$AV$4:$AW$33,2,FALSE) -> 1 | Q24: Aléatoire | R24: =VLOOKUP(Q24,DEBUTSTEP!$AV$4:$AW$33,2,FALSE) -> 1 | S24: Aléatoire | T24: =VLOOKUP(S24,DEBUTSTEP!$AV$4:$AW$33,2,FALSE) -> 1 | U24: Aléatoire | V24: =VLOOKUP(U24,DEBUTSTEP!$AV$4:$AW$33,2,FALSE) -> 1 | W24: Aléatoire | X24: =VLOOKUP(W24,DEBUTSTEP!$AV$4:$AW$33,2,FALSE) -> 1 | Y24: Aléatoire | Z24: =VLOOKUP(Y24,DEBUTSTEP!$AV$4:$AW$33,2,FALSE) -> 1 | AA24: Aléatoire | AB24: =VLOOKUP(AA24,DEBUTSTEP!$AV$4:$AW$33,2,FALSE) -> 1 | AC24: Aléatoire | AD24: =VLOOKUP(AC24,DEBUTSTEP!$AV$4:$AW$33,2,FALSE) -> 1 | AE24: Aléatoire | AF24: =VLOOKUP(AE24,DEBUTSTEP!$AV$4:$AW$33,2,FALSE) -> 1 | AG24: Aléatoire | AH24: =VLOOKUP(AG24,DEBUTSTEP!$AV$4:$AW$33,2,FALSE) -> 1 | AI24: Aléatoire | AJ24: =VLOOKUP(AI24,DEBUTSTEP!$AV$4:$AW$33,2,FALSE) -> 1 | AK24: Aléatoire | AL24: =VLOOKUP(AK24,DEBUTSTEP!$AV$4:$AW$33,2,FALSE) -> 1 | AM24: Aléatoire | AN24: =VLOOKUP(AM24,DEBUTSTEP!$AV$4:$AW$33,2,FALSE) -> 1 | AO24: Aléatoire | AP24: =VLOOKUP(AO24,DEBUTSTEP!$AV$4:$AW$33,2,FALSE) -> 1 | AQ24: Aléatoire | AR24: =VLOOKUP(AQ24,DEBUTSTEP!$AV$4:$AW$33,2,FALSE) -> 1 | AS24: Aléatoire | AT24: =VLOOKUP(AS24,DEBUTSTEP!$AV$4:$AW$33,2,FALSE) -> 1 | AU24: Aléatoire | AV24: =VLOOKUP(AU24,DEBUTSTEP!$AV$4:$AW$33,2,FALSE) -> 1 | AW24: Aléatoire | AX24: =VLOOKUP(AW24,DEBUTSTEP!$AV$4:$AW$33,2,FALSE) -> 1 | AY24: Aléatoire | AZ24: =VLOOKUP(AY24,DEBUTSTEP!$AV$4:$AW$33,2,FALSE) -> 1 | BA24: Aléatoire | BB24: =VLOOKUP(BA24,DEBUTSTEP!$AV$4:$AW$33,2,FALSE) -> 1 | BC24: Aléatoire | BD24: =VLOOKUP(BC24,DEBUTSTEP!$AV$4:$AW$33,2,FALSE) -> 1 | BE24: Aléatoire | BF24: =VLOOKUP(BE24,DEBUTSTEP!$AV$4:$AW$33,2,FALSE) -> 1 | BG24: Aléatoire | BH24: =VLOOKUP(BG24,DEBUTSTEP!$AV$4:$AW$33,2,FALSE) -> 1 | BI24: Aléatoire | BJ24: =VLOOKUP(BI24,DEBUTSTEP!$AV$4:$AW$33,2,FALSE) -> 1 | BK24: Aléatoire | BL24: =VLOOKUP(BK24,DEBUTSTEP!$AV$4:$AW$33,2,FALSE) -> 1 | BM24: Aléatoire | BN24: =VLOOKUP(BM24,DEBUTSTEP!$AV$4:$AW$33,2,FALSE) -> 1 | BO24: Aléatoire | BP24: =VLOOKUP(BO24,DEBUTSTEP!$AV$4:$AW$33,2,FALSE) -> 1 | BQ24: Aléatoire | BR24: =VLOOKUP(BQ24,DEBUTSTEP!$AV$4:$AW$33,2,FALSE) -> 1 | BS24: Aléatoire | BT24: =VLOOKUP(BS24,DEBUTSTEP!$AV$4:$AW$33,2,FALSE) -> 1
B25: =DEBUTSTEP!$AX$4 -> Mémorisation des blocs | C25: Beaucoup d'erreurs | D25: =VLOOKUP(C25,DEBUTSTEP!$AX$4:$AY$33,2,FALSE) -> 1 | E25: Beaucoup d'erreurs | F25: =VLOOKUP(E25,DEBUTSTEP!$AX$4:$AY$33,2,FALSE) -> 1 | G25: Beaucoup d'erreurs | H25: =VLOOKUP(G25,DEBUTSTEP!$AX$4:$AY$33,2,FALSE) -> 1 | I25: Beaucoup d'erreurs | J25: =VLOOKUP(I25,DEBUTSTEP!$AX$4:$AY$33,2,FALSE) -> 1 | K25: Beaucoup d'erreurs | L25: =VLOOKUP(K25,DEBUTSTEP!$AX$4:$AY$33,2,FALSE) -> 1 | M25: Beaucoup d'erreurs | N25: =VLOOKUP(M25,DEBUTSTEP!$AX$4:$AY$33,2,FALSE) -> 1 | O25: Beaucoup d'erreurs | P25: =VLOOKUP(O25,DEBUTSTEP!$AX$4:$AY$33,2,FALSE) -> 1 | Q25: Beaucoup d'erreurs | R25: =VLOOKUP(Q25,DEBUTSTEP!$AX$4:$AY$33,2,FALSE) -> 1 | S25: Beaucoup d'erreurs | T25: =VLOOKUP(S25,DEBUTSTEP!$AX$4:$AY$33,2,FALSE) -> 1 | U25: Beaucoup d'erreurs | V25: =VLOOKUP(U25,DEBUTSTEP!$AX$4:$AY$33,2,FALSE) -> 1 | W25: Beaucoup d'erreurs | X25: =VLOOKUP(W25,DEBUTSTEP!$AX$4:$AY$33,2,FALSE) -> 1 | Y25: Beaucoup d'erreurs | Z25: =VLOOKUP(Y25,DEBUTSTEP!$AX$4:$AY$33,2,FALSE) -> 1 | AA25: Beaucoup d'erreurs | AB25: =VLOOKUP(AA25,DEBUTSTEP!$AX$4:$AY$33,2,FALSE) -> 1 | AC25: Beaucoup d'erreurs | AD25: =VLOOKUP(AC25,DEBUTSTEP!$AX$4:$AY$33,2,FALSE) -> 1 | AE25: Beaucoup d'erreurs | AF25: =VLOOKUP(AE25,DEBUTSTEP!$AX$4:$AY$33,2,FALSE) -> 1 | AG25: Beaucoup d'erreurs | AH25: =VLOOKUP(AG25,DEBUTSTEP!$AX$4:$AY$33,2,FALSE) -> 1 | AI25: Beaucoup d'erreurs | AJ25: =VLOOKUP(AI25,DEBUTSTEP!$AX$4:$AY$33,2,FALSE) -> 1 | AK25: Beaucoup d'erreurs | AL25: =VLOOKUP(AK25,DEBUTSTEP!$AX$4:$AY$33,2,FALSE) -> 1 | AM25: Beaucoup d'erreurs | AN25: =VLOOKUP(AM25,DEBUTSTEP!$AX$4:$AY$33,2,FALSE) -> 1 | AO25: Beaucoup d'erreurs | AP25: =VLOOKUP(AO25,DEBUTSTEP!$AX$4:$AY$33,2,FALSE) -> 1 | AQ25: Beaucoup d'erreurs | AR25: =VLOOKUP(AQ25,DEBUTSTEP!$AX$4:$AY$33,2,FALSE) -> 1 | AS25: Beaucoup d'erreurs | AT25: =VLOOKUP(AS25,DEBUTSTEP!$AX$4:$AY$33,2,FALSE) -> 1 | AU25: Beaucoup d'erreurs | AV25: =VLOOKUP(AU25,DEBUTSTEP!$AX$4:$AY$33,2,FALSE) -> 1 | AW25: Beaucoup d'erreurs | AX25: =VLOOKUP(AW25,DEBUTSTEP!$AX$4:$AY$33,2,FALSE) -> 1 | AY25: Beaucoup d'erreurs | AZ25: =VLOOKUP(AY25,DEBUTSTEP!$AX$4:$AY$33,2,FALSE) -> 1 | BA25: Beaucoup d'erreurs | BB25: =VLOOKUP(BA25,DEBUTSTEP!$AX$4:$AY$33,2,FALSE) -> 1 | BC25: Beaucoup d'erreurs | BD25: =VLOOKUP(BC25,DEBUTSTEP!$AX$4:$AY$33,2,FALSE) -> 1 | BE25: Beaucoup d'erreurs | BF25: =VLOOKUP(BE25,DEBUTSTEP!$AX$4:$AY$33,2,FALSE) -> 1 | BG25: Beaucoup d'erreurs | BH25: =VLOOKUP(BG25,DEBUTSTEP!$AX$4:$AY$33,2,FALSE) -> 1 | BI25: Beaucoup d'erreurs | BJ25: =VLOOKUP(BI25,DEBUTSTEP!$AX$4:$AY$33,2,FALSE) -> 1 | BK25: Beaucoup d'erreurs | BL25: =VLOOKUP(BK25,DEBUTSTEP!$AX$4:$AY$33,2,FALSE) -> 1 | BM25: Beaucoup d'erreurs | BN25: =VLOOKUP(BM25,DEBUTSTEP!$AX$4:$AY$33,2,FALSE) -> 1 | BO25: Beaucoup d'erreurs | BP25: =VLOOKUP(BO25,DEBUTSTEP!$AX$4:$AY$33,2,FALSE) -> 1 | BQ25: Beaucoup d'erreurs | BR25: =VLOOKUP(BQ25,DEBUTSTEP!$AX$4:$AY$33,2,FALSE) -> 1 | BS25: Beaucoup d'erreurs | BT25: =VLOOKUP(BS25,DEBUTSTEP!$AX$4:$AY$33,2,FALSE) -> 1
B26: =DEBUTSTEP!$AZ$4 -> Analyse de sa prestation | C26: Pertinente | D26: =VLOOKUP(C26,DEBUTSTEP!$AZ$4:$BA$33,2,FALSE) -> 3 | E26: Pertinente | F26: =VLOOKUP(E26,DEBUTSTEP!$AZ$4:$BA$33,2,FALSE) -> 3 | G26: Pertinente | H26: =VLOOKUP(G26,DEBUTSTEP!$AZ$4:$BA$33,2,FALSE) -> 3 | I26: Pertinente | J26: =VLOOKUP(I26,DEBUTSTEP!$AZ$4:$BA$33,2,FALSE) -> 3 | K26: Pertinente | L26: =VLOOKUP(K26,DEBUTSTEP!$AZ$4:$BA$33,2,FALSE) -> 3 | M26: Pertinente | N26: =VLOOKUP(M26,DEBUTSTEP!$AZ$4:$BA$33,2,FALSE) -> 3 | O26: Pertinente | P26: =VLOOKUP(O26,DEBUTSTEP!$AZ$4:$BA$33,2,FALSE) -> 3 | Q26: Pertinente | R26: =VLOOKUP(Q26,DEBUTSTEP!$AZ$4:$BA$33,2,FALSE) -> 3 | S26: Pertinente | T26: =VLOOKUP(S26,DEBUTSTEP!$AZ$4:$BA$33,2,FALSE) -> 3 | U26: Pertinente | V26: =VLOOKUP(U26,DEBUTSTEP!$AZ$4:$BA$33,2,FALSE) -> 3 | W26: Pertinente | X26: =VLOOKUP(W26,DEBUTSTEP!$AZ$4:$BA$33,2,FALSE) -> 3 | Y26: Pertinente | Z26: =VLOOKUP(Y26,DEBUTSTEP!$AZ$4:$BA$33,2,FALSE) -> 3 | AA26: Pertinente | AB26: =VLOOKUP(AA26,DEBUTSTEP!$AZ$4:$BA$33,2,FALSE) -> 3 | AC26: Pertinente | AD26: =VLOOKUP(AC26,DEBUTSTEP!$AZ$4:$BA$33,2,FALSE) -> 3 | AE26: Pertinente | AF26: =VLOOKUP(AE26,DEBUTSTEP!$AZ$4:$BA$33,2,FALSE) -> 3 | AG26: Pertinente | AH26: =VLOOKUP(AG26,DEBUTSTEP!$AZ$4:$BA$33,2,FALSE) -> 3 | AI26: Pertinente | AJ26: =VLOOKUP(AI26,DEBUTSTEP!$AZ$4:$BA$33,2,FALSE) -> 3 | AK26: Pertinente | AL26: =VLOOKUP(AK26,DEBUTSTEP!$AZ$4:$BA$33,2,FALSE) -> 3 | AM26: Pertinente | AN26: =VLOOKUP(AM26,DEBUTSTEP!$AZ$4:$BA$33,2,FALSE) -> 3 | AO26: Pertinente | AP26: =VLOOKUP(AO26,DEBUTSTEP!$AZ$4:$BA$33,2,FALSE) -> 3 | AQ26: Pertinente | AR26: =VLOOKUP(AQ26,DEBUTSTEP!$AZ$4:$BA$33,2,FALSE) -> 3 | AS26: Pertinente | AT26: =VLOOKUP(AS26,DEBUTSTEP!$AZ$4:$BA$33,2,FALSE) -> 3 | AU26: Pertinente | AV26: =VLOOKUP(AU26,DEBUTSTEP!$AZ$4:$BA$33,2,FALSE) -> 3 | AW26: Pertinente | AX26: =VLOOKUP(AW26,DEBUTSTEP!$AZ$4:$BA$33,2,FALSE) -> 3 | AY26: Pertinente | AZ26: =VLOOKUP(AY26,DEBUTSTEP!$AZ$4:$BA$33,2,FALSE) -> 3 | BA26: Pertinente | BB26: =VLOOKUP(BA26,DEBUTSTEP!$AZ$4:$BA$33,2,FALSE) -> 3 | BC26: Pertinente | BD26: =VLOOKUP(BC26,DEBUTSTEP!$AZ$4:$BA$33,2,FALSE) -> 3 | BE26: Pertinente | BF26: =VLOOKUP(BE26,DEBUTSTEP!$AZ$4:$BA$33,2,FALSE) -> 3 | BG26: Pertinente | BH26: =VLOOKUP(BG26,DEBUTSTEP!$AZ$4:$BA$33,2,FALSE) -> 3 | BI26: Pertinente | BJ26: =VLOOKUP(BI26,DEBUTSTEP!$AZ$4:$BA$33,2,FALSE) -> 3 | BK26: Pertinente | BL26: =VLOOKUP(BK26,DEBUTSTEP!$AZ$4:$BA$33,2,FALSE) -> 3 | BM26: Pertinente | BN26: =VLOOKUP(BM26,DEBUTSTEP!$AZ$4:$BA$33,2,FALSE) -> 3 | BO26: Pertinente | BP26: =VLOOKUP(BO26,DEBUTSTEP!$AZ$4:$BA$33,2,FALSE) -> 3 | BQ26: Pertinente | BR26: =VLOOKUP(BQ26,DEBUTSTEP!$AZ$4:$BA$33,2,FALSE) -> 3 | BS26: Pertinente | BT26: =VLOOKUP(BS26,DEBUTSTEP!$AZ$4:$BA$33,2,FALSE) -> 3
